Workbook

Sheet Sheet1 (hidden)
A1: 2a. 2017 Continuity Schedule | B1: X
A2: 2b. 2017 Continuity Schedule | B2: X
A3: 3. Appendix A | B3: X
A4: 4. Billing Determinants | B4: X
A5: 5. Allocation of Balances | B5: X
A6: 7. Rate Rider Calculations | B6: X

Sheet 2016 List (hidden)
A1: Alectra Utilities Corporation-Brampton Rate Zone | B1: HHPNS717
A2: Alectra Utilities Corporation-Enersource Rate Zone | B2: HHPNS717
A3: Alectra Utilities Corporation-Horizon Utilities Rate Zone | B3: HHPNS717
A4: Alectra Utilities Corporation-PowerStream Rate Zone | B4: HHPNS717
A5: Alectra Utilities Corporation-Guelph Rate Zone | B5: HHPNS717
A6: Algoma Power Inc. | B6: WKBSV849
A7: Atikokan Hydro Inc. | B7: NJYBW716
A8: Bluewater Power Distribution Corporation | B8: GQQHM388
A9: Burlington Hydro Inc. | B9: SFXZP935
A10: Canadian Niagara Power Inc. | B10: OARZC118
A11: Centre Wellington Hydro Ltd. | B11: HJHBH994
A12: Chapleau Public Utilities Corporation | B12: KQEEH473
A13: Cooperative Hydro Embrun Inc. | B13: CPEFQ593
A14: E.L.K. Energy Inc. | B14: QXHJU641
A15: Elexicon Energy Inc.-Whitby Rate Zone | B15: AVXSO594
A16: Elexicon Energy Inc.-Veridian Rate Zone | B16: JMNNR431
A17: Enova Power Corp.-Kitchener-Wilmot Hydro Rate Zone | B17: JMNNR431
A18: Enova Power Corp.-Waterloo North Rate Zone | B18: JKBZG525
A19: Entegrus Powerlines Inc.-For Entegrus-Main Rate Zone | B19: YEOQG654
A20: Entegrus Powerlines Inc.-For Former St. Thomas Energy Rate Zone | B20: YEOQG654
A21: ENWIN Utilities Ltd. | B21: PTLUC812
A22: EPCOR Electricity Distribution Ontario Inc. | B22: ADICB565
A23: ERTH Power Corporation - ERTH Power Main Rate Zone | B23: LRECV427
A24: ERTH POWER CORPORATION – GODERICH RATE ZONE | B24: KTCNY552
A25: Essex Powerlines Corporation | B25: YEPCI143
A26: Festival Hydro Inc. | B26: GRHTW113
A27: Fort Frances Power Corporation | B27: GMGHU415
A28: GrandBridge Energy Inc.-Brantford Power Rate Zone | B28: YTPWF351
A29: GrandBridge Energy Inc.-Energy+ Rate Zone | B29: YCYKQ642
A30: Greater Sudbury Hydro Inc. | B30: ADZFM459
A31: Grimsby Power Incorporated | B31: RVWKN794
A32: Halton Hills Hydro Inc. | B32: KESKM585
A33: Hearst Power Distribution Co. Ltd. | B33: MQFNL784
A34: Hydro 2000 Inc. | B34: FNDHH648
A35: Hydro Hawkesbury Inc. | B35: PTREM828
A36: Hydro One Networks Inc. | B36: PTREM828
A37: Hydro One Networks Inc.-Former Orillia Power Distribution Corporation Service Area | B37: PTREM828
A38: Hydro One Networks Inc.-Former Peterborough Distribution Inc. Service Area | B38: PTREM828
A39: Hydro One Networks Inc.-Former Haldimand County Hydro Inc. Service Area | B39: UBBYF452
A40: Hydro One Networks Inc.-Former Norfolk Power Distribution Inc. Service Area | B40: NSBED625
A41: Hydro One Networks Inc.-Former Woodstock Hydro Services Inc. Service Area | B41: TXKTT167
A42: Hydro One Remote Communites Inc. | B42: ZHKLA874
A43: Hydro Ottawa Limited | B43: YLJHT264
A44: InnPower Corporation | B44: YLCEC559
A45: Kingston Hydro Corporation | B45: NHKJF259
A46: Lakefront Utilities Inc. | B46: NHKJF259
A47: Lakeland Power Distribution Ltd. | B47: SLRXO177
A48: London Hydro Inc. | B48: UIFEM157
A49: Milton Hydro Distribution Inc. | B49: RUZIU984
A50: Newmarket-Tay Power Distribution Ltd.-For Former Midland Power Utility Rate Zone | B50: RUZIU984
A51: Newmarket-Tay Power Distribution Ltd.-For Newmarket-Tay Power Main Rate Zone | B51: KSUYD122
A52: Niagara Peninsula Energy Inc. | B52: QHCKN852
A53: Niagara-on-the-Lake Hydro Inc. | B53: FUIJX538
A54: North Bay Hydro Distribution Limited | B54: PWKJP953
A55: Northern Ontario Wires Inc. | B55: JEGGW178
A56: Oakville Hydro Electricity Distribution Inc. | B56: TVKSH414
A57: Orangeville Hydro Limited | B57: DUISI693
A58: Oshawa PUC Networks Inc. | B58: PQZCY963
A59: Ottawa River Power Corporation | B59: GTLBW445
A60: PUC Distribution Inc. | B60: XCFPH269
A61: Renfrew Hydro Inc. | B61: MLWYG784
A62: Rideau St. Lawrence Distribution Inc. | B62: QDKIF127
A63: Sioux Lookout Hydro Inc. | B63: AMZEN437
A64: Synergy North Corporation-Kenora Rate Zone | B64: ACEVX242
A65: Synergy North Corporation-Thunder Bay Rate Zone | B65: DSPWZ318
A66: Tillsonburg Hydro Inc. | B66: DSPWZ318
A67: Toronto Hydro-Electric System Limited | B67: OLIUU862
A68: Wasaga Distribution Inc. | B68: NIOJF461
A69: Welland Hydro-Electric System Corp. | B69: ZYZFO848
A70: Wellington North Power Inc. | B70: ASEGZ471
A71: Westario Power Inc. | B71: IOKHC383

Sheet 1.1 Instruction Sheet (hidden)
B13: Summary of Changes from the Prior Year
B15: 1 | C15: In tab 2a for the Group 1 continuity schedule, the rows for the totals are revised to show total of Group 1 accounts and total claim amount only.
B17: 2 | C17: In the Group 2 continuity schedule tab 2b, Account 1508, Sub-account Local Initiatives Program Costs and Account 1508, Sub-account Green Button Initiative Costs have been added.
B19: 3 | C19: Account 1509 - Impacts Arising from the COVID-19 Emergency has been added to the Group 2 continuity schedule tab 2b. A separate rider is calculated for this account in tab 7 if disposition is approved.
A24: Instructions
A26: Tab | B26: Tab Details | D26: Step | E26: Instructions
A27: 1 - Information Sheet | B27: This tab shows some information pertaining to the utility and the application. | D27: 1 | E27: Complete the information sheet.
E29: Questions 1 to 4
E30: Responses to these questions will open the DVA continuity schedule in tabs 2a and 2b to the appropriate year that DVA balances should first be inputted.
E31: The continuity schedule in tab 2a will open starting from the year balances were last approved for disposition, unless the last approved disposition was on an interim basis and there are changes to those balances. If that is the case, tab 2a will open from the year of last approved disposition on a final basis. A distributor must also provide an explanation for the change in the previously approved balance.
E33: Questions 5 to 6
E34: If the response to question 5 (GA) or 6 (CBR Class B) is yes, tab 6 relating to Class A customers' consumption will be generated.
E35: If the response to question 6 is yes, then tab 6.2 will also be generated. Tab 6.2 calculates the billing determinants for the Account 1580, sub-account CBR Class B rate rider, if applicable, using information inputted in tabs 4 and 6.
E36: If the response to question 6 is no, then the balance in the Account 1580, sub-account CBR Class B will be allocated and disposed with Account 1580 WMS, as part of the general DVA rate rider
A38: 2a and 2b - Continuity Schedule | B38: These tabs are the continuity schedules that show all the accounts and the accumulation of the balances a utility has. Tab 2a is for Group 1 DVAs. Tab 2b is for Group 2 DVAs. | D38: 2 | E38: Complete the DVA continuity schedule.
D40: 2a | E40: a) For all Group 1 accounts, except Account 1595: The continuity schedule generally will open from the year the GL balance was last disposed. Start inputting the approved ending balances in the Adjustments column of that year. For example, if in the 2022 rate application, DVA balances as at December 13, 2020 were approved for disposition, the continuity schedule will commence from 2020. Start by inputting the approved closing 2020 balances in the Adjustments column under 2020.
E42: b) For all Account 1595 sub-accounts: Complete the DVA continuity schedule for each Account 1595 vintage year that has a GL balance as at December 31, 2021, regardless of whether the account is eligible for disposition in the current application. The continuity schedule will open in the year of the earliest Account 1595 vintage year that has a balance. For each Account 1595 sub-account, start inputting data from the year the sub-account started to accumulate a balance (i.e. the vintage year). For example, Account 1595 (2017) would accumulate a balance starting in 2017, when the relevant balances approved for disposition were first transferred into Account 1595 (2017). Input the amount approved for disposition in the OEB Approved Disposition column. Note that the DVA continuity schedule can currently start from 2016. If a utility has residual balance in an Account 1595 with a vintage year prior to 2016, include residual balances for years up to 2016 in the row for Account 1595 (2016 and pre-2016) and provide a separate schedule with amounts broken down by vintage year.
E44: For Accounts 1595 sub-accounts, indicate whether disposition is requested in column BU.
D46: 2b | E46: c) For all Group 2 accounts: The continuity schedule will open from the earlier of i) the year the GL balance was last disposed, or ii) the earliest year in which balances started to accumulate. Start inputting approved ending balances in the Adjustment columns of that year. For example, if in the 2018 rebasing rate application, DVA balances as at December 13, 2016 were approved for disposition, the continuity schedule will commence from 2016. Start by inputting the approved closing 2016 balances in the Adjustments column under 2016 for the applicable accounts.
E48: Enter the number of utility-specific 1508 sub-accounts that are approved for the utility in the drop down box in column B. The DVA continuity schedule will generate the number of utility-specific 1508 sub-accounts. Input the name and the balances of the sub-account(s).
E50: Indicate whether disposition is requested for various accounts in column BU
E52: Review any balance variance between the DVA continuity schedule and the RRR in column BW. Provide an explanation in tab 3, if necessary.
A54: 3. Appendix A | B54: This tab shows the year end balance variances between the continuity schedule and that reported in the RRR. | D54: 3 | E54: Provide an explanation for the variances identified.
A56: 4 - Billing Determinant | B56: This tab shows the billing determinants that will be used to allocate account balances and calculate rate riders. | D56: 4 | E56: Complete the billing determinants table based on the load forecast. Note that column E (i.e. columns O and P in excel) are generated when a utility indicates they have Class A customers in tab 1. Information in these columns are populated based on data from tab 6.
A58: 5 - Allocating Def-Var Balances | B58: This tab allocates the DVA balances | D58: 5 | E58: Review the allocated balances to ensure the allocation is appropriate. Note that the allocations for Accounts 1589 and 1580 CBR Class B will be determined after tabs 6 to 6.2a have been completed.
A60: 6 - Class A Data Consumption | B60: This tab is to be completed if there were any Class A customers during the period the GA balance CBR Class B balance accumulated. The data on this tab is used for the purposes of determining the GA rate rider, CBR Class B rate rider (if applicable), as well as customer specific GA and CBR Class B charges for transition customers (if applicable). | D60: 6 | E60: This tab is generated when the utility selects yes to questions 5 or 6 in tab 1, indicating they had Class A customers during the period that the GA or CBR balance accumulated.
D62: 7 | E62: Under #2a, indicate whether the utility had any customers that transitioned between Class A and B during the period the Account 1589 GA balance accumulated. If yes, tab 6.1a will be generated.
E64: Under #2b, indicate whether the utility had any customers that transitioned between Class A and B during the period the Account 1580, sub-account CBR Class B balance accumulated. If yes, tab 6.2a will be generated.
D66: 8 | E66: Under #3a, enter the number of transition customers the utility had during the period the Account 1589 GA or Account 1580 CBR Class B balances accumulated. A table will be generated based on the number of customers. Complete the table accordingly for each transition customer identified (i.e. kWh/kW for half year periods, and the customer class during the half year). This data will automatically be used in the GA balance and CBR Class B balance allocation to transition customers in tabs 6.1a. and 6.2a., respectively. Note that each transition customer identified in tab 6, table 3a will be assigned a customer number and the number will correspond to the same transition customers populated in tabs 6.1a. and 6.2a. Also note that the transition customers identified for the GA may be different than those for CBR Class B. This would depend on the period in which the GA and CBR Class B balances accumulated.
D68: 9 | E68: Under #3b, enter the number of rate classes in which there were full year Class A customers during the period the Account 1589 GA balance or Account 1580 CBR Class B balance accumulated and the test year. These full year Class A customers should include any transition customers identified in table 3a above that were Class A customers for the full year before/after the transition year. A table will be generated based on the number of rate classes. Complete the table accordingly for each rate class identified (i.e. the total Class A consumption in the rate class for each year; and a forecast of total Class A and B consumption for transition and full year Class A customers in the test year). This data will be used in the calculation of billing determinants for GA and CBR Class B, as applicable.
A70: 6.1a. - GA Allocation | B70: This tab allocates the GA balance to each transition customer for the period in which these customers were Class B customers and contributed to the GA balance (i.e. former Class B customers who contributed to the GA balance but are now Class A customers, and former Class A customers who are now Class B customers contributing to the GA balance). | D70: 10 | E70: This tab is generated when the utility indicates that they had transition customers in tab 6, #2a during the period the GA balance accumulated.
E72: Enter the Non-RPP consumption less WMP consumption in the first table.
E74: The rest of the information in this tab will be auto-populated and will calculate the customer specific allocation of the GA balance to transition customers in the bottom table. All transition customers who are allocated a specific GA amount are not to be charged the general Non-RPP Class B GA rate rider as calculated in tab 7.
A76: 6.2 - CBR | B76: This tab calculates the billing determinants for the CBR Class B rate rider, if applicable. | D76: 11 | E76: This tab is generated when the response to question 6 in tab 1 is "yes", indicating that they had Class A customers during the period that Account 1580, sub-account CBR Class B balance accumulated.
E78: No input is required. The information in the tab is auto-populated and will be used in the calculation of the CBR Class B rate rider calculated in tab 7.
A80: 6.2a - CBR_B Allocation | B80: This tab allocates the CBR Class B balance to each transition customer for the period in which these customers were Class B customers and contributed to the CBR Class B balance (i.e. former Class B customers who contributed to the balance but are now Class A customers, and former Class A customers who are now Class B contributing to the balance). | D80: 12 | E80: This tab is generated when the utility indicates that they had transition customers in tab 6, #2b during the period where the CBR Class B balance accumulated.
E82: Enter the total Class B consumption less WMP consumption in the first table.
E84: The rest of the information in this tab will be auto-populated and will calculate the customer specific allocation of the CBR Class B balance to transition customers in the bottom table. All transition customers who are allocated a specific CBR Class B amount are not to be charged the general CBR Class B rate rider as calculated in tab 7.
E85: .
A86: 7 - Calculation of Def-Var RR | B86: This tab calculates all the applicable DVA rate riders. | D86: 13 | E86: Enter the proposed rate rider recovery period if different than the default 12 month period. For each rate class of each rate rider, select whether the rate rider is to be calculated on a kWh, kW or number of customers basis. The rest of the information in the tab is auto-populated and the rate riders are calculated accordingly .
E88: If there are Class A customers, but a CBR Class B rate rider is not produced, the entire Account 1580 CBR Class B balance, including the amount allocated to transition customers will be transferred to Account 1580 WMS, to be disposed through the general Group 1 DVA rate rider.

Sheet 1. Information Sheet
V1: Alectra Utilities Corporation-Brampton Rate Zone
V2: Alectra Utilities Corporation-Enersource Rate Zone
V3: Alectra Utilities Corporation-Horizon Utilities Rate Zone
V4: Alectra Utilities Corporation-PowerStream Rate Zone
V5: Alectra Utilities Corporation-Guelph Rate Zone
V6: Algoma Power Inc.
V7: Atikokan Hydro Inc.
V8: Bluewater Power Distribution Corporation
V9: Brantford Power Inc.
V10: Burlington Hydro Inc.
V11: Canadian Niagara Power Inc.
P12: version 1.0 | V12: Centre Wellington Hydro Ltd.
V13: Chapleau Public Utilities Corporation
E14: Utility Name | F14: Hydro Hawkesbury Inc. | V14: Cooperative Hydro Embrun Inc.
V15: E.L.K. Energy Inc.
E16: Service Territory | V16: Elexicon Energy Inc.-Whitby Rate Zone
V17: Elexicon Energy Inc.-Veridian Rate Zone
E18: Assigned EB Number | V18: Energy+ Inc.
V19: Entegrus Powerlines Inc.-For Entegrus-Main Rate Zone
E20: Name of Contact and Title | V20: Entegrus Powerlines Inc.-For Former St. Thomas Energy Rate Zone
V21: ENWIN Utilities Ltd.
E22: Phone Number | V22: EPCOR Electricity Distribution Ontario Inc.
V23: ERTH Power Corporation - ERTH Power Main Rate Zone
E24: Email Address | V24: ERTH POWER CORPORATION – GODERICH RATE ZONE
V25: Essex Powerlines Corporation
V26: Festival Hydro Inc.
A27: To determine the first year the continuity schedules in tabs 2a and 2b will be generated for input, answer the following questions: | V27: Fort Frances Power Corporation
A28: For all the the responses below, when selecting a year, select the year relating to the account balance. For example, if the 2021 balances that were reviewed in the 2023 rate application were to be selected, select 2021. | V28: Greater Sudbury Hydro Inc.
A29: Question 1 | L29: Year Selected | V29: Grimsby Power Incorporated
A30: For Accounts 1588 and 1589, | V30: Halton Hills Hydro Inc.
A31: Please indicate the year the account balances were last disposed on a final basis for information purposes. | L31: 2019 | V31: Hearst Power Distribution Co. Ltd.
A32: Determine whether scenario a or b below applies, then select the appropriate year. | V32: Hydro 2000 Inc.
A33: a) If the accounts balances were last approved on a final basis, select the year of the year-end balances that were last approved on a final basis. | L33: 2019 | V33: Hydro Hawkesbury Inc.
A34: b) If the accounts balances were last approved on an interim basis, and | V34: Hydro One Networks Inc.
A35: i) there are no changes to the previously approved interim balances, select the year of the year-end balances that were last approved for diposition on an interim basis. | V35: Hydro One Networks Inc.-Former Haldimand County Hydro Inc. Service Area
A36: ii) there are changes to the previously approved interim balaces, select the year of the year-end balances that were last approved for disposition on a final basis. | V36: Hydro One Networks Inc.-Former Norfolk Power Distribution Inc. Service Area
V37: Hydro One Networks Inc.-Former Woodstock Hydro Services Inc. Service Area
V38: Hydro One Remote Communites Inc.
A39: Question 2 | V39: Hydro Ottawa Limited
A40: For the remaining Group 1 DVAs, | V40: InnPower Corporation
A41: Please indicate the year of the account balances were last disposed on a final basis for information purposes. | L41: 2022 | V41: Kingston Hydro Corporation
A42: Determine whether scenario a or b below applies, then select the appropriate year. | V42: Kitchener-Wilmot Hydro Inc.
A43: a) If the accounts balances were last approved on a final basis, select the year of the year-end balances that were last approved on a final basis. | L43: 2022 | V43: Lakefront Utilities Inc.
A44: b) If the accounts were last approved on an interim basis, and | V44: Lakeland Power Distribution Ltd.
A45: i) there are no changes to the previously approved interim balances, select the year of the year-end balances that were last approved for diposition on an interim basis. | V45: Lakeland Power Distribution Ltd.-Parry Sound Service Area
A46: ii) there are changes to the previously approved interim balaces, select the year of the year-end balances that were last approved for disposition on a final basis. | V46: London Hydro Inc.
V47: Milton Hydro Distribution Inc.
A48: Question 3 | V48: Newmarket-Tay Power Distribution Ltd.-For Former Midland Power Utility Rate Zone
A49: Select the earliest account balance vintage year in which there is a balance in Account 1595 | L49: 2018 | V49: Newmarket-Tay Power Distribution Ltd.-For Newmarket-Tay Power Main Rate Zone
A50: (e.g. If 2019 is the earliest vintage year in which there is a balance in a 1595 sub-account, select 2019) | V50: Niagara Peninsula Energy Inc.
V51: Niagara-on-the-Lake Hydro Inc.
A52: Question 4 | V52: North Bay Hydro Distribution Limited - Espanola service territory
A53: Select the earlier of i) the year of the year-end balances in which Group 2 DVAs were last disposed and ii) the earliest year of the year-end balances in which Group 2 DVAs started to accumulate. | L53: 2018 | V53: North Bay Hydro Distribution Limited - North Bay service territory
V54: Northern Ontario Wires Inc.
A55: To determine whether tabs 6 and 6.2 will be generated, answer the following questions: | V55: Oakville Hydro Electricity Distribution Inc.
V56: Orangeville Hydro Limited
A57: Question 5 | V57: Orillia Power Distribution Corporation
A58: Did you have any Class A customers at any point during the period that the Account 1589 balance accumulated (i.e. from the year the balance selected in #1 above to the year requested for disposition) or forecasted in the test year? | L58: Yes | V58: Oshawa PUC Networks Inc.
V59: Ottawa River Power Corporation
A60: Question 6 | V60: Peterborough Distribution Incorporated
A61: Did you have any Class A customers at any point during the period where the balance in Account 1580, Sub-account CBR Class B accumulated (i.e. from the year selected in #2 above to the year requested for disposition) or the forecasted in the test year? | L61: Yes | V61: PUC Distribution Inc.
V62: Renfrew Hydro Inc.
V63: Rideau St. Lawrence Distribution Inc.
V64: Sioux Lookout Hydro Inc.
B65: General Notes 1. Please ensure that your macros have been enabled. (Tools -> Macro -> Security) 2. Due to the time lag of deferral/variance account dispositions, this model assumes that all opening balances include previously disposed of amounts. Accordingly, all "Board Approved Dispositions" are deducted from the opening balance. 3. Please provide information in this model since the last time your balances were disposed. 4. For all Board-Approved dispositions, please ensure that the disposition amount has the same sign (e.g: debit balances are to have a positive figure and credit balance are to have a negative figure) as per the related Board decision. | V65: Synergy North Corporation-Kenora Rate Zone
V66: Synergy North Corporation-Thunder Bay Rate Zone
B67: Notes | V67: Tillsonburg Hydro Inc.
V68: Toronto Hydro-Electric System Limited
C69: Pale green cells represent input cells. | V69: Wasaga Distribution Inc.
V70: Waterloo North Hydro Inc.
C71: Pale blue cells represent drop-down lists. The applicant should select the appropriate item from the drop-down list. | V71: Welland Hydro-Electric System Corp.
V72: Wellington North Power Inc.
C73: White cells contain fixed values, automatically generated values or formulae. | V73: Westario Power Inc.
C75: Pale grey cell represent auto-populated RRR data

Sheet 2a. Continuity Schedule
F1: 20 | CF1: 1
CF2: 2
CF3: 3
CF4: 4
CF5: 5
CF6: 6
CF7: 7
CF8: 8
CF9: 9
CF10: 10
CB11: TRUE | CF11: 11
CB12: FALSE | CF12: 12
CF13: 13
CF14: 14
CF15: 15
CF16: 16
E19: 2018 | O19: =E19+1 -> 2019 | Y19: =O19+1 -> 2020 | AI19: =Y19+1 -> 2021 | AS19: =AI19+1 -> 2022 | BC19: =AS19+1 -> 2023 | BM19: =BC19+1 -> 2024 | BQ19: =CONCATENATE("Projected Interest on Dec-31-",RIGHT(BC19,2)," Balances") -> Projected Interest on Dec-31-23 Balances | BV19: 2.1.7 RRR
C20: Account Descriptions | D20: Account Number | E20: =CONCATENATE("Opening Principal Amounts as of Jan-1-",RIGHT(E19,2)) -> Opening Principal Amounts as of Jan-1-18 | F20: =CONCATENATE("Transactions(1) Debit / (Credit) during ",E19) -> Transactions(1) Debit / (Credit) during 2018 | G20: =CONCATENATE("OEB-Approved Disposition during ",E19) -> OEB-Approved Disposition during 2018 | H20: =CONCATENATE("Principal Adjustments during ",E19,"(1)") -> Principal Adjustments during 2018(1) | I20: =CONCATENATE("Closing Principal Balance as of Dec-31-",RIGHT(E19,2)) -> Closing Principal Balance as of Dec-31-18 | J20: =CONCATENATE("Opening Interest Amounts as of Jan-1-",RIGHT(E19,2)) -> Opening Interest Amounts as of Jan-1-18 | K20: =CONCATENATE("Interest Jan-1 to Dec-31-",RIGHT(E19,2)) -> Interest Jan-1 to Dec-31-18 | L20: =CONCATENATE("OEB-Approved Disposition during ",E19) -> OEB-Approved Disposition during 2018 | M20: =CONCATENATE("Interest Adjustments(1) during ",E19) -> Interest Adjustments(1) during 2018 | N20: =CONCATENATE("Closing Interest Amounts as of Dec-31-",RIGHT(E19,2)) -> Closing Interest Amounts as of Dec-31-18 | O20: =CONCATENATE("Opening Principal Amounts as of Jan-1-",RIGHT(O19,2)) -> Opening Principal Amounts as of Jan-1-19 | P20: =CONCATENATE("Transactions Debit / (Credit) during ",O19) -> Transactions Debit / (Credit) during 2019 | Q20: =CONCATENATE("OEB-Approved Disposition during ",O19) -> OEB-Approved Disposition during 2019 | R20: =CONCATENATE("Principal Adjustments(1) during ",O19) -> Principal Adjustments(1) during 2019 | S20: =CONCATENATE("Closing Principal Balance as of Dec-31-",RIGHT(O19,2)) -> Closing Principal Balance as of Dec-31-19 | T20: =CONCATENATE("Opening Interest Amounts as of Jan-1-",RIGHT(O19,2)) -> Opening Interest Amounts as of Jan-1-19 | U20: =CONCATENATE("Interest Jan-1 to Dec-31-",RIGHT(O19,2)) -> Interest Jan-1 to Dec-31-19 | V20: =CONCATENATE("OEB-Approved Disposition during ",O19) -> OEB-Approved Disposition during 2019 | W20: =CONCATENATE("Interest Adjustments(1) during ",O19) -> Interest Adjustments(1) during 2019 | X20: =CONCATENATE("Closing Interest Amounts as of Dec-31-",RIGHT(O19,2)) -> Closing Interest Amounts as of Dec-31-19 | Y20: =CONCATENATE("Opening Principal Amounts as of Jan-1-",RIGHT(Y19,2)) -> Opening Principal Amounts as of Jan-1-20 | Z20: =CONCATENATE("Transactions Debit / (Credit) during ",Y19) -> Transactions Debit / (Credit) during 2020 | AA20: =CONCATENATE("OEB-Approved Disposition during ",Y19) -> OEB-Approved Disposition during 2020 | AB20: =CONCATENATE("Principal Adjustments(1) during ",Y19) -> Principal Adjustments(1) during 2020 | AC20: =CONCATENATE("Closing Principal Balance as of Dec-31-",RIGHT(Y19,2)) -> Closing Principal Balance as of Dec-31-20 | AD20: =CONCATENATE("Opening Interest Amounts as of Jan-1-",RIGHT(Y19,2)) -> Opening Interest Amounts as of Jan-1-20 | AE20: =CONCATENATE("Interest Jan-1 to Dec-31-",RIGHT(Y19,2)) -> Interest Jan-1 to Dec-31-20 | AF20: =CONCATENATE("OEB-Approved Disposition during ",Y19) -> OEB-Approved Disposition during 2020 | AG20: =CONCATENATE("Interest Adjustments(1) during ",Y19) -> Interest Adjustments(1) during 2020 | AH20: =CONCATENATE("Closing Interest Amounts as of Dec-31-",RIGHT(Y19,2)) -> Closing Interest Amounts as of Dec-31-20 | AI20: =CONCATENATE("Opening Principal Amounts as of Jan-1-",RIGHT(AI19,2)) -> Opening Principal Amounts as of Jan-1-21 | AJ20: =CONCATENATE("Transactions(1) Debit / (Credit) during ",AI19) -> Transactions(1) Debit / (Credit) during 2021 | AK20: =CONCATENATE("OEB-Approved Disposition during ",AI19) -> OEB-Approved Disposition during 2021 | AL20: =CONCATENATE("Principal Adjustments(1) during ",AI19) -> Principal Adjustments(1) during 2021 | AM20: =CONCATENATE("Closing Principal Balance as of Dec-31-",RIGHT(AI19,2)) -> Closing Principal Balance as of Dec-31-21 | AN20: =CONCATENATE("Opening Interest Amounts as of Jan-1-",RIGHT(AI19,2)) -> Opening Interest Amounts as of Jan-1-21 | AO20: =CONCATENATE("Interest Jan-1 to Dec-31-",RIGHT(AI19,2)) -> Interest Jan-1 to Dec-31-21 | AP20: =CONCATENATE("OEB-Approved Disposition during ",AI19) -> OEB-Approved Disposition during 2021 | AQ20: =CONCATENATE("Interest Adjustments(1) during ",AI19) -> Interest Adjustments(1) during 2021 | AR20: =CONCATENATE("Closing Interest Amounts as of Dec-31-",RIGHT(AI19,2)) -> Closing Interest Amounts as of Dec-31-21 | AS20: =CONCATENATE("Opening Principal Amounts as of Jan-1-",RIGHT(AS19,2)) -> Opening Principal Amounts as of Jan-1-22 | AT20: =CONCATENATE("Transactions(1) Debit / (Credit) during ",AS19) -> Transactions(1) Debit / (Credit) during 2022 | AU20: =CONCATENATE("OEB-Approved Disposition during ",AS19) -> OEB-Approved Disposition during 2022 | AV20: =CONCATENATE("Principal Adjustments(1) during ",AS19) -> Principal Adjustments(1) during 2022 | AW20: =CONCATENATE("Closing Principal Balance as of Dec-31-",RIGHT(AS19,2)) -> Closing Principal Balance as of Dec-31-22 | AX20: =CONCATENATE("Opening Interest Amounts as of Jan-1-",RIGHT(AS19,2)) -> Opening Interest Amounts as of Jan-1-22 | AY20: =CONCATENATE("Interest Jan-1 to Dec-31-",RIGHT(AS19,2)) -> Interest Jan-1 to Dec-31-22 | AZ20: =CONCATENATE("OEB-Approved Disposition during ",AS19) -> OEB-Approved Disposition during 2022 | BA20: =CONCATENATE("Interest Adjustments(1) during ",AS19) -> Interest Adjustments(1) during 2022 | BB20: =CONCATENATE("Closing Interest Amounts as of Dec-31-",RIGHT(AS19,2)) -> Closing Interest Amounts as of Dec-31-22 | BC20: =CONCATENATE("Opening Principal Amounts as of Jan-1-",RIGHT(BC19,2)) -> Opening Principal Amounts as of Jan-1-23 | BD20: =CONCATENATE("Transactions Debit / (Credit) during ",BC19) -> Transactions Debit / (Credit) during 2023 | BE20: =CONCATENATE("OEB-Approved Disposition during ",BC19) -> OEB-Approved Disposition during 2023 | BF20: =CONCATENATE("Principal Adjustments(1) during ",BC19) -> Principal Adjustments(1) during 2023 | BG20: =CONCATENATE("Closing Principal Balance as of Dec-31-",RIGHT(BC19,2)) -> Closing Principal Balance as of Dec-31-23 | BH20: =CONCATENATE("Opening Interest Amounts as of Jan-1-",RIGHT(BC19,2)) -> Opening Interest Amounts as of Jan-1-23 | BI20: =CONCATENATE("Interest Jan-1 to Dec-31-",RIGHT(BC19,2)) -> Interest Jan-1 to Dec-31-23 | BJ20: =CONCATENATE("OEB-Approved Disposition during ",BC19) -> OEB-Approved Disposition during 2023 | BK20: =CONCATENATE("Interest Adjustments(1) during ",BC19) -> Interest Adjustments(1) during 2023 | BL20: =CONCATENATE("Closing Interest Amounts as of Dec-31-",RIGHT(BC19,2)) -> Closing Interest Amounts as of Dec-31-23 | BM20: =CONCATENATE("Principal Disposition during ",BM19," - instructed by OEB") -> Principal Disposition during 2024 - instructed by OEB | BN20: =CONCATENATE("Interest Disposition during ",BM19," - instructed by OEB") -> Interest Disposition during 2024 - instructed by OEB | BO20: =CONCATENATE("Closing Principal Balances as of Dec 31-",RIGHT(BM19-1,2)," Adjusted for Dispositions during ",BM19) -> Closing Principal Balances as of Dec 31-23 Adjusted for Dispositions during 2024 | BP20: =CONCATENATE("Closing Interest Balances as of Dec 31-",RIGHT(BM19-1,2)," Adjusted for Dispositions during ",BM19) -> Closing Interest Balances as of Dec 31-23 Adjusted for Dispositions during 2024 | BQ20: =CONCATENATE("Projected Interest from Jan 1, ",BM19," to December 31, ",BM19," on Dec 31 -",RIGHT(BM19-1,2)," balance adjusted for disposition during ",BM19," (2)") -> Projected Interest from Jan 1, 2024 to December 31, 2024 on Dec 31 -23 balance adjusted for disposition during 2024 (2) | BR20: =CONCATENATE("Projected Interest from January 1, ",BM19+1," to April 30, ",BM19+1," on Dec 31 -",RIGHT(BC19,2)," balance adjusted for disposition during ",BM19," (2)") -> Projected Interest from January 1, 2025 to April 30, 2025 on Dec 31 -23 balance adjusted for disposition during 2024 (2) | BS20: Total Interest | BT20: Total Claim | BU20: Accounts To Dispose Yes/No | BV20: =CONCATENATE("As of Dec 31-",RIGHT(BC19,2)) -> As of Dec 31-23 | BW20: =CONCATENATE("Variance RRR vs. ",BC19," Balance (Principal + Interest)") -> Variance RRR vs. 2023 Balance (Principal + Interest)
BS22: Claim before Forecasted Transactions | BT22: Claim before Forecasted Transactions
B23: 1 | C23: Group 1 Accounts
A24: 1 | B24: 2 | C24: LV Variance Account | D24: 1550 | I24: =E24+F24-G24+H24 -> 0 | N24: =J24+K24-L24+M24 -> 0 | O24: =I24 -> 0 | S24: =O24+P24-Q24+R24 -> 0 | T24: =N24 -> 0 | X24: =T24+U24-V24+W24 -> 0 | Y24: =S24 -> 0 | AC24: =Y24+Z24-AA24+AB24 -> 0 | AD24: =X24 -> 0 | AH24: =AD24+AE24-AF24+AG24 -> 0 | AI24: =AC24 -> 0 | AL24: 47132.01 | AM24: =AI24+AJ24-AK24+SUM(AL24:AL24) -> 47132.01 | AN24: =AH24 -> 0 | AQ24: 345.58 | AR24: =AN24+AO24-AP24+AQ24 -> 345.58 | AS24: =AM24 -> 47132.01 | AT24: 55056.4 | AU24: 17188 | AW24: =AS24+AT24-AU24+AV24 -> 85000.41 | AX24: =AR24 -> 345.58 | AY24: 1387.81 | AZ24: 295 | BB24: =AX24+AY24-AZ24+BA24 -> 1438.39 | BC24: =AW24 -> 85000.41 | BD24: 35994.93 | BE24: 29944 | BG24: =BC24+BD24-BE24+SUM(BF24:BF24) -> 91051.34 | BH24: =BB24 -> 1438.39 | BI24: 4015.95 | BJ24: 499 | BL24: =BH24+BI24-BJ24+BK24 -> 4955.34 | BO24: =BG24-BM24 -> 91051.34 | BP24: =BL24-BN24 -> 4955.34 | BQ24: =ROUND(+BO24*0.0549,2) -> 4998.72 | BS24: =BP24+BQ24+BR24 -> 9954.06 | BT24: =SUM(BO24:BR24) -> 101005.4 | BV24: 96006.68 | BW24: =BV24-SUM(BG24,BL24) -> 0 | BX24: =IF(ABS(BW24)>1,"Please provide an explanation of the variance in the tab 3 - Appendix A","") -> 
A25: 2 | B25: 3 | C25: Smart Metering Entity Charge Variance Account | D25: 1551 | I25: =E25+F25-G25+H25 -> 0 | N25: =J25+K25-L25+M25 -> 0 | O25: =I25 -> 0 | S25: 0 | T25: =N25 -> 0 | X25: =T25+U25-V25+W25 -> 0 | Y25: 0 | AC25: 0 | AD25: 0 | AH25: =AD25+AE25-AF25+AG25 -> 0 | AI25: =AC25 -> 0 | AL25: -5856.94 | AM25: =AI25+AJ25-AK25+SUM(AL25:AL25) -> -5856.94 | AN25: 0 | AQ25: -35.1 | AR25: =AN25+AO25-AP25+AQ25 -> -35.1 | AS25: -5856.94 | AT25: -14665.69 | AU25: -3198 | AW25: =AS25+AT25-AU25+AV25 -> -17324.63 | AX25: -35.1 | AY25: -131.96 | AZ25: -38 | BB25: =AX25+AY25-AZ25+BA25 -> -129.06 | BC25: -17324.63 | BD25: -10627.59 | BE25: -2659 | BG25: =BC25+BD25-BE25+SUM(BF25:BF25) -> -25293.22 | BH25: -129.06 | BI25: -1014.58 | BJ25: -37 | BL25: =BH25+BI25-BJ25+BK25 -> -1106.64 | BO25: =BG25-BM25 -> -25293.22 | BP25: =BL25-BN25 -> -1106.64 | BQ25: -1388.6 | BS25: -2495.24 | BT25: =SUM(BO25:BR25) -> -27788.46 | BV25: -26399.86 | BW25: =BV25-SUM(BG25,BL25) -> 0 | BX25: =IF(ABS(BW25)>1,"Please provide an explanation of the variance in the tab 3 - Appendix A","") -> 
A26: 3 | B26: 4 | C26: RSVA - Wholesale Market Service Charge5 | D26: 1580 | I26: =E26+F26-G26+H26 -> 0 | N26: =J26+K26-L26+M26 -> 0 | O26: =I26 -> 0 | S26: 0 | T26: =N26 -> 0 | X26: =T26+U26-V26+W26 -> 0 | Y26: 0 | AC26: 0 | AD26: 0 | AH26: =AD26+AE26-AF26+AG26 -> 0 | AI26: 0 | AL26: -73370.18 | AM26: -73370.18 | AN26: 0 | AQ26: 286.23 | AR26: =AN26+AO26-AP26+AQ26 -> 286.23 | AS26: -73370.18 | AT26: 136571.62 | AU26: -138978 | AW26: =AS26+AT26-AU26+AV26 -> 202179.44 | AX26: 286.23 | AY26: 3114.65 | AZ26: -999 | BB26: =AX26+AY26-AZ26+BA26 -> 4399.88 | BC26: 202179.44 | BD26: -105216.36 | BE26: 65608 | BG26: 31355.08 | BH26: 4399.88 | BI26: 5593.5 | BJ26: 2268 | BL26: =BH26+BI26-BJ26+BK26 -> 7725.38 | BO26: 31355.08 | BP26: 7725.38 | BQ26: 1721.39 | BS26: 9446.77 | BT26: =SUM(BO26:BR26) -> 40801.85 | BV26: 39080.46 | BW26: 0 | BX26: =IF(ROUND(BV28,0)<>ROUND(BW26,0),"Variance does not agree to RRR CBR balance in BV28. Please provide an explanation of the variance in tab 3 - Appendix A","") -> Variance does not agree to RRR CBR balance in BV28. Please provide an explanation of the variance in tab 3 - Appendix A
A27: 3.1 | B27: 5 | C27: Variance WMS – Sub-account CBR Class A5 | D27: 1580 | I27: =E27+F27-G27+H27 -> 0 | N27: =J27+K27-L27+M27 -> 0 | O27: 0 | S27: 0 | X27: 0 | Y27: 0 | AC27: 0 | AD27: =X27 -> 0 | AH27: =AD27+AE27-AF27+AG27 -> 0 | AI27: =AC27 -> 0 | AL27: -13.5 | AM27: =AI27+AJ27-AK27+SUM(AL27:AL27) -> -13.5 | AN27: =AH27 -> 0 | AQ27: -0.67 | AR27: -0.67 | AS27: -13.5 | AT27: -48.58 | AW27: =AS27+AT27-AU27+AV27 -> -62.08 | AX27: -0.67 | AY27: -4.91 | BB27: -5.58 | BC27: -62.08 | BD27: -69.07 | BG27: -131.15 | BH27: -5.58 | BI27: -13.23 | BL27: -18.81 | BO27: -131.15 | BP27: -18.81 | BQ27: -7.2 | BS27: -26.01 | BT27: 0 | BV27: -149.96 | BW27: =BV27-SUM(BG27,BL27) -> 0 | CB27: 1580 CBDR A | CC27: TRUE
A28: 3.2 | B28: 6 | C28: Variance WMS – Sub-account CBR Class B5 | D28: 1580 | I28: =E28+F28-G28+H28 -> 0 | N28: =J28+K28-L28+M28 -> 0 | O28: 0 | S28: 0 | X28: 0 | Y28: 0 | AC28: 0 | AD28: =X28 -> 0 | AH28: =AD28+AE28-AF28+AG28 -> 0 | AI28: =AC28 -> 0 | AL28: -55907.88 | AM28: =AI28+AJ28-AK28+SUM(AL28:AL28) -> -55907.88 | AN28: =AH28 -> 0 | AQ28: -1652.77 | AR28: -1652.77 | AS28: -55907.88 | AT28: -7367.13 | AU28: -8149 | AW28: =AS28+AT28-AU28+AV28 -> -55126.01 | AX28: -1652.77 | AY28: -1094.51 | AZ28: -656 | BB28: -2091.28 | BC28: -55126.01 | BD28: 5477.8 | BE28: -47759 | BG28: -1889.21 | BH28: -2091.28 | BI28: -1102.25 | BJ28: -1712 | BL28: -1481.53 | BO28: -1889.21 | BP28: -1481.53 | BQ28: -103.72 | BS28: -1585.25 | BT28: =IF(CC28=TRUE, SUM(BO28:BR28), 0) -> -3474.46 | BV28: -3370.74 | BW28: =BV28-SUM(BG28,BL28) -> -8.185452316e-12 | CB28: 1580 CBDR B | CC28: TRUE
A29: 4 | B29: 7 | C29: RSVA - Retail Transmission Network Charge | D29: 1584 | I29: =E29+F29-G29+H29 -> 0 | N29: =J29+K29-L29+M29 -> 0 | O29: 0 | S29: 0 | T29: 0 | X29: 0 | Y29: 0 | AC29: 0 | AD29: 0 | AH29: 0 | AI29: 0 | AL29: 80743.58 | AM29: 80743.58 | AN29: 0 | AQ29: -244.41 | AR29: -244.41 | AS29: 80743.58 | AT29: 125843.21 | AU29: -37646 | AW29: =AS29+AT29-AU29+AV29 -> 244232.79 | AX29: -244.41 | AY29: 3955.75 | AZ29: -708 | BB29: 4419.34 | BC29: 244232.79 | BD29: 88874.29 | BE29: 118390 | BG29: =BC29+BD29-BE29+SUM(BF29:BF29) -> 214717.08 | BH29: 4419.34 | BI29: 9890.81 | BJ29: 2236 | BL29: 12074.15 | BO29: 214717.08 | BP29: 12074.15 | BQ29: 11787.97 | BS29: 23862.12 | BT29: =SUM(BO29:BR29) -> 238579.2 | BV29: 226791.23 | BW29: 0
A30: 5 | B30: 8 | C30: RSVA - Retail Transmission Connection Charge | D30: 1586 | I30: 0 | N30: 0 | O30: 0 | S30: =O30+P30-Q30+R30 -> 0 | T30: 0 | X30: 0 | Y30: 0 | AC30: =Y30+Z30-AA30+AB30 -> 0 | AD30: 0 | AH30: 0 | AI30: 0 | AL30: -47000.95 | AM30: -47000.95 | AN30: 0 | AQ30: -507.59 | AR30: -507.59 | AS30: -47000.95 | AT30: 14318.98 | AU30: -22115 | AW30: -10566.97 | AX30: -507.59 | AY30: -221.49 | AZ30: -455 | BB30: -274.08 | BC30: -10566.97 | BD30: 77308.62 | BE30: -24886 | BG30: 91627.65 | BH30: -274.08 | BI30: 2196.88 | BJ30: -426 | BL30: 2348.8 | BO30: 91627.65 | BP30: 2348.8 | BQ30: 5030.36 | BS30: 7379.16 | BT30: =SUM(BO30:BR30) -> 99006.81 | BV30: 93976.45 | BW30: 0
A31: 6 | B31: 9 | C31: RSVA - Power (excluding Global Adjustment)4 | D31: 1588 | H31: -777228.27 | I31: -777228.27 | M31: -14948.52 | N31: -14948.52 | O31: -777228.27 | P31: 603405.05 | Q31: 101971 | S31: -275794.22 | T31: -14948.52 | U31: 5525.88 | V31: -2392 | X31: -7030.64 | Y31: -275794.22 | Z31: =-1511213.55+965000 -> -546213.55 | AC31: -822007.77 | AD31: -7030.64 | AE31: -1592 | AH31: -8622.64 | AI31: -822007.77 | AJ31: 130287.48 | AK31: -275793 | AM31: -415927.29 | AN31: -8622.64 | AO31: -5536.99 | AP31: -11347 | AR31: -2812.63 | AS31: -415927.29 | AT31: -80101.06 | AW31: -496028.35 | AX31: -2812.63 | AY31: -16921.06 | BB31: -19733.69 | BC31: -496028.35 | BD31: -44156.12 | BG31: -540184.47 | BH31: -19733.69 | BI31: -26460.22 | BL31: -46193.91 | BO31: -540184.47 | BP31: -46193.91 | BQ31: -29656.13 | BS31: -75850.04 | BT31: =IF(BU31="Yes", SUM(BO31:BR31), 0) -> -616034.51 | BU31: Yes | BV31: -586378.38 | BW31: 0
A32: 7 | B32: 10 | C32: RSVA - Global Adjustment 4 | D32: 1589 | H32: -109279.41 | I32: -109279.41 | M32: 26846.38 | N32: 26846.38 | O32: -109279.41 | P32: 125299.53 | Q32: 51607 | S32: -35586.88 | T32: 26846.38 | U32: -23451.7 | V32: 3405 | X32: -10.32 | Y32: -35586.88 | Z32: =1057208.46-41455.21-965000 -> 50753.25 | AC32: 15166.37 | AD32: -10.32 | AE32: =-5233.89-29.78 -> -5263.67 | AH32: -5273.99 | AI32: 15166.37 | AJ32: -536969.14 | AK32: -35587 | AM32: -486215.77 | AN32: -5273.99 | AO32: -1509.42 | AP32: -567 | AR32: -6216.41 | AS32: -486215.77 | AT32: 22815.58 | AW32: -463400.19 | AX32: -6216.41 | AY32: -8016.23 | BB32: -14232.64 | BC32: -463400.19 | BD32: 129080.82 | BG32: -334319.37 | BH32: -14232.64 | BI32: -11045.79 | BL32: -25278.43 | BO32: -334319.37 | BP32: -25278.43 | BQ32: -18354.13 | BS32: -43632.56 | BT32: =IF(BU32="Yes", SUM(BO32:BR32), 0) -> -377951.93 | BU32: Yes | BV32: -359597.8 | BW32: 0
A33: 8 | B33: 11 | C33: Disposition and Recovery/Refund of Regulatory Balances (2009)7 | D33: 1595 | I33: 0 | N33: 0 | O33: =I33 -> 0 | S33: 0 | T33: =N33 -> 0 | X33: 0 | Y33: 0 | AC33: 0 | AD33: 0 | AH33: 0 | AI33: 0 | AM33: 0 | AN33: 0 | AR33: 0 | AS33: 0 | AW33: 0 | AX33: 0 | BB33: 0 | BC33: 0 | BG33: 0 | BH33: 0 | BL33: 0 | BO33: 0 | BP33: 0 | BS33: 0 | BT33: =IF(CC33=TRUE, SUM(BO33:BR33), 0) -> 0 | BW33: 0 | CB33: 1595 (2009) | CC33: FALSE
A34: 9 | B34: 12 | C34: Disposition and Recovery/Refund of Regulatory Balances (2018 and pre-2018)3 | D34: 1595 | E34: 61789.57 | F34: =520788.63-268387.6 -> 252401.03 | G34: 455371.06 | H34: =-2223.55+3246.35 -> 1022.8 | I34: -140157.66 | J34: -4322.11 | K34: -3489.51 | L34: -5270.19 | M34: =2223.55-3246.35 -> -1022.8 | N34: -3564.23 | O34: -140157.66 | P34: 68329.41 | S34: -71828.25 | T34: -3564.23 | U34: -1816.88 | X34: -5381.11 | Y34: -71828.25 | Z34: =-1.03+160 -> 158.97 | AC34: -71669.28 | AD34: -5381.11 | AE34: =-980.72+1.03-160 -> -1139.69 | AH34: -6520.8 | AI34: -71669.28 | AM34: -71669.28 | AN34: -6520.8 | AO34: -408.52 | AR34: -6929.32 | AS34: -71669.28 | AW34: -71669.28 | AX34: -6929.32 | AY34: -1379.5 | BB34: -8308.82 | BC34: -71669.28 | BE34: -71669.42 | BG34: 0.14 | BH34: -8308.82 | BI34: =-835.88+1124 -> 288.12 | BJ34: -8020.58 | BL34: -0.12 | BO34: 0.14 | BP34: -0.12 | BS34: -0.12 | BT34: =IF(BU34="Yes", SUM(BO34:BR34), 0) -> 0 | BU34: No | BW34: -0.02000000003 | CB34: 1595 (2010) | CC34: FALSE
A35: 10 | B35: 13 | C35: Disposition and Recovery/Refund of Regulatory Balances (2019)3 | D35: 1595 | I35: 0 | N35: 0 | O35: 0 | P35: 125916.6 | Q35: 131005 | S35: -5088.4 | T35: 0 | U35: -682.41 | V35: 7226 | X35: -7908.41 | Y35: -5088.4 | Z35: =18564.7-4851.7-7288 -> 6425 | AC35: 1336.6 | AD35: -7908.41 | AE35: =-18.57+7288 -> 7269.43 | AH35: -638.98 | AI35: 1336.6 | AM35: 1336.6 | AN35: -638.98 | AO35: 7.62 | AR35: -631.36 | AS35: 1336.6 | AW35: 1336.6 | AX35: -631.36 | AY35: 25.73 | BB35: -605.63 | BC35: 1336.6 | BE35: 1336.92 | BG35: -0.32 | BH35: -605.63 | BI35: =15.6+87 -> 102.6 | BJ35: -502.92 | BL35: -0.11 | BO35: -0.32 | BP35: -0.11 | BS35: -0.11 | BT35: 0 | BU35: No | BW35: 0.43 | CB35: 1595 (2011) | CC35: FALSE
A36: 11 | B36: 14 | C36: Disposition and Recovery/Refund of Regulatory Balances (2020)3 | D36: 1595 | I36: 0 | N36: 0 | O36: 0 | S36: 0 | T36: 0 | X36: 0 | Y36: 0 | Z36: =135741.55-4303.12 -> 131438.43 | AA36: 155422 | AC36: -23983.57 | AD36: =X36 -> 0 | AE36: =-691.56+4303.12 -> 3611.56 | AF36: 4605 | AH36: -993.44 | AI36: -23983.57 | AJ36: =13795.6-0.03 -> 13795.57 | AM36: -10188 | AN36: -993.44 | AO36: =-67.77+0.03 -> -67.74 | AR36: -1061.18 | AS36: -10188 | AW36: -10188 | AX36: -1061.18 | AY36: -196.1 | BB36: -1257.28 | BC36: -10188 | BG36: -10188 | BH36: -1257.28 | BI36: =-514.17-1211 -> -1725.17 | BL36: -2982.45 | BO36: -10188 | BP36: -2982.45 | BQ36: =ROUND(+BO36*0.0549,2) -> -559.32 | BS36: -3541.77 | BT36: 0 | BU36: No | BV36: -13170.86 | BW36: -0.41 | CB36: 1595 (2012) | CC36: FALSE
A37: 12 | B37: 15 | C37: Disposition and Recovery/Refund of Regulatory Balances (2021)3 | D37: 1595 | I37: 0 | N37: 0 | O37: 0 | S37: 0 | T37: 0 | X37: 0 | Y37: 0 | AC37: 0 | AD37: =X37 -> 0 | AH37: 0 | AI37: 0 | AJ37: =309783.82-12380.07 -> 297403.75 | AK37: 333642.34 | AM37: -36238.59 | AN37: 0 | AO37: =-614.51+12380.07 -> 11765.56 | AP37: 12678.82 | AR37: -913.26 | AS37: -36238.59 | AT37: 34016.09 | AW37: -2222.5 | AX37: -913.26 | AY37: =-67.18+0.09 -> -67.09 | BB37: -980.35 | BC37: -2222.5 | BG37: -2222.5 | BH37: -980.35 | BI37: -112.17 | BL37: -1092.52 | BO37: -2222.5 | BP37: -1092.52 | BQ37: =ROUND(+BO37*0.0549,2) -> -122.02 | BS37: -1214.54 | BT37: 0 | BU37: No | BV37: -3315.11 | BW37: -0.08999999997 | CB37: 1595 (2013) | CC37: FALSE
A38: 13 | B38: 16 | C38: Disposition and Recovery/Refund of Regulatory Balances (2022)3 | D38: 1595 | I38: 0 | N38: 0 | O38: 0 | S38: 0 | T38: 0 | X38: 0 | Y38: 0 | AC38: 0 | AD38: =X38 -> 0 | AH38: 0 | AI38: 0 | AM38: 0 | AN38: 0 | AR38: 0 | AS38: 0 | AT38: =178806.14 -> 178806.14 | AU38: 192898 | AW38: -14091.86 | AX38: 0 | AY38: =-1114.92-2542.59 -> -3657.51 | AZ38: 2561 | BB38: -6218.51 | BC38: -14091.86 | BD38: =29616.33 -> 29616.33 | BG38: 15524.47 | BH38: -6218.51 | BI38: =610.79-152.93 -> 457.86 | BL38: -5760.65 | BO38: 15524.47 | BP38: -5760.65 | BQ38: =ROUND(+BO38*0.0549,2) -> 852.29 | BS38: -4908.36 | BT38: 0 | BU38: No | BV38: 9763.82 | BW38: -1.455191523e-11 | CB38: 1595 (2014) | CC38: FALSE
A39: 14 | B39: 17 | C39: Disposition and Recovery/Refund of Regulatory Balances (2023)3 | D39: 1595 | I39: 0 | N39: 0 | O39: 0 | S39: 0 | T39: 0 | X39: 0 | Y39: 0 | AC39: 0 | AD39: =X39 -> 0 | AH39: 0 | AI39: 0 | AM39: 0 | AN39: 0 | AR39: 0 | AS39: 0 | AW39: 0 | AX39: 0 | BB39: 0 | BC39: 0 | BD39: -56825.98 | BE39: =-68305.5+5695.5 -> -62610 | BG39: 5784.02 | BH39: 0 | BI39: 1356.78 | BL39: 1356.78 | BO39: 5784.02 | BP39: 1356.78 | BQ39: =ROUND(+BO39*0.0549,2) -> 317.54 | BS39: =BP39+BQ39+BR39 -> 1674.32 | BT39: 0 | BU39: No | BV39: 7140.8 | BW39: 0 | CB39: 1595 (2015) | CC39: FALSE
A40: 15 | B40: 18 | C40: Disposition and Recovery/Refund of Regulatory Balances (2024)3 | D40: 1595 | I40: =E40+F40-G40+H40 -> 0 | N40: =J40+K40-L40+M40 -> 0 | O40: 0 | S40: 0 | T40: 0 | X40: 0 | Y40: =S40 -> 0 | AC40: 0 | AD40: =X40 -> 0 | AH40: 0 | AI40: =AC40 -> 0 | AM40: =AI40+AJ40-AK40+SUM(AL40:AL40) -> 0 | AN40: =AH40 -> 0 | AR40: 0 | AS40: =AM40 -> 0 | AW40: 0 | AX40: =AR40 -> 0 | BB40: 0 | BC40: =AW40 -> 0 | BG40: =BC40+BD40-BE40+SUM(BF40:BF40) -> 0 | BH40: =BB40 -> 0 | BL40: 0 | BO40: =BG40-BM40 -> 0 | BP40: =BL40-BN40 -> 0 | BS40: =BP40+BQ40+BR40 -> 0 | BT40: 0 | BU40: No | BW40: 0 | CC40: FALSE
B41: 19 | C41: Refer to the Filing Requirements for Account 1595 disposition eligibility.
B42: 20
C43: Group 1 total (including Account 1589) | E43: =SUM(E24:E40) -> 61789.57 | F43: =SUM(F24:F40) -> 252401.03 | G43: 455371.06 | H43: -885484.88 | I43: -1026665.34 | J43: -4322.11 | K43: -3489.51 | L43: -5270.19 | M43: 10875.06 | N43: 8333.63 | O43: -1026665.34 | P43: 922950.59 | Q43: 284583 | R43: 0 | S43: -388297.75 | T43: 8333.63 | U43: -20425.11 | V43: 8239 | W43: 0 | X43: -20330.48 | Y43: -388297.75 | Z43: -357437.9 | AA43: 155422 | AB43: 0 | AC43: -901157.65 | AD43: -20330.48 | AE43: 2885.63 | AF43: 4605 | AG43: 0 | AH43: -22049.85 | AI43: -901157.65 | AJ43: -95482.34 | AK43: 22262.34 | AL43: -54273.86 | AM43: -1073176.19 | AN43: -22049.85 | AO43: 4250.51 | AP43: 764.82 | AQ43: -1808.73 | AR43: -20372.89 | AS43: -1073176.19 | AT43: 465245.56 | AU43: 0 | AV43: 0 | AW43: -607930.63 | AX43: -20372.89 | AY43: -23206.42 | AZ43: 0 | BA43: 0 | BB43: -43579.31 | BC43: -607930.63 | BD43: 149457.67 | BE43: 5695.5 | BF43: 0 | BG43: -464168.46 | BH43: -43579.31 | BI43: -17570.91 | BJ43: -5695.5 | BK43: 0 | BL43: -55454.72 | BM43: 0 | BN43: 0 | BO43: -464168.46 | BP43: -55454.72 | BQ43: -25482.85 | BR43: =SUM(BR24:BR40) -> 0 | BS43: =SUM(BS24:BS40) -> -80937.57 | BT43: =SUM(BT24:BT40) -> -545856.1
C44: Group 1 total (excluding Account 1589) | E44: =E43-E45 -> 61789.57 | F44: =F43-F45 -> 252401.03 | G44: =G43-G45 -> 455371.06 | H44: -776205.47 | I44: -917385.93 | J44: -4322.11 | K44: -3489.51 | L44: -5270.19 | M44: -15971.32 | N44: =N43-N45 -> -18512.75 | O44: =O43-O45 -> -917385.93 | P44: =P43-P45 -> 797651.06 | Q44: 232976 | R44: 0 | S44: -352710.87 | T44: -18512.75 | U44: 3026.59 | V44: 4834 | W44: 0 | X44: -20320.16 | Y44: -352710.87 | Z44: -408191.15 | AA44: 155422 | AB44: 0 | AC44: -916324.02 | AD44: -20320.16 | AE44: 8149.3 | AF44: 4605 | AG44: 0 | AH44: -16775.86 | AI44: -916324.02 | AJ44: 441486.8 | AK44: 57849.34 | AL44: -54273.86 | AM44: -586960.42 | AN44: -16775.86 | AO44: 5759.93 | AP44: 1331.82 | AQ44: -1808.73 | AR44: -14156.48 | AS44: -586960.42 | AT44: 442429.98 | AU44: 0 | AV44: 0 | AW44: -144530.44 | AX44: -14156.48 | AY44: -15190.19 | AZ44: 0 | BA44: 0 | BB44: -29346.67 | BC44: -144530.44 | BD44: 20376.85 | BE44: 5695.5 | BF44: 0 | BG44: -129849.09 | BH44: -29346.67 | BI44: -6525.12 | BJ44: -5695.5 | BK44: 0 | BL44: -30176.29 | BM44: 0 | BN44: 0 | BO44: -129849.09 | BP44: -30176.29 | BQ44: -7128.72 | BR44: 0 | BS44: -37305.01 | BT44: -167904.17
C45: RSVA - Global Adjustment | D45: 1589 | E45: =E32 -> 0 | F45: =F32 -> 0 | G45: 0 | H45: -109279.41 | I45: -109279.41 | J45: 0 | K45: 0 | L45: 0 | M45: 26846.38 | N45: 26846.38 | O45: -109279.41 | P45: 125299.53 | Q45: 51607 | R45: 0 | S45: -35586.88 | T45: 26846.38 | U45: -23451.7 | V45: 3405 | W45: 0 | X45: -10.32 | Y45: -35586.88 | Z45: 50753.25 | AA45: 0 | AB45: 0 | AC45: 15166.37 | AD45: -10.32 | AE45: -5263.67 | AF45: 0 | AG45: 0 | AH45: -5273.99 | AI45: 15166.37 | AJ45: -536969.14 | AK45: -35587 | AL45: 0 | AM45: -486215.77 | AN45: -5273.99 | AO45: -1509.42 | AP45: -567 | AQ45: 0 | AR45: -6216.41 | AS45: -486215.77 | AT45: 22815.58 | AU45: 0 | AV45: 0 | AW45: -463400.19 | AX45: -6216.41 | AY45: -8016.23 | AZ45: 0 | BA45: 0 | BB45: -14232.64 | BC45: -463400.19 | BD45: 129080.82 | BE45: 0 | BF45: 0 | BG45: -334319.37 | BH45: -14232.64 | BI45: -11045.79 | BJ45: 0 | BK45: 0 | BL45: -25278.43 | BM45: 0 | BN45: 0 | BO45: -334319.37 | BP45: -25278.43 | BQ45: -18354.13 | BR45: =BR32 -> 0 | BS45: =BS32 -> -43632.56 | BT45: =BT32 -> -377951.93
C47: Group 1 total (including Account 1589) | E47: =SUM(E24:E40) -> 61789.57 | F47: =SUM(F24:F40) -> 252401.03 | G47: =SUM(G24:G40) -> 455371.06 | H47: -885484.88 | I47: -1026665.34 | J47: -4322.11 | K47: -3489.51 | L47: -5270.19 | M47: 10875.06 | N47: =SUM(N24:N40) -> 8333.63 | O47: =SUM(O24:O40) -> -1026665.34 | P47: =SUM(P24:P40) -> 922950.59 | Q47: 284583 | R47: 0 | S47: -388297.75 | T47: 8333.63 | U47: -20425.11 | V47: 8239 | W47: 0 | X47: -20330.48 | Y47: -388297.75 | Z47: -357437.9 | AA47: 155422 | AB47: 0 | AC47: -901157.65 | AD47: -20330.48 | AE47: 2885.63 | AF47: 4605 | AG47: 0 | AH47: -22049.85 | AI47: -901157.65 | AJ47: -95482.34 | AK47: 22262.34 | AL47: -54273.86 | AM47: -1073176.19 | AN47: -22049.85 | AO47: 4250.51 | AP47: 764.82 | AQ47: -1808.73 | AR47: -20372.89 | AS47: -1073176.19 | AT47: 465245.56 | AU47: 0 | AV47: 0 | AW47: -607930.63 | AX47: -20372.89 | AY47: -23206.42 | AZ47: 0 | BA47: 0 | BB47: -43579.31 | BC47: -607930.63 | BD47: 149457.67 | BE47: 5695.5 | BF47: 0 | BG47: -464168.46 | BH47: -43579.31 | BI47: -17570.91 | BJ47: -5695.5 | BK47: 0 | BL47: -55454.72 | BM47: 0 | BN47: 0 | BO47: -464168.46 | BP47: -55454.72 | BQ47: -25482.85 | BR47: 0 | BS47: -80937.57
C48: Group 1 total (excluding Account 1589) | E48: =E47-E49 -> 61789.57 | F48: =F47-F49 -> 252401.03 | G48: =G47-G49 -> 455371.06 | H48: -776205.47 | I48: -917385.93 | J48: -4322.11 | K48: -3489.51 | L48: -5270.19 | M48: -15971.32 | N48: =N47-N49 -> -18512.75 | O48: =O47-O49 -> -917385.93 | P48: =P47-P49 -> 797651.06 | Q48: 232976 | R48: 0 | S48: -352710.87 | T48: -18512.75 | U48: 3026.59 | V48: 4834 | W48: 0 | X48: -20320.16 | Y48: -352710.87 | Z48: -408191.15 | AA48: 155422 | AB48: 0 | AC48: -916324.02 | AD48: -20320.16 | AE48: 8149.3 | AF48: 4605 | AG48: 0 | AH48: -16775.86 | AI48: -916324.02 | AJ48: 441486.8 | AK48: 57849.34 | AL48: -54273.86 | AM48: -586960.42 | AN48: -16775.86 | AO48: 5759.93 | AP48: 1331.82 | AQ48: -1808.73 | AR48: -14156.48 | AS48: -586960.42 | AT48: 442429.98 | AU48: 0 | AV48: =AV47-AV49 -> 0 | AW48: -144530.44 | AX48: -14156.48 | AY48: -15190.19 | AZ48: 0 | BA48: 0 | BB48: -29346.67 | BC48: -144530.44 | BD48: 20376.85 | BE48: 5695.5 | BF48: 0 | BG48: -129849.09 | BH48: -29346.67 | BI48: -6525.12 | BJ48: -5695.5 | BK48: 0 | BL48: -30176.29 | BM48: 0 | BN48: 0 | BO48: -129849.09 | BP48: -30176.29 | BQ48: -7128.72 | BR48: 0 | BS48: -37305.01
C49: RSVA - Global Adjustment | D49: 1589 | E49: =E32 -> 0 | F49: =F32 -> 0 | G49: =G32 -> 0 | H49: -109279.41 | I49: -109279.41 | J49: 0 | K49: 0 | L49: 0 | M49: 26846.38 | N49: =N32 -> 26846.38 | O49: =O32 -> -109279.41 | P49: =P32 -> 125299.53 | Q49: 51607 | R49: 0 | S49: -35586.88 | T49: 26846.38 | U49: -23451.7 | V49: 3405 | W49: 0 | X49: -10.32 | Y49: -35586.88 | Z49: 50753.25 | AA49: 0 | AB49: 0 | AC49: 15166.37 | AD49: -10.32 | AE49: -5263.67 | AF49: 0 | AG49: 0 | AH49: -5273.99 | AI49: 15166.37 | AJ49: -536969.14 | AK49: -35587 | AL49: 0 | AM49: -486215.77 | AN49: -5273.99 | AO49: -1509.42 | AP49: -567 | AQ49: 0 | AR49: -6216.41 | AS49: -486215.77 | AT49: 22815.58 | AU49: 0 | AV49: 0 | AW49: -463400.19 | AX49: -6216.41 | AY49: -8016.23 | AZ49: 0 | BA49: 0 | BB49: -14232.64 | BC49: -463400.19 | BD49: 129080.82 | BE49: 0 | BF49: 0 | BG49: -334319.37 | BH49: -14232.64 | BI49: -11045.79 | BJ49: 0 | BK49: 0 | BL49: -25278.43 | BM49: 0 | BN49: 0 | BO49: -334319.37 | BP49: -25278.43 | BQ49: -18354.13 | BR49: 0 | BS49: -43632.56
C53: For all OEB-Approved dispositions, please ensure that the disposition amount has the same sign (e.g: debit balances are to have a positive figure and credit balance are to have a negative figure) as per the related OEB decision.
B55: 1 | C55: Please provide explanations for the nature of the adjustments. If the adjustment relates to previously OEB-Approved disposed balances, please provide amounts for adjustments and include supporting documentations.
B56: 2 | C56: 1) If the LDC's rate year begins on January 1, 2025, the projected interest is recorded from January 1, 2024 to December 31, 2024 on the December 31, 2023 balances adjusted to remove balances approved for disposition in the 2024 rate decision. 2) If the LDC’s rate year begins on May 1, 2025, the projected interest is recorded from January 1, 2024 to April 30, 2025 on the December 31, 2023 balances, adjusted to remove balances approved for disposition in the 2024 rate decision.
B57: 3 | C57: The individual sub-accounts as well as the total for all Account 1595 sub-accounts is to agree to the RRR data. Differences need to be explained. For each Account 1595 sub-account, the transfer of the balance approved for disposition into Account 1595 is to be recorded in "OEB Approved Disposition" column. The recovery/refund is to be recorded in the "Transaction" column. Any vintage year of Account 1595 is only to be disposed once on a final basis. No further dispositions of these accounts are generally expected thereafter, unless justified by the distributor. Refer to Filing Requirements for disposition eligibility of the sub-accounts. Select "yes" column BU if the sub-account is requested for disposition. Note that Accounts 1595 (2020), (2021) and (2022) will not be eligilble for disposition in the 2023 rate application.
B58: 4 | C58: New accounting guidance effective January 1, 2019 for Accounts 1588 and 1589 was issued Feb. 21, 2019 titled Accounting Procedures Handbook Update - Accounting Guidance Related to Commodity Pass-Through Accounts 1588 & 1589. The amount in the "Transactions" column in this DVA Continuity Schedule are to equal the transactions in the General Ledger (excluding any amounts approved for disposition, which is shown separately in the "OEB Approved Disposition" columns). Any true-ups/adjustments/reversals needed to derive the claim amount must be shown separately in the "Principal Adjustments" columns of this DVA Continuity Schedule.
B59: 5 | C59: Account 1580 RSVA WMS balance inputted into this schedule is to exclude any amounts relating to CBR. CBR amounts are to be inputted into Account 1580, sub-accounts CBR Class A and Class B separately. There is no disposition of Account 1580, sub-account CBR Class A, accounting guidance for this sub-account is to be followed. If a balance exists for Account 1580, sub-account CBR Class A at the December year-end, the balance must be explained.
B60: 6 | C60: RRR balance for Account 1580 RSVA - Wholesale Market Service Charge should equal to the control account as reported in the RRR. This would include the balance for Account 1580,Variance WMS – Sub-account CBR Class B.

Sheet 2b. Continuity Schedule
F1: 15 | CF1: 1
CF2: 2
CF3: 3
CF4: 4
CF5: 5
CF6: 6
CF7: 7
CF8: 8
CF9: 9
CF10: 10
CB11: TRUE | CF11: 11
CB12: FALSE | CF12: 12
CF13: 13
CF14: 14
CF15: 15
CF16: 16
E19: 2018 | O19: =E19+1 -> 2019 | Y19: =O19+1 -> 2020 | AI19: =Y19+1 -> 2021 | AS19: =AI19+1 -> 2022 | BC19: =AS19+1 -> 2023 | BM19: =BC19+1 -> 2024 | BQ19: =CONCATENATE("Projected Interest on Dec-31-",RIGHT(BC19,2)," Balances") -> Projected Interest on Dec-31-23 Balances | BV19: 2.1.7 RRR
C20: Account Descriptions | D20: Account Number | E20: =CONCATENATE("Opening Principal Amounts as of Jan-1-",RIGHT(E19,2)) -> Opening Principal Amounts as of Jan-1-18 | F20: =CONCATENATE("Transactions Debit / (Credit) during ",E19) -> Transactions Debit / (Credit) during 2018 | G20: =CONCATENATE("OEB-Approved Disposition during ",E19) -> OEB-Approved Disposition during 2018 | H20: =CONCATENATE("Principal Adjustments(1) during ",E19) -> Principal Adjustments(1) during 2018 | I20: =CONCATENATE("Closing Principal Balance as of Dec-31-",RIGHT(E19,2)) -> Closing Principal Balance as of Dec-31-18 | J20: =CONCATENATE("Opening Interest Amounts as of Jan-1-",RIGHT(E19,2)) -> Opening Interest Amounts as of Jan-1-18 | K20: =CONCATENATE("Interest Jan-1 to Dec-31-",RIGHT(E19,2)) -> Interest Jan-1 to Dec-31-18 | L20: =CONCATENATE("OEB-Approved Disposition during ",E19) -> OEB-Approved Disposition during 2018 | M20: =CONCATENATE("Interest Adjustments(1) during ",E19) -> Interest Adjustments(1) during 2018 | N20: =CONCATENATE("Closing Interest Amounts as of Dec-31-",RIGHT(E19,2)) -> Closing Interest Amounts as of Dec-31-18 | O20: =CONCATENATE("Opening Principal Amounts as of Jan-1-",RIGHT(O19,2)) -> Opening Principal Amounts as of Jan-1-19 | P20: =CONCATENATE("Transactions Debit / (Credit) during ",O19) -> Transactions Debit / (Credit) during 2019 | Q20: =CONCATENATE("OEB-Approved Disposition during ",O19) -> OEB-Approved Disposition during 2019 | R20: =CONCATENATE("Principal Adjustments(1) during ",O19) -> Principal Adjustments(1) during 2019 | S20: =CONCATENATE("Closing Principal Balance as of Dec-31-",RIGHT(O19,2)) -> Closing Principal Balance as of Dec-31-19 | T20: =CONCATENATE("Opening Interest Amounts as of Jan-1-",RIGHT(O19,2)) -> Opening Interest Amounts as of Jan-1-19 | U20: =CONCATENATE("Interest Jan-1 to Dec-31-",RIGHT(O19,2)) -> Interest Jan-1 to Dec-31-19 | V20: =CONCATENATE("OEB-Approved Disposition during ",O19) -> OEB-Approved Disposition during 2019 | W20: =CONCATENATE("Interest Adjustments(1) during ",O19) -> Interest Adjustments(1) during 2019 | X20: =CONCATENATE("Closing Interest Amounts as of Dec-31-",RIGHT(O19,2)) -> Closing Interest Amounts as of Dec-31-19 | Y20: =CONCATENATE("Opening Principal Amounts as of Jan-1-",RIGHT(Y19,2)) -> Opening Principal Amounts as of Jan-1-20 | Z20: =CONCATENATE("Transactions(1) Debit / (Credit) during ",Y19) -> Transactions(1) Debit / (Credit) during 2020 | AA20: =CONCATENATE("OEB-Approved Disposition during ",Y19) -> OEB-Approved Disposition during 2020 | AB20: =CONCATENATE("Principal Adjustments(1) during ",Y19) -> Principal Adjustments(1) during 2020 | AC20: =CONCATENATE("Closing Principal Balance as of Dec-31-",RIGHT(Y19,2)) -> Closing Principal Balance as of Dec-31-20 | AD20: =CONCATENATE("Opening Interest Amounts as of Jan-1-",RIGHT(Y19,2)) -> Opening Interest Amounts as of Jan-1-20 | AE20: =CONCATENATE("Interest Jan-1 to Dec-31-",RIGHT(Y19,2)) -> Interest Jan-1 to Dec-31-20 | AF20: =CONCATENATE("OEB-Approved Disposition during ",Y19) -> OEB-Approved Disposition during 2020 | AG20: =CONCATENATE("Interest Adjustments(1) during ",Y19) -> Interest Adjustments(1) during 2020 | AH20: =CONCATENATE("Closing Interest Amounts as of Dec-31-",RIGHT(Y19,2)) -> Closing Interest Amounts as of Dec-31-20 | AI20: =CONCATENATE("Opening Principal Amounts as of Jan-1-",RIGHT(AI19,2)) -> Opening Principal Amounts as of Jan-1-21 | AJ20: =CONCATENATE("Transactions(1) Debit / (Credit) during ",AI19) -> Transactions(1) Debit / (Credit) during 2021 | AK20: =CONCATENATE("OEB-Approved Disposition during ",AI19) -> OEB-Approved Disposition during 2021 | AL20: =CONCATENATE("Principal Adjustments(1) during ",AI19) -> Principal Adjustments(1) during 2021 | AM20: =CONCATENATE("Closing Principal Balance as of Dec-31-",RIGHT(AI19,2)) -> Closing Principal Balance as of Dec-31-21 | AN20: =CONCATENATE("Opening Interest Amounts as of Jan-1-",RIGHT(AI19,2)) -> Opening Interest Amounts as of Jan-1-21 | AO20: =CONCATENATE("Interest Jan-1 to Dec-31-",RIGHT(AI19,2)) -> Interest Jan-1 to Dec-31-21 | AP20: =CONCATENATE("OEB-Approved Disposition during ",AI19) -> OEB-Approved Disposition during 2021 | AQ20: =CONCATENATE("Interest Adjustments(1) during ",AI19) -> Interest Adjustments(1) during 2021 | AR20: =CONCATENATE("Closing Interest Amounts as of Dec-31-",RIGHT(AI19,2)) -> Closing Interest Amounts as of Dec-31-21 | AS20: =CONCATENATE("Opening Principal Amounts as of Jan-1-",RIGHT(AS19,2)) -> Opening Principal Amounts as of Jan-1-22 | AT20: =CONCATENATE("Transactions Debit / (Credit) during ",AS19) -> Transactions Debit / (Credit) during 2022 | AU20: =CONCATENATE("OEB-Approved Disposition during ",AS19) -> OEB-Approved Disposition during 2022 | AV20: =CONCATENATE("Principal Adjustments(1) during ",AS19) -> Principal Adjustments(1) during 2022 | AW20: =CONCATENATE("Closing Principal Balance as of Dec-31-",RIGHT(AS19,2)) -> Closing Principal Balance as of Dec-31-22 | AX20: =CONCATENATE("Opening Interest Amounts as of Jan-1-",RIGHT(AS19,2)) -> Opening Interest Amounts as of Jan-1-22 | AY20: =CONCATENATE("Interest Jan-1 to Dec-31-",RIGHT(AS19,2)) -> Interest Jan-1 to Dec-31-22 | AZ20: =CONCATENATE("OEB-Approved Disposition during ",AS19) -> OEB-Approved Disposition during 2022 | BA20: =CONCATENATE("Interest Adjustments(1) during ",AS19) -> Interest Adjustments(1) during 2022 | BB20: =CONCATENATE("Closing Interest Amounts as of Dec-31-",RIGHT(AS19,2)) -> Closing Interest Amounts as of Dec-31-22 | BC20: =CONCATENATE("Opening Principal Amounts as of Jan-1-",RIGHT(BC19,2)) -> Opening Principal Amounts as of Jan-1-23 | BD20: =CONCATENATE("Transactions Debit / (Credit) during ",BC19) -> Transactions Debit / (Credit) during 2023 | BE20: =CONCATENATE("OEB-Approved Disposition during ",BC19) -> OEB-Approved Disposition during 2023 | BF20: =CONCATENATE("Principal Adjustments(1) during ",BC19) -> Principal Adjustments(1) during 2023 | BG20: =CONCATENATE("Closing Principal Balance as of Dec-31-",RIGHT(BC19,2)) -> Closing Principal Balance as of Dec-31-23 | BH20: =CONCATENATE("Opening Interest Amounts as of Jan-1-",RIGHT(BC19,2)) -> Opening Interest Amounts as of Jan-1-23 | BI20: =CONCATENATE("Interest Jan-1 to Dec-31-",RIGHT(BC19,2)) -> Interest Jan-1 to Dec-31-23 | BJ20: =CONCATENATE("OEB-Approved Disposition during ",BC19) -> OEB-Approved Disposition during 2023 | BK20: =CONCATENATE("Interest Adjustments(1) during ",BC19) -> Interest Adjustments(1) during 2023 | BL20: =CONCATENATE("Closing Interest Amounts as of Dec-31-",RIGHT(BC19,2)) -> Closing Interest Amounts as of Dec-31-23 | BM20: =CONCATENATE("Principal Disposition during ",BM19," - instructed by OEB") -> Principal Disposition during 2024 - instructed by OEB | BN20: =CONCATENATE("Interest Disposition during ",BM19," - instructed by OEB") -> Interest Disposition during 2024 - instructed by OEB | BO20: =CONCATENATE("Closing Principal Balances as of Dec 31-",RIGHT(BM19-1,2)," Adjusted for Dispositions during ",BM19) -> Closing Principal Balances as of Dec 31-23 Adjusted for Dispositions during 2024 | BP20: =CONCATENATE("Closing Interest Balances as of Dec 31-",RIGHT(BM19-1,2)," Adjusted for Dispositions during ",BM19) -> Closing Interest Balances as of Dec 31-23 Adjusted for Dispositions during 2024 | BQ20: =CONCATENATE("Projected Interest from Jan 1, ",BM19," to December 31, ",BM19," on Dec 31 -",RIGHT(BM19-1,2)," balance adjusted for disposition during ",BM19," (2)") -> Projected Interest from Jan 1, 2024 to December 31, 2024 on Dec 31 -23 balance adjusted for disposition during 2024 (2) | BR20: =CONCATENATE("Projected Interest from January 1, ",BM19+1," to April 30, ",BM19+1," on Dec 31 -",RIGHT(BC19,2)," balance adjusted for disposition during ",BM19," (2)") -> Projected Interest from January 1, 2025 to April 30, 2025 on Dec 31 -23 balance adjusted for disposition during 2024 (2) | BS20: Total Interest | BT20: Total Claim | BU20: Accounts to Dispose Yes/No | BV20: =CONCATENATE("As of Dec 31-",RIGHT(BC19,2)) -> As of Dec 31-23 | BW20: =CONCATENATE("Variance RRR vs. ",BC19," Balance (Principal + Interest)") -> Variance RRR vs. 2023 Balance (Principal + Interest)
BY21: For Accounts 1508, 1522 and 1592, only show the total control account that is reported in the RRR in the first row for that account in this tab
BS22: Claim before Forecasted Transactions | BT22: Claim before Forecasted Transactions
B23: 1 | C23: Group 1 Accounts
A24: 1 | B24: 2 | C24: LV Variance Account | D24: 1550 | I24: =E24+F24-G24+H24 -> 0 | N24: =J24+K24-L24+M24 -> 0 | O24: =I24 -> 0 | S24: =O24+P24-Q24+R24 -> 0 | T24: =N24 -> 0 | X24: =T24+U24-V24+W24 -> 0 | Y24: =S24 -> 0 | AC24: =Y24+Z24-AA24+AB24 -> 0 | AD24: =X24 -> 0 | AH24: =AD24+AE24-AF24+AG24 -> 0 | AI24: =AC24 -> 0 | AM24: =AI24+AJ24-AK24+SUM(AL24:AL24) -> 0 | AN24: =AH24 -> 0 | AR24: =AN24+AO24-AP24+AQ24 -> 0 | AS24: =AM24 -> 0 | AW24: =AS24+AT24-AU24+AV24 -> 0 | AX24: =AR24 -> 0 | BB24: =AX24+AY24-AZ24+BA24 -> 0 | BC24: =AW24 -> 0 | BG24: =BC24+BD24-BE24+SUM(BF24:BF24) -> 0 | BH24: =BB24 -> 0 | BL24: =BH24+BI24-BJ24+BK24 -> 0 | BO24: =BG24-BM24 -> 0 | BP24: =BL24-BN24 -> 0 | BS24: =BP24+BQ24+BR24 -> 0 | BT24: =SUM(BO24:BR24) -> 0 | BW24: =BV24-SUM(BG24,BL24) -> 0
A25: 2 | B25: 3 | C25: Smart Metering Entity Charge Variance Account | D25: 1551 | Y25: 0 | AC25: =Y25+Z25-AA25+AB25 -> 0 | AD25: 0 | AH25: =AD25+AE25-AF25+AG25 -> 0 | AI25: =AC25 -> 0 | AM25: =AI25+AJ25-AK25+SUM(AL25:AL25) -> 0 | AN25: 0 | AR25: =AN25+AO25-AP25+AQ25 -> 0 | AS25: 0 | AW25: =AS25+AT25-AU25+AV25 -> 0 | AX25: 0 | BB25: =AX25+AY25-AZ25+BA25 -> 0 | BC25: 0 | BG25: =BC25+BD25-BE25+SUM(BF25:BF25) -> 0 | BH25: 0 | BL25: =BH25+BI25-BJ25+BK25 -> 0 | BO25: =BG25-BM25 -> 0 | BP25: =BL25-BN25 -> 0 | BS25: 0 | BT25: =SUM(BO25:BR25) -> 0 | BW25: =BV25-SUM(BG25,BL25) -> 0
A26: 3 | B26: 4 | C26: RSVA - Wholesale Market Service Charge9 | D26: 1580 | I26: =E26+F26-G26+H26 -> 0 | N26: =J26+K26-L26+M26 -> 0 | O26: =I26 -> 0 | S26: =O26+P26-Q26+R26 -> 0 | T26: =N26 -> 0 | X26: =T26+U26-V26+W26 -> 0 | Y26: 0 | AC26: =Y26+Z26-AA26+AB26 -> 0 | AD26: 0 | AH26: =AD26+AE26-AF26+AG26 -> 0 | AI26: 0 | AM26: 0 | AN26: 0 | AR26: =AN26+AO26-AP26+AQ26 -> 0 | AS26: 0 | AW26: =AS26+AT26-AU26+AV26 -> 0 | AX26: 0 | BB26: =AX26+AY26-AZ26+BA26 -> 0 | BC26: 0 | BG26: 0 | BH26: 0 | BL26: =BH26+BI26-BJ26+BK26 -> 0 | BO26: 0 | BP26: 0 | BS26: 0 | BT26: =SUM(BO26:BR26) -> 0 | BW26: 0
A27: 3.1 | B27: 5 | C27: Variance WMS – Sub-account CBR Class A9 | D27: 1580 | AS27: 0 | AW27: =AS27+AT27-AU27+AV27 -> 0 | AX27: 0 | BB27: 0 | BC27: 0 | BG27: 0 | BH27: 0 | BL27: 0 | BO27: 0 | BP27: 0 | BS27: 0 | BT27: 0 | BV27: 0 | BW27: =BV27-SUM(BG27,BL27) -> 0 | CB27: 1580 CBDR A | CC27: TRUE
A28: 3.2 | B28: 6 | C28: Variance WMS – Sub-account CBR Class B9 | D28: 1580 | AS28: 0 | AW28: =AS28+AT28-AU28+AV28 -> 0 | AX28: 0 | BB28: 0 | BC28: 0 | BG28: 0 | BH28: 0 | BL28: 0 | BO28: 0 | BP28: 0 | BS28: 0 | BT28: =IF(CC28=TRUE, SUM(BO28:BR28), 0) -> 0 | BV28: 0 | BW28: =BV28-SUM(BG28,BL28) -> 0 | CB28: 1580 CBDR B | CC28: TRUE
A29: 4 | B29: 7 | C29: RSVA - Retail Transmission Network Charge | D29: 1584 | I29: =E29+F29-G29+H29 -> 0 | N29: =J29+K29-L29+M29 -> 0 | O29: 0 | S29: =O29+P29-Q29+R29 -> 0 | T29: 0 | X29: 0 | Y29: 0 | AC29: =Y29+Z29-AA29+AB29 -> 0 | AD29: 0 | AH29: 0 | AI29: 0 | AM29: 0 | AN29: 0 | AR29: 0 | AS29: 0 | AW29: =AS29+AT29-AU29+AV29 -> 0 | AX29: 0 | BB29: 0 | BC29: 0 | BG29: =BC29+BD29-BE29+SUM(BF29:BF29) -> 0 | BH29: 0 | BL29: 0 | BO29: 0 | BP29: 0 | BS29: 0 | BT29: =SUM(BO29:BR29) -> 0 | BW29: 0
A30: 5 | B30: 8 | C30: RSVA - Retail Transmission Connection Charge | D30: 1586 | I30: 0 | N30: 0 | O30: 0 | S30: =O30+P30-Q30+R30 -> 0 | T30: 0 | X30: 0 | Y30: 0 | AC30: =Y30+Z30-AA30+AB30 -> 0 | AD30: 0 | AH30: 0 | AI30: 0 | AM30: 0 | AN30: 0 | AR30: 0 | AS30: 0 | AW30: 0 | AX30: 0 | BB30: 0 | BC30: 0 | BG30: 0 | BH30: =BB30 -> 0 | BL30: 0 | BO30: 0 | BP30: 0 | BS30: 0 | BT30: =SUM(BO30:BR30) -> 0 | BW30: 0
A31: 6 | B31: 9 | C31: RSVA - Power (excluding Global Adjustment)12 | D31: 1588 | I31: 0 | N31: 0 | O31: 0 | S31: 0 | T31: 0 | X31: 0 | Y31: 0 | AC31: 0 | AD31: 0 | AH31: 0 | AI31: 0 | AM31: 0 | AN31: 0 | AR31: 0 | AS31: 0 | AW31: 0 | AX31: 0 | BB31: 0 | BC31: 0 | BG31: 0 | BH31: 0 | BL31: 0 | BO31: 0 | BP31: 0 | BS31: 0 | BT31: =SUM(BO31:BR31) -> 0 | BW31: 0
A32: 7 | B32: 10 | C32: RSVA - Global Adjustment 12 | D32: 1589 | I32: 0 | N32: 0 | O32: 0 | S32: 0 | T32: 0 | X32: 0 | Y32: 0 | AC32: 0 | AD32: 0 | AH32: 0 | AI32: 0 | AM32: 0 | AN32: 0 | AR32: 0 | AS32: 0 | AW32: 0 | AX32: 0 | BB32: 0 | BC32: 0 | BG32: 0 | BH32: 0 | BL32: 0 | BO32: 0 | BP32: 0 | BS32: 0 | BT32: =SUM(BO32:BR32) -> 0 | BW32: 0
A33: 8 | B33: 11 | C33: Disposition and Recovery/Refund of Regulatory Balances (2009)7 | D33: 1595 | I33: 0 | N33: 0 | O33: =I33 -> 0 | S33: 0 | T33: =N33 -> 0 | X33: 0 | Y33: =S33 -> 0 | AC33: 0 | AD33: 0 | AH33: 0 | AI33: 0 | AM33: 0 | AN33: 0 | AR33: 0 | AS33: =AM33 -> 0 | AW33: 0 | AX33: 0 | BB33: 0 | BC33: =AW33 -> 0 | BG33: 0 | BH33: 0 | BL33: 0 | BO33: 0 | BP33: 0 | BS33: 0 | BT33: =IF(CC33=TRUE, SUM(BO33:BR33), 0) -> 0 | BW33: 0 | CB33: 1595 (2009) | CC33: FALSE
A34: 9 | B34: 12 | C34: Disposition and Recovery/Refund of Regulatory Balances (2010)7 | D34: 1595 | I34: 0 | N34: 0 | O34: 0 | S34: 0 | T34: 0 | X34: 0 | Y34: 0 | AC34: 0 | AD34: 0 | AH34: 0 | AI34: 0 | AM34: 0 | AN34: 0 | AR34: 0 | AS34: 0 | AW34: 0 | AX34: 0 | BB34: 0 | BC34: 0 | BG34: 0 | BH34: 0 | BL34: 0 | BO34: 0 | BP34: 0 | BS34: 0 | BT34: 0 | BW34: 0 | CB34: 1595 (2010) | CC34: FALSE
A35: 10 | B35: 13 | C35: Disposition and Recovery/Refund of Regulatory Balances (2011)7 | D35: 1595 | I35: 0 | N35: 0 | O35: =I35 -> 0 | S35: 0 | T35: =N35 -> 0 | X35: =T35+U35-V35+W35 -> 0 | Y35: 0 | AC35: 0 | AD35: 0 | AH35: =AD35+AE35-AF35+AG35 -> 0 | AI35: 0 | AM35: 0 | AN35: 0 | AR35: =AN35+AO35-AP35+AQ35 -> 0 | AS35: 0 | AW35: 0 | AX35: 0 | BB35: =AX35+AY35-AZ35+BA35 -> 0 | BC35: 0 | BG35: 0 | BH35: 0 | BL35: =BH35+BI35-BJ35+BK35 -> 0 | BO35: 0 | BP35: 0 | BS35: 0 | BT35: 0 | BW35: 0 | CB35: 1595 (2011) | CC35: FALSE
A36: 11 | B36: 14 | C36: Disposition and Recovery/Refund of Regulatory Balances (2012)7 | D36: 1595 | I36: 0 | N36: 0 | O36: 0 | S36: 0 | T36: 0 | X36: 0 | Y36: 0 | AC36: 0 | AD36: =X36 -> 0 | AH36: 0 | AI36: 0 | AM36: 0 | AN36: 0 | AR36: 0 | AS36: 0 | AW36: 0 | AX36: 0 | BB36: 0 | BC36: 0 | BG36: 0 | BH36: 0 | BL36: 0 | BO36: 0 | BP36: 0 | BS36: 0 | BT36: 0 | BW36: 0 | CB36: 1595 (2012) | CC36: FALSE
A37: 12 | B37: 15 | C37: Disposition and Recovery/Refund of Regulatory Balances (2013)7 | D37: 1595 | I37: 0 | N37: 0 | O37: 0 | S37: 0 | T37: 0 | X37: 0 | Y37: 0 | AC37: 0 | AD37: =X37 -> 0 | AH37: 0 | AI37: 0 | AM37: 0 | AN37: 0 | AR37: 0 | AS37: 0 | AW37: 0 | AX37: 0 | BB37: 0 | BC37: 0 | BG37: 0 | BH37: 0 | BL37: 0 | BO37: 0 | BP37: 0 | BS37: 0 | BT37: 0 | BW37: 0 | CB37: 1595 (2013) | CC37: FALSE
A38: 13 | B38: 16 | C38: Disposition and Recovery/Refund of Regulatory Balances (2014)7 | D38: 1595 | I38: 0 | N38: 0 | O38: 0 | S38: 0 | T38: 0 | X38: 0 | Y38: 0 | AC38: 0 | AD38: =X38 -> 0 | AH38: 0 | AI38: 0 | AM38: 0 | AN38: 0 | AR38: 0 | AS38: 0 | AW38: 0 | AX38: 0 | BB38: 0 | BC38: 0 | BG38: 0 | BH38: 0 | BL38: 0 | BO38: 0 | BP38: 0 | BS38: 0 | BT38: 0 | BW38: 0 | CB38: 1595 (2014) | CC38: FALSE
A39: 14 | B39: 17 | C39: Disposition and Recovery/Refund of Regulatory Balances (2015)7 | D39: 1595 | I39: 0 | N39: 0 | O39: 0 | S39: 0 | T39: 0 | X39: 0 | Y39: 0 | AC39: 0 | AD39: =X39 -> 0 | AH39: 0 | AI39: 0 | AM39: 0 | AN39: 0 | AR39: 0 | AS39: 0 | AW39: 0 | AX39: 0 | BB39: 0 | BC39: 0 | BG39: 0 | BH39: 0 | BL39: 0 | BO39: 0 | BP39: 0 | BS39: =BP39+BQ39+BR39 -> 0 | BT39: 0 | BW39: 0 | CB39: 1595 (2015) | CC39: FALSE
A40: 15 | B40: 18 | C40: Disposition and Recovery/Refund of Regulatory Balances (2016)7 | D40: 1595 | I40: =E40+F40-G40+H40 -> 0 | N40: =J40+K40-L40+M40 -> 0 | O40: 0 | S40: 0 | T40: 0 | X40: 0 | Y40: =S40 -> 0 | AC40: 0 | AD40: =X40 -> 0 | AH40: 0 | AI40: =AC40 -> 0 | AM40: =AI40+AJ40-AK40+SUM(AL40:AL40) -> 0 | AN40: =AH40 -> 0 | AR40: 0 | AS40: =AM40 -> 0 | AW40: 0 | AX40: =AR40 -> 0 | BB40: 0 | BC40: =AW40 -> 0 | BG40: =BC40+BD40-BE40+SUM(BF40:BF40) -> 0 | BH40: =BB40 -> 0 | BL40: 0 | BO40: =BG40-BM40 -> 0 | BP40: =BL40-BN40 -> 0 | BS40: =BP40+BQ40+BR40 -> 0 | BT40: =IF(CC40=TRUE, SUM(BO40:BR40), 0) -> 0 | BW40: 0 | CC40: FALSE
B41: 19 | C41: Not to be disposed of until a year after rate rider has expired and that balance has been audited
B42: 20
C43: Group 1 Sub-Total (including Account 1589 - Global Adjustment) | E43: =SUM(E24:E40) -> 0 | F43: =SUM(F24:F40) -> 0 | G43: 0 | H43: 0 | I43: 0 | J43: 0 | K43: 0 | L43: 0 | M43: 0 | N43: 0 | O43: =SUM(O24:O40) -> 0 | P43: =SUM(P24:P40) -> 0 | Q43: =SUM(Q24:Q40) -> 0 | R43: 0 | S43: 0 | T43: 0 | U43: 0 | V43: 0 | W43: 0 | X43: =SUM(X24:X40) -> 0 | Y43: =SUM(Y24:Y40) -> 0 | Z43: =SUM(Z24:Z40) -> 0 | AA43: =SUM(AA24:AA40) -> 0 | AB43: 0 | AC43: 0 | AD43: 0 | AE43: 0 | AF43: 0 | AG43: 0 | AH43: =SUM(AH24:AH40) -> 0 | AI43: 0 | AJ43: 0 | AK43: 0 | AL43: 0 | AM43: 0 | AN43: 0 | AO43: 0 | AP43: 0 | AQ43: 0 | AR43: 0 | AS43: 0 | AT43: 0 | AU43: 0 | AV43: 0 | AW43: 0 | AX43: 0 | AY43: 0 | AZ43: 0 | BA43: 0 | BB43: 0 | BC43: 0 | BD43: 0 | BE43: 0 | BF43: 0 | BG43: 0 | BH43: 0 | BI43: 0 | BJ43: 0 | BK43: 0 | BL43: 0 | BM43: 0 | BN43: 0 | BO43: 0 | BP43: 0 | BQ43: 0 | BR43: 0 | BS43: 0 | BT43: =SUM(BT24:BT40) -> 0 | BW43: 0
C44: Group 1 Sub-Total (excluding Account 1589 - Global Adjustment) | E44: =E43-E45 -> 0 | F44: =F43-F45 -> 0 | G44: 0 | H44: 0 | I44: 0 | J44: 0 | K44: 0 | L44: 0 | M44: 0 | N44: 0 | O44: 0 | P44: 0 | Q44: 0 | R44: 0 | S44: 0 | T44: 0 | U44: 0 | V44: 0 | W44: 0 | X44: 0 | Y44: 0 | Z44: 0 | AA44: 0 | AB44: 0 | AC44: 0 | AD44: 0 | AE44: 0 | AF44: 0 | AG44: 0 | AH44: 0 | AI44: =AI43-AI45 -> 0 | AJ44: 0 | AK44: 0 | AL44: 0 | AM44: 0 | AN44: 0 | AO44: 0 | AP44: 0 | AQ44: 0 | AR44: 0 | AS44: =AS43-AS45 -> 0 | AT44: 0 | AU44: 0 | AV44: 0 | AW44: 0 | AX44: 0 | AY44: 0 | AZ44: 0 | BA44: 0 | BB44: 0 | BC44: =BC43-BC45 -> 0 | BD44: 0 | BE44: 0 | BF44: 0 | BG44: 0 | BH44: 0 | BI44: 0 | BJ44: 0 | BK44: 0 | BL44: 0 | BM44: =BM43-BM45 -> 0 | BN44: 0 | BO44: 0 | BP44: 0 | BQ44: 0 | BR44: 0 | BS44: 0 | BT44: 0 | BV44: 0 | BW44: 0
C45: =C32 -> RSVA - Global Adjustment 12 | D45: 1589 | E45: =E32 -> 0 | F45: =F32 -> 0 | G45: 0 | H45: 0 | I45: 0 | J45: 0 | K45: 0 | L45: 0 | M45: 0 | N45: 0 | O45: 0 | P45: 0 | Q45: 0 | R45: 0 | S45: 0 | T45: 0 | U45: 0 | V45: 0 | W45: 0 | X45: 0 | Y45: 0 | Z45: 0 | AA45: 0 | AB45: 0 | AC45: 0 | AD45: 0 | AE45: 0 | AF45: 0 | AG45: 0 | AH45: 0 | AI45: 0 | AJ45: 0 | AK45: =AK32 -> 0 | AL45: 0 | AM45: 0 | AN45: 0 | AO45: 0 | AP45: 0 | AQ45: 0 | AR45: 0 | AS45: 0 | AT45: 0 | AU45: 0 | AV45: 0 | AW45: 0 | AX45: 0 | AY45: 0 | AZ45: 0 | BA45: 0 | BB45: 0 | BC45: =BC32 -> 0 | BD45: =BD32 -> 0 | BE45: 0 | BF45: 0 | BG45: 0 | BH45: 0 | BI45: 0 | BJ45: 0 | BK45: 0 | BL45: 0 | BM45: 0 | BN45: 0 | BO45: 0 | BP45: 0 | BQ45: 0 | BR45: =BR32 -> 0 | BS45: =BS32 -> 0 | BT45: =SUM(BO45:BR45) -> 0 | BV45: =BV32 -> 0 | BW45: 0
C47: Group 2 Accounts
A48: 16 | C48: Deferred IFRS Transition Costs | D48: 1508 | E48: 7104.17 | G48: 7104.17 | I48: =E48+F48-G48+H48 -> 0 | J48: 16688.91 | K48: 26.28 | L48: 16682 | N48: =J48+K48-L48+M48 -> 33.19 | O48: =I48 -> 0 | S48: =O48+P48-Q48+R48 -> 0 | T48: =N48 -> 33.19 | U48: -33.19 | X48: =T48+U48-V48+W48 -> -1.307398634e-12 | Y48: =S48 -> 0 | AC48: =Y48+Z48-AA48+AB48 -> 0 | AD48: =X48 -> -1.307398634e-12 | AH48: =AD48+AE48-AF48+AG48 -> -1.307398634e-12 | AI48: =AC48 -> 0 | AM48: =AI48+AJ48-AK48+SUM(AL48:AL48) -> 0 | AN48: =AH48 -> -1.307398634e-12 | AR48: =AN48+AO48-AP48+AQ48 -> -1.307398634e-12 | AS48: =AM48 -> 0 | AW48: =AS48+AT48-AU48+AV48 -> 0 | AX48: =AR48 -> -1.307398634e-12 | BB48: =AX48+AY48-AZ48+BA48 -> -1.307398634e-12 | BC48: =AW48 -> 0 | BG48: =BC48+BD48-BE48+SUM(BF48:BF48) -> 0 | BH48: =BB48 -> -1.307398634e-12 | BL48: =BH48+BI48-BJ48+BK48 -> -1.307398634e-12 | BO48: =BG48-BM48 -> 0 | BP48: =BL48-BN48 -> -1.307398634e-12 | BS48: =BP48+BQ48+BR48 -> -1.307398634e-12 | BT48: =SUM(BO48:BR48) -> -1.307398634e-12 | BW48: =BV48-SUM(BG48,BL48) -> 1.307398634e-12 | BX48: =IF(ABS(BW48)>1,"Please provide an explanation of the variance in the tab 3 - Appendix A","") -> 
A49: 17 | C49: Pole Attachment Revenue Variance5 | D49: 1508 | I49: =E49+F49-G49+H49 -> 0 | N49: =J49+K49-L49+M49 -> 0 | O49: =I49 -> 0 | P49: -20771.05 | S49: -20771.05 | T49: 0 | U49: =33.19-196.83 -> -163.64 | X49: =T49+U49-V49+W49 -> -163.64 | Y49: -20771.05 | Z49: -20333.7 | AC49: -41104.75 | AD49: -163.64 | AE49: -377.8 | AH49: -541.44 | AI49: -41104.75 | AJ49: -20361.39 | AM49: -61466.14 | AN49: -541.44 | AO49: -274.99 | AR49: -816.43 | AS49: -61466.14 | AT49: -14137.33 | AW49: -75603.47 | AX49: -816.43 | AY49: -1336.24 | BB49: =AX49+AY49-AZ49+BA49 -> -2152.67 | BC49: -75603.47 | BD49: -12617.7 | BG49: =BC49+BD49-BE49+SUM(BF49:BF49) -> -88221.17 | BH49: =BB49 -> -2152.67 | BI49: -4046.59 | BL49: -6199.26 | BM49: 14211.03 | BN49: 4680.26 | BO49: =BG49-BM49 -> -102432.2 | BP49: =BL49-BN49 -> -10879.52 | BS49: =BP49+BQ49+BR49 -> -10879.52 | BT49: -113311.72 | BV49: -94420.43 | BW49: 0
A50: 18 | C50: Retail Service Charge Incremental Revenue6 | D50: 1508 | I50: =E50+F50-G50+H50 -> 0 | N50: =J50+K50-L50+M50 -> 0 | O50: =I50 -> 0 | S50: 0 | T50: =N50 -> 0 | X50: =T50+U50-V50+W50 -> 0 | Y50: =S50 -> 0 | AC50: 0 | AD50: 0 | AH50: 0 | AI50: 0 | AM50: 0 | AN50: 0 | AR50: 0 | AS50: 0 | AW50: 0 | AX50: 0 | BB50: 0 | BC50: 0 | BG50: =BC50+BD50-BE50+SUM(BF50:BF50) -> 0 | BH50: =BB50 -> 0 | BL50: 0 | BO50: =BG50-BM50 -> 0 | BP50: =BL50-BN50 -> 0 | BS50: =BP50+BQ50+BR50 -> 0 | BT50: 0 | BW50: 0
A51: 19 | C51: Customer Choice Initiative Costs7 | D51: 1508 | I51: 0 | N51: 0 | O51: 0 | S51: 0 | T51: 0 | X51: 0 | Y51: 0 | Z51: 8325 | AC51: 8325 | AD51: 0 | AE51: 10.64 | AH51: 10.64 | AI51: 8325 | AJ51: 418.44 | AM51: 8743.44 | AN51: 10.64 | AO51: 48.35 | AR51: 58.99 | AS51: 8743.44 | AT51: 1758.44 | AW51: 10501.88 | AX51: 58.99 | AY51: 197.24 | BB51: 256.23 | BC51: 10501.88 | BD51: 930.94 | BG51: =BC51+BD51-BE51+SUM(BF51:BF51) -> 11432.82 | BH51: =BB51 -> 256.23 | BI51: 571.58 | BL51: 827.81 | BO51: =BG51-BM51 -> 11432.82 | BP51: =BL51-BN51 -> 827.81 | BQ51: =ROUND(+BO51*0.0549,2) -> 627.66 | BS51: =BP51+BQ51+BR51 -> 1455.47 | BT51: 12888.29 | BV51: 12260.63 | BW51: 0 | CB51: 1508 | CC51: FALSE
A52: 20 | C52: Local Initiatives Program Costs9 | D52: 1508 | I52: 0 | N52: 0 | O52: 0 | S52: 0 | T52: 0 | X52: 0 | Y52: 0 | AC52: 0 | AD52: 0 | AH52: 0 | AI52: 0 | AM52: 0 | AN52: 0 | AR52: 0 | AS52: 0 | AW52: 0 | AX52: 0 | BB52: 0 | BC52: 0 | BG52: =BC52+BD52-BE52+SUM(BF52:BF52) -> 0 | BH52: =BB52 -> 0 | BL52: 0 | BO52: =BG52-BM52 -> 0 | BP52: =BL52-BN52 -> 0 | BS52: =BP52+BQ52+BR52 -> 0 | BT52: 0 | BW52: 0 | CB52: 1508 | CC52: FALSE
A53: 21 | C53: Green Button Initiative Costs10 | D53: 1508 | I53: 0 | N53: 0 | O53: 0 | S53: 0 | T53: 0 | X53: 0 | Y53: 0 | AC53: 0 | AD53: 0 | AH53: 0 | AI53: 0 | AM53: 0 | AN53: 0 | AR53: 0 | AS53: 0 | AW53: 0 | AX53: 0 | BB53: 0 | BC53: 0 | BG53: 0 | BH53: 0 | BL53: 0 | BO53: 0 | BP53: 0 | BS53: 0 | BT53: 0 | BW53: 0 | CB53: 1508 | CC53: FALSE
A54: 22 | C54: Other Regulatory Assets, Sub-account Designated Broadband Project Impacts13 | D54: 1508 | I54: 0 | N54: 0 | O54: 0 | S54: 0 | T54: 0 | X54: 0 | Y54: 0 | AC54: 0 | AD54: 0 | AH54: 0 | AI54: 0 | AM54: 0 | AN54: 0 | AR54: 0 | AS54: 0 | AW54: 0 | AX54: 0 | BB54: 0 | BC54: 0 | BG54: 0 | BH54: 0 | BL54: 0 | BO54: 0 | BP54: 0 | BS54: 0 | BT54: =IF(BU54="Yes", SUM(BO54:BR54), 0) -> 0 | BW54: 0 | CB54: 1508 | CC54: FALSE
A55: 23 | C55: Other Regulatory Assets, Sub-account ULO Implementation Cost14 | D55: 1508 | I55: 0 | N55: 0 | O55: 0 | S55: 0 | T55: 0 | X55: 0 | Y55: 0 | AC55: 0 | AD55: 0 | AH55: 0 | AI55: 0 | AM55: 0 | AN55: 0 | AR55: 0 | AS55: 0 | AW55: 0 | AX55: 0 | BB55: 0 | BC55: 0 | BG55: 0 | BH55: 0 | BL55: 0 | BO55: 0 | BP55: 0 | BS55: 0 | BT55: 0 | BW55: 0 | CB55: 1508 | CC55: FALSE
A56: 24 | C56: Other Regulatory Assets, Sub-Account GOCA Variance Account15 | D56: 1508 | I56: 0 | N56: 0 | O56: 0 | S56: 0 | T56: 0 | X56: 0 | Y56: 0 | AC56: 0 | AD56: 0 | AH56: 0 | AI56: 0 | AM56: 0 | AN56: 0 | AR56: 0 | AS56: 0 | AW56: 0 | AX56: 0 | BB56: 0 | BC56: 0 | BG56: 0 | BH56: 0 | BL56: 0 | BO56: 0 | BP56: 0 | BS56: 0 | BT56: 0 | BW56: 0 | CB56: 1508 | CC56: FALSE
A57: 25 | C57: Other Regulatory Assets, sub-account LEAP EFA Funding Deferal Account17 | D57: 1508 | I57: 0 | N57: 0 | O57: 0 | S57: 0 | T57: 0 | X57: 0 | Y57: 0 | AC57: 0 | AD57: 0 | AH57: 0 | AI57: 0 | AM57: 0 | AN57: 0 | AR57: 0 | AS57: 0 | AW57: 0 | AX57: 0 | BB57: 0 | BC57: 0 | BG57: 0 | BH57: 0 | BL57: 0 | BO57: 0 | BP57: 0 | BS57: 0 | BT57: 0 | BW57: 0 | CB57: 1508 | CC57: FALSE
A58: 26 | D58: 1508 | I58: 0 | N58: 0 | O58: 0 | S58: 0 | T58: 0 | X58: 0 | Y58: 0 | AC58: 0 | AD58: 0 | AH58: 0 | AI58: 0 | AM58: 0 | AN58: 0 | AR58: 0 | AS58: 0 | AW58: 0 | AX58: 0 | BB58: 0 | BC58: 0 | BG58: 0 | BH58: 0 | BL58: 0 | BO58: 0 | BP58: 0 | BS58: 0 | BT58: 0 | BW58: 0 | CB58: 1508 | CC58: FALSE
A59: 27 | D59: 1508 | I59: 0 | N59: 0 | O59: 0 | S59: 0 | T59: 0 | X59: 0 | Y59: 0 | AC59: 0 | AD59: 0 | AH59: 0 | AI59: 0 | AM59: 0 | AN59: 0 | AR59: 0 | AS59: 0 | AW59: 0 | AX59: 0 | BB59: 0 | BC59: 0 | BG59: 0 | BH59: 0 | BL59: 0 | BO59: 0 | BP59: 0 | BS59: 0 | BT59: 0 | BW59: 0 | CB59: 1508 | CC59: FALSE
A60: 28 | D60: 1508 | I60: 0 | N60: 0 | O60: 0 | S60: 0 | T60: 0 | X60: 0 | Y60: 0 | AC60: 0 | AD60: 0 | AH60: 0 | AI60: 0 | AM60: 0 | AN60: 0 | AR60: 0 | AS60: 0 | AW60: 0 | AX60: 0 | BB60: 0 | BC60: 0 | BG60: 0 | BH60: 0 | BL60: 0 | BO60: 0 | BP60: 0 | BS60: 0 | BT60: 0 | BW60: 0 | CB60: 1508 | CC60: FALSE
A61: 29 | D61: 1508 | I61: 0 | N61: 0 | O61: 0 | S61: 0 | T61: 0 | X61: 0 | Y61: 0 | AC61: 0 | AD61: 0 | AH61: 0 | AI61: 0 | AM61: 0 | AN61: 0 | AR61: 0 | AS61: 0 | AW61: 0 | AX61: 0 | BB61: 0 | BC61: 0 | BG61: 0 | BH61: 0 | BL61: 0 | BO61: 0 | BP61: 0 | BS61: 0 | BT61: 0 | BW61: 0 | CB61: 1508 | CC61: FALSE
A62: 30 | D62: 1508 | I62: 0 | N62: 0 | O62: 0 | S62: 0 | T62: 0 | X62: 0 | Y62: 0 | AC62: 0 | AD62: 0 | AH62: 0 | AI62: 0 | AM62: 0 | AN62: 0 | AR62: 0 | AS62: 0 | AW62: 0 | AX62: 0 | BB62: 0 | BC62: 0 | BG62: 0 | BH62: 0 | BL62: 0 | BO62: 0 | BP62: 0 | BS62: 0 | BT62: 0 | BW62: 0 | CB62: 1508 | CC62: FALSE
A63: 31 | D63: 1508 | I63: 0 | N63: 0 | O63: 0 | S63: 0 | T63: 0 | X63: 0 | Y63: 0 | AC63: 0 | AD63: 0 | AH63: 0 | AI63: 0 | AM63: 0 | AN63: 0 | AR63: 0 | AS63: 0 | AW63: 0 | AX63: 0 | BB63: 0 | BC63: 0 | BG63: 0 | BH63: 0 | BL63: 0 | BO63: 0 | BP63: 0 | BS63: 0 | BT63: 0 | BW63: 0 | CB63: 1508 | CC63: FALSE
A64: 32 | D64: 1508 | I64: 0 | N64: 0 | O64: 0 | S64: 0 | T64: 0 | X64: 0 | Y64: 0 | AC64: 0 | AD64: 0 | AH64: 0 | AI64: 0 | AM64: 0 | AN64: 0 | AR64: 0 | AS64: 0 | AW64: 0 | AX64: 0 | BB64: 0 | BC64: 0 | BG64: 0 | BH64: 0 | BL64: 0 | BO64: 0 | BP64: 0 | BS64: 0 | BT64: 0 | BW64: 0 | CB64: 1508 | CC64: FALSE
A65: 33 | D65: 1508 | I65: 0 | N65: 0 | O65: 0 | S65: 0 | T65: 0 | X65: 0 | Y65: 0 | AC65: 0 | AD65: 0 | AH65: 0 | AI65: 0 | AM65: 0 | AN65: 0 | AR65: 0 | AS65: 0 | AW65: 0 | AX65: 0 | BB65: 0 | BC65: 0 | BG65: 0 | BH65: 0 | BL65: 0 | BO65: 0 | BP65: 0 | BS65: 0 | BT65: 0 | BW65: 0 | CB65: 1508 | CC65: FALSE
A66: 34 | D66: 1508 | I66: 0 | N66: 0 | O66: 0 | S66: 0 | T66: 0 | X66: 0 | Y66: 0 | AC66: 0 | AD66: 0 | AH66: 0 | AI66: 0 | AM66: 0 | AN66: 0 | AR66: 0 | AS66: 0 | AW66: 0 | AX66: 0 | BB66: 0 | BC66: 0 | BG66: 0 | BH66: 0 | BL66: 0 | BO66: 0 | BP66: 0 | BS66: 0 | BT66: 0 | BW66: 0 | CB66: 1508 | CC66: FALSE
A67: 35 | D67: 1508 | I67: 0 | N67: 0 | O67: 0 | S67: 0 | T67: 0 | X67: 0 | Y67: 0 | AC67: 0 | AD67: 0 | AH67: 0 | AI67: 0 | AM67: 0 | AN67: 0 | AR67: 0 | AS67: 0 | AW67: 0 | AX67: 0 | BB67: 0 | BC67: 0 | BG67: 0 | BH67: 0 | BL67: 0 | BO67: 0 | BP67: 0 | BS67: 0 | BT67: 0 | BW67: 0 | CB67: 1508 | CC67: FALSE
A68: 36 | D68: 1508 | I68: 0 | N68: 0 | O68: 0 | S68: 0 | T68: 0 | X68: 0 | Y68: 0 | AC68: 0 | AD68: 0 | AH68: 0 | AI68: 0 | AM68: 0 | AN68: 0 | AR68: 0 | AS68: 0 | AW68: 0 | AX68: 0 | BB68: 0 | BC68: 0 | BG68: 0 | BH68: 0 | BL68: 0 | BO68: 0 | BP68: 0 | BS68: 0 | BT68: 0 | BW68: 0 | CB68: 1508 | CC68: FALSE
A69: 37 | D69: 1508 | I69: 0 | N69: 0 | O69: 0 | S69: 0 | T69: 0 | X69: 0 | Y69: 0 | AC69: 0 | AD69: 0 | AH69: 0 | AI69: 0 | AM69: 0 | AN69: 0 | AR69: 0 | AS69: 0 | AW69: 0 | AX69: 0 | BB69: 0 | BC69: 0 | BG69: 0 | BH69: 0 | BL69: 0 | BO69: 0 | BP69: 0 | BS69: 0 | BT69: 0 | BW69: 0 | CB69: 1508 | CC69: FALSE
A70: 38 | D70: 1508 | I70: 0 | N70: 0 | O70: 0 | S70: 0 | T70: 0 | X70: 0 | Y70: 0 | AC70: 0 | AD70: 0 | AH70: 0 | AI70: 0 | AM70: 0 | AN70: 0 | AR70: 0 | AS70: 0 | AW70: 0 | AX70: 0 | BB70: 0 | BC70: 0 | BG70: 0 | BH70: 0 | BL70: 0 | BO70: 0 | BP70: 0 | BS70: 0 | BT70: 0 | BW70: 0 | CB70: 1508 | CC70: FALSE
A71: 39 | C71: Retail Cost Variance Account - Retail6 | D71: 1518 | E71: 9995.34 | F71: -10.1 | G71: 10704.64 | I71: -719.4 | J71: 435.51 | K71: 22.93 | L71: 431.04 | N71: 27.4 | O71: -719.4 | P71: -2111.2 | S71: -2830.6 | T71: 27.4 | U71: -34.15 | X71: -6.75 | Y71: -2830.6 | Z71: -3569.89 | AC71: -6400.49 | AD71: -6.75 | AE71: -56.89 | AH71: -63.64 | AI71: -6400.49 | AJ71: -2748.46 | AM71: -9148.95 | AN71: -63.64 | AO71: -44.9 | AR71: -108.54 | AS71: -9148.95 | AT71: -2119.19 | AW71: -11268.14 | AX71: -108.54 | AY71: -205.13 | BB71: -313.67 | BC71: -11268.14 | BD71: -3073.87 | BG71: =BC71+BD71-BE71+SUM(BF71:BF71) -> -14342.01 | BH71: =BB71 -> -313.67 | BI71: -641.09 | BL71: -954.76 | BO71: =BG71-BM71 -> -14342.01 | BP71: =BL71-BN71 -> -954.76 | BQ71: =ROUND(+BO71*0.0549,2) -> -787.38 | BS71: =BP71+BQ71+BR71 -> -1742.14 | BT71: =SUM(BO71:BR71) -> -16084.15 | BV71: -15296.77 | BW71: 0 | BX71: =IF(ABS(BW71)>1,"Please provide an explanation of the variance in the tab 3 - Appendix A","") -> 
A72: 40 | C72: Pension & OPEB Forecast Accrual versus Actual Cash Payment Differential Carrying Charges8 | D72: 1522 | I72: 0 | N72: 0 | O72: 0 | S72: 0 | T72: 0 | X72: 0 | Y72: 0 | AC72: 0 | AD72: 0 | AH72: 0 | AI72: 0 | AM72: 0 | AN72: 0 | AR72: 0 | AS72: 0 | AW72: 0 | AX72: 0 | BB72: 0 | BC72: 0 | BG72: 0 | BH72: 0 | BL72: 0 | BO72: 0 | BP72: 0 | BS72: 0 | BT72: =SUM(BO72:BR72) -> 0 | BW72: 0 | CB72: 1525 | CC72: FALSE
A73: 41 | C73: Misc. Deferred Debits | D73: 1525 | I73: =E73+F73-G73+H73 -> 0 | N73: =J73+K73-L73+M73 -> 0 | O73: =I73 -> 0 | S73: 0 | T73: =N73 -> 0 | X73: =T73+U73-V73+W73 -> 0 | Y73: =S73 -> 0 | AC73: 0 | AD73: =X73 -> 0 | AH73: =AD73+AE73-AF73+AG73 -> 0 | AI73: =AC73 -> 0 | AM73: =AI73+AJ73-AK73+SUM(AL73:AL73) -> 0 | AN73: =AH73 -> 0 | AR73: =AN73+AO73-AP73+AQ73 -> 0 | AS73: =AM73 -> 0 | AW73: 0 | AX73: =AR73 -> 0 | BB73: =AX73+AY73-AZ73+BA73 -> 0 | BC73: =AW73 -> 0 | BG73: 0 | BH73: 0 | BL73: =BH73+BI73-BJ73+BK73 -> 0 | BO73: 0 | BP73: 0 | BS73: 0 | BT73: =IF(BU73="Yes", SUM(BO73:BR73), 0) -> 0 | BW73: =BV73-SUM(BG73,BL73) -> 0
A74: 42 | C74: Retail Cost Variance Account - STR6 | D74: 1548 | E74: 13670.99 | F74: 2975.21 | G74: 10755.31 | I74: =E74+F74-G74+H74 -> 5890.89 | J74: 437.2 | K74: 123.85 | L74: 407.74 | N74: =J74+K74-L74+M74 -> 153.31 | O74: 5890.89 | P74: 2975.09 | S74: 8865.98 | T74: 153.31 | U74: 165.33 | X74: =T74+U74-V74+W74 -> 318.64 | Y74: 8865.98 | Z74: 3061.26 | AC74: 11927.24 | AD74: 318.64 | AE74: 136.28 | AH74: 454.92 | AI74: 11927.24 | AJ74: 3115.15 | AM74: 15042.39 | AN74: 454.92 | AO74: 76.86 | AR74: 531.78 | AS74: 15042.39 | AT74: 3208.08 | AW74: 18250.47 | AX74: 531.78 | AY74: 331.66 | BB74: 863.44 | BC74: 18250.47 | BD74: 3334.28 | BG74: 21584.75 | BH74: 863.44 | BI74: 1003.97 | BL74: 1867.41 | BO74: 21584.75 | BP74: 1867.41 | BQ74: =ROUND(+BO74*0.0549,2) -> 1185 | BS74: 3052.41 | BT74: =SUM(BO74:BR74) -> 24637.16 | BV74: 23452.16 | BW74: 0
A75: 43 | C75: Extra-Ordinary Event Costs | D75: 1572 | I75: 0 | N75: 0 | O75: =I75 -> 0 | S75: 0 | T75: 0 | X75: 0 | Y75: 0 | AC75: 0 | AD75: 0 | AH75: 0 | AI75: =AC75 -> 0 | AM75: 0 | AN75: 0 | AR75: 0 | AS75: =AM75 -> 0 | AW75: 0 | AX75: 0 | BB75: 0 | BC75: =AW75 -> 0 | BG75: 0 | BH75: 0 | BL75: 0 | BO75: 0 | BP75: 0 | BS75: 0 | BT75: =SUM(BO75:BR75) -> 0 | BW75: 0
A76: 44 | C76: Deferred Rate Impact Amounts | D76: 1574 | I76: 0 | N76: 0 | O76: =I76 -> 0 | S76: 0 | T76: 0 | X76: 0 | Y76: 0 | AC76: 0 | AD76: 0 | AH76: 0 | AI76: =AC76 -> 0 | AM76: 0 | AN76: 0 | AR76: 0 | AS76: =AM76 -> 0 | AW76: 0 | AX76: 0 | BB76: 0 | BC76: =AW76 -> 0 | BG76: 0 | BH76: 0 | BL76: 0 | BO76: 0 | BP76: 0 | BS76: 0 | BT76: =SUM(BO76:BR76) -> 0 | BW76: 0
A77: 45 | C77: RSVA - One-time | D77: 1582 | I77: 0 | N77: 0 | O77: =I77 -> 0 | S77: 0 | T77: 0 | X77: 0 | Y77: 0 | AC77: 0 | AD77: 0 | AH77: 0 | AI77: =AC77 -> 0 | AM77: 0 | AN77: 0 | AR77: 0 | AS77: =AM77 -> 0 | AW77: 0 | AX77: 0 | BB77: 0 | BC77: =AW77 -> 0 | BG77: 0 | BH77: 0 | BL77: 0 | BO77: 0 | BP77: 0 | BS77: 0 | BT77: =SUM(BO77:BR77) -> 0 | BW77: 0
A78: 46 | C78: Other Deferred Credits | D78: 2425 | I78: 0 | N78: 0 | O78: =I78 -> 0 | S78: 0 | T78: 0 | X78: 0 | Y78: 0 | AC78: 0 | AD78: 0 | AH78: 0 | AI78: =AC78 -> 0 | AM78: 0 | AN78: 0 | AR78: 0 | AS78: =AM78 -> 0 | AW78: 0 | AX78: 0 | BB78: 0 | BC78: =AW78 -> 0 | BG78: 0 | BH78: 0 | BL78: 0 | BO78: 0 | BP78: 0 | BS78: 0 | BT78: =IF(BU78="Yes", SUM(BO78:BR78), 0) -> 0 | BW78: 0 | CB78: 2425 | CC78: FALSE
BX79: =IF(ABS(BW79)>1,"Please provide an explanation of the variance in the Manager's Summary","") -> 
C80: Group 2 Sub-Total | E80: =SUM(E48:E78) -> 30770.5 | F80: 2965.11 | G80: 28564.12 | H80: 0 | I80: 5171.49 | J80: 17561.62 | K80: 173.06 | L80: 17520.78 | M80: 0 | N80: 213.9 | O80: 5171.49 | P80: -19907.16 | Q80: 0 | R80: 0 | S80: -14735.67 | T80: 213.9 | U80: -65.65 | V80: 0 | W80: 0 | X80: 148.25 | Y80: -14735.67 | Z80: -12517.33 | AA80: 0 | AB80: 0 | AC80: -27253 | AD80: 148.25 | AE80: -287.77 | AF80: 0 | AG80: 0 | AH80: -139.52 | AI80: -27253 | AJ80: -19576.26 | AK80: 0 | AL80: =SUM(AL48:AL78) -> 0 | AM80: -46829.26 | AN80: -139.52 | AO80: -194.68 | AP80: 0 | AQ80: 0 | AR80: -334.2 | AS80: -46829.26 | AT80: -11290 | AU80: 0 | AV80: 0 | AW80: -58119.26 | AX80: -334.2 | AY80: -1012.47 | AZ80: 0 | BA80: 0 | BB80: -1346.67 | BC80: -58119.26 | BD80: -11426.35 | BE80: 0 | BF80: 0 | BG80: -69545.61 | BH80: -1346.67 | BI80: -3112.13 | BJ80: 0 | BK80: 0 | BL80: -4458.8 | BM80: 14211.03 | BN80: 4680.26 | BO80: -83756.64 | BP80: -9139.06 | BQ80: 1025.28 | BR80: 0 | BS80: -8113.78 | BT80: -91870.42 | BW80: =BV80-SUM(BG80,BL80) -> 74004.41
A82: 47 | C82: PILs and Tax Variance for 2006 and Subsequent Years (excludes sub-account and contra account below) | D82: 1592 | I82: =E82+F82-G82+H82 -> 0 | N82: =J82+K82-L82+M82 -> 0 | O82: =I82 -> 0 | S82: =O82+P82-Q82+R82 -> 0 | T82: =N82 -> 0 | X82: =T82+U82-V82+W82 -> 0 | Y82: =S82 -> 0 | AC82: =Y82+Z82-AA82+AB82 -> 0 | AD82: =X82 -> 0 | AH82: =AD82+AE82-AF82+AG82 -> 0 | AI82: =AC82 -> 0 | AM82: =AI82+AJ82-AK82+SUM(AL82:AL82) -> 0 | AN82: =AH82 -> 0 | AR82: =AN82+AO82-AP82+AQ82 -> 0 | AS82: =AM82 -> 0 | AW82: =AS82+AT82-AU82+AV82 -> 0 | AX82: =AR82 -> 0 | BB82: =AX82+AY82-AZ82+BA82 -> 0 | BC82: =AW82 -> 0 | BG82: =BC82+BD82-BE82+SUM(BF82:BF82) -> 0 | BH82: =BB82 -> 0 | BL82: =BH82+BI82-BJ82+BK82 -> 0 | BO82: =BG82-BM82 -> 0 | BP82: =BL82-BN82 -> 0 | BS82: =BP82+BQ82+BR82 -> 0 | BT82: =SUM(BO82:BR82) -> 0 | BW82: =BV82-SUM(BG82,BL82) -> 0 | BX82: =IF(ABS(BW82)>1,"Please provide an explanation of the variance in the tab 3 - Appendix A","") -> 
A83: 48 | C83: PILs and Tax Variance for 2006 and Subsequent Years- Sub-account CCA Changes12 | D83: 1592 | I83: =E83+F83-G83+H83 -> 0 | N83: =J83+K83-L83+M83 -> 0 | O83: =I83 -> 0 | S83: =O83+P83-Q83+R83 -> 0 | T83: =N83 -> 0 | X83: =T83+U83-V83+W83 -> 0 | Y83: =S83 -> 0 | AC83: =Y83+Z83-AA83+AB83 -> 0 | AD83: =X83 -> 0 | AH83: =AD83+AE83-AF83+AG83 -> 0 | AI83: =AC83 -> 0 | AM83: =AI83+AJ83-AK83+SUM(AL83:AL83) -> 0 | AN83: =AH83 -> 0 | AR83: =AN83+AO83-AP83+AQ83 -> 0 | AS83: =AM83 -> 0 | AW83: =AS83+AT83-AU83+AV83 -> 0 | AX83: =AR83 -> 0 | BB83: =AX83+AY83-AZ83+BA83 -> 0 | BC83: =AW83 -> 0 | BF83: -21525 | BG83: =BC83+BD83-BE83+SUM(BF83:BF83) -> -21525 | BH83: =BB83 -> 0 | BL83: =BH83+BI83-BJ83+BK83 -> 0 | BO83: =BG83-BM83 -> -21525 | BP83: =BL83-BN83 -> 0 | BQ83: =ROUND(+BO83*0.0549,2) -> -1181.72 | BS83: =BP83+BQ83+BR83 -> -1181.72 | BT83: =SUM(BO83:BR83) -> -22706.72 | BW83: =BV83-SUM(BG83,BL83) -> 21525
C85: Total of Group 1 and Group 2 Accounts (including 1592) | E85: =SUM(E82:E83,E80, E43) -> 30770.5 | F85: 2965.11 | G85: 28564.12 | H85: 0 | I85: 5171.49 | J85: 17561.62 | K85: 173.06 | L85: 17520.78 | M85: 0 | N85: 213.9 | O85: 5171.49 | P85: -19907.16 | Q85: 0 | R85: 0 | S85: -14735.67 | T85: 213.9 | U85: -65.65 | V85: 0 | W85: 0 | X85: 148.25 | Y85: -14735.67 | Z85: -12517.33 | AA85: 0 | AB85: 0 | AC85: -27253 | AD85: 148.25 | AE85: -287.77 | AF85: 0 | AG85: 0 | AH85: -139.52 | AI85: -27253 | AJ85: -19576.26 | AK85: =SUM(AK82:AK83,AK80, AK43) -> 0 | AL85: 0 | AM85: -46829.26 | AN85: -139.52 | AO85: -194.68 | AP85: 0 | AQ85: 0 | AR85: -334.2 | AS85: -46829.26 | AT85: -11290 | AU85: 0 | AV85: 0 | AW85: -58119.26 | AX85: -334.2 | AY85: -1012.47 | AZ85: 0 | BA85: 0 | BB85: -1346.67 | BC85: -58119.26 | BD85: -11426.35 | BE85: 0 | BF85: -21525 | BG85: -91070.61 | BH85: -1346.67 | BI85: -3112.13 | BJ85: 0 | BK85: 0 | BL85: -4458.8 | BM85: 14211.03 | BN85: 4680.26 | BO85: -105281.64 | BP85: -9139.06 | BQ85: -156.44 | BR85: 0 | BS85: -9295.5 | BT85: -114577.14 | BW85: =BV85-SUM(BG85,BL85) -> 95529.41 | BX85: Please provide an explanation of the variance in the Manager's Summary
C86: Total of Group 2 Accounts Above | E86: =SUM(E48:E78)+E82+E83 -> 30770.5 | F86: =SUM(F48:F78)+F82+F83 -> 2965.11 | G86: 28564.12 | H86: 0 | I86: 5171.49 | J86: 17561.62 | K86: 173.06 | L86: 17520.78 | M86: 0 | N86: =SUM(N48:N78)+N82+N83 -> 213.9 | O86: 5171.49 | P86: -19907.16 | Q86: 0 | R86: 0 | S86: -14735.67 | T86: 213.9 | U86: -65.65 | V86: 0 | W86: 0 | X86: 148.25 | Y86: -14735.67 | Z86: -12517.33 | AA86: 0 | AB86: 0 | AC86: -27253 | AD86: 148.25 | AE86: -287.77 | AF86: 0 | AG86: 0 | AH86: -139.52 | AI86: -27253 | AJ86: -19576.26 | AK86: 0 | AL86: 0 | AM86: -46829.26 | AN86: -139.52 | AO86: -194.68 | AP86: 0 | AQ86: 0 | AR86: -334.2 | AS86: -46829.26 | AT86: -11290 | AU86: 0 | AV86: 0 | AW86: -58119.26 | AX86: -334.2 | AY86: -1012.47 | AZ86: 0 | BA86: 0 | BB86: -1346.67 | BC86: -58119.26 | BD86: -11426.35 | BE86: 0 | BF86: -21525 | BG86: -91070.61 | BH86: -1346.67 | BI86: -3112.13 | BJ86: 0 | BK86: 0 | BL86: -4458.8 | BM86: 14211.03 | BN86: 4680.26 | BO86: -105281.64 | BP86: -9139.06 | BQ86: -156.44 | BR86: =SUM(BR48:BR78)+BR82+BR83 -> 0 | BS86: =SUM(BS48:BS78)+BS82+BS83 -> -9295.5 | BT86: =SUM(BT48:BT78)+BT82+BT83 -> -114577.14
A88: 49 | C88: LRAM Variance Account4 | D88: 1568 | I88: =E88+F88-G88+H88 -> 0 | N88: =J88+K88-L88+M88 -> 0 | O88: =I88 -> 0 | S88: =O88+P88-Q88+R88 -> 0 | T88: =N88 -> 0 | X88: =T88+U88-V88+W88 -> 0 | Y88: =S88 -> 0 | AC88: =Y88+Z88-AA88+AB88 -> 0 | AD88: =X88 -> 0 | AH88: =AD88+AE88-AF88+AG88 -> 0 | AI88: =AC88 -> 0 | AM88: =AI88+AJ88-AK88+SUM(AL88:AL88) -> 0 | AN88: =AH88 -> 0 | AR88: =AN88+AO88-AP88+AQ88 -> 0 | AS88: =AM88 -> 0 | AW88: =AS88+AT88-AU88+AV88 -> 0 | AX88: =AR88 -> 0 | BB88: =AX88+AY88-AZ88+BA88 -> 0 | BC88: =AW88 -> 0 | BG88: =BC88+BD88-BE88+SUM(BF88:BF88) -> 0 | BH88: =BB88 -> 0 | BI88: 0 | BL88: =BH88+BI88-BJ88+BK88 -> 0 | BO88: =BG88-BM88 -> 0 | BP88: =BL88-BN88 -> 0 | BS88: =BP88+BQ88+BR88 -> 0 | BT88: =SUM(BO88:BR88) -> 0 | BW88: =BV88-SUM(BG88,BL88) -> 0 | BX88: =IF(ABS(BW88)>1,"Please provide an explanation of the variance in the tab 3 - Appendix A","") -> 
C91: Total including Account 1568 | E91: =E86+E88 -> 30770.5 | F91: 2965.11 | G91: 28564.12 | H91: 0 | I91: 5171.49 | J91: 17561.62 | K91: 173.06 | L91: 17520.78 | M91: 0 | N91: 213.9 | O91: 5171.49 | P91: -19907.16 | Q91: 0 | R91: 0 | S91: -14735.67 | T91: 213.9 | U91: -65.65 | V91: 0 | W91: 0 | X91: 148.25 | Y91: -14735.67 | Z91: -12517.33 | AA91: 0 | AB91: 0 | AC91: -27253 | AD91: 148.25 | AE91: -287.77 | AF91: 0 | AG91: 0 | AH91: -139.52 | AI91: -27253 | AJ91: -19576.26 | AK91: =AK86+AK88 -> 0 | AL91: 0 | AM91: -46829.26 | AN91: -139.52 | AO91: -194.68 | AP91: 0 | AQ91: 0 | AR91: -334.2 | AS91: -46829.26 | AT91: -11290 | AU91: 0 | AV91: 0 | AW91: -58119.26 | AX91: -334.2 | AY91: -1012.47 | AZ91: 0 | BA91: 0 | BB91: -1346.67 | BC91: -58119.26 | BD91: -11426.35 | BE91: 0 | BF91: -21525 | BG91: -91070.61 | BH91: -1346.67 | BI91: -3112.13 | BJ91: 0 | BK91: 0 | BL91: -4458.8 | BM91: 14211.03 | BN91: 4680.26 | BO91: -105281.64 | BP91: -9139.06 | BQ91: -156.44 | BR91: 0 | BS91: -9295.5 | BT91: -114577.14 | BW91: =BV91-SUM(BG91,BL91) -> 95529.41
C93: Pension & OPEB Forecast Accrual versus Actual Cash Payment Differential8 | D93: 1522 | I93: =E93+F93-G93+H93 -> 0 | N93: =J93+K93-L93+M93 -> 0 | O93: =I93 -> 0 | S93: =O93+P93-Q93+R93 -> 0 | T93: =N93 -> 0 | X93: =T93+U93-V93+W93 -> 0 | Y93: =S93 -> 0 | AC93: =Y93+Z93-AA93+AB93 -> 0 | AD93: =X93 -> 0 | AH93: =AD93+AE93-AF93+AG93 -> 0 | AI93: =AC93 -> 0 | AM93: =AI93+AJ93-AK93+SUM(AL93:AL93) -> 0 | AN93: =AH93 -> 0 | AR93: =AN93+AO93-AP93+AQ93 -> 0 | AS93: =AM93 -> 0 | AW93: =AS93+AT93-AU93+AV93 -> 0 | AX93: =AR93 -> 0 | BB93: =AX93+AY93-AZ93+BA93 -> 0 | BC93: 0 | BG93: =BC93+BD93-BE93+SUM(BF93:BF93) -> 0 | BH93: =BB93 -> 0 | BL93: =BH93+BI93-BJ93+BK93 -> 0 | BO93: =BG93-BM93 -> 0 | BP93: =BL93-BN93 -> 0 | BS93: =BP93+BQ93+BR93 -> 0 | BT93: =SUM(BO93:BR93) -> 0 | BW93: =BV93-SUM(BG93,BL93) -> 0
C94: Pension & OPEB Forecast Accrual versus Actual Cash Payment Differential Contra Account8 | D94: 1522 | I94: =E94+F94-G94+H94 -> 0 | N94: =J94+K94-L94+M94 -> 0 | O94: =I94 -> 0 | S94: =O94+P94-Q94+R94 -> 0 | T94: =N94 -> 0 | X94: =T94+U94-V94+W94 -> 0 | Y94: =S94 -> 0 | AC94: =Y94+Z94-AA94+AB94 -> 0 | AD94: =X94 -> 0 | AH94: =AD94+AE94-AF94+AG94 -> 0 | AI94: =AC94 -> 0 | AM94: =AI94+AJ94-AK94+SUM(AL94:AL94) -> 0 | AN94: =AH94 -> 0 | AR94: =AN94+AO94-AP94+AQ94 -> 0 | AS94: =AM94 -> 0 | AW94: =AS94+AT94-AU94+AV94 -> 0 | AX94: =AR94 -> 0 | BB94: =AX94+AY94-AZ94+BA94 -> 0 | BC94: 0 | BG94: =BC94+BD94-BE94+SUM(BF94:BF94) -> 0 | BH94: =BB94 -> 0 | BL94: =BH94+BI94-BJ94+BK94 -> 0 | BO94: =BG94-BM94 -> 0 | BP94: =BL94-BN94 -> 0 | BS94: =BP94+BQ94+BR94 -> 0 | BT94: =SUM(BO94:BR94) -> 0 | BW94: =BV94-SUM(BG94,BL94) -> 0
A95: 50 | C95: Renewable Generation Connection Capital Deferral Account | D95: 1531 | I95: =E95+F95-G95+H95 -> 0 | N95: =J95+K95-L95+M95 -> 0 | O95: =I95 -> 0 | S95: =O95+P95-Q95+R95 -> 0 | T95: =N95 -> 0 | X95: =T95+U95-V95+W95 -> 0 | Y95: =S95 -> 0 | AC95: =Y95+Z95-AA95+AB95 -> 0 | AD95: =X95 -> 0 | AH95: =AD95+AE95-AF95+AG95 -> 0 | AI95: =AC95 -> 0 | AM95: =AI95+AJ95-AK95+SUM(AL95:AL95) -> 0 | AN95: =AH95 -> 0 | AR95: =AN95+AO95-AP95+AQ95 -> 0 | AS95: =AM95 -> 0 | AW95: =AS95+AT95-AU95+AV95 -> 0 | AX95: =AR95 -> 0 | BB95: =AX95+AY95-AZ95+BA95 -> 0 | BC95: =AW95 -> 0 | BG95: =BC95+BD95-BE95+SUM(BF95:BF95) -> 0 | BH95: =BB95 -> 0 | BL95: =BH95+BI95-BJ95+BK95 -> 0 | BO95: =BG95-BM95 -> 0 | BP95: =BL95-BN95 -> 0 | BS95: =BP95+BQ95+BR95 -> 0 | BT95: =SUM(BO95:BR95) -> 0 | BW95: =BV95-SUM(BG95,BL95) -> 0 | BX95: =IF(ABS(BW95)>1,"Please provide an explanation of the variance in the tab 3 - Appendix A","") -> 
A96: 51 | C96: Renewable Generation Connection OM&A Deferral Account | D96: 1532 | I96: 0 | N96: 0 | O96: 0 | S96: 0 | T96: 0 | X96: 0 | Y96: 0 | AC96: 0 | AD96: 0 | AH96: 0 | AI96: 0 | AM96: 0 | AN96: 0 | AR96: 0 | AS96: 0 | AW96: 0 | AX96: 0 | BB96: 0 | BC96: 0 | BG96: 0 | BH96: 0 | BL96: 0 | BO96: 0 | BP96: 0 | BS96: 0 | BT96: =IF(BU96="Yes", SUM(BO96:BR96), 0) -> 0 | BW96: =BV96-SUM(BG96,BL96) -> 0
A97: 52 | C97: Renewable Generation Connection Funding Adder Deferral Account | D97: 1533 | I97: 0 | N97: 0 | O97: 0 | S97: 0 | T97: 0 | X97: 0 | Y97: 0 | AC97: 0 | AD97: 0 | AH97: 0 | AI97: 0 | AM97: 0 | AN97: 0 | AR97: 0 | AS97: 0 | AW97: 0 | AX97: 0 | BB97: 0 | BC97: 0 | BG97: 0 | BH97: 0 | BL97: 0 | BO97: 0 | BP97: 0 | BS97: 0 | BT97: 0 | BW97: 0
A98: 53 | C98: Smart Grid Capital Deferral Account | D98: 1534 | I98: 0 | N98: 0 | O98: 0 | S98: 0 | T98: 0 | X98: 0 | Y98: 0 | AC98: 0 | AD98: 0 | AH98: 0 | AI98: 0 | AM98: 0 | AN98: 0 | AR98: 0 | AS98: 0 | AW98: 0 | AX98: 0 | BB98: 0 | BC98: 0 | BG98: 0 | BH98: 0 | BL98: 0 | BO98: 0 | BP98: 0 | BS98: 0 | BT98: 0 | BW98: 0
A99: 54 | C99: Smart Grid OM&A Deferral Account | D99: 1535 | I99: 0 | N99: 0 | O99: 0 | S99: 0 | T99: 0 | X99: 0 | Y99: 0 | AC99: 0 | AD99: 0 | AH99: 0 | AI99: 0 | AM99: 0 | AN99: 0 | AR99: 0 | AS99: 0 | AW99: 0 | AX99: 0 | BB99: 0 | BC99: 0 | BG99: 0 | BH99: 0 | BL99: 0 | BO99: 0 | BP99: 0 | BS99: 0 | BT99: 0 | BW99: 0
A100: 55 | C100: Smart Grid Funding Adder Deferral Account | D100: 1536 | I100: 0 | N100: 0 | O100: 0 | S100: 0 | T100: 0 | X100: 0 | Y100: 0 | AC100: 0 | AD100: 0 | AH100: 0 | AI100: 0 | AM100: 0 | AN100: 0 | AR100: 0 | AS100: 0 | AW100: 0 | AX100: 0 | BB100: 0 | BC100: 0 | BG100: 0 | BH100: 0 | BL100: 0 | BO100: 0 | BP100: 0 | BS100: 0 | BT100: 0 | BW100: 0
A101: 56 | C101: Smart Meter Capital and Recovery Offset Variance - Sub-Account - Capital4 | D101: 1555 | I101: 0 | N101: 0 | O101: 0 | S101: 0 | T101: 0 | X101: 0 | Y101: 0 | AC101: 0 | AD101: 0 | AH101: 0 | AI101: 0 | AM101: 0 | AN101: 0 | AR101: 0 | AS101: 0 | AW101: 0 | AX101: 0 | BB101: 0 | BC101: 0 | BG101: 0 | BH101: 0 | BL101: 0 | BO101: 0 | BP101: 0 | BS101: 0 | BT101: =SUM(BO101:BR101) -> 0 | BW101: 0
A102: 57 | C102: Smart Meter Capital and Recovery Offset Variance - Sub-Account - Recoveries4 | D102: 1555 | I102: 0 | N102: 0 | O102: 0 | S102: 0 | T102: 0 | X102: 0 | Y102: 0 | AC102: 0 | AD102: 0 | AH102: 0 | AI102: 0 | AM102: 0 | AN102: 0 | AR102: 0 | AS102: 0 | AW102: 0 | AX102: 0 | BB102: 0 | BC102: 0 | BG102: 0 | BH102: 0 | BL102: 0 | BO102: 0 | BP102: 0 | BS102: 0 | BT102: =SUM(BO102:BR102) -> 0 | BW102: 0
A103: 58 | C103: Smart Meter Capital and Recovery Offset Variance - Sub-Account - Stranded Meter Costs | D103: 1555 | I103: 0 | N103: 0 | O103: 0 | S103: 0 | T103: 0 | X103: 0 | Y103: 0 | AC103: 0 | AD103: 0 | AH103: 0 | AI103: 0 | AM103: 0 | AN103: 0 | AR103: 0 | AS103: 0 | AW103: 0 | AX103: 0 | BB103: 0 | BC103: 0 | BG103: 0 | BH103: 0 | BL103: 0 | BO103: 0 | BP103: 0 | BS103: 0 | BT103: =IF(BU103="Yes", SUM(BO103:BR103), 0) -> 0 | BU103: No | BW103: 0 | BX103: =IF(ABS(BW103)>1,"Please provide an explanation of the variance in the tab 3 - Appendix A","") -> 
A104: 59 | C104: Smart Meter OM&A Variance4 | D104: 1556 | I104: 0 | N104: 0 | O104: 0 | S104: 0 | T104: 0 | X104: 0 | Y104: 0 | AC104: 0 | AD104: 0 | AH104: 0 | AI104: 0 | AM104: 0 | AN104: 0 | AR104: 0 | AS104: 0 | AW104: 0 | AX104: 0 | BB104: 0 | BC104: 0 | BG104: 0 | BH104: 0 | BL104: 0 | BO104: 0 | BP104: 0 | BS104: 0 | BT104: =SUM(BO104:BR104) -> 0 | BW104: 0
A105: 60 | C105: Meter Cost Deferral Account (MIST Meters)3 | D105: 1557 | S105: 0 | X105: 0 | Y105: 0 | AC105: =Y105+Z105-AA105+AB105 -> 0 | AD105: =X105 -> 0 | AH105: 0 | AI105: 0 | AM105: =AI105+AJ105-AK105+SUM(AL105:AL105) -> 0 | AN105: 0 | AR105: 0 | AS105: =AM105 -> 0 | AW105: =AS105+AT105-AU105+AV105 -> 0 | AX105: =AR105 -> 0 | BB105: =AX105+AY105-AZ105+BA105 -> 0 | BC105: 0 | BG105: 0 | BH105: 0 | BL105: 0 | BO105: 0 | BP105: 0 | BS105: 0 | BT105: =SUM(BO105:BR105) -> 0 | BW105: 0 | BX105: =IF(ABS(BW105)>1,"Please provide an explanation of the variance in the tab 3 - Appendix A","") -> 
A107: 61 | C107: IFRS-CGAAP Transition PP&E Amounts Balance + Return Component | D107: 1575 | I107: =E107+F107-G107+H107 -> 0 | O107: =I107 -> 0 | S107: =O107+P107-Q107+R107 -> 0 | Y107: =S107 -> 0 | AC107: =Y107+Z107-AA107+AB107 -> 0 | AI107: =AC107 -> 0 | AM107: =AI107+AJ107-AK107+SUM(AL107:AL107) -> 0 | AS107: =AM107 -> 0 | AW107: 0 | BC107: =AW107 -> 0 | BG107: =BC107+BD107-BE107+SUM(BF107:BF107) -> 0 | BO107: =BG107-BM107 -> 0 | BT107: =IF(BU107="Yes", SUM(BO107:BR107), 0) -> 0 | BU107: No | BW107: =BV107-SUM(BG107,BL107) -> 0 | BX107: =IF(ABS(BW107)>1,"Please provide an explanation of the variance in the tab 3 - Appendix A","") ->  | CB107: 1575 | CC107: FALSE
A108: 62 | C108: Accounting Changes Under CGAAP Balance + Return Component | D108: 1576 | I108: =E108+F108-G108+H108 -> 0 | O108: =I108 -> 0 | S108: =O108+P108-Q108+R108 -> 0 | Y108: =S108 -> 0 | AC108: =Y108+Z108-AA108+AB108 -> 0 | AI108: 0 | AM108: =AI108+AJ108-AK108+SUM(AL108:AL108) -> 0 | AS108: =AM108 -> 0 | AW108: 0 | BC108: =AW108 -> 0 | BG108: =BC108+BD108-BE108+SUM(BF108:BF108) -> 0 | BO108: =BG108-BM108 -> 0 | BT108: =IF(BU108="Yes", SUM(BO108:BR108), 0) -> 0 | BU108: No | BW108: =BV108-SUM(BG108,BL108) -> 0 | BX108: =IF(ABS(BW108)>1,"Please provide an explanation of the variance in the tab 3 - Appendix A","") ->  | CB108: 1576 | CC108: FALSE
A110: 63 | C110: Impacts Arising from the COVID-19 Emergency11 | D110: 1509 | I110: =E110+F110-G110+H110 -> 0 | N110: =J110+K110-L110+M110 -> 0 | O110: =I110 -> 0 | S110: =O110+P110-Q110+R110 -> 0 | T110: =N110 -> 0 | X110: =T110+U110-V110+W110 -> 0 | Y110: =S110 -> 0 | Z110: 1258.51 | AC110: =Y110+Z110-AA110+AB110 -> 1258.51 | AD110: =X110 -> 0 | AE110: 1.83 | AH110: =AD110+AE110-AF110+AG110 -> 1.83 | AI110: =AC110 -> 1258.51 | AJ110: 987.7 | AM110: =AI110+AJ110-AK110+SUM(AL110:AL110) -> 2246.21 | AN110: =AH110 -> 1.83 | AO110: 9.73 | AR110: =AN110+AO110-AP110+AQ110 -> 11.56 | AS110: =AM110 -> 2246.21 | AT110: 1822.25 | AW110: =AS110+AT110-AU110+AV110 -> 4068.46 | AX110: =AR110 -> 11.56 | AY110: 68.58 | BB110: =AX110+AY110-AZ110+BA110 -> 80.14 | BC110: =AW110 -> 4068.46 | BD110: 765.49 | BG110: =BC110+BD110-BE110+SUM(BF110:BF110) -> 4833.95 | BH110: =BB110 -> 80.14 | BI110: 236.82 | BL110: =BH110+BI110-BJ110+BK110 -> 316.96 | BO110: =BG110-BM110 -> 4833.95 | BP110: =BL110-BN110 -> 316.96 | BQ110: =ROUND(+BO110*0.0549,2) -> 265.38 | BS110: =BP110+BQ110+BR110 -> 582.34 | BT110: =IF(BU110="Yes", SUM(BO110:BR110), 0) -> 0 | BV110: 5150.91 | BW110: =BV110-SUM(BG110,BL110) -> 0
A111: 64 | C111: Incremental Cloud Computing Implementation Costs16 | D111: 1511 | I111: =E111+F111-G111+H111 -> 0 | N111: =J111+K111-L111+M111 -> 0 | O111: =I111 -> 0 | S111: =O111+P111-Q111+R111 -> 0 | T111: =N111 -> 0 | X111: =T111+U111-V111+W111 -> 0 | Y111: =S111 -> 0 | AC111: =Y111+Z111-AA111+AB111 -> 0 | AD111: =X111 -> 0 | AH111: =AD111+AE111-AF111+AG111 -> 0 | AI111: =AC111 -> 0 | AM111: =AI111+AJ111-AK111+SUM(AL111:AL111) -> 0 | AN111: =AH111 -> 0 | AR111: =AN111+AO111-AP111+AQ111 -> 0 | AS111: =AM111 -> 0 | AW111: =AS111+AT111-AU111+AV111 -> 0 | AX111: =AR111 -> 0 | BB111: =AX111+AY111-AZ111+BA111 -> 0 | BC111: =AW111 -> 0 | BG111: =BC111+BD111-BE111+SUM(BF111:BF111) -> 0 | BH111: =BB111 -> 0 | BL111: =BH111+BI111-BJ111+BK111 -> 0 | BO111: =BG111-BM111 -> 0 | BP111: =BL111-BN111 -> 0 | BS111: =BP111+BQ111+BR111 -> 0 | BT111: =IF(BU111="Yes", SUM(BO111:BR111), 0) -> 0 | BW111: =BV111-SUM(BG111,BL111) -> 0
C113: For all OEB-Approved dispositions, please ensure that the disposition amount has the same sign (e.g: debit balances are to have a positive figure and credit balance are to have a negative figure) as per the related OEB decision.
B115: 1 | C115: Please provide explanations for the nature of the adjustments. If the adjustment relates to previously OEB-Approved disposed balances, please provide amounts for adjustments and include supporting documentations.
B116: 2 | C116: 1) If the LDC’s rate year begins on January 1, 2025, the projected interest is recorded from January 1, 2024 to December 31, 2024 on the December 31, 2023 balances adjusted to remove balances approved for disposition in the 2024 rate decision. 2) If the LDC's rate year begins on May 1, 2025, the projected interest is recorded from January 1, 2024 to April 30, 2025 on the December 31, 2023 balances adjusted to remove balances approved for disposition in the 2024 rate decision.
B117: 3 | C117: Account 1557 is to be recovered in a manner similar to the Smart Meter accounts. Distributors should request for disposition upon completion of the MIST meter deployment. A prudence review and disposition should be done in the application, outside the DVA Continuity Schedule.
B118: 4 | C118: Input the LRAMVA balance in the DVA Continuity Schedule as calculated from the LRAMVA model. The associated rate rider will be calculated in the DVA Continuity Schedule.
B119: 5 | C119: This account is effective September 1, 2018 per the OEB’s letter Accounting Guidance on Wireline Pole Attachment Charges, dated July 20, 2018. The account is expected to be discontinued after rebasing, once a utility updates its pole attachment charge in base rates and disposes of the account balance.
B120: 6 | C120: The 1508 sub- account is effective May 1, 2019 per the Energy Retailer Service Charges Decision and Order (EB-2015-0304). The RCVAs are expected to be discontinued after rebasing, once updated retail service charges are reflected in the revenue requirement and the utility disposes of the account balance.
B121: 7 | C121: The 1508 sub-account is effective August 5, 2020 in accordance with the September 16, 2020 Accounting Order for the Establishment of a Deferral Account to Record Impacts Arising from Implementing the Customer Choice Initiative Ontario Energy Board File No. EB-2020-0152. Electricity distributors may record incremental costs directly attributable to the customer choice initiative in the sub-account.
B122: 8 | C122: Account 1522 is established effective January 1, 2018, in accordance with Report of the OEB - Regulatory Treatment of Pension and Other Post-employment Benefits (OPEBs) Costs EB-2015-0040
B123: 9 | C123: This 1508 sub-account for Local Initiatives Program Costs is effective May 28, 2021 per Accounting Order (002-2021) for the Establishment of a Deferral Account to Record Costs Associated With Distributor Partnership in the Local Initiatives Program Under the 2021-2024 Conservation and Demand Management Framework (EB-2021-0106). Distributors that partner with the IESO for the Local Initiative Program may record incremental administration costs directly attributable to the distributor’s participation as a supporting partner to the IESO in the Local Initiatives Program in the sub-account.
B124: 10 | C124: This 1508 sub-account for Green Button Initiative Costs is effective November 1, 2021 per the Accounting Order (003-2021) for the Establishment of a Deferral Account to Record Impacts Arising from Implementing the Green Button Initiative (EB-2021-0183). Distributors are to record the incremental costs directly attributable to the implementation of the Green Button initiative, in a manner that accords with the requirements set out in the Green Button Regulation, in the sub-account.
B125: 11 | C125: Account 1509 - Impacts Arising from the COVID-19 Emergency was established effective March 24, 2020. Refer to Report of the OEB - Regulatory Treament of Impacts Arising from the COVID-19 Emergency (EB-2020-0133), dated June 17, 2021, and Accounting Order for the Establishment of a Sub-account to Record Impacts Arising from the COVID-19 Emergency for Forgone Revenues from Postponing Rate Implementation, dated August 6, 2020, for further details. Amounts that are approved for disposition in this account will be recovered or refunded through a separate rate rider.
B126: 12 | C126: The 1592 sub-account for CCA changes was established to track the impact of changes in CCA rules starting from November 18, 2018, as per the OEB's July 25, 2019 letter Accounting Direction Regarding Bill C-97 and Other Changes in Regulatory or Legislated Tax Rules for Capital Cost Allowance.
B127: 13 | C127: The 1508 sub-account is effective July 7, 2022 - Accounting Order (001-2022) for the Establishment of a Deferral Account to Record Impacts Pertaining to Ontario Regulation 410/22 (Electricity Infrastructure – Designated Broadband Projects).
B128: 14 | C128: The 1508 sub-account is effective October 18, 2022 - Accounting Order (001-2023) for the Establishment of a Deferral Account to track the revenue requirement impacts of their material costs of implementing the ULO option, pertaining to amendments to O. Reg. 95/05 (Classes of Consumers and Determination of Rates) under the Ontario Energy Board Act, 1998 (OEB Act) that came into force on January 1, 2023.
B129: 15 | C129: The 1508 sub-account is effective April 1, 2023 - Accounting Order (002-2023) for the Establishment of a Deferral Account to incurred to enable the locate activities. Distributors are expected to track costs at a sufficiently detailed level to assist in a prudence review of the costs incurred, materiality, and causation related to Bill 93 at the time of disposition.
B131: 16 | C131: The 1511 account is effective December 1, 2023 - Accounting Order (003-2023) for the Establishment of a Deferral Account to Record Incremental Cloud Computing Arrangement Implementation Costs incurred and any related offsetting savings, if applicable. Utilities are expected to track costs at a sufficiently detailed level or category to assist in a prudence review of the costs incurred.
B133: 17 | C133: The 1508 sub-acount is effective Marc 1, 2024 - Accounting Order (EB-2023-0135) for the Establishment of a Deferral Account to record the incremental Low-income Energy Assistance Emergency Financial Assistance (LEAP EFA) contributions that are beyond amounts currently embedded in distribution rates.

Sheet 3. Appendix A
B16: Accounts that produced a variance on the continuity schedule are listed below. Please provide a detailed explanation for each variance below.
C20: Account Descriptions | D20: Account Number | E20: =CONCATENATE("Variance RRR vs. ",'2b. Continuity Schedule'!BC19," Balance (Principal + Interest)") -> Variance RRR vs. 2023 Balance (Principal + Interest) | F20: Explanation
A24: 1 | C24: =VLOOKUP(A24, '2a. Continuity Schedule'!$A$24:$BW$60,3,FALSE) -> LV Variance Account | D24: =VLOOKUP(A24, '2a. Continuity Schedule'!$A$24:$BW$60,4,FALSE) -> 1550 | E24: =IF(ISERROR(VLOOKUP($A24, '2a. Continuity Schedule'!$A$20:$BW$60, MATCH('3. Appendix A'!$E$20, '2a. Continuity Schedule'!$A$20:$BW$20,0),FALSE)), 0, VLOOKUP($A24, '2a. Continuity Schedule'!$A$20:$BW$60, MATCH('3. Appendix A'!$E$20, '2a. Continuity Schedule'!$A$20:$BW$20,0),FALSE)) -> 0
A25: 2 | C25: =VLOOKUP(A25, '2a. Continuity Schedule'!$A$24:$BW$60,3,FALSE) -> Smart Metering Entity Charge Variance Account | D25: =VLOOKUP(A25, '2a. Continuity Schedule'!$A$24:$BW$60,4,FALSE) -> 1551 | E25: =IF(ISERROR(VLOOKUP($A25, '2a. Continuity Schedule'!$A$20:$BW$60, MATCH('3. Appendix A'!$E$20, '2a. Continuity Schedule'!$A$20:$BW$20,0),FALSE)), 0, VLOOKUP($A25, '2a. Continuity Schedule'!$A$20:$BW$60, MATCH('3. Appendix A'!$E$20, '2a. Continuity Schedule'!$A$20:$BW$20,0),FALSE)) -> 0
A26: 3 | C26: =VLOOKUP(A26, '2a. Continuity Schedule'!$A$24:$BW$60,3,FALSE) -> RSVA - Wholesale Market Service Charge5 | D26: =VLOOKUP(A26, '2a. Continuity Schedule'!$A$24:$BW$60,4,FALSE) -> 1580 | E26: =IF(ISERROR(VLOOKUP($A26, '2a. Continuity Schedule'!$A$20:$BW$60, MATCH('3. Appendix A'!$E$20, '2a. Continuity Schedule'!$A$20:$BW$20,0),FALSE)), 0, VLOOKUP($A26, '2a. Continuity Schedule'!$A$20:$BW$60, MATCH('3. Appendix A'!$E$20, '2a. Continuity Schedule'!$A$20:$BW$20,0),FALSE)) -> 0
A27: 3.1 | C27: =VLOOKUP(A27, '2a. Continuity Schedule'!$A$24:$BW$60,3,FALSE) -> Variance WMS – Sub-account CBR Class A5 | D27: =VLOOKUP(A27, '2a. Continuity Schedule'!$A$24:$BW$60,4,FALSE) -> 1580 | E27: =IF(ISERROR(VLOOKUP($A27, '2a. Continuity Schedule'!$A$20:$BW$60, MATCH('3. Appendix A'!$E$20, '2a. Continuity Schedule'!$A$20:$BW$20,0),FALSE)), 0, VLOOKUP($A27, '2a. Continuity Schedule'!$A$20:$BW$60, MATCH('3. Appendix A'!$E$20, '2a. Continuity Schedule'!$A$20:$BW$20,0),FALSE)) -> 0
A28: 3.2 | C28: =VLOOKUP(A28, '2a. Continuity Schedule'!$A$24:$BW$60,3,FALSE) -> Variance WMS – Sub-account CBR Class B5 | D28: =VLOOKUP(A28, '2a. Continuity Schedule'!$A$24:$BW$60,4,FALSE) -> 1580 | E28: =IF(ISERROR(VLOOKUP($A28, '2a. Continuity Schedule'!$A$20:$BW$60, MATCH('3. Appendix A'!$E$20, '2a. Continuity Schedule'!$A$20:$BW$20,0),FALSE)), 0, VLOOKUP($A28, '2a. Continuity Schedule'!$A$20:$BW$60, MATCH('3. Appendix A'!$E$20, '2a. Continuity Schedule'!$A$20:$BW$20,0),FALSE)) -> -8.185452316e-12
A29: 4 | C29: =VLOOKUP(A29, '2a. Continuity Schedule'!$A$24:$BW$60,3,FALSE) -> RSVA - Retail Transmission Network Charge | D29: =VLOOKUP(A29, '2a. Continuity Schedule'!$A$24:$BW$60,4,FALSE) -> 1584 | E29: =IF(ISERROR(VLOOKUP($A29, '2a. Continuity Schedule'!$A$20:$BW$60, MATCH('3. Appendix A'!$E$20, '2a. Continuity Schedule'!$A$20:$BW$20,0),FALSE)), 0, VLOOKUP($A29, '2a. Continuity Schedule'!$A$20:$BW$60, MATCH('3. Appendix A'!$E$20, '2a. Continuity Schedule'!$A$20:$BW$20,0),FALSE)) -> 0
A30: 5 | C30: =VLOOKUP(A30, '2a. Continuity Schedule'!$A$24:$BW$60,3,FALSE) -> RSVA - Retail Transmission Connection Charge | D30: =VLOOKUP(A30, '2a. Continuity Schedule'!$A$24:$BW$60,4,FALSE) -> 1586 | E30: =IF(ISERROR(VLOOKUP($A30, '2a. Continuity Schedule'!$A$20:$BW$60, MATCH('3. Appendix A'!$E$20, '2a. Continuity Schedule'!$A$20:$BW$20,0),FALSE)), 0, VLOOKUP($A30, '2a. Continuity Schedule'!$A$20:$BW$60, MATCH('3. Appendix A'!$E$20, '2a. Continuity Schedule'!$A$20:$BW$20,0),FALSE)) -> 0
A31: 6 | C31: =VLOOKUP(A31, '2a. Continuity Schedule'!$A$24:$BW$60,3,FALSE) -> RSVA - Power (excluding Global Adjustment)4 | D31: =VLOOKUP(A31, '2a. Continuity Schedule'!$A$24:$BW$60,4,FALSE) -> 1588 | E31: =IF(ISERROR(VLOOKUP($A31, '2a. Continuity Schedule'!$A$20:$BW$60, MATCH('3. Appendix A'!$E$20, '2a. Continuity Schedule'!$A$20:$BW$20,0),FALSE)), 0, VLOOKUP($A31, '2a. Continuity Schedule'!$A$20:$BW$60, MATCH('3. Appendix A'!$E$20, '2a. Continuity Schedule'!$A$20:$BW$20,0),FALSE)) -> 0
A32: 7 | C32: =VLOOKUP(A32, '2a. Continuity Schedule'!$A$24:$BW$60,3,FALSE) -> RSVA - Global Adjustment 4 | D32: =VLOOKUP(A32, '2a. Continuity Schedule'!$A$24:$BW$60,4,FALSE) -> 1589 | E32: =IF(ISERROR(VLOOKUP($A32, '2a. Continuity Schedule'!$A$20:$BW$60, MATCH('3. Appendix A'!$E$20, '2a. Continuity Schedule'!$A$20:$BW$20,0),FALSE)), 0, VLOOKUP($A32, '2a. Continuity Schedule'!$A$20:$BW$60, MATCH('3. Appendix A'!$E$20, '2a. Continuity Schedule'!$A$20:$BW$20,0),FALSE)) -> 0
A33: 8 | C33: =VLOOKUP(A33, '2a. Continuity Schedule'!$A$24:$BW$60,3,FALSE) -> Disposition and Recovery/Refund of Regulatory Balances (2009)7 | D33: =VLOOKUP(A33, '2a. Continuity Schedule'!$A$24:$BW$60,4,FALSE) -> 1595 | E33: =IF(ISERROR(VLOOKUP($A33, '2a. Continuity Schedule'!$A$20:$BW$60, MATCH('3. Appendix A'!$E$20, '2a. Continuity Schedule'!$A$20:$BW$20,0),FALSE)), 0, VLOOKUP($A33, '2a. Continuity Schedule'!$A$20:$BW$60, MATCH('3. Appendix A'!$E$20, '2a. Continuity Schedule'!$A$20:$BW$20,0),FALSE)) -> 0
A34: 9 | C34: =VLOOKUP(A34, '2a. Continuity Schedule'!$A$24:$BW$60,3,FALSE) -> Disposition and Recovery/Refund of Regulatory Balances (2018 and pre-2018)3 | D34: =VLOOKUP(A34, '2a. Continuity Schedule'!$A$24:$BW$60,4,FALSE) -> 1595 | E34: =IF(ISERROR(VLOOKUP($A34, '2a. Continuity Schedule'!$A$20:$BW$60, MATCH('3. Appendix A'!$E$20, '2a. Continuity Schedule'!$A$20:$BW$20,0),FALSE)), 0, VLOOKUP($A34, '2a. Continuity Schedule'!$A$20:$BW$60, MATCH('3. Appendix A'!$E$20, '2a. Continuity Schedule'!$A$20:$BW$20,0),FALSE)) -> -0.02000000003
A35: 10 | C35: =VLOOKUP(A35, '2a. Continuity Schedule'!$A$24:$BW$60,3,FALSE) -> Disposition and Recovery/Refund of Regulatory Balances (2019)3 | D35: =VLOOKUP(A35, '2a. Continuity Schedule'!$A$24:$BW$60,4,FALSE) -> 1595 | E35: =IF(ISERROR(VLOOKUP($A35, '2a. Continuity Schedule'!$A$20:$BW$60, MATCH('3. Appendix A'!$E$20, '2a. Continuity Schedule'!$A$20:$BW$20,0),FALSE)), 0, VLOOKUP($A35, '2a. Continuity Schedule'!$A$20:$BW$60, MATCH('3. Appendix A'!$E$20, '2a. Continuity Schedule'!$A$20:$BW$20,0),FALSE)) -> 0.43
A36: 11 | C36: =VLOOKUP(A36, '2a. Continuity Schedule'!$A$24:$BW$60,3,FALSE) -> Disposition and Recovery/Refund of Regulatory Balances (2020)3 | D36: =VLOOKUP(A36, '2a. Continuity Schedule'!$A$24:$BW$60,4,FALSE) -> 1595 | E36: =IF(ISERROR(VLOOKUP($A36, '2a. Continuity Schedule'!$A$20:$BW$60, MATCH('3. Appendix A'!$E$20, '2a. Continuity Schedule'!$A$20:$BW$20,0),FALSE)), 0, VLOOKUP($A36, '2a. Continuity Schedule'!$A$20:$BW$60, MATCH('3. Appendix A'!$E$20, '2a. Continuity Schedule'!$A$20:$BW$20,0),FALSE)) -> -0.41
A37: 12 | C37: =VLOOKUP(A37, '2a. Continuity Schedule'!$A$24:$BW$60,3,FALSE) -> Disposition and Recovery/Refund of Regulatory Balances (2021)3 | D37: =VLOOKUP(A37, '2a. Continuity Schedule'!$A$24:$BW$60,4,FALSE) -> 1595 | E37: =IF(ISERROR(VLOOKUP($A37, '2a. Continuity Schedule'!$A$20:$BW$60, MATCH('3. Appendix A'!$E$20, '2a. Continuity Schedule'!$A$20:$BW$20,0),FALSE)), 0, VLOOKUP($A37, '2a. Continuity Schedule'!$A$20:$BW$60, MATCH('3. Appendix A'!$E$20, '2a. Continuity Schedule'!$A$20:$BW$20,0),FALSE)) -> -0.08999999997
A38: 13 | C38: =VLOOKUP(A38, '2a. Continuity Schedule'!$A$24:$BW$60,3,FALSE) -> Disposition and Recovery/Refund of Regulatory Balances (2022)3 | D38: =VLOOKUP(A38, '2a. Continuity Schedule'!$A$24:$BW$60,4,FALSE) -> 1595 | E38: =IF(ISERROR(VLOOKUP($A38, '2a. Continuity Schedule'!$A$20:$BW$60, MATCH('3. Appendix A'!$E$20, '2a. Continuity Schedule'!$A$20:$BW$20,0),FALSE)), 0, VLOOKUP($A38, '2a. Continuity Schedule'!$A$20:$BW$60, MATCH('3. Appendix A'!$E$20, '2a. Continuity Schedule'!$A$20:$BW$20,0),FALSE)) -> -1.455191523e-11
A39: 14 | C39: =VLOOKUP(A39, '2a. Continuity Schedule'!$A$24:$BW$60,3,FALSE) -> Disposition and Recovery/Refund of Regulatory Balances (2023)3 | D39: =VLOOKUP(A39, '2a. Continuity Schedule'!$A$24:$BW$60,4,FALSE) -> 1595 | E39: =IF(ISERROR(VLOOKUP($A39, '2a. Continuity Schedule'!$A$20:$BW$60, MATCH('3. Appendix A'!$E$20, '2a. Continuity Schedule'!$A$20:$BW$20,0),FALSE)), 0, VLOOKUP($A39, '2a. Continuity Schedule'!$A$20:$BW$60, MATCH('3. Appendix A'!$E$20, '2a. Continuity Schedule'!$A$20:$BW$20,0),FALSE)) -> 0
A40: 15 | C40: =VLOOKUP(A40, '2a. Continuity Schedule'!$A$24:$BW$60,3,FALSE) -> Disposition and Recovery/Refund of Regulatory Balances (2024)3 | D40: =VLOOKUP(A40, '2a. Continuity Schedule'!$A$24:$BW$60,4,FALSE) -> 1595 | E40: =IF(ISERROR(VLOOKUP($A40, '2a. Continuity Schedule'!$A$20:$BW$60, MATCH('3. Appendix A'!$E$20, '2a. Continuity Schedule'!$A$20:$BW$20,0),FALSE)), 0, VLOOKUP($A40, '2a. Continuity Schedule'!$A$20:$BW$60, MATCH('3. Appendix A'!$E$20, '2a. Continuity Schedule'!$A$20:$BW$20,0),FALSE)) -> 0
C41: Group 2 Accounts
A42: 16 | C42: =VLOOKUP(A42, '2b. Continuity Schedule'!$A$24:$BW$110,3,FALSE) -> Deferred IFRS Transition Costs | D42: =VLOOKUP(A42, '2b. Continuity Schedule'!$A$24:$BW$110,4,FALSE) -> 1508 | E42: =IF(ISERROR(VLOOKUP($A42, '2b. Continuity Schedule'!$A$20:$BW$112, MATCH('3. Appendix A'!$E$20, '2b. Continuity Schedule'!$A$20:$BW$20,0),FALSE)), 0, VLOOKUP($A42, '2b. Continuity Schedule'!$A$20:$BW$112, MATCH('3. Appendix A'!$E$20, '2b. Continuity Schedule'!$A$20:$BW$20,0),FALSE)) -> 1.307398634e-12
A43: 17 | C43: =VLOOKUP(A43, '2b. Continuity Schedule'!$A$24:$BW$110,3,FALSE) -> Pole Attachment Revenue Variance5 | D43: =VLOOKUP(A43, '2b. Continuity Schedule'!$A$24:$BW$110,4,FALSE) -> 1508 | E43: =IF(ISERROR(VLOOKUP($A43, '2b. Continuity Schedule'!$A$20:$BW$112, MATCH('3. Appendix A'!$E$20, '2b. Continuity Schedule'!$A$20:$BW$20,0),FALSE)), 0, VLOOKUP($A43, '2b. Continuity Schedule'!$A$20:$BW$112, MATCH('3. Appendix A'!$E$20, '2b. Continuity Schedule'!$A$20:$BW$20,0),FALSE)) -> 0
A44: 18 | C44: =VLOOKUP(A44, '2b. Continuity Schedule'!$A$24:$BW$110,3,FALSE) -> Retail Service Charge Incremental Revenue6 | D44: =VLOOKUP(A44, '2b. Continuity Schedule'!$A$24:$BW$110,4,FALSE) -> 1508 | E44: =IF(ISERROR(VLOOKUP($A44, '2b. Continuity Schedule'!$A$20:$BW$112, MATCH('3. Appendix A'!$E$20, '2b. Continuity Schedule'!$A$20:$BW$20,0),FALSE)), 0, VLOOKUP($A44, '2b. Continuity Schedule'!$A$20:$BW$112, MATCH('3. Appendix A'!$E$20, '2b. Continuity Schedule'!$A$20:$BW$20,0),FALSE)) -> 0
A45: 19 | C45: =VLOOKUP(A45, '2b. Continuity Schedule'!$A$24:$BW$110,3,FALSE) -> Customer Choice Initiative Costs7 | D45: =VLOOKUP(A45, '2b. Continuity Schedule'!$A$24:$BW$110,4,FALSE) -> 1508 | E45: =IF(ISERROR(VLOOKUP($A45, '2b. Continuity Schedule'!$A$20:$BW$112, MATCH('3. Appendix A'!$E$20, '2b. Continuity Schedule'!$A$20:$BW$20,0),FALSE)), 0, VLOOKUP($A45, '2b. Continuity Schedule'!$A$20:$BW$112, MATCH('3. Appendix A'!$E$20, '2b. Continuity Schedule'!$A$20:$BW$20,0),FALSE)) -> 0
A46: 20 | C46: =VLOOKUP(A46, '2b. Continuity Schedule'!$A$24:$BW$110,3,FALSE) -> Local Initiatives Program Costs9 | D46: =VLOOKUP(A46, '2b. Continuity Schedule'!$A$24:$BW$110,4,FALSE) -> 1508 | E46: =IF(ISERROR(VLOOKUP($A46, '2b. Continuity Schedule'!$A$20:$BW$112, MATCH('3. Appendix A'!$E$20, '2b. Continuity Schedule'!$A$20:$BW$20,0),FALSE)), 0, VLOOKUP($A46, '2b. Continuity Schedule'!$A$20:$BW$112, MATCH('3. Appendix A'!$E$20, '2b. Continuity Schedule'!$A$20:$BW$20,0),FALSE)) -> 0
A47: 21 | C47: =VLOOKUP(A47, '2b. Continuity Schedule'!$A$24:$BW$110,3,FALSE) -> Green Button Initiative Costs10 | D47: =VLOOKUP(A47, '2b. Continuity Schedule'!$A$24:$BW$110,4,FALSE) -> 1508 | E47: =IF(ISERROR(VLOOKUP($A47, '2b. Continuity Schedule'!$A$20:$BW$112, MATCH('3. Appendix A'!$E$20, '2b. Continuity Schedule'!$A$20:$BW$20,0),FALSE)), 0, VLOOKUP($A47, '2b. Continuity Schedule'!$A$20:$BW$112, MATCH('3. Appendix A'!$E$20, '2b. Continuity Schedule'!$A$20:$BW$20,0),FALSE)) -> 0
A48: 22 | C48: =VLOOKUP(A48, '2b. Continuity Schedule'!$A$24:$BW$110,3,FALSE) -> Other Regulatory Assets, Sub-account Designated Broadband Project Impacts13 | D48: =VLOOKUP(A48, '2b. Continuity Schedule'!$A$24:$BW$110,4,FALSE) -> 1508 | E48: =IF(ISERROR(VLOOKUP($A48, '2b. Continuity Schedule'!$A$20:$BW$112, MATCH('3. Appendix A'!$E$20, '2b. Continuity Schedule'!$A$20:$BW$20,0),FALSE)), 0, VLOOKUP($A48, '2b. Continuity Schedule'!$A$20:$BW$112, MATCH('3. Appendix A'!$E$20, '2b. Continuity Schedule'!$A$20:$BW$20,0),FALSE)) -> 0
A49: 23 | C49: =VLOOKUP(A49, '2b. Continuity Schedule'!$A$24:$BW$110,3,FALSE) -> Other Regulatory Assets, Sub-account ULO Implementation Cost14 | D49: =VLOOKUP(A49, '2b. Continuity Schedule'!$A$24:$BW$110,4,FALSE) -> 1508 | E49: =IF(ISERROR(VLOOKUP($A49, '2b. Continuity Schedule'!$A$20:$BW$112, MATCH('3. Appendix A'!$E$20, '2b. Continuity Schedule'!$A$20:$BW$20,0),FALSE)), 0, VLOOKUP($A49, '2b. Continuity Schedule'!$A$20:$BW$112, MATCH('3. Appendix A'!$E$20, '2b. Continuity Schedule'!$A$20:$BW$20,0),FALSE)) -> 0
A50: 24 | C50: =VLOOKUP(A50, '2b. Continuity Schedule'!$A$24:$BW$110,3,FALSE) -> Other Regulatory Assets, Sub-Account GOCA Variance Account15 | D50: =VLOOKUP(A50, '2b. Continuity Schedule'!$A$24:$BW$110,4,FALSE) -> 1508 | E50: =IF(ISERROR(VLOOKUP($A50, '2b. Continuity Schedule'!$A$20:$BW$112, MATCH('3. Appendix A'!$E$20, '2b. Continuity Schedule'!$A$20:$BW$20,0),FALSE)), 0, VLOOKUP($A50, '2b. Continuity Schedule'!$A$20:$BW$112, MATCH('3. Appendix A'!$E$20, '2b. Continuity Schedule'!$A$20:$BW$20,0),FALSE)) -> 0
A51: 25 | C51: =VLOOKUP(A51, '2b. Continuity Schedule'!$A$24:$BW$110,3,FALSE) -> Other Regulatory Assets, sub-account LEAP EFA Funding Deferal Account17 | D51: =VLOOKUP(A51, '2b. Continuity Schedule'!$A$24:$BW$110,4,FALSE) -> 1508 | E51: =IF(ISERROR(VLOOKUP($A51, '2b. Continuity Schedule'!$A$20:$BW$112, MATCH('3. Appendix A'!$E$20, '2b. Continuity Schedule'!$A$20:$BW$20,0),FALSE)), 0, VLOOKUP($A51, '2b. Continuity Schedule'!$A$20:$BW$112, MATCH('3. Appendix A'!$E$20, '2b. Continuity Schedule'!$A$20:$BW$20,0),FALSE)) -> 0
A52: 26 | C52: =VLOOKUP(A52, '2b. Continuity Schedule'!$A$24:$BW$110,3,FALSE) -> 0 | D52: =VLOOKUP(A52, '2b. Continuity Schedule'!$A$24:$BW$110,4,FALSE) -> 1508 | E52: =IF(ISERROR(VLOOKUP($A52, '2b. Continuity Schedule'!$A$20:$BW$112, MATCH('3. Appendix A'!$E$20, '2b. Continuity Schedule'!$A$20:$BW$20,0),FALSE)), 0, VLOOKUP($A52, '2b. Continuity Schedule'!$A$20:$BW$112, MATCH('3. Appendix A'!$E$20, '2b. Continuity Schedule'!$A$20:$BW$20,0),FALSE)) -> 0
A53: 27 | C53: =VLOOKUP(A53, '2b. Continuity Schedule'!$A$24:$BW$110,3,FALSE) -> 0 | D53: =VLOOKUP(A53, '2b. Continuity Schedule'!$A$24:$BW$110,4,FALSE) -> 1508 | E53: =IF(ISERROR(VLOOKUP($A53, '2b. Continuity Schedule'!$A$20:$BW$112, MATCH('3. Appendix A'!$E$20, '2b. Continuity Schedule'!$A$20:$BW$20,0),FALSE)), 0, VLOOKUP($A53, '2b. Continuity Schedule'!$A$20:$BW$112, MATCH('3. Appendix A'!$E$20, '2b. Continuity Schedule'!$A$20:$BW$20,0),FALSE)) -> 0
A54: 28 | C54: =VLOOKUP(A54, '2b. Continuity Schedule'!$A$24:$BW$110,3,FALSE) -> 0 | D54: =VLOOKUP(A54, '2b. Continuity Schedule'!$A$24:$BW$110,4,FALSE) -> 1508 | E54: =IF(ISERROR(VLOOKUP($A54, '2b. Continuity Schedule'!$A$20:$BW$112, MATCH('3. Appendix A'!$E$20, '2b. Continuity Schedule'!$A$20:$BW$20,0),FALSE)), 0, VLOOKUP($A54, '2b. Continuity Schedule'!$A$20:$BW$112, MATCH('3. Appendix A'!$E$20, '2b. Continuity Schedule'!$A$20:$BW$20,0),FALSE)) -> 0
A55: 29 | C55: =VLOOKUP(A55, '2b. Continuity Schedule'!$A$24:$BW$110,3,FALSE) -> 0 | D55: =VLOOKUP(A55, '2b. Continuity Schedule'!$A$24:$BW$110,4,FALSE) -> 1508 | E55: =IF(ISERROR(VLOOKUP($A55, '2b. Continuity Schedule'!$A$20:$BW$112, MATCH('3. Appendix A'!$E$20, '2b. Continuity Schedule'!$A$20:$BW$20,0),FALSE)), 0, VLOOKUP($A55, '2b. Continuity Schedule'!$A$20:$BW$112, MATCH('3. Appendix A'!$E$20, '2b. Continuity Schedule'!$A$20:$BW$20,0),FALSE)) -> 0
A56: 30 | C56: =VLOOKUP(A56, '2b. Continuity Schedule'!$A$24:$BW$110,3,FALSE) -> 0 | D56: =VLOOKUP(A56, '2b. Continuity Schedule'!$A$24:$BW$110,4,FALSE) -> 1508 | E56: =IF(ISERROR(VLOOKUP($A56, '2b. Continuity Schedule'!$A$20:$BW$112, MATCH('3. Appendix A'!$E$20, '2b. Continuity Schedule'!$A$20:$BW$20,0),FALSE)), 0, VLOOKUP($A56, '2b. Continuity Schedule'!$A$20:$BW$112, MATCH('3. Appendix A'!$E$20, '2b. Continuity Schedule'!$A$20:$BW$20,0),FALSE)) -> 0
A57: 31 | C57: =VLOOKUP(A57, '2b. Continuity Schedule'!$A$24:$BW$110,3,FALSE) -> 0 | D57: =VLOOKUP(A57, '2b. Continuity Schedule'!$A$24:$BW$110,4,FALSE) -> 1508 | E57: =IF(ISERROR(VLOOKUP($A57, '2b. Continuity Schedule'!$A$20:$BW$112, MATCH('3. Appendix A'!$E$20, '2b. Continuity Schedule'!$A$20:$BW$20,0),FALSE)), 0, VLOOKUP($A57, '2b. Continuity Schedule'!$A$20:$BW$112, MATCH('3. Appendix A'!$E$20, '2b. Continuity Schedule'!$A$20:$BW$20,0),FALSE)) -> 0
A58: 32 | C58: =VLOOKUP(A58, '2b. Continuity Schedule'!$A$24:$BW$110,3,FALSE) -> 0 | D58: =VLOOKUP(A58, '2b. Continuity Schedule'!$A$24:$BW$110,4,FALSE) -> 1508 | E58: =IF(ISERROR(VLOOKUP($A58, '2b. Continuity Schedule'!$A$20:$BW$112, MATCH('3. Appendix A'!$E$20, '2b. Continuity Schedule'!$A$20:$BW$20,0),FALSE)), 0, VLOOKUP($A58, '2b. Continuity Schedule'!$A$20:$BW$112, MATCH('3. Appendix A'!$E$20, '2b. Continuity Schedule'!$A$20:$BW$20,0),FALSE)) -> 0
A59: 33 | C59: =VLOOKUP(A59, '2b. Continuity Schedule'!$A$24:$BW$110,3,FALSE) -> 0 | D59: =VLOOKUP(A59, '2b. Continuity Schedule'!$A$24:$BW$110,4,FALSE) -> 1508 | E59: =IF(ISERROR(VLOOKUP($A59, '2b. Continuity Schedule'!$A$20:$BW$112, MATCH('3. Appendix A'!$E$20, '2b. Continuity Schedule'!$A$20:$BW$20,0),FALSE)), 0, VLOOKUP($A59, '2b. Continuity Schedule'!$A$20:$BW$112, MATCH('3. Appendix A'!$E$20, '2b. Continuity Schedule'!$A$20:$BW$20,0),FALSE)) -> 0
A60: 34 | C60: =VLOOKUP(A60, '2b. Continuity Schedule'!$A$24:$BW$110,3,FALSE) -> 0 | D60: =VLOOKUP(A60, '2b. Continuity Schedule'!$A$24:$BW$110,4,FALSE) -> 1508 | E60: =IF(ISERROR(VLOOKUP($A60, '2b. Continuity Schedule'!$A$20:$BW$112, MATCH('3. Appendix A'!$E$20, '2b. Continuity Schedule'!$A$20:$BW$20,0),FALSE)), 0, VLOOKUP($A60, '2b. Continuity Schedule'!$A$20:$BW$112, MATCH('3. Appendix A'!$E$20, '2b. Continuity Schedule'!$A$20:$BW$20,0),FALSE)) -> 0
A61: 35 | C61: =VLOOKUP(A61, '2b. Continuity Schedule'!$A$24:$BW$110,3,FALSE) -> 0 | D61: =VLOOKUP(A61, '2b. Continuity Schedule'!$A$24:$BW$110,4,FALSE) -> 1508 | E61: =IF(ISERROR(VLOOKUP($A61, '2b. Continuity Schedule'!$A$20:$BW$112, MATCH('3. Appendix A'!$E$20, '2b. Continuity Schedule'!$A$20:$BW$20,0),FALSE)), 0, VLOOKUP($A61, '2b. Continuity Schedule'!$A$20:$BW$112, MATCH('3. Appendix A'!$E$20, '2b. Continuity Schedule'!$A$20:$BW$20,0),FALSE)) -> 0
A62: 36 | C62: =VLOOKUP(A62, '2b. Continuity Schedule'!$A$24:$BW$110,3,FALSE) -> 0 | D62: =VLOOKUP(A62, '2b. Continuity Schedule'!$A$24:$BW$110,4,FALSE) -> 1508 | E62: =IF(ISERROR(VLOOKUP($A62, '2b. Continuity Schedule'!$A$20:$BW$112, MATCH('3. Appendix A'!$E$20, '2b. Continuity Schedule'!$A$20:$BW$20,0),FALSE)), 0, VLOOKUP($A62, '2b. Continuity Schedule'!$A$20:$BW$112, MATCH('3. Appendix A'!$E$20, '2b. Continuity Schedule'!$A$20:$BW$20,0),FALSE)) -> 0
A63: 37 | C63: =VLOOKUP(A63, '2b. Continuity Schedule'!$A$24:$BW$110,3,FALSE) -> 0 | D63: =VLOOKUP(A63, '2b. Continuity Schedule'!$A$24:$BW$110,4,FALSE) -> 1508 | E63: =IF(ISERROR(VLOOKUP($A63, '2b. Continuity Schedule'!$A$20:$BW$112, MATCH('3. Appendix A'!$E$20, '2b. Continuity Schedule'!$A$20:$BW$20,0),FALSE)), 0, VLOOKUP($A63, '2b. Continuity Schedule'!$A$20:$BW$112, MATCH('3. Appendix A'!$E$20, '2b. Continuity Schedule'!$A$20:$BW$20,0),FALSE)) -> 0
A64: 38 | C64: =VLOOKUP(A64, '2b. Continuity Schedule'!$A$24:$BW$110,3,FALSE) -> 0 | D64: =VLOOKUP(A64, '2b. Continuity Schedule'!$A$24:$BW$110,4,FALSE) -> 1508 | E64: =IF(ISERROR(VLOOKUP($A64, '2b. Continuity Schedule'!$A$20:$BW$112, MATCH('3. Appendix A'!$E$20, '2b. Continuity Schedule'!$A$20:$BW$20,0),FALSE)), 0, VLOOKUP($A64, '2b. Continuity Schedule'!$A$20:$BW$112, MATCH('3. Appendix A'!$E$20, '2b. Continuity Schedule'!$A$20:$BW$20,0),FALSE)) -> 0
A65: 39 | C65: =VLOOKUP(A65, '2b. Continuity Schedule'!$A$24:$BW$110,3,FALSE) -> Retail Cost Variance Account - Retail6 | D65: =VLOOKUP(A65, '2b. Continuity Schedule'!$A$24:$BW$110,4,FALSE) -> 1518 | E65: =IF(ISERROR(VLOOKUP($A65, '2b. Continuity Schedule'!$A$20:$BW$112, MATCH('3. Appendix A'!$E$20, '2b. Continuity Schedule'!$A$20:$BW$20,0),FALSE)), 0, VLOOKUP($A65, '2b. Continuity Schedule'!$A$20:$BW$112, MATCH('3. Appendix A'!$E$20, '2b. Continuity Schedule'!$A$20:$BW$20,0),FALSE)) -> 0
A66: 40 | C66: =VLOOKUP(A66, '2b. Continuity Schedule'!$A$24:$BW$110,3,FALSE) -> Pension & OPEB Forecast Accrual versus Actual Cash Payment Differential Carrying Charges8 | D66: =VLOOKUP(A66, '2b. Continuity Schedule'!$A$24:$BW$110,4,FALSE) -> 1522 | E66: =IF(ISERROR(VLOOKUP($A66, '2b. Continuity Schedule'!$A$20:$BW$112, MATCH('3. Appendix A'!$E$20, '2b. Continuity Schedule'!$A$20:$BW$20,0),FALSE)), 0, VLOOKUP($A66, '2b. Continuity Schedule'!$A$20:$BW$112, MATCH('3. Appendix A'!$E$20, '2b. Continuity Schedule'!$A$20:$BW$20,0),FALSE)) -> 0
A67: 41 | C67: =VLOOKUP(A67, '2b. Continuity Schedule'!$A$24:$BW$110,3,FALSE) -> Misc. Deferred Debits | D67: =VLOOKUP(A67, '2b. Continuity Schedule'!$A$24:$BW$110,4,FALSE) -> 1525 | E67: =IF(ISERROR(VLOOKUP($A67, '2b. Continuity Schedule'!$A$20:$BW$112, MATCH('3. Appendix A'!$E$20, '2b. Continuity Schedule'!$A$20:$BW$20,0),FALSE)), 0, VLOOKUP($A67, '2b. Continuity Schedule'!$A$20:$BW$112, MATCH('3. Appendix A'!$E$20, '2b. Continuity Schedule'!$A$20:$BW$20,0),FALSE)) -> 0
A68: 42 | C68: =VLOOKUP(A68, '2b. Continuity Schedule'!$A$24:$BW$110,3,FALSE) -> Retail Cost Variance Account - STR6 | D68: =VLOOKUP(A68, '2b. Continuity Schedule'!$A$24:$BW$110,4,FALSE) -> 1548 | E68: =IF(ISERROR(VLOOKUP($A68, '2b. Continuity Schedule'!$A$20:$BW$112, MATCH('3. Appendix A'!$E$20, '2b. Continuity Schedule'!$A$20:$BW$20,0),FALSE)), 0, VLOOKUP($A68, '2b. Continuity Schedule'!$A$20:$BW$112, MATCH('3. Appendix A'!$E$20, '2b. Continuity Schedule'!$A$20:$BW$20,0),FALSE)) -> 0
A69: 43 | C69: =VLOOKUP(A69, '2b. Continuity Schedule'!$A$24:$BW$110,3,FALSE) -> Extra-Ordinary Event Costs | D69: =VLOOKUP(A69, '2b. Continuity Schedule'!$A$24:$BW$110,4,FALSE) -> 1572 | E69: =IF(ISERROR(VLOOKUP($A69, '2b. Continuity Schedule'!$A$20:$BW$112, MATCH('3. Appendix A'!$E$20, '2b. Continuity Schedule'!$A$20:$BW$20,0),FALSE)), 0, VLOOKUP($A69, '2b. Continuity Schedule'!$A$20:$BW$112, MATCH('3. Appendix A'!$E$20, '2b. Continuity Schedule'!$A$20:$BW$20,0),FALSE)) -> 0
A70: 44 | C70: =VLOOKUP(A70, '2b. Continuity Schedule'!$A$24:$BW$110,3,FALSE) -> Deferred Rate Impact Amounts | D70: =VLOOKUP(A70, '2b. Continuity Schedule'!$A$24:$BW$110,4,FALSE) -> 1574 | E70: =IF(ISERROR(VLOOKUP($A70, '2b. Continuity Schedule'!$A$20:$BW$112, MATCH('3. Appendix A'!$E$20, '2b. Continuity Schedule'!$A$20:$BW$20,0),FALSE)), 0, VLOOKUP($A70, '2b. Continuity Schedule'!$A$20:$BW$112, MATCH('3. Appendix A'!$E$20, '2b. Continuity Schedule'!$A$20:$BW$20,0),FALSE)) -> 0
A71: 45 | C71: =VLOOKUP(A71, '2b. Continuity Schedule'!$A$24:$BW$110,3,FALSE) -> RSVA - One-time | D71: =VLOOKUP(A71, '2b. Continuity Schedule'!$A$24:$BW$110,4,FALSE) -> 1582 | E71: =IF(ISERROR(VLOOKUP($A71, '2b. Continuity Schedule'!$A$20:$BW$112, MATCH('3. Appendix A'!$E$20, '2b. Continuity Schedule'!$A$20:$BW$20,0),FALSE)), 0, VLOOKUP($A71, '2b. Continuity Schedule'!$A$20:$BW$112, MATCH('3. Appendix A'!$E$20, '2b. Continuity Schedule'!$A$20:$BW$20,0),FALSE)) -> 0
A72: 46 | C72: =VLOOKUP(A72, '2b. Continuity Schedule'!$A$24:$BW$110,3,FALSE) -> Other Deferred Credits | D72: =VLOOKUP(A72, '2b. Continuity Schedule'!$A$24:$BW$110,4,FALSE) -> 2425 | E72: =IF(ISERROR(VLOOKUP($A72, '2b. Continuity Schedule'!$A$20:$BW$112, MATCH('3. Appendix A'!$E$20, '2b. Continuity Schedule'!$A$20:$BW$20,0),FALSE)), 0, VLOOKUP($A72, '2b. Continuity Schedule'!$A$20:$BW$112, MATCH('3. Appendix A'!$E$20, '2b. Continuity Schedule'!$A$20:$BW$20,0),FALSE)) -> 0
A73: 47 | C73: =VLOOKUP(A73, '2b. Continuity Schedule'!$A$24:$BW$110,3,FALSE) -> PILs and Tax Variance for 2006 and Subsequent Years (excludes sub-account and contra account below) | D73: =VLOOKUP(A73, '2b. Continuity Schedule'!$A$24:$BW$110,4,FALSE) -> 1592 | E73: =IF(ISERROR(VLOOKUP($A73, '2b. Continuity Schedule'!$A$20:$BW$112, MATCH('3. Appendix A'!$E$20, '2b. Continuity Schedule'!$A$20:$BW$20,0),FALSE)), 0, VLOOKUP($A73, '2b. Continuity Schedule'!$A$20:$BW$112, MATCH('3. Appendix A'!$E$20, '2b. Continuity Schedule'!$A$20:$BW$20,0),FALSE)) -> 0
A74: 48 | C74: =VLOOKUP(A74, '2b. Continuity Schedule'!$A$24:$BW$110,3,FALSE) -> PILs and Tax Variance for 2006 and Subsequent Years- Sub-account CCA Changes12 | D74: =VLOOKUP(A74, '2b. Continuity Schedule'!$A$24:$BW$110,4,FALSE) -> 1592 | E74: =IF(ISERROR(VLOOKUP($A74, '2b. Continuity Schedule'!$A$20:$BW$112, MATCH('3. Appendix A'!$E$20, '2b. Continuity Schedule'!$A$20:$BW$20,0),FALSE)), 0, VLOOKUP($A74, '2b. Continuity Schedule'!$A$20:$BW$112, MATCH('3. Appendix A'!$E$20, '2b. Continuity Schedule'!$A$20:$BW$20,0),FALSE)) -> 21525 | F74: The variance is due to the calcuation of the Accelerated CCA required for the Cost of Service.
A75: 49 | C75: =VLOOKUP(A75, '2b. Continuity Schedule'!$A$24:$BW$110,3,FALSE) -> LRAM Variance Account4 | D75: =VLOOKUP(A75, '2b. Continuity Schedule'!$A$24:$BW$110,4,FALSE) -> 1568 | E75: =IF(ISERROR(VLOOKUP($A75, '2b. Continuity Schedule'!$A$20:$BW$112, MATCH('3. Appendix A'!$E$20, '2b. Continuity Schedule'!$A$20:$BW$20,0),FALSE)), 0, VLOOKUP($A75, '2b. Continuity Schedule'!$A$20:$BW$112, MATCH('3. Appendix A'!$E$20, '2b. Continuity Schedule'!$A$20:$BW$20,0),FALSE)) -> 0
A76: 50 | C76: =VLOOKUP(A76, '2b. Continuity Schedule'!$A$24:$BW$110,3,FALSE) -> Renewable Generation Connection Capital Deferral Account | D76: =VLOOKUP(A76, '2b. Continuity Schedule'!$A$24:$BW$110,4,FALSE) -> 1531 | E76: =IF(ISERROR(VLOOKUP($A76, '2b. Continuity Schedule'!$A$20:$BW$112, MATCH('3. Appendix A'!$E$20, '2b. Continuity Schedule'!$A$20:$BW$20,0),FALSE)), 0, VLOOKUP($A76, '2b. Continuity Schedule'!$A$20:$BW$112, MATCH('3. Appendix A'!$E$20, '2b. Continuity Schedule'!$A$20:$BW$20,0),FALSE)) -> 0
A77: 51 | C77: =VLOOKUP(A77, '2b. Continuity Schedule'!$A$24:$BW$110,3,FALSE) -> Renewable Generation Connection OM&A Deferral Account | D77: =VLOOKUP(A77, '2b. Continuity Schedule'!$A$24:$BW$110,4,FALSE) -> 1532 | E77: =IF(ISERROR(VLOOKUP($A77, '2b. Continuity Schedule'!$A$20:$BW$112, MATCH('3. Appendix A'!$E$20, '2b. Continuity Schedule'!$A$20:$BW$20,0),FALSE)), 0, VLOOKUP($A77, '2b. Continuity Schedule'!$A$20:$BW$112, MATCH('3. Appendix A'!$E$20, '2b. Continuity Schedule'!$A$20:$BW$20,0),FALSE)) -> 0
A78: 52 | C78: =VLOOKUP(A78, '2b. Continuity Schedule'!$A$24:$BW$110,3,FALSE) -> Renewable Generation Connection Funding Adder Deferral Account | D78: =VLOOKUP(A78, '2b. Continuity Schedule'!$A$24:$BW$110,4,FALSE) -> 1533 | E78: =IF(ISERROR(VLOOKUP($A78, '2b. Continuity Schedule'!$A$20:$BW$112, MATCH('3. Appendix A'!$E$20, '2b. Continuity Schedule'!$A$20:$BW$20,0),FALSE)), 0, VLOOKUP($A78, '2b. Continuity Schedule'!$A$20:$BW$112, MATCH('3. Appendix A'!$E$20, '2b. Continuity Schedule'!$A$20:$BW$20,0),FALSE)) -> 0
A79: 53 | C79: =VLOOKUP(A79, '2b. Continuity Schedule'!$A$24:$BW$110,3,FALSE) -> Smart Grid Capital Deferral Account | D79: =VLOOKUP(A79, '2b. Continuity Schedule'!$A$24:$BW$110,4,FALSE) -> 1534 | E79: =IF(ISERROR(VLOOKUP($A79, '2b. Continuity Schedule'!$A$20:$BW$112, MATCH('3. Appendix A'!$E$20, '2b. Continuity Schedule'!$A$20:$BW$20,0),FALSE)), 0, VLOOKUP($A79, '2b. Continuity Schedule'!$A$20:$BW$112, MATCH('3. Appendix A'!$E$20, '2b. Continuity Schedule'!$A$20:$BW$20,0),FALSE)) -> 0
A80: 54 | C80: =VLOOKUP(A80, '2b. Continuity Schedule'!$A$24:$BW$110,3,FALSE) -> Smart Grid OM&A Deferral Account | D80: =VLOOKUP(A80, '2b. Continuity Schedule'!$A$24:$BW$110,4,FALSE) -> 1535 | E80: =IF(ISERROR(VLOOKUP($A80, '2b. Continuity Schedule'!$A$20:$BW$112, MATCH('3. Appendix A'!$E$20, '2b. Continuity Schedule'!$A$20:$BW$20,0),FALSE)), 0, VLOOKUP($A80, '2b. Continuity Schedule'!$A$20:$BW$112, MATCH('3. Appendix A'!$E$20, '2b. Continuity Schedule'!$A$20:$BW$20,0),FALSE)) -> 0
A81: 55 | C81: =VLOOKUP(A81, '2b. Continuity Schedule'!$A$24:$BW$110,3,FALSE) -> Smart Grid Funding Adder Deferral Account | D81: =VLOOKUP(A81, '2b. Continuity Schedule'!$A$24:$BW$110,4,FALSE) -> 1536 | E81: =IF(ISERROR(VLOOKUP($A81, '2b. Continuity Schedule'!$A$20:$BW$112, MATCH('3. Appendix A'!$E$20, '2b. Continuity Schedule'!$A$20:$BW$20,0),FALSE)), 0, VLOOKUP($A81, '2b. Continuity Schedule'!$A$20:$BW$112, MATCH('3. Appendix A'!$E$20, '2b. Continuity Schedule'!$A$20:$BW$20,0),FALSE)) -> 0
A82: 56 | C82: =VLOOKUP(A82, '2b. Continuity Schedule'!$A$24:$BW$110,3,FALSE) -> Smart Meter Capital and Recovery Offset Variance - Sub-Account - Capital4 | D82: =VLOOKUP(A82, '2b. Continuity Schedule'!$A$24:$BW$110,4,FALSE) -> 1555 | E82: =IF(ISERROR(VLOOKUP($A82, '2b. Continuity Schedule'!$A$20:$BW$112, MATCH('3. Appendix A'!$E$20, '2b. Continuity Schedule'!$A$20:$BW$20,0),FALSE)), 0, VLOOKUP($A82, '2b. Continuity Schedule'!$A$20:$BW$112, MATCH('3. Appendix A'!$E$20, '2b. Continuity Schedule'!$A$20:$BW$20,0),FALSE)) -> 0
A83: 57 | C83: =VLOOKUP(A83, '2b. Continuity Schedule'!$A$24:$BW$110,3,FALSE) -> Smart Meter Capital and Recovery Offset Variance - Sub-Account - Recoveries4 | D83: =VLOOKUP(A83, '2b. Continuity Schedule'!$A$24:$BW$110,4,FALSE) -> 1555 | E83: =IF(ISERROR(VLOOKUP($A83, '2b. Continuity Schedule'!$A$20:$BW$112, MATCH('3. Appendix A'!$E$20, '2b. Continuity Schedule'!$A$20:$BW$20,0),FALSE)), 0, VLOOKUP($A83, '2b. Continuity Schedule'!$A$20:$BW$112, MATCH('3. Appendix A'!$E$20, '2b. Continuity Schedule'!$A$20:$BW$20,0),FALSE)) -> 0
A84: 58 | C84: =VLOOKUP(A84, '2b. Continuity Schedule'!$A$24:$BW$110,3,FALSE) -> Smart Meter Capital and Recovery Offset Variance - Sub-Account - Stranded Meter Costs | D84: =VLOOKUP(A84, '2b. Continuity Schedule'!$A$24:$BW$110,4,FALSE) -> 1555 | E84: =IF(ISERROR(VLOOKUP($A84, '2b. Continuity Schedule'!$A$20:$BW$112, MATCH('3. Appendix A'!$E$20, '2b. Continuity Schedule'!$A$20:$BW$20,0),FALSE)), 0, VLOOKUP($A84, '2b. Continuity Schedule'!$A$20:$BW$112, MATCH('3. Appendix A'!$E$20, '2b. Continuity Schedule'!$A$20:$BW$20,0),FALSE)) -> 0
A85: 59 | C85: =VLOOKUP(A85, '2b. Continuity Schedule'!$A$24:$BW$110,3,FALSE) -> Smart Meter OM&A Variance4 | D85: =VLOOKUP(A85, '2b. Continuity Schedule'!$A$24:$BW$110,4,FALSE) -> 1556 | E85: =IF(ISERROR(VLOOKUP($A85, '2b. Continuity Schedule'!$A$20:$BW$112, MATCH('3. Appendix A'!$E$20, '2b. Continuity Schedule'!$A$20:$BW$20,0),FALSE)), 0, VLOOKUP($A85, '2b. Continuity Schedule'!$A$20:$BW$112, MATCH('3. Appendix A'!$E$20, '2b. Continuity Schedule'!$A$20:$BW$20,0),FALSE)) -> 0
A86: 60 | C86: =VLOOKUP(A86, '2b. Continuity Schedule'!$A$24:$BW$110,3,FALSE) -> Meter Cost Deferral Account (MIST Meters)3 | D86: =VLOOKUP(A86, '2b. Continuity Schedule'!$A$24:$BW$110,4,FALSE) -> 1557 | E86: =IF(ISERROR(VLOOKUP($A86, '2b. Continuity Schedule'!$A$20:$BW$112, MATCH('3. Appendix A'!$E$20, '2b. Continuity Schedule'!$A$20:$BW$20,0),FALSE)), 0, VLOOKUP($A86, '2b. Continuity Schedule'!$A$20:$BW$112, MATCH('3. Appendix A'!$E$20, '2b. Continuity Schedule'!$A$20:$BW$20,0),FALSE)) -> 0
A87: 61 | C87: =VLOOKUP(A87, '2b. Continuity Schedule'!$A$24:$BW$110,3,FALSE) -> IFRS-CGAAP Transition PP&E Amounts Balance + Return Component | D87: =VLOOKUP(A87, '2b. Continuity Schedule'!$A$24:$BW$110,4,FALSE) -> 1575 | E87: =IF(ISERROR(VLOOKUP($A87, '2b. Continuity Schedule'!$A$20:$BW$112, MATCH('3. Appendix A'!$E$20, '2b. Continuity Schedule'!$A$20:$BW$20,0),FALSE)), 0, VLOOKUP($A87, '2b. Continuity Schedule'!$A$20:$BW$112, MATCH('3. Appendix A'!$E$20, '2b. Continuity Schedule'!$A$20:$BW$20,0),FALSE)) -> 0
A88: 62 | C88: =VLOOKUP(A88, '2b. Continuity Schedule'!$A$24:$BW$110,3,FALSE) -> Accounting Changes Under CGAAP Balance + Return Component | D88: =VLOOKUP(A88, '2b. Continuity Schedule'!$A$24:$BW$110,4,FALSE) -> 1576 | E88: =IF(ISERROR(VLOOKUP($A88, '2b. Continuity Schedule'!$A$20:$BW$112, MATCH('3. Appendix A'!$E$20, '2b. Continuity Schedule'!$A$20:$BW$20,0),FALSE)), 0, VLOOKUP($A88, '2b. Continuity Schedule'!$A$20:$BW$112, MATCH('3. Appendix A'!$E$20, '2b. Continuity Schedule'!$A$20:$BW$20,0),FALSE)) -> 0
A89: 63 | C89: =VLOOKUP(A89, '2b. Continuity Schedule'!$A$24:$BW$110,3,FALSE) -> Impacts Arising from the COVID-19 Emergency11 | D89: =VLOOKUP(A89, '2b. Continuity Schedule'!$A$24:$BW$110,4,FALSE) -> 1509 | E89: =IF(ISERROR(VLOOKUP($A89, '2b. Continuity Schedule'!$A$20:$BW$112, MATCH('3. Appendix A'!$E$20, '2b. Continuity Schedule'!$A$20:$BW$20,0),FALSE)), 0, VLOOKUP($A89, '2b. Continuity Schedule'!$A$20:$BW$112, MATCH('3. Appendix A'!$E$20, '2b. Continuity Schedule'!$A$20:$BW$20,0),FALSE)) -> 0

Sheet 4. Billing Determinants
B16: In the green shaded cells, enter the data related to the proposed load forecast. Do not enter data for the MicroFit class.
E18: A | G18: B | J18: C | L18: D=A-C | O18: E | S18: F =B-C-E (deduct E if applicable)
B19: Rate Class (Enter Rate Classes in cells below as they appear on your current tariff of rates and charges) | C19: Units | D19: # of Customers | E19: Total Metered kWh | F19: Total Metered kW | G19: Metered kWh for Non-RPP Customers 4 | H19: Metered kW for Non-RPP Customers 4 | I19: Distribution Revenue | J19: Metered kWh for Wholesale Market Participants (WMP) | K19: Metered kW for Wholesale Market Participants (WMP) | L19: Total Metered kWh less WMP consumption (if applicable) | M19: Total Metered kW less WMP consumption (if applicable) | N19: GA Allocator for Class A, Non-WMP Customers (if applicable)2 | O19: Forecast Total Metered Test Year kWh for Full Year Class A Customers | P19: Forecast Total Metered Test Year kWh for Transition Customers | Q19: Forecast Total Metered Test Year kW for Full Year Class A Customers | R19: Forecast Total Metered Test Year kW for Transition Customers | S19: Non-RPP Metered Consumption for Current Class B Customers (Non-RPP Consumption excluding WMP, Class A and Transition Customers' Consumption | T19: Total Metered kW for Non-RPP Customers less WMP and Class A Consumption | U19: 1595 Recovery Share Proportion (2009) 1 | V19: 1595 Recovery Share Proportion (2018 and pre-2018) 1 | W19: 1595 Recovery Share Proportion (2019) 1 | X19: 1595 Recovery Share Proportion (2020) 1 | Y19: 1595 Recovery Share Proportion (2021) 1 | Z19: 1595 Recovery Share Proportion (2022) 1 | AA19: 1595 Recovery Share Proportion (2023) 1 | AB19: 1595 Recovery Share Proportion (2024) 1 | AC19: 1568 LRAM Variance Account Class Allocation3 ($ amounts) | AD19: Number of Customers for Residential and GS<50 classes2
B21: RESIDENTIAL | C21: kWh | D21: 4937.744187 | E21: 50447579.73 | F21: 0 | G21: 343361.1425 | I21: 1362728.538 | L21: =E21-J21 -> 50447579.73 | M21: =F21-K21 -> 0 | O21: =SUM(IF('6. Class A Consumption Data'!$B$492:$B$791=B21,'6. Class A Consumption Data'!$E$492:$E$791)) -> 0 | P21: =SUM(IF('6. Class A Consumption Data'!$B$492:$B$791=B21,'6. Class A Consumption Data'!$D$492:$D$791)) -> 0 | Q21: =SUM(IF('6. Class A Consumption Data'!$B$492:$B$791=B21&"Kw",'6. Class A Consumption Data'!$E$492:$E$791)) -> 0 | R21: =SUM(IF('6. Class A Consumption Data'!$B$492:$B$791=B21&"Kw",'6. Class A Consumption Data'!$D$492:$D$791)) -> 0 | S21: =IF(OR(G21=0, ISBLANK(G21)), 0, G21-J21-O21-P21) -> 343361.1425 | T21: =IF(OR(H21=0, ISBLANK(H21)), 0, H21-K21-Q21-R21) -> 0 | X21: 0.3558797828 | Y21: 0.3748318065 | Z21: 0.3681825107 | AD21: =D21 -> 4937.744187
B22: GENERAL SERVICE < 50 KW | C22: kWh | D22: 607.2848168 | E22: 18034272.8 | F22: 0 | G22: 3522433.326 | I22: 314187.6202 | L22: =E22-J22 -> 18034272.8 | M22: =F22-K22 -> 0 | O22: =SUM(IF('6. Class A Consumption Data'!$B$492:$B$791=B22,'6. Class A Consumption Data'!$E$492:$E$791)) -> 0 | P22: =SUM(IF('6. Class A Consumption Data'!$B$492:$B$791=B22,'6. Class A Consumption Data'!$D$492:$D$791)) -> 0 | Q22: =SUM(IF('6. Class A Consumption Data'!$B$492:$B$791=B22&"Kw",'6. Class A Consumption Data'!$E$492:$E$791)) -> 0 | R22: =SUM(IF('6. Class A Consumption Data'!$B$492:$B$791=B22&"Kw",'6. Class A Consumption Data'!$D$492:$D$791)) -> 0 | S22: =IF(OR(G22=0, ISBLANK(G22)), 0, G22-J22-O22-P22) -> 3522433.326 | T22: =IF(OR(H22=0, ISBLANK(H22)), 0, H22-K22-Q22-R22) -> 0 | X22: 0.1271572529 | Y22: 0.1202027236 | Z22: 0.1181732815 | AD22: =D22 -> 607.2848168
B23: GENERAL SERVICE > 50 TO 4999 KW | C23: kW | D23: 84.96873144 | E23: 73757578.63 | F23: 186744.6535 | G23: 73757578.63 | H23: =F23 -> 186744.6535 | I23: 517495.9461 | L23: 73757578.63 | M23: 186744.6535 | O23: =SUM(IF('6. Class A Consumption Data'!$B$492:$B$791=B23,'6. Class A Consumption Data'!$E$492:$E$791)) -> 0 | P23: =SUM(IF('6. Class A Consumption Data'!$B$492:$B$791=B23,'6. Class A Consumption Data'!$D$492:$D$791)) -> 0 | Q23: =SUM(IF('6. Class A Consumption Data'!$B$492:$B$791=B23&"Kw",'6. Class A Consumption Data'!$E$492:$E$791)) -> 0 | R23: =SUM(IF('6. Class A Consumption Data'!$B$492:$B$791=B23&"Kw",'6. Class A Consumption Data'!$D$492:$D$791)) -> 0 | S23: 73757578.63 | T23: 186744.6535 | X23: 0.5094322162 | Y23: 0.4986441038 | Z23: 0.5078896456
B24: UNMETERED SCATTERED LOAD | C24: kWh | D24: 16.94746446 | E24: 421392.9341 | F24: 0 | G24: 253858.6958 | I24: 4237.568081 | L24: 421392.9341 | M24: 0 | O24: =SUM(IF('6. Class A Consumption Data'!$B$492:$B$791=B24,'6. Class A Consumption Data'!$E$492:$E$791)) -> 0 | P24: =SUM(IF('6. Class A Consumption Data'!$B$492:$B$791=B24,'6. Class A Consumption Data'!$D$492:$D$791)) -> 0 | Q24: =SUM(IF('6. Class A Consumption Data'!$B$492:$B$791=B24&"Kw",'6. Class A Consumption Data'!$E$492:$E$791)) -> 0 | R24: =SUM(IF('6. Class A Consumption Data'!$B$492:$B$791=B24&"Kw",'6. Class A Consumption Data'!$D$492:$D$791)) -> 0 | S24: 253858.6958 | T24: 0 | X24: 0.003628488882 | Y24: 0.002380063793 | Z24: 0.002167533734
B25: SENTINEL | C25: kW | D25: 40.53708519 | E25: 49170.91296 | F25: 855.0152512 | G25: 0 | H25: =F25 -> 855.0152512 | I25: 2287.866657 | L25: 49170.91296 | M25: 855.0152512 | N25: 0 | O25: =SUM(IF('6. Class A Consumption Data'!$B$492:$B$791=B25,'6. Class A Consumption Data'!$E$492:$E$791)) -> 0 | P25: =SUM(IF('6. Class A Consumption Data'!$B$492:$B$791=B25,'6. Class A Consumption Data'!$D$492:$D$791)) -> 0 | Q25: =SUM(IF('6. Class A Consumption Data'!$B$492:$B$791=B25&"Kw",'6. Class A Consumption Data'!$E$492:$E$791)) -> 0 | R25: =SUM(IF('6. Class A Consumption Data'!$B$492:$B$791=B25&"Kw",'6. Class A Consumption Data'!$D$492:$D$791)) -> 0 | S25: 0 | T25: 855.0152512 | X25: 0.0003825734671 | Y25: 0.0003340078199 | Z25: 0.0001631985102
B26: STREET LIGHTING | C26: kW | D26: 1268.606145 | E26: 524793.9234 | F26: 1444.757117 | G26: 524793.9234 | H26: =F26 -> 1444.757117 | I26: 23829.72857 | L26: 524793.9234 | M26: 1444.757117 | N26: 0 | O26: =SUM(IF('6. Class A Consumption Data'!$B$492:$B$791=B26,'6. Class A Consumption Data'!$E$492:$E$791)) -> 0 | P26: =SUM(IF('6. Class A Consumption Data'!$B$492:$B$791=B26,'6. Class A Consumption Data'!$D$492:$D$791)) -> 0 | Q26: =SUM(IF('6. Class A Consumption Data'!$B$492:$B$791=B26&"Kw",'6. Class A Consumption Data'!$E$492:$E$791)) -> 0 | R26: =SUM(IF('6. Class A Consumption Data'!$B$492:$B$791=B26&"Kw",'6. Class A Consumption Data'!$D$492:$D$791)) -> 0 | S26: 524793.9234 | T26: 1444.757117 | X26: 0.003519685788 | Y26: 0.003607294491 | Z26: 0.003423829897
L27: 0 | M27: 0 | O27: =SUM(IF('6. Class A Consumption Data'!$B$492:$B$791=B27,'6. Class A Consumption Data'!$E$492:$E$791)) -> 0 | P27: =SUM(IF('6. Class A Consumption Data'!$B$492:$B$791=B27,'6. Class A Consumption Data'!$D$492:$D$791)) -> 0 | Q27: =SUM(IF('6. Class A Consumption Data'!$B$492:$B$791=B27&"Kw",'6. Class A Consumption Data'!$E$492:$E$791)) -> 0 | R27: =SUM(IF('6. Class A Consumption Data'!$B$492:$B$791=B27&"Kw",'6. Class A Consumption Data'!$D$492:$D$791)) -> 0 | S27: 0 | T27: 0
L28: 0 | M28: 0 | O28: =SUM(IF('6. Class A Consumption Data'!$B$492:$B$791=B28,'6. Class A Consumption Data'!$E$492:$E$791)) -> 0 | P28: =SUM(IF('6. Class A Consumption Data'!$B$492:$B$791=B28,'6. Class A Consumption Data'!$D$492:$D$791)) -> 0 | Q28: =SUM(IF('6. Class A Consumption Data'!$B$492:$B$791=B28&"Kw",'6. Class A Consumption Data'!$E$492:$E$791)) -> 0 | R28: =SUM(IF('6. Class A Consumption Data'!$B$492:$B$791=B28&"Kw",'6. Class A Consumption Data'!$D$492:$D$791)) -> 0 | S28: 0 | T28: 0
L29: 0 | M29: 0 | O29: =SUM(IF('6. Class A Consumption Data'!$B$492:$B$791=B29,'6. Class A Consumption Data'!$E$492:$E$791)) -> 0 | P29: =SUM(IF('6. Class A Consumption Data'!$B$492:$B$791=B29,'6. Class A Consumption Data'!$D$492:$D$791)) -> 0 | Q29: =SUM(IF('6. Class A Consumption Data'!$B$492:$B$791=B29&"Kw",'6. Class A Consumption Data'!$E$492:$E$791)) -> 0 | R29: =SUM(IF('6. Class A Consumption Data'!$B$492:$B$791=B29&"Kw",'6. Class A Consumption Data'!$D$492:$D$791)) -> 0 | S29: 0 | T29: 0
L30: 0 | M30: 0 | O30: =SUM(IF('6. Class A Consumption Data'!$B$492:$B$791=B30,'6. Class A Consumption Data'!$E$492:$E$791)) -> 0 | P30: =SUM(IF('6. Class A Consumption Data'!$B$492:$B$791=B30,'6. Class A Consumption Data'!$D$492:$D$791)) -> 0 | Q30: =SUM(IF('6. Class A Consumption Data'!$B$492:$B$791=B30&"Kw",'6. Class A Consumption Data'!$E$492:$E$791)) -> 0 | R30: =SUM(IF('6. Class A Consumption Data'!$B$492:$B$791=B30&"Kw",'6. Class A Consumption Data'!$D$492:$D$791)) -> 0 | S30: 0 | T30: 0
L31: 0 | M31: 0 | O31: =SUM(IF('6. Class A Consumption Data'!$B$492:$B$791=B31,'6. Class A Consumption Data'!$E$492:$E$791)) -> 0 | P31: =SUM(IF('6. Class A Consumption Data'!$B$492:$B$791=B31,'6. Class A Consumption Data'!$D$492:$D$791)) -> 0 | Q31: =SUM(IF('6. Class A Consumption Data'!$B$492:$B$791=B31&"Kw",'6. Class A Consumption Data'!$E$492:$E$791)) -> 0 | R31: =SUM(IF('6. Class A Consumption Data'!$B$492:$B$791=B31&"Kw",'6. Class A Consumption Data'!$D$492:$D$791)) -> 0 | S31: 0 | T31: 0
L32: 0 | M32: 0 | O32: =SUM(IF('6. Class A Consumption Data'!$B$492:$B$791=B32,'6. Class A Consumption Data'!$E$492:$E$791)) -> 0 | P32: =SUM(IF('6. Class A Consumption Data'!$B$492:$B$791=B32,'6. Class A Consumption Data'!$D$492:$D$791)) -> 0 | Q32: =SUM(IF('6. Class A Consumption Data'!$B$492:$B$791=B32&"Kw",'6. Class A Consumption Data'!$E$492:$E$791)) -> 0 | R32: =SUM(IF('6. Class A Consumption Data'!$B$492:$B$791=B32&"Kw",'6. Class A Consumption Data'!$D$492:$D$791)) -> 0 | S32: 0 | T32: 0
L33: 0 | M33: 0 | O33: =SUM(IF('6. Class A Consumption Data'!$B$492:$B$791=B33,'6. Class A Consumption Data'!$E$492:$E$791)) -> 0 | P33: =SUM(IF('6. Class A Consumption Data'!$B$492:$B$791=B33,'6. Class A Consumption Data'!$D$492:$D$791)) -> 0 | Q33: =SUM(IF('6. Class A Consumption Data'!$B$492:$B$791=B33&"Kw",'6. Class A Consumption Data'!$E$492:$E$791)) -> 0 | R33: =SUM(IF('6. Class A Consumption Data'!$B$492:$B$791=B33&"Kw",'6. Class A Consumption Data'!$D$492:$D$791)) -> 0 | S33: 0 | T33: 0
L34: 0 | M34: 0 | O34: =SUM(IF('6. Class A Consumption Data'!$B$492:$B$791=B34,'6. Class A Consumption Data'!$E$492:$E$791)) -> 0 | P34: =SUM(IF('6. Class A Consumption Data'!$B$492:$B$791=B34,'6. Class A Consumption Data'!$D$492:$D$791)) -> 0 | Q34: =SUM(IF('6. Class A Consumption Data'!$B$492:$B$791=B34&"Kw",'6. Class A Consumption Data'!$E$492:$E$791)) -> 0 | R34: =SUM(IF('6. Class A Consumption Data'!$B$492:$B$791=B34&"Kw",'6. Class A Consumption Data'!$D$492:$D$791)) -> 0 | S34: 0 | T34: 0
L35: 0 | M35: 0 | O35: =SUM(IF('6. Class A Consumption Data'!$B$492:$B$791=B35,'6. Class A Consumption Data'!$E$492:$E$791)) -> 0 | P35: =SUM(IF('6. Class A Consumption Data'!$B$492:$B$791=B35,'6. Class A Consumption Data'!$D$492:$D$791)) -> 0 | Q35: =SUM(IF('6. Class A Consumption Data'!$B$492:$B$791=B35&"Kw",'6. Class A Consumption Data'!$E$492:$E$791)) -> 0 | R35: =SUM(IF('6. Class A Consumption Data'!$B$492:$B$791=B35&"Kw",'6. Class A Consumption Data'!$D$492:$D$791)) -> 0 | S35: 0 | T35: 0
L36: 0 | M36: 0 | O36: =SUM(IF('6. Class A Consumption Data'!$B$492:$B$791=B36,'6. Class A Consumption Data'!$E$492:$E$791)) -> 0 | P36: =SUM(IF('6. Class A Consumption Data'!$B$492:$B$791=B36,'6. Class A Consumption Data'!$D$492:$D$791)) -> 0 | Q36: =SUM(IF('6. Class A Consumption Data'!$B$492:$B$791=B36&"Kw",'6. Class A Consumption Data'!$E$492:$E$791)) -> 0 | R36: =SUM(IF('6. Class A Consumption Data'!$B$492:$B$791=B36&"Kw",'6. Class A Consumption Data'!$D$492:$D$791)) -> 0 | S36: 0 | T36: 0
L37: 0 | M37: 0 | O37: =SUM(IF('6. Class A Consumption Data'!$B$492:$B$791=B37,'6. Class A Consumption Data'!$E$492:$E$791)) -> 0 | P37: =SUM(IF('6. Class A Consumption Data'!$B$492:$B$791=B37,'6. Class A Consumption Data'!$D$492:$D$791)) -> 0 | Q37: =SUM(IF('6. Class A Consumption Data'!$B$492:$B$791=B37&"Kw",'6. Class A Consumption Data'!$E$492:$E$791)) -> 0 | R37: =SUM(IF('6. Class A Consumption Data'!$B$492:$B$791=B37&"Kw",'6. Class A Consumption Data'!$D$492:$D$791)) -> 0 | S37: 0 | T37: 0
L38: 0 | M38: 0 | O38: =SUM(IF('6. Class A Consumption Data'!$B$492:$B$791=B38,'6. Class A Consumption Data'!$E$492:$E$791)) -> 0 | P38: =SUM(IF('6. Class A Consumption Data'!$B$492:$B$791=B38,'6. Class A Consumption Data'!$D$492:$D$791)) -> 0 | Q38: =SUM(IF('6. Class A Consumption Data'!$B$492:$B$791=B38&"Kw",'6. Class A Consumption Data'!$E$492:$E$791)) -> 0 | R38: =SUM(IF('6. Class A Consumption Data'!$B$492:$B$791=B38&"Kw",'6. Class A Consumption Data'!$D$492:$D$791)) -> 0 | S38: 0 | T38: 0
L39: 0 | M39: 0 | O39: =SUM(IF('6. Class A Consumption Data'!$B$492:$B$791=B39,'6. Class A Consumption Data'!$E$492:$E$791)) -> 0 | P39: =SUM(IF('6. Class A Consumption Data'!$B$492:$B$791=B39,'6. Class A Consumption Data'!$D$492:$D$791)) -> 0 | Q39: =SUM(IF('6. Class A Consumption Data'!$B$492:$B$791=B39&"Kw",'6. Class A Consumption Data'!$E$492:$E$791)) -> 0 | R39: =SUM(IF('6. Class A Consumption Data'!$B$492:$B$791=B39&"Kw",'6. Class A Consumption Data'!$D$492:$D$791)) -> 0 | S39: 0 | T39: 0
G40: 0 | L40: 0 | M40: 0 | O40: =SUM(IF('6. Class A Consumption Data'!$B$492:$B$791=B40,'6. Class A Consumption Data'!$E$492:$E$791)) -> 0 | P40: =SUM(IF('6. Class A Consumption Data'!$B$492:$B$791=B40,'6. Class A Consumption Data'!$D$492:$D$791)) -> 0 | Q40: =SUM(IF('6. Class A Consumption Data'!$B$492:$B$791=B40&"Kw",'6. Class A Consumption Data'!$E$492:$E$791)) -> 0 | R40: =SUM(IF('6. Class A Consumption Data'!$B$492:$B$791=B40&"Kw",'6. Class A Consumption Data'!$D$492:$D$791)) -> 0 | S40: 0 | T40: 0
B41: Total | D41: =SUM(D21:D40) -> 6956.088429 | E41: 143234788.9 | F41: 189044.4259 | G41: 78402025.72 | H41: 189044.4259 | I41: 2224767.267 | J41: 0 | K41: =SUM(K21:K40) -> 0 | L41: 143234788.9 | M41: 189044.4259 | N41: 0 | O41: 0 | P41: 0 | Q41: =SUM(IF('6. Class A Consumption Data'!$B$492:$B$791=B41&"Kw",'6. Class A Consumption Data'!$E$492:$E$791)) -> 0 | R41: =SUM(IF('6. Class A Consumption Data'!$B$492:$B$791=B41&"Kw",'6. Class A Consumption Data'!$D$492:$D$791)) -> 0 | S41: 78402025.72 | T41: =SUM(T21:T40) -> 189044.4259 | U41: 0 | V41: 0 | W41: 0 | X41: 1 | Y41: 1 | Z41: 1 | AA41: =SUM(AA21:AA40) -> 0 | AB41: =SUM(AB21:AB40) -> 0 | AC41: =SUM(AC21:AC40) -> 0
AB42: Balance as per Sheet 2 | AC42: ='2b. Continuity Schedule'!BT88 -> 0
AB43: Variance | AC43: =AC41-AC42 -> 0
A47: 1 Account 1595 sub-accounts are to be allocated to rate classes in proportion to the recovery share as established when rate riders were implemented.
A49: 2 The proportion of customers for the Residential and GS<50 Classes will be used to allocate Account 1551.
A51: 3 Input the allocation as determined in the LRAMVA model. The associated rate riders will be calculated in the EDDVAR model.
A55: 4 If a distributor uses the actual GA price to bill non-RPP Class B customers for an entire rate class, it must exclude these customers from the allocation of the GA balance and the calculation of the resulting rate riders. These rate classes are not to be charged/refunded the general GA rate rider as they did not contribute to the GA balance. If this is the case, this must be noted in the evidence and the proposed allocation methodology must be explained.

Sheet 5. Allocation of Balances
AA1: 21
AA2: 22
A4: 1 | D4: Amounts from Sheet 2 | E4: Allocator | F4: =IF(LEN(TRIM('4. Billing Determinants'!$B21))=0, "", UPPER('4. Billing Determinants'!$B21)) -> RESIDENTIAL | G4: =IF(LEN(TRIM('4. Billing Determinants'!$B22))=0, "", '4. Billing Determinants'!$B22) -> GENERAL SERVICE < 50 KW | H4: =IF(LEN(TRIM('4. Billing Determinants'!$B23))=0, "", '4. Billing Determinants'!$B23) -> GENERAL SERVICE > 50 TO 4999 KW | I4: =IF(LEN(TRIM('4. Billing Determinants'!$B24))=0, "", '4. Billing Determinants'!$B24) -> UNMETERED SCATTERED LOAD | J4: =IF(LEN(TRIM('4. Billing Determinants'!$B25))=0, "", '4. Billing Determinants'!$B25) -> SENTINEL | K4: =IF(LEN(TRIM('4. Billing Determinants'!$B26))=0, "", '4. Billing Determinants'!$B26) -> STREET LIGHTING | L4: =IF(LEN(TRIM('4. Billing Determinants'!$B27))=0, "", '4. Billing Determinants'!$B27) ->  | M4: =IF(LEN(TRIM('4. Billing Determinants'!$B28))=0, "", '4. Billing Determinants'!$B28) ->  | N4: =IF(LEN(TRIM('4. Billing Determinants'!$B29))=0, "", '4. Billing Determinants'!$B29) ->  | O4: =IF(LEN(TRIM('4. Billing Determinants'!$B30))=0, "", '4. Billing Determinants'!$B30) ->  | P4: =IF(LEN(TRIM('4. Billing Determinants'!$B31))=0, "", '4. Billing Determinants'!$B31) ->  | Q4: =IF(LEN(TRIM('4. Billing Determinants'!$B32))=0, "", '4. Billing Determinants'!$B32) ->  | R4: =IF(LEN(TRIM('4. Billing Determinants'!$B33))=0, "", '4. Billing Determinants'!$B33) ->  | S4: =IF(LEN(TRIM('4. Billing Determinants'!$B34))=0, "", '4. Billing Determinants'!$B34) ->  | T4: =IF(LEN(TRIM('4. Billing Determinants'!$B35))=0, "", '4. Billing Determinants'!$B35) ->  | U4: =IF(LEN(TRIM('4. Billing Determinants'!$B36))=0, "", '4. Billing Determinants'!$B36) ->  | V4: =IF(LEN(TRIM('4. Billing Determinants'!$B37))=0, "", '4. Billing Determinants'!$B37) ->  | W4: =IF(LEN(TRIM('4. Billing Determinants'!$B38))=0, "", '4. Billing Determinants'!$B38) ->  | X4: =IF(LEN(TRIM('4. Billing Determinants'!$B39))=0, "", '4. Billing Determinants'!$B39) ->  | Y4: =IF(LEN(TRIM('4. Billing Determinants'!$B40))=0, "", '4. Billing Determinants'!$B40) -> 
A5: 2 | B5: LV Variance Account | C5: 1550 | D5: ='2a. Continuity Schedule'!BT24 -> 101005.4 | E5: kWh | F5: =IFERROR(IF(F$4="",0,IF($E5="kWh",VLOOKUP(F$4,'4. Billing Determinants'!$B$19:$R$41,4,0)/'4. Billing Determinants'!$E$41*$D5,IF($E5="kW",VLOOKUP(F$4,'4. Billing Determinants'!$B$19:$R$41,5,0)/'4. Billing Determinants'!$F$41*$D5,IF($E5="Non-RPP kWh",VLOOKUP(F$4,'4. Billing Determinants'!$B$19:$R$41,6,0)/'4. Billing Determinants'!$G$41*$D5,IF($E5="Distribution Rev.",VLOOKUP(F$4,'4. Billing Determinants'!$B$19:$R$41,8,0)/'4. Billing Determinants'!$I$41*$D5, VLOOKUP(F$4,'4. Billing Determinants'!$B$19:$R$41,3,0)/'4. Billing Determinants'!$D$41*$D5))))),0) -> 35574.30431 | G5: =IFERROR(IF(G$4="",0,IF($E5="kWh",VLOOKUP(G$4,'4. Billing Determinants'!$B$19:$R$41,4,0)/'4. Billing Determinants'!$E$41*$D5,IF($E5="kW",VLOOKUP(G$4,'4. Billing Determinants'!$B$19:$R$41,5,0)/'4. Billing Determinants'!$F$41*$D5,IF($E5="Non-RPP kWh",VLOOKUP(G$4,'4. Billing Determinants'!$B$19:$R$41,6,0)/'4. Billing Determinants'!$G$41*$D5,IF($E5="Distribution Rev.",VLOOKUP(G$4,'4. Billing Determinants'!$B$19:$R$41,8,0)/'4. Billing Determinants'!$I$41*$D5, VLOOKUP(G$4,'4. Billing Determinants'!$B$19:$R$41,3,0)/'4. Billing Determinants'!$D$41*$D5))))),0) -> 12717.29411 | H5: =IFERROR(IF(H$4="",0,IF($E5="kWh",VLOOKUP(H$4,'4. Billing Determinants'!$B$19:$R$41,4,0)/'4. Billing Determinants'!$E$41*$D5,IF($E5="kW",VLOOKUP(H$4,'4. Billing Determinants'!$B$19:$R$41,5,0)/'4. Billing Determinants'!$F$41*$D5,IF($E5="Non-RPP kWh",VLOOKUP(H$4,'4. Billing Determinants'!$B$19:$R$41,6,0)/'4. Billing Determinants'!$G$41*$D5,IF($E5="Distribution Rev.",VLOOKUP(H$4,'4. Billing Determinants'!$B$19:$R$41,8,0)/'4. Billing Determinants'!$I$41*$D5, VLOOKUP(H$4,'4. Billing Determinants'!$B$19:$R$41,3,0)/'4. Billing Determinants'!$D$41*$D5))))),0) -> 52011.9015 | I5: =IFERROR(IF(I$4="",0,IF($E5="kWh",VLOOKUP(I$4,'4. Billing Determinants'!$B$19:$R$41,4,0)/'4. Billing Determinants'!$E$41*$D5,IF($E5="kW",VLOOKUP(I$4,'4. Billing Determinants'!$B$19:$R$41,5,0)/'4. Billing Determinants'!$F$41*$D5,IF($E5="Non-RPP kWh",VLOOKUP(I$4,'4. Billing Determinants'!$B$19:$R$41,6,0)/'4. Billing Determinants'!$G$41*$D5,IF($E5="Distribution Rev.",VLOOKUP(I$4,'4. Billing Determinants'!$B$19:$R$41,8,0)/'4. Billing Determinants'!$I$41*$D5, VLOOKUP(I$4,'4. Billing Determinants'!$B$19:$R$41,3,0)/'4. Billing Determinants'!$D$41*$D5))))),0) -> 297.1551966 | J5: =IFERROR(IF(J$4="",0,IF($E5="kWh",VLOOKUP(J$4,'4. Billing Determinants'!$B$19:$R$41,4,0)/'4. Billing Determinants'!$E$41*$D5,IF($E5="kW",VLOOKUP(J$4,'4. Billing Determinants'!$B$19:$R$41,5,0)/'4. Billing Determinants'!$F$41*$D5,IF($E5="Non-RPP kWh",VLOOKUP(J$4,'4. Billing Determinants'!$B$19:$R$41,6,0)/'4. Billing Determinants'!$G$41*$D5,IF($E5="Distribution Rev.",VLOOKUP(J$4,'4. Billing Determinants'!$B$19:$R$41,8,0)/'4. Billing Determinants'!$I$41*$D5, VLOOKUP(J$4,'4. Billing Determinants'!$B$19:$R$41,3,0)/'4. Billing Determinants'!$D$41*$D5))))),0) -> 34.67403253 | K5: =IFERROR(IF(K$4="",0,IF($E5="kWh",VLOOKUP(K$4,'4. Billing Determinants'!$B$19:$R$41,4,0)/'4. Billing Determinants'!$E$41*$D5,IF($E5="kW",VLOOKUP(K$4,'4. Billing Determinants'!$B$19:$R$41,5,0)/'4. Billing Determinants'!$F$41*$D5,IF($E5="Non-RPP kWh",VLOOKUP(K$4,'4. Billing Determinants'!$B$19:$R$41,6,0)/'4. Billing Determinants'!$G$41*$D5,IF($E5="Distribution Rev.",VLOOKUP(K$4,'4. Billing Determinants'!$B$19:$R$41,8,0)/'4. Billing Determinants'!$I$41*$D5, VLOOKUP(K$4,'4. Billing Determinants'!$B$19:$R$41,3,0)/'4. Billing Determinants'!$D$41*$D5))))),0) -> 370.0708504 | L5: =IFERROR(IF(L$4="",0,IF($E5="kWh",VLOOKUP(L$4,'4. Billing Determinants'!$B$19:$R$41,4,0)/'4. Billing Determinants'!$E$41*$D5,IF($E5="kW",VLOOKUP(L$4,'4. Billing Determinants'!$B$19:$R$41,5,0)/'4. Billing Determinants'!$F$41*$D5,IF($E5="Non-RPP kWh",VLOOKUP(L$4,'4. Billing Determinants'!$B$19:$R$41,6,0)/'4. Billing Determinants'!$G$41*$D5,IF($E5="Distribution Rev.",VLOOKUP(L$4,'4. Billing Determinants'!$B$19:$R$41,8,0)/'4. Billing Determinants'!$I$41*$D5, VLOOKUP(L$4,'4. Billing Determinants'!$B$19:$R$41,3,0)/'4. Billing Determinants'!$D$41*$D5))))),0) -> 0 | M5: =IFERROR(IF(M$4="",0,IF($E5="kWh",VLOOKUP(M$4,'4. Billing Determinants'!$B$19:$R$41,4,0)/'4. Billing Determinants'!$E$41*$D5,IF($E5="kW",VLOOKUP(M$4,'4. Billing Determinants'!$B$19:$R$41,5,0)/'4. Billing Determinants'!$F$41*$D5,IF($E5="Non-RPP kWh",VLOOKUP(M$4,'4. Billing Determinants'!$B$19:$R$41,6,0)/'4. Billing Determinants'!$G$41*$D5,IF($E5="Distribution Rev.",VLOOKUP(M$4,'4. Billing Determinants'!$B$19:$R$41,8,0)/'4. Billing Determinants'!$I$41*$D5, VLOOKUP(M$4,'4. Billing Determinants'!$B$19:$R$41,3,0)/'4. Billing Determinants'!$D$41*$D5))))),0) -> 0 | N5: =IFERROR(IF(N$4="",0,IF($E5="kWh",VLOOKUP(N$4,'4. Billing Determinants'!$B$19:$R$41,4,0)/'4. Billing Determinants'!$E$41*$D5,IF($E5="kW",VLOOKUP(N$4,'4. Billing Determinants'!$B$19:$R$41,5,0)/'4. Billing Determinants'!$F$41*$D5,IF($E5="Non-RPP kWh",VLOOKUP(N$4,'4. Billing Determinants'!$B$19:$R$41,6,0)/'4. Billing Determinants'!$G$41*$D5,IF($E5="Distribution Rev.",VLOOKUP(N$4,'4. Billing Determinants'!$B$19:$R$41,8,0)/'4. Billing Determinants'!$I$41*$D5, VLOOKUP(N$4,'4. Billing Determinants'!$B$19:$R$41,3,0)/'4. Billing Determinants'!$D$41*$D5))))),0) -> 0 | O5: =IFERROR(IF(O$4="",0,IF($E5="kWh",VLOOKUP(O$4,'4. Billing Determinants'!$B$19:$R$41,4,0)/'4. Billing Determinants'!$E$41*$D5,IF($E5="kW",VLOOKUP(O$4,'4. Billing Determinants'!$B$19:$R$41,5,0)/'4. Billing Determinants'!$F$41*$D5,IF($E5="Non-RPP kWh",VLOOKUP(O$4,'4. Billing Determinants'!$B$19:$R$41,6,0)/'4. Billing Determinants'!$G$41*$D5,IF($E5="Distribution Rev.",VLOOKUP(O$4,'4. Billing Determinants'!$B$19:$R$41,8,0)/'4. Billing Determinants'!$I$41*$D5, VLOOKUP(O$4,'4. Billing Determinants'!$B$19:$R$41,3,0)/'4. Billing Determinants'!$D$41*$D5))))),0) -> 0 | P5: =IFERROR(IF(P$4="",0,IF($E5="kWh",VLOOKUP(P$4,'4. Billing Determinants'!$B$19:$R$41,4,0)/'4. Billing Determinants'!$E$41*$D5,IF($E5="kW",VLOOKUP(P$4,'4. Billing Determinants'!$B$19:$R$41,5,0)/'4. Billing Determinants'!$F$41*$D5,IF($E5="Non-RPP kWh",VLOOKUP(P$4,'4. Billing Determinants'!$B$19:$R$41,6,0)/'4. Billing Determinants'!$G$41*$D5,IF($E5="Distribution Rev.",VLOOKUP(P$4,'4. Billing Determinants'!$B$19:$R$41,8,0)/'4. Billing Determinants'!$I$41*$D5, VLOOKUP(P$4,'4. Billing Determinants'!$B$19:$R$41,3,0)/'4. Billing Determinants'!$D$41*$D5))))),0) -> 0 | Q5: =IFERROR(IF(Q$4="",0,IF($E5="kWh",VLOOKUP(Q$4,'4. Billing Determinants'!$B$19:$R$41,4,0)/'4. Billing Determinants'!$E$41*$D5,IF($E5="kW",VLOOKUP(Q$4,'4. Billing Determinants'!$B$19:$R$41,5,0)/'4. Billing Determinants'!$F$41*$D5,IF($E5="Non-RPP kWh",VLOOKUP(Q$4,'4. Billing Determinants'!$B$19:$R$41,6,0)/'4. Billing Determinants'!$G$41*$D5,IF($E5="Distribution Rev.",VLOOKUP(Q$4,'4. Billing Determinants'!$B$19:$R$41,8,0)/'4. Billing Determinants'!$I$41*$D5, VLOOKUP(Q$4,'4. Billing Determinants'!$B$19:$R$41,3,0)/'4. Billing Determinants'!$D$41*$D5))))),0) -> 0 | R5: =IFERROR(IF(R$4="",0,IF($E5="kWh",VLOOKUP(R$4,'4. Billing Determinants'!$B$19:$R$41,4,0)/'4. Billing Determinants'!$E$41*$D5,IF($E5="kW",VLOOKUP(R$4,'4. Billing Determinants'!$B$19:$R$41,5,0)/'4. Billing Determinants'!$F$41*$D5,IF($E5="Non-RPP kWh",VLOOKUP(R$4,'4. Billing Determinants'!$B$19:$R$41,6,0)/'4. Billing Determinants'!$G$41*$D5,IF($E5="Distribution Rev.",VLOOKUP(R$4,'4. Billing Determinants'!$B$19:$R$41,8,0)/'4. Billing Determinants'!$I$41*$D5, VLOOKUP(R$4,'4. Billing Determinants'!$B$19:$R$41,3,0)/'4. Billing Determinants'!$D$41*$D5))))),0) -> 0 | S5: =IFERROR(IF(S$4="",0,IF($E5="kWh",VLOOKUP(S$4,'4. Billing Determinants'!$B$19:$R$41,4,0)/'4. Billing Determinants'!$E$41*$D5,IF($E5="kW",VLOOKUP(S$4,'4. Billing Determinants'!$B$19:$R$41,5,0)/'4. Billing Determinants'!$F$41*$D5,IF($E5="Non-RPP kWh",VLOOKUP(S$4,'4. Billing Determinants'!$B$19:$R$41,6,0)/'4. Billing Determinants'!$G$41*$D5,IF($E5="Distribution Rev.",VLOOKUP(S$4,'4. Billing Determinants'!$B$19:$R$41,8,0)/'4. Billing Determinants'!$I$41*$D5, VLOOKUP(S$4,'4. Billing Determinants'!$B$19:$R$41,3,0)/'4. Billing Determinants'!$D$41*$D5))))),0) -> 0 | T5: =IFERROR(IF(T$4="",0,IF($E5="kWh",VLOOKUP(T$4,'4. Billing Determinants'!$B$19:$R$41,4,0)/'4. Billing Determinants'!$E$41*$D5,IF($E5="kW",VLOOKUP(T$4,'4. Billing Determinants'!$B$19:$R$41,5,0)/'4. Billing Determinants'!$F$41*$D5,IF($E5="Non-RPP kWh",VLOOKUP(T$4,'4. Billing Determinants'!$B$19:$R$41,6,0)/'4. Billing Determinants'!$G$41*$D5,IF($E5="Distribution Rev.",VLOOKUP(T$4,'4. Billing Determinants'!$B$19:$R$41,8,0)/'4. Billing Determinants'!$I$41*$D5, VLOOKUP(T$4,'4. Billing Determinants'!$B$19:$R$41,3,0)/'4. Billing Determinants'!$D$41*$D5))))),0) -> 0 | U5: =IFERROR(IF(U$4="",0,IF($E5="kWh",VLOOKUP(U$4,'4. Billing Determinants'!$B$19:$R$41,4,0)/'4. Billing Determinants'!$E$41*$D5,IF($E5="kW",VLOOKUP(U$4,'4. Billing Determinants'!$B$19:$R$41,5,0)/'4. Billing Determinants'!$F$41*$D5,IF($E5="Non-RPP kWh",VLOOKUP(U$4,'4. Billing Determinants'!$B$19:$R$41,6,0)/'4. Billing Determinants'!$G$41*$D5,IF($E5="Distribution Rev.",VLOOKUP(U$4,'4. Billing Determinants'!$B$19:$R$41,8,0)/'4. Billing Determinants'!$I$41*$D5, VLOOKUP(U$4,'4. Billing Determinants'!$B$19:$R$41,3,0)/'4. Billing Determinants'!$D$41*$D5))))),0) -> 0 | V5: =IFERROR(IF(V$4="",0,IF($E5="kWh",VLOOKUP(V$4,'4. Billing Determinants'!$B$19:$R$41,4,0)/'4. Billing Determinants'!$E$41*$D5,IF($E5="kW",VLOOKUP(V$4,'4. Billing Determinants'!$B$19:$R$41,5,0)/'4. Billing Determinants'!$F$41*$D5,IF($E5="Non-RPP kWh",VLOOKUP(V$4,'4. Billing Determinants'!$B$19:$R$41,6,0)/'4. Billing Determinants'!$G$41*$D5,IF($E5="Distribution Rev.",VLOOKUP(V$4,'4. Billing Determinants'!$B$19:$R$41,8,0)/'4. Billing Determinants'!$I$41*$D5, VLOOKUP(V$4,'4. Billing Determinants'!$B$19:$R$41,3,0)/'4. Billing Determinants'!$D$41*$D5))))),0) -> 0 | W5: =IFERROR(IF(W$4="",0,IF($E5="kWh",VLOOKUP(W$4,'4. Billing Determinants'!$B$19:$R$41,4,0)/'4. Billing Determinants'!$E$41*$D5,IF($E5="kW",VLOOKUP(W$4,'4. Billing Determinants'!$B$19:$R$41,5,0)/'4. Billing Determinants'!$F$41*$D5,IF($E5="Non-RPP kWh",VLOOKUP(W$4,'4. Billing Determinants'!$B$19:$R$41,6,0)/'4. Billing Determinants'!$G$41*$D5,IF($E5="Distribution Rev.",VLOOKUP(W$4,'4. Billing Determinants'!$B$19:$R$41,8,0)/'4. Billing Determinants'!$I$41*$D5, VLOOKUP(W$4,'4. Billing Determinants'!$B$19:$R$41,3,0)/'4. Billing Determinants'!$D$41*$D5))))),0) -> 0 | X5: =IFERROR(IF(X$4="",0,IF($E5="kWh",VLOOKUP(X$4,'4. Billing Determinants'!$B$19:$R$41,4,0)/'4. Billing Determinants'!$E$41*$D5,IF($E5="kW",VLOOKUP(X$4,'4. Billing Determinants'!$B$19:$R$41,5,0)/'4. Billing Determinants'!$F$41*$D5,IF($E5="Non-RPP kWh",VLOOKUP(X$4,'4. Billing Determinants'!$B$19:$R$41,6,0)/'4. Billing Determinants'!$G$41*$D5,IF($E5="Distribution Rev.",VLOOKUP(X$4,'4. Billing Determinants'!$B$19:$R$41,8,0)/'4. Billing Determinants'!$I$41*$D5, VLOOKUP(X$4,'4. Billing Determinants'!$B$19:$R$41,3,0)/'4. Billing Determinants'!$D$41*$D5))))),0) -> 0 | Y5: =IFERROR(IF(Y$4="",0,IF($E5="kWh",VLOOKUP(Y$4,'4. Billing Determinants'!$B$19:$R$41,4,0)/'4. Billing Determinants'!$E$41*$D5,IF($E5="kW",VLOOKUP(Y$4,'4. Billing Determinants'!$B$19:$R$41,5,0)/'4. Billing Determinants'!$F$41*$D5,IF($E5="Non-RPP kWh",VLOOKUP(Y$4,'4. Billing Determinants'!$B$19:$R$41,6,0)/'4. Billing Determinants'!$G$41*$D5,IF($E5="Distribution Rev.",VLOOKUP(Y$4,'4. Billing Determinants'!$B$19:$R$41,8,0)/'4. Billing Determinants'!$I$41*$D5, VLOOKUP(Y$4,'4. Billing Determinants'!$B$19:$R$41,3,0)/'4. Billing Determinants'!$D$41*$D5))))),0) -> 0
A6: 3 | B6: Smart Metering Entity Charge Variance Account | C6: 1551 | D6: ='2a. Continuity Schedule'!BT25 -> -27788.46 | E6: # of Customers | F6: =(4937.7441866486/(4937.7441866486+607.284816811291))*D6 -> -24745.10174 | G6: =(607.284816811291/(4937.7441866486+607.284816811291))*D6 -> -3043.358264 | H6: 0 | I6: 0 | J6: 0 | K6: 0 | L6: 0 | M6: 0 | N6: 0 | O6: 0 | P6: 0 | Q6: 0 | R6: 0 | S6: 0 | T6: 0 | U6: 0 | V6: 0 | W6: 0 | X6: 0 | Y6: 0
A7: 4 | B7: RSVA - Wholesale Market Service Charge | C7: 1580 | D7: =IF('7. Rate Rider Calculations'!I70="",'2a. Continuity Schedule'!BT26,'2a. Continuity Schedule'!BT26+'2a. Continuity Schedule'!BT28) -> 37327.39 | E7: kWh | F7: =IFERROR(IF(F$4="",0,IF($E7="kWh",VLOOKUP(F$4,'4. Billing Determinants'!$B$19:$R$41,11,0)/'4. Billing Determinants'!$L$41*$D7,IF($E7="kW",VLOOKUP(F$4,'4. Billing Determinants'!$B$19:$R$41,12,0)/'4. Billing Determinants'!$M$41*$D7,))),0) -> 13146.78157 | G7: =IFERROR(IF(G$4="",0,IF($E7="kWh",VLOOKUP(G$4,'4. Billing Determinants'!$B$19:$R$41,11,0)/'4. Billing Determinants'!$L$41*$D7,IF($E7="kW",VLOOKUP(G$4,'4. Billing Determinants'!$B$19:$R$41,12,0)/'4. Billing Determinants'!$M$41*$D7,))),0) -> 4699.782359 | H7: =IFERROR(IF(H$4="",0,IF($E7="kWh",VLOOKUP(H$4,'4. Billing Determinants'!$B$19:$R$41,11,0)/'4. Billing Determinants'!$L$41*$D7,IF($E7="kW",VLOOKUP(H$4,'4. Billing Determinants'!$B$19:$R$41,12,0)/'4. Billing Determinants'!$M$41*$D7,))),0) -> 19221.43303 | I7: =IFERROR(IF(I$4="",0,IF($E7="kWh",VLOOKUP(I$4,'4. Billing Determinants'!$B$19:$R$41,11,0)/'4. Billing Determinants'!$L$41*$D7,IF($E7="kW",VLOOKUP(I$4,'4. Billing Determinants'!$B$19:$R$41,12,0)/'4. Billing Determinants'!$M$41*$D7,))),0) -> 109.8161872 | J7: =IFERROR(IF(J$4="",0,IF($E7="kWh",VLOOKUP(J$4,'4. Billing Determinants'!$B$19:$R$41,11,0)/'4. Billing Determinants'!$L$41*$D7,IF($E7="kW",VLOOKUP(J$4,'4. Billing Determinants'!$B$19:$R$41,12,0)/'4. Billing Determinants'!$M$41*$D7,))),0) -> 12.81407861 | K7: =IFERROR(IF(K$4="",0,IF($E7="kWh",VLOOKUP(K$4,'4. Billing Determinants'!$B$19:$R$41,11,0)/'4. Billing Determinants'!$L$41*$D7,IF($E7="kW",VLOOKUP(K$4,'4. Billing Determinants'!$B$19:$R$41,12,0)/'4. Billing Determinants'!$M$41*$D7,))),0) -> 136.7627767 | L7: =IFERROR(IF(L$4="",0,IF($E7="kWh",VLOOKUP(L$4,'4. Billing Determinants'!$B$19:$R$41,11,0)/'4. Billing Determinants'!$L$41*$D7,IF($E7="kW",VLOOKUP(L$4,'4. Billing Determinants'!$B$19:$R$41,12,0)/'4. Billing Determinants'!$M$41*$D7,))),0) -> 0 | M7: =IFERROR(IF(M$4="",0,IF($E7="kWh",VLOOKUP(M$4,'4. Billing Determinants'!$B$19:$R$41,11,0)/'4. Billing Determinants'!$L$41*$D7,IF($E7="kW",VLOOKUP(M$4,'4. Billing Determinants'!$B$19:$R$41,12,0)/'4. Billing Determinants'!$M$41*$D7,))),0) -> 0 | N7: =IFERROR(IF(N$4="",0,IF($E7="kWh",VLOOKUP(N$4,'4. Billing Determinants'!$B$19:$R$41,11,0)/'4. Billing Determinants'!$L$41*$D7,IF($E7="kW",VLOOKUP(N$4,'4. Billing Determinants'!$B$19:$R$41,12,0)/'4. Billing Determinants'!$M$41*$D7,))),0) -> 0 | O7: =IFERROR(IF(O$4="",0,IF($E7="kWh",VLOOKUP(O$4,'4. Billing Determinants'!$B$19:$R$41,11,0)/'4. Billing Determinants'!$L$41*$D7,IF($E7="kW",VLOOKUP(O$4,'4. Billing Determinants'!$B$19:$R$41,12,0)/'4. Billing Determinants'!$M$41*$D7,))),0) -> 0 | P7: =IFERROR(IF(P$4="",0,IF($E7="kWh",VLOOKUP(P$4,'4. Billing Determinants'!$B$19:$R$41,11,0)/'4. Billing Determinants'!$L$41*$D7,IF($E7="kW",VLOOKUP(P$4,'4. Billing Determinants'!$B$19:$R$41,12,0)/'4. Billing Determinants'!$M$41*$D7,))),0) -> 0 | Q7: =IFERROR(IF(Q$4="",0,IF($E7="kWh",VLOOKUP(Q$4,'4. Billing Determinants'!$B$19:$R$41,11,0)/'4. Billing Determinants'!$L$41*$D7,IF($E7="kW",VLOOKUP(Q$4,'4. Billing Determinants'!$B$19:$R$41,12,0)/'4. Billing Determinants'!$M$41*$D7,))),0) -> 0 | R7: =IFERROR(IF(R$4="",0,IF($E7="kWh",VLOOKUP(R$4,'4. Billing Determinants'!$B$19:$R$41,11,0)/'4. Billing Determinants'!$L$41*$D7,IF($E7="kW",VLOOKUP(R$4,'4. Billing Determinants'!$B$19:$R$41,12,0)/'4. Billing Determinants'!$M$41*$D7,))),0) -> 0 | S7: =IFERROR(IF(S$4="",0,IF($E7="kWh",VLOOKUP(S$4,'4. Billing Determinants'!$B$19:$R$41,11,0)/'4. Billing Determinants'!$L$41*$D7,IF($E7="kW",VLOOKUP(S$4,'4. Billing Determinants'!$B$19:$R$41,12,0)/'4. Billing Determinants'!$M$41*$D7,))),0) -> 0 | T7: =IFERROR(IF(T$4="",0,IF($E7="kWh",VLOOKUP(T$4,'4. Billing Determinants'!$B$19:$R$41,11,0)/'4. Billing Determinants'!$L$41*$D7,IF($E7="kW",VLOOKUP(T$4,'4. Billing Determinants'!$B$19:$R$41,12,0)/'4. Billing Determinants'!$M$41*$D7,))),0) -> 0 | U7: =IFERROR(IF(U$4="",0,IF($E7="kWh",VLOOKUP(U$4,'4. Billing Determinants'!$B$19:$R$41,11,0)/'4. Billing Determinants'!$L$41*$D7,IF($E7="kW",VLOOKUP(U$4,'4. Billing Determinants'!$B$19:$R$41,12,0)/'4. Billing Determinants'!$M$41*$D7,))),0) -> 0 | V7: =IFERROR(IF(V$4="",0,IF($E7="kWh",VLOOKUP(V$4,'4. Billing Determinants'!$B$19:$R$41,11,0)/'4. Billing Determinants'!$L$41*$D7,IF($E7="kW",VLOOKUP(V$4,'4. Billing Determinants'!$B$19:$R$41,12,0)/'4. Billing Determinants'!$M$41*$D7,))),0) -> 0 | W7: =IFERROR(IF(W$4="",0,IF($E7="kWh",VLOOKUP(W$4,'4. Billing Determinants'!$B$19:$R$41,11,0)/'4. Billing Determinants'!$L$41*$D7,IF($E7="kW",VLOOKUP(W$4,'4. Billing Determinants'!$B$19:$R$41,12,0)/'4. Billing Determinants'!$M$41*$D7,))),0) -> 0 | X7: =IFERROR(IF(X$4="",0,IF($E7="kWh",VLOOKUP(X$4,'4. Billing Determinants'!$B$19:$R$41,11,0)/'4. Billing Determinants'!$L$41*$D7,IF($E7="kW",VLOOKUP(X$4,'4. Billing Determinants'!$B$19:$R$41,12,0)/'4. Billing Determinants'!$M$41*$D7,))),0) -> 0 | Y7: =IFERROR(IF(Y$4="",0,IF($E7="kWh",VLOOKUP(Y$4,'4. Billing Determinants'!$B$19:$R$41,11,0)/'4. Billing Determinants'!$L$41*$D7,IF($E7="kW",VLOOKUP(Y$4,'4. Billing Determinants'!$B$19:$R$41,12,0)/'4. Billing Determinants'!$M$41*$D7,))),0) -> 0
A8: 5 | B8: RSVA - Retail Transmission Network Charge | C8: 1584 | D8: ='2a. Continuity Schedule'!BT29 -> 238579.2 | E8: kWh | F8: =IFERROR(IF(F$4="",0,IF($E8="kWh",VLOOKUP(F$4,'4. Billing Determinants'!$B$19:$R$41,4,0)/'4. Billing Determinants'!$E$41*$D8,IF($E8="kW",VLOOKUP(F$4,'4. Billing Determinants'!$B$19:$R$41,5,0)/'4. Billing Determinants'!$F$41*$D8,IF($E8="Non-RPP kWh",VLOOKUP(F$4,'4. Billing Determinants'!$B$19:$R$41,6,0)/'4. Billing Determinants'!$G$41*$D8,IF($E8="Distribution Rev.",VLOOKUP(F$4,'4. Billing Determinants'!$B$19:$R$41,8,0)/'4. Billing Determinants'!$I$41*$D8, VLOOKUP(F$4,'4. Billing Determinants'!$B$19:$R$41,3,0)/'4. Billing Determinants'!$D$41*$D8))))),0) -> 84028.07239 | G8: =IFERROR(IF(G$4="",0,IF($E8="kWh",VLOOKUP(G$4,'4. Billing Determinants'!$B$19:$R$41,4,0)/'4. Billing Determinants'!$E$41*$D8,IF($E8="kW",VLOOKUP(G$4,'4. Billing Determinants'!$B$19:$R$41,5,0)/'4. Billing Determinants'!$F$41*$D8,IF($E8="Non-RPP kWh",VLOOKUP(G$4,'4. Billing Determinants'!$B$19:$R$41,6,0)/'4. Billing Determinants'!$G$41*$D8,IF($E8="Distribution Rev.",VLOOKUP(G$4,'4. Billing Determinants'!$B$19:$R$41,8,0)/'4. Billing Determinants'!$I$41*$D8, VLOOKUP(G$4,'4. Billing Determinants'!$B$19:$R$41,3,0)/'4. Billing Determinants'!$D$41*$D8))))),0) -> 30038.80837 | H8: =IFERROR(IF(H$4="",0,IF($E8="kWh",VLOOKUP(H$4,'4. Billing Determinants'!$B$19:$R$41,4,0)/'4. Billing Determinants'!$E$41*$D8,IF($E8="kW",VLOOKUP(H$4,'4. Billing Determinants'!$B$19:$R$41,5,0)/'4. Billing Determinants'!$F$41*$D8,IF($E8="Non-RPP kWh",VLOOKUP(H$4,'4. Billing Determinants'!$B$19:$R$41,6,0)/'4. Billing Determinants'!$G$41*$D8,IF($E8="Distribution Rev.",VLOOKUP(H$4,'4. Billing Determinants'!$B$19:$R$41,8,0)/'4. Billing Determinants'!$I$41*$D8, VLOOKUP(H$4,'4. Billing Determinants'!$B$19:$R$41,3,0)/'4. Billing Determinants'!$D$41*$D8))))),0) -> 122854.4004 | I8: =IFERROR(IF(I$4="",0,IF($E8="kWh",VLOOKUP(I$4,'4. Billing Determinants'!$B$19:$R$41,4,0)/'4. Billing Determinants'!$E$41*$D8,IF($E8="kW",VLOOKUP(I$4,'4. Billing Determinants'!$B$19:$R$41,5,0)/'4. Billing Determinants'!$F$41*$D8,IF($E8="Non-RPP kWh",VLOOKUP(I$4,'4. Billing Determinants'!$B$19:$R$41,6,0)/'4. Billing Determinants'!$G$41*$D8,IF($E8="Distribution Rev.",VLOOKUP(I$4,'4. Billing Determinants'!$B$19:$R$41,8,0)/'4. Billing Determinants'!$I$41*$D8, VLOOKUP(I$4,'4. Billing Determinants'!$B$19:$R$41,3,0)/'4. Billing Determinants'!$D$41*$D8))))),0) -> 701.8936521 | J8: =IFERROR(IF(J$4="",0,IF($E8="kWh",VLOOKUP(J$4,'4. Billing Determinants'!$B$19:$R$41,4,0)/'4. Billing Determinants'!$E$41*$D8,IF($E8="kW",VLOOKUP(J$4,'4. Billing Determinants'!$B$19:$R$41,5,0)/'4. Billing Determinants'!$F$41*$D8,IF($E8="Non-RPP kWh",VLOOKUP(J$4,'4. Billing Determinants'!$B$19:$R$41,6,0)/'4. Billing Determinants'!$G$41*$D8,IF($E8="Distribution Rev.",VLOOKUP(J$4,'4. Billing Determinants'!$B$19:$R$41,8,0)/'4. Billing Determinants'!$I$41*$D8, VLOOKUP(J$4,'4. Billing Determinants'!$B$19:$R$41,3,0)/'4. Billing Determinants'!$D$41*$D8))))),0) -> 81.90159083 | K8: =IFERROR(IF(K$4="",0,IF($E8="kWh",VLOOKUP(K$4,'4. Billing Determinants'!$B$19:$R$41,4,0)/'4. Billing Determinants'!$E$41*$D8,IF($E8="kW",VLOOKUP(K$4,'4. Billing Determinants'!$B$19:$R$41,5,0)/'4. Billing Determinants'!$F$41*$D8,IF($E8="Non-RPP kWh",VLOOKUP(K$4,'4. Billing Determinants'!$B$19:$R$41,6,0)/'4. Billing Determinants'!$G$41*$D8,IF($E8="Distribution Rev.",VLOOKUP(K$4,'4. Billing Determinants'!$B$19:$R$41,8,0)/'4. Billing Determinants'!$I$41*$D8, VLOOKUP(K$4,'4. Billing Determinants'!$B$19:$R$41,3,0)/'4. Billing Determinants'!$D$41*$D8))))),0) -> 874.1236354 | L8: =IFERROR(IF(L$4="",0,IF($E8="kWh",VLOOKUP(L$4,'4. Billing Determinants'!$B$19:$R$41,4,0)/'4. Billing Determinants'!$E$41*$D8,IF($E8="kW",VLOOKUP(L$4,'4. Billing Determinants'!$B$19:$R$41,5,0)/'4. Billing Determinants'!$F$41*$D8,IF($E8="Non-RPP kWh",VLOOKUP(L$4,'4. Billing Determinants'!$B$19:$R$41,6,0)/'4. Billing Determinants'!$G$41*$D8,IF($E8="Distribution Rev.",VLOOKUP(L$4,'4. Billing Determinants'!$B$19:$R$41,8,0)/'4. Billing Determinants'!$I$41*$D8, VLOOKUP(L$4,'4. Billing Determinants'!$B$19:$R$41,3,0)/'4. Billing Determinants'!$D$41*$D8))))),0) -> 0 | M8: =IFERROR(IF(M$4="",0,IF($E8="kWh",VLOOKUP(M$4,'4. Billing Determinants'!$B$19:$R$41,4,0)/'4. Billing Determinants'!$E$41*$D8,IF($E8="kW",VLOOKUP(M$4,'4. Billing Determinants'!$B$19:$R$41,5,0)/'4. Billing Determinants'!$F$41*$D8,IF($E8="Non-RPP kWh",VLOOKUP(M$4,'4. Billing Determinants'!$B$19:$R$41,6,0)/'4. Billing Determinants'!$G$41*$D8,IF($E8="Distribution Rev.",VLOOKUP(M$4,'4. Billing Determinants'!$B$19:$R$41,8,0)/'4. Billing Determinants'!$I$41*$D8, VLOOKUP(M$4,'4. Billing Determinants'!$B$19:$R$41,3,0)/'4. Billing Determinants'!$D$41*$D8))))),0) -> 0 | N8: =IFERROR(IF(N$4="",0,IF($E8="kWh",VLOOKUP(N$4,'4. Billing Determinants'!$B$19:$R$41,4,0)/'4. Billing Determinants'!$E$41*$D8,IF($E8="kW",VLOOKUP(N$4,'4. Billing Determinants'!$B$19:$R$41,5,0)/'4. Billing Determinants'!$F$41*$D8,IF($E8="Non-RPP kWh",VLOOKUP(N$4,'4. Billing Determinants'!$B$19:$R$41,6,0)/'4. Billing Determinants'!$G$41*$D8,IF($E8="Distribution Rev.",VLOOKUP(N$4,'4. Billing Determinants'!$B$19:$R$41,8,0)/'4. Billing Determinants'!$I$41*$D8, VLOOKUP(N$4,'4. Billing Determinants'!$B$19:$R$41,3,0)/'4. Billing Determinants'!$D$41*$D8))))),0) -> 0 | O8: =IFERROR(IF(O$4="",0,IF($E8="kWh",VLOOKUP(O$4,'4. Billing Determinants'!$B$19:$R$41,4,0)/'4. Billing Determinants'!$E$41*$D8,IF($E8="kW",VLOOKUP(O$4,'4. Billing Determinants'!$B$19:$R$41,5,0)/'4. Billing Determinants'!$F$41*$D8,IF($E8="Non-RPP kWh",VLOOKUP(O$4,'4. Billing Determinants'!$B$19:$R$41,6,0)/'4. Billing Determinants'!$G$41*$D8,IF($E8="Distribution Rev.",VLOOKUP(O$4,'4. Billing Determinants'!$B$19:$R$41,8,0)/'4. Billing Determinants'!$I$41*$D8, VLOOKUP(O$4,'4. Billing Determinants'!$B$19:$R$41,3,0)/'4. Billing Determinants'!$D$41*$D8))))),0) -> 0 | P8: =IFERROR(IF(P$4="",0,IF($E8="kWh",VLOOKUP(P$4,'4. Billing Determinants'!$B$19:$R$41,4,0)/'4. Billing Determinants'!$E$41*$D8,IF($E8="kW",VLOOKUP(P$4,'4. Billing Determinants'!$B$19:$R$41,5,0)/'4. Billing Determinants'!$F$41*$D8,IF($E8="Non-RPP kWh",VLOOKUP(P$4,'4. Billing Determinants'!$B$19:$R$41,6,0)/'4. Billing Determinants'!$G$41*$D8,IF($E8="Distribution Rev.",VLOOKUP(P$4,'4. Billing Determinants'!$B$19:$R$41,8,0)/'4. Billing Determinants'!$I$41*$D8, VLOOKUP(P$4,'4. Billing Determinants'!$B$19:$R$41,3,0)/'4. Billing Determinants'!$D$41*$D8))))),0) -> 0 | Q8: =IFERROR(IF(Q$4="",0,IF($E8="kWh",VLOOKUP(Q$4,'4. Billing Determinants'!$B$19:$R$41,4,0)/'4. Billing Determinants'!$E$41*$D8,IF($E8="kW",VLOOKUP(Q$4,'4. Billing Determinants'!$B$19:$R$41,5,0)/'4. Billing Determinants'!$F$41*$D8,IF($E8="Non-RPP kWh",VLOOKUP(Q$4,'4. Billing Determinants'!$B$19:$R$41,6,0)/'4. Billing Determinants'!$G$41*$D8,IF($E8="Distribution Rev.",VLOOKUP(Q$4,'4. Billing Determinants'!$B$19:$R$41,8,0)/'4. Billing Determinants'!$I$41*$D8, VLOOKUP(Q$4,'4. Billing Determinants'!$B$19:$R$41,3,0)/'4. Billing Determinants'!$D$41*$D8))))),0) -> 0 | R8: =IFERROR(IF(R$4="",0,IF($E8="kWh",VLOOKUP(R$4,'4. Billing Determinants'!$B$19:$R$41,4,0)/'4. Billing Determinants'!$E$41*$D8,IF($E8="kW",VLOOKUP(R$4,'4. Billing Determinants'!$B$19:$R$41,5,0)/'4. Billing Determinants'!$F$41*$D8,IF($E8="Non-RPP kWh",VLOOKUP(R$4,'4. Billing Determinants'!$B$19:$R$41,6,0)/'4. Billing Determinants'!$G$41*$D8,IF($E8="Distribution Rev.",VLOOKUP(R$4,'4. Billing Determinants'!$B$19:$R$41,8,0)/'4. Billing Determinants'!$I$41*$D8, VLOOKUP(R$4,'4. Billing Determinants'!$B$19:$R$41,3,0)/'4. Billing Determinants'!$D$41*$D8))))),0) -> 0 | S8: =IFERROR(IF(S$4="",0,IF($E8="kWh",VLOOKUP(S$4,'4. Billing Determinants'!$B$19:$R$41,4,0)/'4. Billing Determinants'!$E$41*$D8,IF($E8="kW",VLOOKUP(S$4,'4. Billing Determinants'!$B$19:$R$41,5,0)/'4. Billing Determinants'!$F$41*$D8,IF($E8="Non-RPP kWh",VLOOKUP(S$4,'4. Billing Determinants'!$B$19:$R$41,6,0)/'4. Billing Determinants'!$G$41*$D8,IF($E8="Distribution Rev.",VLOOKUP(S$4,'4. Billing Determinants'!$B$19:$R$41,8,0)/'4. Billing Determinants'!$I$41*$D8, VLOOKUP(S$4,'4. Billing Determinants'!$B$19:$R$41,3,0)/'4. Billing Determinants'!$D$41*$D8))))),0) -> 0 | T8: =IFERROR(IF(T$4="",0,IF($E8="kWh",VLOOKUP(T$4,'4. Billing Determinants'!$B$19:$R$41,4,0)/'4. Billing Determinants'!$E$41*$D8,IF($E8="kW",VLOOKUP(T$4,'4. Billing Determinants'!$B$19:$R$41,5,0)/'4. Billing Determinants'!$F$41*$D8,IF($E8="Non-RPP kWh",VLOOKUP(T$4,'4. Billing Determinants'!$B$19:$R$41,6,0)/'4. Billing Determinants'!$G$41*$D8,IF($E8="Distribution Rev.",VLOOKUP(T$4,'4. Billing Determinants'!$B$19:$R$41,8,0)/'4. Billing Determinants'!$I$41*$D8, VLOOKUP(T$4,'4. Billing Determinants'!$B$19:$R$41,3,0)/'4. Billing Determinants'!$D$41*$D8))))),0) -> 0 | U8: =IFERROR(IF(U$4="",0,IF($E8="kWh",VLOOKUP(U$4,'4. Billing Determinants'!$B$19:$R$41,4,0)/'4. Billing Determinants'!$E$41*$D8,IF($E8="kW",VLOOKUP(U$4,'4. Billing Determinants'!$B$19:$R$41,5,0)/'4. Billing Determinants'!$F$41*$D8,IF($E8="Non-RPP kWh",VLOOKUP(U$4,'4. Billing Determinants'!$B$19:$R$41,6,0)/'4. Billing Determinants'!$G$41*$D8,IF($E8="Distribution Rev.",VLOOKUP(U$4,'4. Billing Determinants'!$B$19:$R$41,8,0)/'4. Billing Determinants'!$I$41*$D8, VLOOKUP(U$4,'4. Billing Determinants'!$B$19:$R$41,3,0)/'4. Billing Determinants'!$D$41*$D8))))),0) -> 0 | V8: =IFERROR(IF(V$4="",0,IF($E8="kWh",VLOOKUP(V$4,'4. Billing Determinants'!$B$19:$R$41,4,0)/'4. Billing Determinants'!$E$41*$D8,IF($E8="kW",VLOOKUP(V$4,'4. Billing Determinants'!$B$19:$R$41,5,0)/'4. Billing Determinants'!$F$41*$D8,IF($E8="Non-RPP kWh",VLOOKUP(V$4,'4. Billing Determinants'!$B$19:$R$41,6,0)/'4. Billing Determinants'!$G$41*$D8,IF($E8="Distribution Rev.",VLOOKUP(V$4,'4. Billing Determinants'!$B$19:$R$41,8,0)/'4. Billing Determinants'!$I$41*$D8, VLOOKUP(V$4,'4. Billing Determinants'!$B$19:$R$41,3,0)/'4. Billing Determinants'!$D$41*$D8))))),0) -> 0 | W8: =IFERROR(IF(W$4="",0,IF($E8="kWh",VLOOKUP(W$4,'4. Billing Determinants'!$B$19:$R$41,4,0)/'4. Billing Determinants'!$E$41*$D8,IF($E8="kW",VLOOKUP(W$4,'4. Billing Determinants'!$B$19:$R$41,5,0)/'4. Billing Determinants'!$F$41*$D8,IF($E8="Non-RPP kWh",VLOOKUP(W$4,'4. Billing Determinants'!$B$19:$R$41,6,0)/'4. Billing Determinants'!$G$41*$D8,IF($E8="Distribution Rev.",VLOOKUP(W$4,'4. Billing Determinants'!$B$19:$R$41,8,0)/'4. Billing Determinants'!$I$41*$D8, VLOOKUP(W$4,'4. Billing Determinants'!$B$19:$R$41,3,0)/'4. Billing Determinants'!$D$41*$D8))))),0) -> 0 | X8: =IFERROR(IF(X$4="",0,IF($E8="kWh",VLOOKUP(X$4,'4. Billing Determinants'!$B$19:$R$41,4,0)/'4. Billing Determinants'!$E$41*$D8,IF($E8="kW",VLOOKUP(X$4,'4. Billing Determinants'!$B$19:$R$41,5,0)/'4. Billing Determinants'!$F$41*$D8,IF($E8="Non-RPP kWh",VLOOKUP(X$4,'4. Billing Determinants'!$B$19:$R$41,6,0)/'4. Billing Determinants'!$G$41*$D8,IF($E8="Distribution Rev.",VLOOKUP(X$4,'4. Billing Determinants'!$B$19:$R$41,8,0)/'4. Billing Determinants'!$I$41*$D8, VLOOKUP(X$4,'4. Billing Determinants'!$B$19:$R$41,3,0)/'4. Billing Determinants'!$D$41*$D8))))),0) -> 0 | Y8: =IFERROR(IF(Y$4="",0,IF($E8="kWh",VLOOKUP(Y$4,'4. Billing Determinants'!$B$19:$R$41,4,0)/'4. Billing Determinants'!$E$41*$D8,IF($E8="kW",VLOOKUP(Y$4,'4. Billing Determinants'!$B$19:$R$41,5,0)/'4. Billing Determinants'!$F$41*$D8,IF($E8="Non-RPP kWh",VLOOKUP(Y$4,'4. Billing Determinants'!$B$19:$R$41,6,0)/'4. Billing Determinants'!$G$41*$D8,IF($E8="Distribution Rev.",VLOOKUP(Y$4,'4. Billing Determinants'!$B$19:$R$41,8,0)/'4. Billing Determinants'!$I$41*$D8, VLOOKUP(Y$4,'4. Billing Determinants'!$B$19:$R$41,3,0)/'4. Billing Determinants'!$D$41*$D8))))),0) -> 0
A9: 6 | B9: RSVA - Retail Transmission Connection Charge | C9: 1586 | D9: ='2a. Continuity Schedule'!BT30 -> 99006.81 | E9: kWh | F9: =IFERROR(IF(F$4="",0,IF($E9="kWh",VLOOKUP(F$4,'4. Billing Determinants'!$B$19:$R$41,4,0)/'4. Billing Determinants'!$E$41*$D9,IF($E9="kW",VLOOKUP(F$4,'4. Billing Determinants'!$B$19:$R$41,5,0)/'4. Billing Determinants'!$F$41*$D9,IF($E9="Non-RPP kWh",VLOOKUP(F$4,'4. Billing Determinants'!$B$19:$R$41,6,0)/'4. Billing Determinants'!$G$41*$D9,IF($E9="Distribution Rev.",VLOOKUP(F$4,'4. Billing Determinants'!$B$19:$R$41,8,0)/'4. Billing Determinants'!$I$41*$D9, VLOOKUP(F$4,'4. Billing Determinants'!$B$19:$R$41,3,0)/'4. Billing Determinants'!$D$41*$D9))))),0) -> 34870.39691 | G9: =IFERROR(IF(G$4="",0,IF($E9="kWh",VLOOKUP(G$4,'4. Billing Determinants'!$B$19:$R$41,4,0)/'4. Billing Determinants'!$E$41*$D9,IF($E9="kW",VLOOKUP(G$4,'4. Billing Determinants'!$B$19:$R$41,5,0)/'4. Billing Determinants'!$F$41*$D9,IF($E9="Non-RPP kWh",VLOOKUP(G$4,'4. Billing Determinants'!$B$19:$R$41,6,0)/'4. Billing Determinants'!$G$41*$D9,IF($E9="Distribution Rev.",VLOOKUP(G$4,'4. Billing Determinants'!$B$19:$R$41,8,0)/'4. Billing Determinants'!$I$41*$D9, VLOOKUP(G$4,'4. Billing Determinants'!$B$19:$R$41,3,0)/'4. Billing Determinants'!$D$41*$D9))))),0) -> 12465.6575 | H9: =IFERROR(IF(H$4="",0,IF($E9="kWh",VLOOKUP(H$4,'4. Billing Determinants'!$B$19:$R$41,4,0)/'4. Billing Determinants'!$E$41*$D9,IF($E9="kW",VLOOKUP(H$4,'4. Billing Determinants'!$B$19:$R$41,5,0)/'4. Billing Determinants'!$F$41*$D9,IF($E9="Non-RPP kWh",VLOOKUP(H$4,'4. Billing Determinants'!$B$19:$R$41,6,0)/'4. Billing Determinants'!$G$41*$D9,IF($E9="Distribution Rev.",VLOOKUP(H$4,'4. Billing Determinants'!$B$19:$R$41,8,0)/'4. Billing Determinants'!$I$41*$D9, VLOOKUP(H$4,'4. Billing Determinants'!$B$19:$R$41,3,0)/'4. Billing Determinants'!$D$41*$D9))))),0) -> 50982.74398 | I9: =IFERROR(IF(I$4="",0,IF($E9="kWh",VLOOKUP(I$4,'4. Billing Determinants'!$B$19:$R$41,4,0)/'4. Billing Determinants'!$E$41*$D9,IF($E9="kW",VLOOKUP(I$4,'4. Billing Determinants'!$B$19:$R$41,5,0)/'4. Billing Determinants'!$F$41*$D9,IF($E9="Non-RPP kWh",VLOOKUP(I$4,'4. Billing Determinants'!$B$19:$R$41,6,0)/'4. Billing Determinants'!$G$41*$D9,IF($E9="Distribution Rev.",VLOOKUP(I$4,'4. Billing Determinants'!$B$19:$R$41,8,0)/'4. Billing Determinants'!$I$41*$D9, VLOOKUP(I$4,'4. Billing Determinants'!$B$19:$R$41,3,0)/'4. Billing Determinants'!$D$41*$D9))))),0) -> 291.2753981 | J9: =IFERROR(IF(J$4="",0,IF($E9="kWh",VLOOKUP(J$4,'4. Billing Determinants'!$B$19:$R$41,4,0)/'4. Billing Determinants'!$E$41*$D9,IF($E9="kW",VLOOKUP(J$4,'4. Billing Determinants'!$B$19:$R$41,5,0)/'4. Billing Determinants'!$F$41*$D9,IF($E9="Non-RPP kWh",VLOOKUP(J$4,'4. Billing Determinants'!$B$19:$R$41,6,0)/'4. Billing Determinants'!$G$41*$D9,IF($E9="Distribution Rev.",VLOOKUP(J$4,'4. Billing Determinants'!$B$19:$R$41,8,0)/'4. Billing Determinants'!$I$41*$D9, VLOOKUP(J$4,'4. Billing Determinants'!$B$19:$R$41,3,0)/'4. Billing Determinants'!$D$41*$D9))))),0) -> 33.98793877 | K9: =IFERROR(IF(K$4="",0,IF($E9="kWh",VLOOKUP(K$4,'4. Billing Determinants'!$B$19:$R$41,4,0)/'4. Billing Determinants'!$E$41*$D9,IF($E9="kW",VLOOKUP(K$4,'4. Billing Determinants'!$B$19:$R$41,5,0)/'4. Billing Determinants'!$F$41*$D9,IF($E9="Non-RPP kWh",VLOOKUP(K$4,'4. Billing Determinants'!$B$19:$R$41,6,0)/'4. Billing Determinants'!$G$41*$D9,IF($E9="Distribution Rev.",VLOOKUP(K$4,'4. Billing Determinants'!$B$19:$R$41,8,0)/'4. Billing Determinants'!$I$41*$D9, VLOOKUP(K$4,'4. Billing Determinants'!$B$19:$R$41,3,0)/'4. Billing Determinants'!$D$41*$D9))))),0) -> 362.7482726 | L9: =IFERROR(IF(L$4="",0,IF($E9="kWh",VLOOKUP(L$4,'4. Billing Determinants'!$B$19:$R$41,4,0)/'4. Billing Determinants'!$E$41*$D9,IF($E9="kW",VLOOKUP(L$4,'4. Billing Determinants'!$B$19:$R$41,5,0)/'4. Billing Determinants'!$F$41*$D9,IF($E9="Non-RPP kWh",VLOOKUP(L$4,'4. Billing Determinants'!$B$19:$R$41,6,0)/'4. Billing Determinants'!$G$41*$D9,IF($E9="Distribution Rev.",VLOOKUP(L$4,'4. Billing Determinants'!$B$19:$R$41,8,0)/'4. Billing Determinants'!$I$41*$D9, VLOOKUP(L$4,'4. Billing Determinants'!$B$19:$R$41,3,0)/'4. Billing Determinants'!$D$41*$D9))))),0) -> 0 | M9: =IFERROR(IF(M$4="",0,IF($E9="kWh",VLOOKUP(M$4,'4. Billing Determinants'!$B$19:$R$41,4,0)/'4. Billing Determinants'!$E$41*$D9,IF($E9="kW",VLOOKUP(M$4,'4. Billing Determinants'!$B$19:$R$41,5,0)/'4. Billing Determinants'!$F$41*$D9,IF($E9="Non-RPP kWh",VLOOKUP(M$4,'4. Billing Determinants'!$B$19:$R$41,6,0)/'4. Billing Determinants'!$G$41*$D9,IF($E9="Distribution Rev.",VLOOKUP(M$4,'4. Billing Determinants'!$B$19:$R$41,8,0)/'4. Billing Determinants'!$I$41*$D9, VLOOKUP(M$4,'4. Billing Determinants'!$B$19:$R$41,3,0)/'4. Billing Determinants'!$D$41*$D9))))),0) -> 0 | N9: =IFERROR(IF(N$4="",0,IF($E9="kWh",VLOOKUP(N$4,'4. Billing Determinants'!$B$19:$R$41,4,0)/'4. Billing Determinants'!$E$41*$D9,IF($E9="kW",VLOOKUP(N$4,'4. Billing Determinants'!$B$19:$R$41,5,0)/'4. Billing Determinants'!$F$41*$D9,IF($E9="Non-RPP kWh",VLOOKUP(N$4,'4. Billing Determinants'!$B$19:$R$41,6,0)/'4. Billing Determinants'!$G$41*$D9,IF($E9="Distribution Rev.",VLOOKUP(N$4,'4. Billing Determinants'!$B$19:$R$41,8,0)/'4. Billing Determinants'!$I$41*$D9, VLOOKUP(N$4,'4. Billing Determinants'!$B$19:$R$41,3,0)/'4. Billing Determinants'!$D$41*$D9))))),0) -> 0 | O9: =IFERROR(IF(O$4="",0,IF($E9="kWh",VLOOKUP(O$4,'4. Billing Determinants'!$B$19:$R$41,4,0)/'4. Billing Determinants'!$E$41*$D9,IF($E9="kW",VLOOKUP(O$4,'4. Billing Determinants'!$B$19:$R$41,5,0)/'4. Billing Determinants'!$F$41*$D9,IF($E9="Non-RPP kWh",VLOOKUP(O$4,'4. Billing Determinants'!$B$19:$R$41,6,0)/'4. Billing Determinants'!$G$41*$D9,IF($E9="Distribution Rev.",VLOOKUP(O$4,'4. Billing Determinants'!$B$19:$R$41,8,0)/'4. Billing Determinants'!$I$41*$D9, VLOOKUP(O$4,'4. Billing Determinants'!$B$19:$R$41,3,0)/'4. Billing Determinants'!$D$41*$D9))))),0) -> 0 | P9: =IFERROR(IF(P$4="",0,IF($E9="kWh",VLOOKUP(P$4,'4. Billing Determinants'!$B$19:$R$41,4,0)/'4. Billing Determinants'!$E$41*$D9,IF($E9="kW",VLOOKUP(P$4,'4. Billing Determinants'!$B$19:$R$41,5,0)/'4. Billing Determinants'!$F$41*$D9,IF($E9="Non-RPP kWh",VLOOKUP(P$4,'4. Billing Determinants'!$B$19:$R$41,6,0)/'4. Billing Determinants'!$G$41*$D9,IF($E9="Distribution Rev.",VLOOKUP(P$4,'4. Billing Determinants'!$B$19:$R$41,8,0)/'4. Billing Determinants'!$I$41*$D9, VLOOKUP(P$4,'4. Billing Determinants'!$B$19:$R$41,3,0)/'4. Billing Determinants'!$D$41*$D9))))),0) -> 0 | Q9: =IFERROR(IF(Q$4="",0,IF($E9="kWh",VLOOKUP(Q$4,'4. Billing Determinants'!$B$19:$R$41,4,0)/'4. Billing Determinants'!$E$41*$D9,IF($E9="kW",VLOOKUP(Q$4,'4. Billing Determinants'!$B$19:$R$41,5,0)/'4. Billing Determinants'!$F$41*$D9,IF($E9="Non-RPP kWh",VLOOKUP(Q$4,'4. Billing Determinants'!$B$19:$R$41,6,0)/'4. Billing Determinants'!$G$41*$D9,IF($E9="Distribution Rev.",VLOOKUP(Q$4,'4. Billing Determinants'!$B$19:$R$41,8,0)/'4. Billing Determinants'!$I$41*$D9, VLOOKUP(Q$4,'4. Billing Determinants'!$B$19:$R$41,3,0)/'4. Billing Determinants'!$D$41*$D9))))),0) -> 0 | R9: =IFERROR(IF(R$4="",0,IF($E9="kWh",VLOOKUP(R$4,'4. Billing Determinants'!$B$19:$R$41,4,0)/'4. Billing Determinants'!$E$41*$D9,IF($E9="kW",VLOOKUP(R$4,'4. Billing Determinants'!$B$19:$R$41,5,0)/'4. Billing Determinants'!$F$41*$D9,IF($E9="Non-RPP kWh",VLOOKUP(R$4,'4. Billing Determinants'!$B$19:$R$41,6,0)/'4. Billing Determinants'!$G$41*$D9,IF($E9="Distribution Rev.",VLOOKUP(R$4,'4. Billing Determinants'!$B$19:$R$41,8,0)/'4. Billing Determinants'!$I$41*$D9, VLOOKUP(R$4,'4. Billing Determinants'!$B$19:$R$41,3,0)/'4. Billing Determinants'!$D$41*$D9))))),0) -> 0 | S9: =IFERROR(IF(S$4="",0,IF($E9="kWh",VLOOKUP(S$4,'4. Billing Determinants'!$B$19:$R$41,4,0)/'4. Billing Determinants'!$E$41*$D9,IF($E9="kW",VLOOKUP(S$4,'4. Billing Determinants'!$B$19:$R$41,5,0)/'4. Billing Determinants'!$F$41*$D9,IF($E9="Non-RPP kWh",VLOOKUP(S$4,'4. Billing Determinants'!$B$19:$R$41,6,0)/'4. Billing Determinants'!$G$41*$D9,IF($E9="Distribution Rev.",VLOOKUP(S$4,'4. Billing Determinants'!$B$19:$R$41,8,0)/'4. Billing Determinants'!$I$41*$D9, VLOOKUP(S$4,'4. Billing Determinants'!$B$19:$R$41,3,0)/'4. Billing Determinants'!$D$41*$D9))))),0) -> 0 | T9: =IFERROR(IF(T$4="",0,IF($E9="kWh",VLOOKUP(T$4,'4. Billing Determinants'!$B$19:$R$41,4,0)/'4. Billing Determinants'!$E$41*$D9,IF($E9="kW",VLOOKUP(T$4,'4. Billing Determinants'!$B$19:$R$41,5,0)/'4. Billing Determinants'!$F$41*$D9,IF($E9="Non-RPP kWh",VLOOKUP(T$4,'4. Billing Determinants'!$B$19:$R$41,6,0)/'4. Billing Determinants'!$G$41*$D9,IF($E9="Distribution Rev.",VLOOKUP(T$4,'4. Billing Determinants'!$B$19:$R$41,8,0)/'4. Billing Determinants'!$I$41*$D9, VLOOKUP(T$4,'4. Billing Determinants'!$B$19:$R$41,3,0)/'4. Billing Determinants'!$D$41*$D9))))),0) -> 0 | U9: =IFERROR(IF(U$4="",0,IF($E9="kWh",VLOOKUP(U$4,'4. Billing Determinants'!$B$19:$R$41,4,0)/'4. Billing Determinants'!$E$41*$D9,IF($E9="kW",VLOOKUP(U$4,'4. Billing Determinants'!$B$19:$R$41,5,0)/'4. Billing Determinants'!$F$41*$D9,IF($E9="Non-RPP kWh",VLOOKUP(U$4,'4. Billing Determinants'!$B$19:$R$41,6,0)/'4. Billing Determinants'!$G$41*$D9,IF($E9="Distribution Rev.",VLOOKUP(U$4,'4. Billing Determinants'!$B$19:$R$41,8,0)/'4. Billing Determinants'!$I$41*$D9, VLOOKUP(U$4,'4. Billing Determinants'!$B$19:$R$41,3,0)/'4. Billing Determinants'!$D$41*$D9))))),0) -> 0 | V9: =IFERROR(IF(V$4="",0,IF($E9="kWh",VLOOKUP(V$4,'4. Billing Determinants'!$B$19:$R$41,4,0)/'4. Billing Determinants'!$E$41*$D9,IF($E9="kW",VLOOKUP(V$4,'4. Billing Determinants'!$B$19:$R$41,5,0)/'4. Billing Determinants'!$F$41*$D9,IF($E9="Non-RPP kWh",VLOOKUP(V$4,'4. Billing Determinants'!$B$19:$R$41,6,0)/'4. Billing Determinants'!$G$41*$D9,IF($E9="Distribution Rev.",VLOOKUP(V$4,'4. Billing Determinants'!$B$19:$R$41,8,0)/'4. Billing Determinants'!$I$41*$D9, VLOOKUP(V$4,'4. Billing Determinants'!$B$19:$R$41,3,0)/'4. Billing Determinants'!$D$41*$D9))))),0) -> 0 | W9: =IFERROR(IF(W$4="",0,IF($E9="kWh",VLOOKUP(W$4,'4. Billing Determinants'!$B$19:$R$41,4,0)/'4. Billing Determinants'!$E$41*$D9,IF($E9="kW",VLOOKUP(W$4,'4. Billing Determinants'!$B$19:$R$41,5,0)/'4. Billing Determinants'!$F$41*$D9,IF($E9="Non-RPP kWh",VLOOKUP(W$4,'4. Billing Determinants'!$B$19:$R$41,6,0)/'4. Billing Determinants'!$G$41*$D9,IF($E9="Distribution Rev.",VLOOKUP(W$4,'4. Billing Determinants'!$B$19:$R$41,8,0)/'4. Billing Determinants'!$I$41*$D9, VLOOKUP(W$4,'4. Billing Determinants'!$B$19:$R$41,3,0)/'4. Billing Determinants'!$D$41*$D9))))),0) -> 0 | X9: =IFERROR(IF(X$4="",0,IF($E9="kWh",VLOOKUP(X$4,'4. Billing Determinants'!$B$19:$R$41,4,0)/'4. Billing Determinants'!$E$41*$D9,IF($E9="kW",VLOOKUP(X$4,'4. Billing Determinants'!$B$19:$R$41,5,0)/'4. Billing Determinants'!$F$41*$D9,IF($E9="Non-RPP kWh",VLOOKUP(X$4,'4. Billing Determinants'!$B$19:$R$41,6,0)/'4. Billing Determinants'!$G$41*$D9,IF($E9="Distribution Rev.",VLOOKUP(X$4,'4. Billing Determinants'!$B$19:$R$41,8,0)/'4. Billing Determinants'!$I$41*$D9, VLOOKUP(X$4,'4. Billing Determinants'!$B$19:$R$41,3,0)/'4. Billing Determinants'!$D$41*$D9))))),0) -> 0 | Y9: =IFERROR(IF(Y$4="",0,IF($E9="kWh",VLOOKUP(Y$4,'4. Billing Determinants'!$B$19:$R$41,4,0)/'4. Billing Determinants'!$E$41*$D9,IF($E9="kW",VLOOKUP(Y$4,'4. Billing Determinants'!$B$19:$R$41,5,0)/'4. Billing Determinants'!$F$41*$D9,IF($E9="Non-RPP kWh",VLOOKUP(Y$4,'4. Billing Determinants'!$B$19:$R$41,6,0)/'4. Billing Determinants'!$G$41*$D9,IF($E9="Distribution Rev.",VLOOKUP(Y$4,'4. Billing Determinants'!$B$19:$R$41,8,0)/'4. Billing Determinants'!$I$41*$D9, VLOOKUP(Y$4,'4. Billing Determinants'!$B$19:$R$41,3,0)/'4. Billing Determinants'!$D$41*$D9))))),0) -> 0
A10: 7 | B10: RSVA - Power (excluding Global Adjustment) | C10: 1588 | D10: ='2a. Continuity Schedule'!BT31 -> -616034.51 | E10: kWh | F10: =IFERROR(IF(F$4="",0,IF($E10="kWh",VLOOKUP(F$4,'4. Billing Determinants'!$B$19:$R$41,11,0)/'4. Billing Determinants'!$L$41*$D10,IF($E10="kW",VLOOKUP(F$4,'4. Billing Determinants'!$B$19:$R$41,12,0)/'4. Billing Determinants'!$M$41*$D10,))),0) -> -216968.5891 | G10: =IFERROR(IF(G$4="",0,IF($E10="kWh",VLOOKUP(G$4,'4. Billing Determinants'!$B$19:$R$41,11,0)/'4. Billing Determinants'!$L$41*$D10,IF($E10="kW",VLOOKUP(G$4,'4. Billing Determinants'!$B$19:$R$41,12,0)/'4. Billing Determinants'!$M$41*$D10,))),0) -> -77563.10105 | H10: =IFERROR(IF(H$4="",0,IF($E10="kWh",VLOOKUP(H$4,'4. Billing Determinants'!$B$19:$R$41,11,0)/'4. Billing Determinants'!$L$41*$D10,IF($E10="kW",VLOOKUP(H$4,'4. Billing Determinants'!$B$19:$R$41,12,0)/'4. Billing Determinants'!$M$41*$D10,))),0) -> -317221.9134 | I10: =IFERROR(IF(I$4="",0,IF($E10="kWh",VLOOKUP(I$4,'4. Billing Determinants'!$B$19:$R$41,11,0)/'4. Billing Determinants'!$L$41*$D10,IF($E10="kW",VLOOKUP(I$4,'4. Billing Determinants'!$B$19:$R$41,12,0)/'4. Billing Determinants'!$M$41*$D10,))),0) -> -1812.357121 | J10: =IFERROR(IF(J$4="",0,IF($E10="kWh",VLOOKUP(J$4,'4. Billing Determinants'!$B$19:$R$41,11,0)/'4. Billing Determinants'!$L$41*$D10,IF($E10="kW",VLOOKUP(J$4,'4. Billing Determinants'!$B$19:$R$41,12,0)/'4. Billing Determinants'!$M$41*$D10,))),0) -> -211.4778085 | K10: =IFERROR(IF(K$4="",0,IF($E10="kWh",VLOOKUP(K$4,'4. Billing Determinants'!$B$19:$R$41,11,0)/'4. Billing Determinants'!$L$41*$D10,IF($E10="kW",VLOOKUP(K$4,'4. Billing Determinants'!$B$19:$R$41,12,0)/'4. Billing Determinants'!$M$41*$D10,))),0) -> -2257.071553 | L10: =IFERROR(IF(L$4="",0,IF($E10="kWh",VLOOKUP(L$4,'4. Billing Determinants'!$B$19:$R$41,11,0)/'4. Billing Determinants'!$L$41*$D10,IF($E10="kW",VLOOKUP(L$4,'4. Billing Determinants'!$B$19:$R$41,12,0)/'4. Billing Determinants'!$M$41*$D10,))),0) -> 0 | M10: =IFERROR(IF(M$4="",0,IF($E10="kWh",VLOOKUP(M$4,'4. Billing Determinants'!$B$19:$R$41,11,0)/'4. Billing Determinants'!$L$41*$D10,IF($E10="kW",VLOOKUP(M$4,'4. Billing Determinants'!$B$19:$R$41,12,0)/'4. Billing Determinants'!$M$41*$D10,))),0) -> 0 | N10: =IFERROR(IF(N$4="",0,IF($E10="kWh",VLOOKUP(N$4,'4. Billing Determinants'!$B$19:$R$41,11,0)/'4. Billing Determinants'!$L$41*$D10,IF($E10="kW",VLOOKUP(N$4,'4. Billing Determinants'!$B$19:$R$41,12,0)/'4. Billing Determinants'!$M$41*$D10,))),0) -> 0 | O10: =IFERROR(IF(O$4="",0,IF($E10="kWh",VLOOKUP(O$4,'4. Billing Determinants'!$B$19:$R$41,11,0)/'4. Billing Determinants'!$L$41*$D10,IF($E10="kW",VLOOKUP(O$4,'4. Billing Determinants'!$B$19:$R$41,12,0)/'4. Billing Determinants'!$M$41*$D10,))),0) -> 0 | P10: =IFERROR(IF(P$4="",0,IF($E10="kWh",VLOOKUP(P$4,'4. Billing Determinants'!$B$19:$R$41,11,0)/'4. Billing Determinants'!$L$41*$D10,IF($E10="kW",VLOOKUP(P$4,'4. Billing Determinants'!$B$19:$R$41,12,0)/'4. Billing Determinants'!$M$41*$D10,))),0) -> 0 | Q10: =IFERROR(IF(Q$4="",0,IF($E10="kWh",VLOOKUP(Q$4,'4. Billing Determinants'!$B$19:$R$41,11,0)/'4. Billing Determinants'!$L$41*$D10,IF($E10="kW",VLOOKUP(Q$4,'4. Billing Determinants'!$B$19:$R$41,12,0)/'4. Billing Determinants'!$M$41*$D10,))),0) -> 0 | R10: =IFERROR(IF(R$4="",0,IF($E10="kWh",VLOOKUP(R$4,'4. Billing Determinants'!$B$19:$R$41,11,0)/'4. Billing Determinants'!$L$41*$D10,IF($E10="kW",VLOOKUP(R$4,'4. Billing Determinants'!$B$19:$R$41,12,0)/'4. Billing Determinants'!$M$41*$D10,))),0) -> 0 | S10: =IFERROR(IF(S$4="",0,IF($E10="kWh",VLOOKUP(S$4,'4. Billing Determinants'!$B$19:$R$41,11,0)/'4. Billing Determinants'!$L$41*$D10,IF($E10="kW",VLOOKUP(S$4,'4. Billing Determinants'!$B$19:$R$41,12,0)/'4. Billing Determinants'!$M$41*$D10,))),0) -> 0 | T10: =IFERROR(IF(T$4="",0,IF($E10="kWh",VLOOKUP(T$4,'4. Billing Determinants'!$B$19:$R$41,11,0)/'4. Billing Determinants'!$L$41*$D10,IF($E10="kW",VLOOKUP(T$4,'4. Billing Determinants'!$B$19:$R$41,12,0)/'4. Billing Determinants'!$M$41*$D10,))),0) -> 0 | U10: =IFERROR(IF(U$4="",0,IF($E10="kWh",VLOOKUP(U$4,'4. Billing Determinants'!$B$19:$R$41,11,0)/'4. Billing Determinants'!$L$41*$D10,IF($E10="kW",VLOOKUP(U$4,'4. Billing Determinants'!$B$19:$R$41,12,0)/'4. Billing Determinants'!$M$41*$D10,))),0) -> 0 | V10: =IFERROR(IF(V$4="",0,IF($E10="kWh",VLOOKUP(V$4,'4. Billing Determinants'!$B$19:$R$41,11,0)/'4. Billing Determinants'!$L$41*$D10,IF($E10="kW",VLOOKUP(V$4,'4. Billing Determinants'!$B$19:$R$41,12,0)/'4. Billing Determinants'!$M$41*$D10,))),0) -> 0 | W10: =IFERROR(IF(W$4="",0,IF($E10="kWh",VLOOKUP(W$4,'4. Billing Determinants'!$B$19:$R$41,11,0)/'4. Billing Determinants'!$L$41*$D10,IF($E10="kW",VLOOKUP(W$4,'4. Billing Determinants'!$B$19:$R$41,12,0)/'4. Billing Determinants'!$M$41*$D10,))),0) -> 0 | X10: =IFERROR(IF(X$4="",0,IF($E10="kWh",VLOOKUP(X$4,'4. Billing Determinants'!$B$19:$R$41,11,0)/'4. Billing Determinants'!$L$41*$D10,IF($E10="kW",VLOOKUP(X$4,'4. Billing Determinants'!$B$19:$R$41,12,0)/'4. Billing Determinants'!$M$41*$D10,))),0) -> 0 | Y10: =IFERROR(IF(Y$4="",0,IF($E10="kWh",VLOOKUP(Y$4,'4. Billing Determinants'!$B$19:$R$41,11,0)/'4. Billing Determinants'!$L$41*$D10,IF($E10="kW",VLOOKUP(Y$4,'4. Billing Determinants'!$B$19:$R$41,12,0)/'4. Billing Determinants'!$M$41*$D10,))),0) -> 0
A11: 8 | B11: RSVA - Global Adjustment | C11: 1589 | D11: ='6.1a GA Allocation'!C29 -> -374442.7177 | E11: Non-RPP kWh | F11: =IFERROR(IF(F$4="",0,IF($E11="kWh",VLOOKUP(F$4,'4. Billing Determinants'!$B$19:$R$41,4,0)/'4. Billing Determinants'!$E$41*$D11,IF($E11="kW",VLOOKUP(F$4,'4. Billing Determinants'!$B$19:$R$41,5,0)/'4. Billing Determinants'!$F$41*$D11,IF($E11="Non-RPP kWh",VLOOKUP(F$4,'4. Billing Determinants'!$B$19:$T$41,18,0)/'4. Billing Determinants'!$S$41*$D11,IF($E11="Distribution Rev.",VLOOKUP(F$4,'4. Billing Determinants'!$B$19:$R$41,8,0)/'4. Billing Determinants'!$I$41*$D11, VLOOKUP(F$4,'4. Billing Determinants'!$B$19:$R$41,3,0)/'4. Billing Determinants'!$D$41*$D11))))),0) -> -1639.869355 | G11: =IFERROR(IF(G$4="",0,IF($E11="kWh",VLOOKUP(G$4,'4. Billing Determinants'!$B$19:$R$41,4,0)/'4. Billing Determinants'!$E$41*$D11,IF($E11="kW",VLOOKUP(G$4,'4. Billing Determinants'!$B$19:$R$41,5,0)/'4. Billing Determinants'!$F$41*$D11,IF($E11="Non-RPP kWh",VLOOKUP(G$4,'4. Billing Determinants'!$B$19:$T$41,18,0)/'4. Billing Determinants'!$S$41*$D11,IF($E11="Distribution Rev.",VLOOKUP(G$4,'4. Billing Determinants'!$B$19:$R$41,8,0)/'4. Billing Determinants'!$I$41*$D11, VLOOKUP(G$4,'4. Billing Determinants'!$B$19:$R$41,3,0)/'4. Billing Determinants'!$D$41*$D11))))),0) -> -16822.90088 | H11: =IFERROR(IF(H$4="",0,IF($E11="kWh",VLOOKUP(H$4,'4. Billing Determinants'!$B$19:$R$41,4,0)/'4. Billing Determinants'!$E$41*$D11,IF($E11="kW",VLOOKUP(H$4,'4. Billing Determinants'!$B$19:$R$41,5,0)/'4. Billing Determinants'!$F$41*$D11,IF($E11="Non-RPP kWh",VLOOKUP(H$4,'4. Billing Determinants'!$B$19:$T$41,18,0)/'4. Billing Determinants'!$S$41*$D11,IF($E11="Distribution Rev.",VLOOKUP(H$4,'4. Billing Determinants'!$B$19:$R$41,8,0)/'4. Billing Determinants'!$I$41*$D11, VLOOKUP(H$4,'4. Billing Determinants'!$B$19:$R$41,3,0)/'4. Billing Determinants'!$D$41*$D11))))),0) -> -352261.1558 | I11: =IFERROR(IF(I$4="",0,IF($E11="kWh",VLOOKUP(I$4,'4. Billing Determinants'!$B$19:$R$41,4,0)/'4. Billing Determinants'!$E$41*$D11,IF($E11="kW",VLOOKUP(I$4,'4. Billing Determinants'!$B$19:$R$41,5,0)/'4. Billing Determinants'!$F$41*$D11,IF($E11="Non-RPP kWh",VLOOKUP(I$4,'4. Billing Determinants'!$B$19:$T$41,18,0)/'4. Billing Determinants'!$S$41*$D11,IF($E11="Distribution Rev.",VLOOKUP(I$4,'4. Billing Determinants'!$B$19:$R$41,8,0)/'4. Billing Determinants'!$I$41*$D11, VLOOKUP(I$4,'4. Billing Determinants'!$B$19:$R$41,3,0)/'4. Billing Determinants'!$D$41*$D11))))),0) -> -1212.411785 | J11: =IFERROR(IF(J$4="",0,IF($E11="kWh",VLOOKUP(J$4,'4. Billing Determinants'!$B$19:$R$41,4,0)/'4. Billing Determinants'!$E$41*$D11,IF($E11="kW",VLOOKUP(J$4,'4. Billing Determinants'!$B$19:$R$41,5,0)/'4. Billing Determinants'!$F$41*$D11,IF($E11="Non-RPP kWh",VLOOKUP(J$4,'4. Billing Determinants'!$B$19:$T$41,18,0)/'4. Billing Determinants'!$S$41*$D11,IF($E11="Distribution Rev.",VLOOKUP(J$4,'4. Billing Determinants'!$B$19:$R$41,8,0)/'4. Billing Determinants'!$I$41*$D11, VLOOKUP(J$4,'4. Billing Determinants'!$B$19:$R$41,3,0)/'4. Billing Determinants'!$D$41*$D11))))),0) -> 0 | K11: =IFERROR(IF(K$4="",0,IF($E11="kWh",VLOOKUP(K$4,'4. Billing Determinants'!$B$19:$R$41,4,0)/'4. Billing Determinants'!$E$41*$D11,IF($E11="kW",VLOOKUP(K$4,'4. Billing Determinants'!$B$19:$R$41,5,0)/'4. Billing Determinants'!$F$41*$D11,IF($E11="Non-RPP kWh",VLOOKUP(K$4,'4. Billing Determinants'!$B$19:$T$41,18,0)/'4. Billing Determinants'!$S$41*$D11,IF($E11="Distribution Rev.",VLOOKUP(K$4,'4. Billing Determinants'!$B$19:$R$41,8,0)/'4. Billing Determinants'!$I$41*$D11, VLOOKUP(K$4,'4. Billing Determinants'!$B$19:$R$41,3,0)/'4. Billing Determinants'!$D$41*$D11))))),0) -> -2506.37992 | L11: =IFERROR(IF(L$4="",0,IF($E11="kWh",VLOOKUP(L$4,'4. Billing Determinants'!$B$19:$R$41,4,0)/'4. Billing Determinants'!$E$41*$D11,IF($E11="kW",VLOOKUP(L$4,'4. Billing Determinants'!$B$19:$R$41,5,0)/'4. Billing Determinants'!$F$41*$D11,IF($E11="Non-RPP kWh",VLOOKUP(L$4,'4. Billing Determinants'!$B$19:$T$41,18,0)/'4. Billing Determinants'!$S$41*$D11,IF($E11="Distribution Rev.",VLOOKUP(L$4,'4. Billing Determinants'!$B$19:$R$41,8,0)/'4. Billing Determinants'!$I$41*$D11, VLOOKUP(L$4,'4. Billing Determinants'!$B$19:$R$41,3,0)/'4. Billing Determinants'!$D$41*$D11))))),0) -> 0 | M11: =IFERROR(IF(M$4="",0,IF($E11="kWh",VLOOKUP(M$4,'4. Billing Determinants'!$B$19:$R$41,4,0)/'4. Billing Determinants'!$E$41*$D11,IF($E11="kW",VLOOKUP(M$4,'4. Billing Determinants'!$B$19:$R$41,5,0)/'4. Billing Determinants'!$F$41*$D11,IF($E11="Non-RPP kWh",VLOOKUP(M$4,'4. Billing Determinants'!$B$19:$T$41,18,0)/'4. Billing Determinants'!$S$41*$D11,IF($E11="Distribution Rev.",VLOOKUP(M$4,'4. Billing Determinants'!$B$19:$R$41,8,0)/'4. Billing Determinants'!$I$41*$D11, VLOOKUP(M$4,'4. Billing Determinants'!$B$19:$R$41,3,0)/'4. Billing Determinants'!$D$41*$D11))))),0) -> 0 | N11: =IFERROR(IF(N$4="",0,IF($E11="kWh",VLOOKUP(N$4,'4. Billing Determinants'!$B$19:$R$41,4,0)/'4. Billing Determinants'!$E$41*$D11,IF($E11="kW",VLOOKUP(N$4,'4. Billing Determinants'!$B$19:$R$41,5,0)/'4. Billing Determinants'!$F$41*$D11,IF($E11="Non-RPP kWh",VLOOKUP(N$4,'4. Billing Determinants'!$B$19:$T$41,18,0)/'4. Billing Determinants'!$S$41*$D11,IF($E11="Distribution Rev.",VLOOKUP(N$4,'4. Billing Determinants'!$B$19:$R$41,8,0)/'4. Billing Determinants'!$I$41*$D11, VLOOKUP(N$4,'4. Billing Determinants'!$B$19:$R$41,3,0)/'4. Billing Determinants'!$D$41*$D11))))),0) -> 0 | O11: =IFERROR(IF(O$4="",0,IF($E11="kWh",VLOOKUP(O$4,'4. Billing Determinants'!$B$19:$R$41,4,0)/'4. Billing Determinants'!$E$41*$D11,IF($E11="kW",VLOOKUP(O$4,'4. Billing Determinants'!$B$19:$R$41,5,0)/'4. Billing Determinants'!$F$41*$D11,IF($E11="Non-RPP kWh",VLOOKUP(O$4,'4. Billing Determinants'!$B$19:$T$41,18,0)/'4. Billing Determinants'!$S$41*$D11,IF($E11="Distribution Rev.",VLOOKUP(O$4,'4. Billing Determinants'!$B$19:$R$41,8,0)/'4. Billing Determinants'!$I$41*$D11, VLOOKUP(O$4,'4. Billing Determinants'!$B$19:$R$41,3,0)/'4. Billing Determinants'!$D$41*$D11))))),0) -> 0 | P11: =IFERROR(IF(P$4="",0,IF($E11="kWh",VLOOKUP(P$4,'4. Billing Determinants'!$B$19:$R$41,4,0)/'4. Billing Determinants'!$E$41*$D11,IF($E11="kW",VLOOKUP(P$4,'4. Billing Determinants'!$B$19:$R$41,5,0)/'4. Billing Determinants'!$F$41*$D11,IF($E11="Non-RPP kWh",VLOOKUP(P$4,'4. Billing Determinants'!$B$19:$T$41,18,0)/'4. Billing Determinants'!$S$41*$D11,IF($E11="Distribution Rev.",VLOOKUP(P$4,'4. Billing Determinants'!$B$19:$R$41,8,0)/'4. Billing Determinants'!$I$41*$D11, VLOOKUP(P$4,'4. Billing Determinants'!$B$19:$R$41,3,0)/'4. Billing Determinants'!$D$41*$D11))))),0) -> 0 | Q11: =IFERROR(IF(Q$4="",0,IF($E11="kWh",VLOOKUP(Q$4,'4. Billing Determinants'!$B$19:$R$41,4,0)/'4. Billing Determinants'!$E$41*$D11,IF($E11="kW",VLOOKUP(Q$4,'4. Billing Determinants'!$B$19:$R$41,5,0)/'4. Billing Determinants'!$F$41*$D11,IF($E11="Non-RPP kWh",VLOOKUP(Q$4,'4. Billing Determinants'!$B$19:$T$41,18,0)/'4. Billing Determinants'!$S$41*$D11,IF($E11="Distribution Rev.",VLOOKUP(Q$4,'4. Billing Determinants'!$B$19:$R$41,8,0)/'4. Billing Determinants'!$I$41*$D11, VLOOKUP(Q$4,'4. Billing Determinants'!$B$19:$R$41,3,0)/'4. Billing Determinants'!$D$41*$D11))))),0) -> 0 | R11: =IFERROR(IF(R$4="",0,IF($E11="kWh",VLOOKUP(R$4,'4. Billing Determinants'!$B$19:$R$41,4,0)/'4. Billing Determinants'!$E$41*$D11,IF($E11="kW",VLOOKUP(R$4,'4. Billing Determinants'!$B$19:$R$41,5,0)/'4. Billing Determinants'!$F$41*$D11,IF($E11="Non-RPP kWh",VLOOKUP(R$4,'4. Billing Determinants'!$B$19:$T$41,18,0)/'4. Billing Determinants'!$S$41*$D11,IF($E11="Distribution Rev.",VLOOKUP(R$4,'4. Billing Determinants'!$B$19:$R$41,8,0)/'4. Billing Determinants'!$I$41*$D11, VLOOKUP(R$4,'4. Billing Determinants'!$B$19:$R$41,3,0)/'4. Billing Determinants'!$D$41*$D11))))),0) -> 0 | S11: =IFERROR(IF(S$4="",0,IF($E11="kWh",VLOOKUP(S$4,'4. Billing Determinants'!$B$19:$R$41,4,0)/'4. Billing Determinants'!$E$41*$D11,IF($E11="kW",VLOOKUP(S$4,'4. Billing Determinants'!$B$19:$R$41,5,0)/'4. Billing Determinants'!$F$41*$D11,IF($E11="Non-RPP kWh",VLOOKUP(S$4,'4. Billing Determinants'!$B$19:$T$41,18,0)/'4. Billing Determinants'!$S$41*$D11,IF($E11="Distribution Rev.",VLOOKUP(S$4,'4. Billing Determinants'!$B$19:$R$41,8,0)/'4. Billing Determinants'!$I$41*$D11, VLOOKUP(S$4,'4. Billing Determinants'!$B$19:$R$41,3,0)/'4. Billing Determinants'!$D$41*$D11))))),0) -> 0 | T11: =IFERROR(IF(T$4="",0,IF($E11="kWh",VLOOKUP(T$4,'4. Billing Determinants'!$B$19:$R$41,4,0)/'4. Billing Determinants'!$E$41*$D11,IF($E11="kW",VLOOKUP(T$4,'4. Billing Determinants'!$B$19:$R$41,5,0)/'4. Billing Determinants'!$F$41*$D11,IF($E11="Non-RPP kWh",VLOOKUP(T$4,'4. Billing Determinants'!$B$19:$T$41,18,0)/'4. Billing Determinants'!$S$41*$D11,IF($E11="Distribution Rev.",VLOOKUP(T$4,'4. Billing Determinants'!$B$19:$R$41,8,0)/'4. Billing Determinants'!$I$41*$D11, VLOOKUP(T$4,'4. Billing Determinants'!$B$19:$R$41,3,0)/'4. Billing Determinants'!$D$41*$D11))))),0) -> 0 | U11: =IFERROR(IF(U$4="",0,IF($E11="kWh",VLOOKUP(U$4,'4. Billing Determinants'!$B$19:$R$41,4,0)/'4. Billing Determinants'!$E$41*$D11,IF($E11="kW",VLOOKUP(U$4,'4. Billing Determinants'!$B$19:$R$41,5,0)/'4. Billing Determinants'!$F$41*$D11,IF($E11="Non-RPP kWh",VLOOKUP(U$4,'4. Billing Determinants'!$B$19:$T$41,18,0)/'4. Billing Determinants'!$S$41*$D11,IF($E11="Distribution Rev.",VLOOKUP(U$4,'4. Billing Determinants'!$B$19:$R$41,8,0)/'4. Billing Determinants'!$I$41*$D11, VLOOKUP(U$4,'4. Billing Determinants'!$B$19:$R$41,3,0)/'4. Billing Determinants'!$D$41*$D11))))),0) -> 0 | V11: =IFERROR(IF(V$4="",0,IF($E11="kWh",VLOOKUP(V$4,'4. Billing Determinants'!$B$19:$R$41,4,0)/'4. Billing Determinants'!$E$41*$D11,IF($E11="kW",VLOOKUP(V$4,'4. Billing Determinants'!$B$19:$R$41,5,0)/'4. Billing Determinants'!$F$41*$D11,IF($E11="Non-RPP kWh",VLOOKUP(V$4,'4. Billing Determinants'!$B$19:$T$41,18,0)/'4. Billing Determinants'!$S$41*$D11,IF($E11="Distribution Rev.",VLOOKUP(V$4,'4. Billing Determinants'!$B$19:$R$41,8,0)/'4. Billing Determinants'!$I$41*$D11, VLOOKUP(V$4,'4. Billing Determinants'!$B$19:$R$41,3,0)/'4. Billing Determinants'!$D$41*$D11))))),0) -> 0 | W11: =IFERROR(IF(W$4="",0,IF($E11="kWh",VLOOKUP(W$4,'4. Billing Determinants'!$B$19:$R$41,4,0)/'4. Billing Determinants'!$E$41*$D11,IF($E11="kW",VLOOKUP(W$4,'4. Billing Determinants'!$B$19:$R$41,5,0)/'4. Billing Determinants'!$F$41*$D11,IF($E11="Non-RPP kWh",VLOOKUP(W$4,'4. Billing Determinants'!$B$19:$T$41,18,0)/'4. Billing Determinants'!$S$41*$D11,IF($E11="Distribution Rev.",VLOOKUP(W$4,'4. Billing Determinants'!$B$19:$R$41,8,0)/'4. Billing Determinants'!$I$41*$D11, VLOOKUP(W$4,'4. Billing Determinants'!$B$19:$R$41,3,0)/'4. Billing Determinants'!$D$41*$D11))))),0) -> 0 | X11: =IFERROR(IF(X$4="",0,IF($E11="kWh",VLOOKUP(X$4,'4. Billing Determinants'!$B$19:$R$41,4,0)/'4. Billing Determinants'!$E$41*$D11,IF($E11="kW",VLOOKUP(X$4,'4. Billing Determinants'!$B$19:$R$41,5,0)/'4. Billing Determinants'!$F$41*$D11,IF($E11="Non-RPP kWh",VLOOKUP(X$4,'4. Billing Determinants'!$B$19:$T$41,18,0)/'4. Billing Determinants'!$S$41*$D11,IF($E11="Distribution Rev.",VLOOKUP(X$4,'4. Billing Determinants'!$B$19:$R$41,8,0)/'4. Billing Determinants'!$I$41*$D11, VLOOKUP(X$4,'4. Billing Determinants'!$B$19:$R$41,3,0)/'4. Billing Determinants'!$D$41*$D11))))),0) -> 0 | Y11: =IFERROR(IF(Y$4="",0,IF($E11="kWh",VLOOKUP(Y$4,'4. Billing Determinants'!$B$19:$R$41,4,0)/'4. Billing Determinants'!$E$41*$D11,IF($E11="kW",VLOOKUP(Y$4,'4. Billing Determinants'!$B$19:$R$41,5,0)/'4. Billing Determinants'!$F$41*$D11,IF($E11="Non-RPP kWh",VLOOKUP(Y$4,'4. Billing Determinants'!$B$19:$T$41,18,0)/'4. Billing Determinants'!$S$41*$D11,IF($E11="Distribution Rev.",VLOOKUP(Y$4,'4. Billing Determinants'!$B$19:$R$41,8,0)/'4. Billing Determinants'!$I$41*$D11, VLOOKUP(Y$4,'4. Billing Determinants'!$B$19:$R$41,3,0)/'4. Billing Determinants'!$D$41*$D11))))),0) -> 0
A12: 9 | B12: Disposition and Recovery/Refund of Regulatory Balances (2009) | C12: 1595 | D12: ='2a. Continuity Schedule'!BT33 -> 0 | E12: % | F12: =IFERROR(IF(F$4="",0,IF($E12="kWh",VLOOKUP(F$4,'4. Billing Determinants'!$B$19:$R$41,4,0)/'4. Billing Determinants'!$E$41*$D12,IF($E12="kW",VLOOKUP(F$4,'4. Billing Determinants'!$B$19:$R$41,5,0)/'4. Billing Determinants'!$F$41*$D12,IF($E12="Non-RPP kWh",VLOOKUP(F$4,'4. Billing Determinants'!$B$19:$R$41,6,0)/'4. Billing Determinants'!$G$41*$D12, VLOOKUP(F$4,'4. Billing Determinants'!$B$19:$AA$41,20,0)*$D12)))),0) -> 0 | G12: =IFERROR(IF(G$4="",0,IF($E12="kWh",VLOOKUP(G$4,'4. Billing Determinants'!$B$19:$R$41,4,0)/'4. Billing Determinants'!$E$41*$D12,IF($E12="kW",VLOOKUP(G$4,'4. Billing Determinants'!$B$19:$R$41,5,0)/'4. Billing Determinants'!$F$41*$D12,IF($E12="Non-RPP kWh",VLOOKUP(G$4,'4. Billing Determinants'!$B$19:$R$41,6,0)/'4. Billing Determinants'!$G$41*$D12, VLOOKUP(G$4,'4. Billing Determinants'!$B$19:$AA$41,20,0)*$D12)))),0) -> 0 | H12: =IFERROR(IF(H$4="",0,IF($E12="kWh",VLOOKUP(H$4,'4. Billing Determinants'!$B$19:$R$41,4,0)/'4. Billing Determinants'!$E$41*$D12,IF($E12="kW",VLOOKUP(H$4,'4. Billing Determinants'!$B$19:$R$41,5,0)/'4. Billing Determinants'!$F$41*$D12,IF($E12="Non-RPP kWh",VLOOKUP(H$4,'4. Billing Determinants'!$B$19:$R$41,6,0)/'4. Billing Determinants'!$G$41*$D12, VLOOKUP(H$4,'4. Billing Determinants'!$B$19:$AA$41,20,0)*$D12)))),0) -> 0 | I12: =IFERROR(IF(I$4="",0,IF($E12="kWh",VLOOKUP(I$4,'4. Billing Determinants'!$B$19:$R$41,4,0)/'4. Billing Determinants'!$E$41*$D12,IF($E12="kW",VLOOKUP(I$4,'4. Billing Determinants'!$B$19:$R$41,5,0)/'4. Billing Determinants'!$F$41*$D12,IF($E12="Non-RPP kWh",VLOOKUP(I$4,'4. Billing Determinants'!$B$19:$R$41,6,0)/'4. Billing Determinants'!$G$41*$D12, VLOOKUP(I$4,'4. Billing Determinants'!$B$19:$AA$41,20,0)*$D12)))),0) -> 0 | J12: =IFERROR(IF(J$4="",0,IF($E12="kWh",VLOOKUP(J$4,'4. Billing Determinants'!$B$19:$R$41,4,0)/'4. Billing Determinants'!$E$41*$D12,IF($E12="kW",VLOOKUP(J$4,'4. Billing Determinants'!$B$19:$R$41,5,0)/'4. Billing Determinants'!$F$41*$D12,IF($E12="Non-RPP kWh",VLOOKUP(J$4,'4. Billing Determinants'!$B$19:$R$41,6,0)/'4. Billing Determinants'!$G$41*$D12, VLOOKUP(J$4,'4. Billing Determinants'!$B$19:$AA$41,20,0)*$D12)))),0) -> 0 | K12: =IFERROR(IF(K$4="",0,IF($E12="kWh",VLOOKUP(K$4,'4. Billing Determinants'!$B$19:$R$41,4,0)/'4. Billing Determinants'!$E$41*$D12,IF($E12="kW",VLOOKUP(K$4,'4. Billing Determinants'!$B$19:$R$41,5,0)/'4. Billing Determinants'!$F$41*$D12,IF($E12="Non-RPP kWh",VLOOKUP(K$4,'4. Billing Determinants'!$B$19:$R$41,6,0)/'4. Billing Determinants'!$G$41*$D12, VLOOKUP(K$4,'4. Billing Determinants'!$B$19:$AA$41,20,0)*$D12)))),0) -> 0 | L12: =IFERROR(IF(L$4="",0,IF($E12="kWh",VLOOKUP(L$4,'4. Billing Determinants'!$B$19:$R$41,4,0)/'4. Billing Determinants'!$E$41*$D12,IF($E12="kW",VLOOKUP(L$4,'4. Billing Determinants'!$B$19:$R$41,5,0)/'4. Billing Determinants'!$F$41*$D12,IF($E12="Non-RPP kWh",VLOOKUP(L$4,'4. Billing Determinants'!$B$19:$R$41,6,0)/'4. Billing Determinants'!$G$41*$D12, VLOOKUP(L$4,'4. Billing Determinants'!$B$19:$AA$41,20,0)*$D12)))),0) -> 0 | M12: =IFERROR(IF(M$4="",0,IF($E12="kWh",VLOOKUP(M$4,'4. Billing Determinants'!$B$19:$R$41,4,0)/'4. Billing Determinants'!$E$41*$D12,IF($E12="kW",VLOOKUP(M$4,'4. Billing Determinants'!$B$19:$R$41,5,0)/'4. Billing Determinants'!$F$41*$D12,IF($E12="Non-RPP kWh",VLOOKUP(M$4,'4. Billing Determinants'!$B$19:$R$41,6,0)/'4. Billing Determinants'!$G$41*$D12, VLOOKUP(M$4,'4. Billing Determinants'!$B$19:$AA$41,20,0)*$D12)))),0) -> 0 | N12: =IFERROR(IF(N$4="",0,IF($E12="kWh",VLOOKUP(N$4,'4. Billing Determinants'!$B$19:$R$41,4,0)/'4. Billing Determinants'!$E$41*$D12,IF($E12="kW",VLOOKUP(N$4,'4. Billing Determinants'!$B$19:$R$41,5,0)/'4. Billing Determinants'!$F$41*$D12,IF($E12="Non-RPP kWh",VLOOKUP(N$4,'4. Billing Determinants'!$B$19:$R$41,6,0)/'4. Billing Determinants'!$G$41*$D12, VLOOKUP(N$4,'4. Billing Determinants'!$B$19:$AA$41,20,0)*$D12)))),0) -> 0 | O12: =IFERROR(IF(O$4="",0,IF($E12="kWh",VLOOKUP(O$4,'4. Billing Determinants'!$B$19:$R$41,4,0)/'4. Billing Determinants'!$E$41*$D12,IF($E12="kW",VLOOKUP(O$4,'4. Billing Determinants'!$B$19:$R$41,5,0)/'4. Billing Determinants'!$F$41*$D12,IF($E12="Non-RPP kWh",VLOOKUP(O$4,'4. Billing Determinants'!$B$19:$R$41,6,0)/'4. Billing Determinants'!$G$41*$D12, VLOOKUP(O$4,'4. Billing Determinants'!$B$19:$AA$41,20,0)*$D12)))),0) -> 0 | P12: =IFERROR(IF(P$4="",0,IF($E12="kWh",VLOOKUP(P$4,'4. Billing Determinants'!$B$19:$R$41,4,0)/'4. Billing Determinants'!$E$41*$D12,IF($E12="kW",VLOOKUP(P$4,'4. Billing Determinants'!$B$19:$R$41,5,0)/'4. Billing Determinants'!$F$41*$D12,IF($E12="Non-RPP kWh",VLOOKUP(P$4,'4. Billing Determinants'!$B$19:$R$41,6,0)/'4. Billing Determinants'!$G$41*$D12, VLOOKUP(P$4,'4. Billing Determinants'!$B$19:$AA$41,20,0)*$D12)))),0) -> 0 | Q12: =IFERROR(IF(Q$4="",0,IF($E12="kWh",VLOOKUP(Q$4,'4. Billing Determinants'!$B$19:$R$41,4,0)/'4. Billing Determinants'!$E$41*$D12,IF($E12="kW",VLOOKUP(Q$4,'4. Billing Determinants'!$B$19:$R$41,5,0)/'4. Billing Determinants'!$F$41*$D12,IF($E12="Non-RPP kWh",VLOOKUP(Q$4,'4. Billing Determinants'!$B$19:$R$41,6,0)/'4. Billing Determinants'!$G$41*$D12, VLOOKUP(Q$4,'4. Billing Determinants'!$B$19:$AA$41,20,0)*$D12)))),0) -> 0 | R12: =IFERROR(IF(R$4="",0,IF($E12="kWh",VLOOKUP(R$4,'4. Billing Determinants'!$B$19:$R$41,4,0)/'4. Billing Determinants'!$E$41*$D12,IF($E12="kW",VLOOKUP(R$4,'4. Billing Determinants'!$B$19:$R$41,5,0)/'4. Billing Determinants'!$F$41*$D12,IF($E12="Non-RPP kWh",VLOOKUP(R$4,'4. Billing Determinants'!$B$19:$R$41,6,0)/'4. Billing Determinants'!$G$41*$D12, VLOOKUP(R$4,'4. Billing Determinants'!$B$19:$AA$41,20,0)*$D12)))),0) -> 0 | S12: =IFERROR(IF(S$4="",0,IF($E12="kWh",VLOOKUP(S$4,'4. Billing Determinants'!$B$19:$R$41,4,0)/'4. Billing Determinants'!$E$41*$D12,IF($E12="kW",VLOOKUP(S$4,'4. Billing Determinants'!$B$19:$R$41,5,0)/'4. Billing Determinants'!$F$41*$D12,IF($E12="Non-RPP kWh",VLOOKUP(S$4,'4. Billing Determinants'!$B$19:$R$41,6,0)/'4. Billing Determinants'!$G$41*$D12, VLOOKUP(S$4,'4. Billing Determinants'!$B$19:$AA$41,20,0)*$D12)))),0) -> 0 | T12: =IFERROR(IF(T$4="",0,IF($E12="kWh",VLOOKUP(T$4,'4. Billing Determinants'!$B$19:$R$41,4,0)/'4. Billing Determinants'!$E$41*$D12,IF($E12="kW",VLOOKUP(T$4,'4. Billing Determinants'!$B$19:$R$41,5,0)/'4. Billing Determinants'!$F$41*$D12,IF($E12="Non-RPP kWh",VLOOKUP(T$4,'4. Billing Determinants'!$B$19:$R$41,6,0)/'4. Billing Determinants'!$G$41*$D12, VLOOKUP(T$4,'4. Billing Determinants'!$B$19:$AA$41,20,0)*$D12)))),0) -> 0 | U12: =IFERROR(IF(U$4="",0,IF($E12="kWh",VLOOKUP(U$4,'4. Billing Determinants'!$B$19:$R$41,4,0)/'4. Billing Determinants'!$E$41*$D12,IF($E12="kW",VLOOKUP(U$4,'4. Billing Determinants'!$B$19:$R$41,5,0)/'4. Billing Determinants'!$F$41*$D12,IF($E12="Non-RPP kWh",VLOOKUP(U$4,'4. Billing Determinants'!$B$19:$R$41,6,0)/'4. Billing Determinants'!$G$41*$D12, VLOOKUP(U$4,'4. Billing Determinants'!$B$19:$AA$41,20,0)*$D12)))),0) -> 0 | V12: =IFERROR(IF(V$4="",0,IF($E12="kWh",VLOOKUP(V$4,'4. Billing Determinants'!$B$19:$R$41,4,0)/'4. Billing Determinants'!$E$41*$D12,IF($E12="kW",VLOOKUP(V$4,'4. Billing Determinants'!$B$19:$R$41,5,0)/'4. Billing Determinants'!$F$41*$D12,IF($E12="Non-RPP kWh",VLOOKUP(V$4,'4. Billing Determinants'!$B$19:$R$41,6,0)/'4. Billing Determinants'!$G$41*$D12, VLOOKUP(V$4,'4. Billing Determinants'!$B$19:$AA$41,20,0)*$D12)))),0) -> 0 | W12: =IFERROR(IF(W$4="",0,IF($E12="kWh",VLOOKUP(W$4,'4. Billing Determinants'!$B$19:$R$41,4,0)/'4. Billing Determinants'!$E$41*$D12,IF($E12="kW",VLOOKUP(W$4,'4. Billing Determinants'!$B$19:$R$41,5,0)/'4. Billing Determinants'!$F$41*$D12,IF($E12="Non-RPP kWh",VLOOKUP(W$4,'4. Billing Determinants'!$B$19:$R$41,6,0)/'4. Billing Determinants'!$G$41*$D12, VLOOKUP(W$4,'4. Billing Determinants'!$B$19:$AA$41,20,0)*$D12)))),0) -> 0 | X12: =IFERROR(IF(X$4="",0,IF($E12="kWh",VLOOKUP(X$4,'4. Billing Determinants'!$B$19:$R$41,4,0)/'4. Billing Determinants'!$E$41*$D12,IF($E12="kW",VLOOKUP(X$4,'4. Billing Determinants'!$B$19:$R$41,5,0)/'4. Billing Determinants'!$F$41*$D12,IF($E12="Non-RPP kWh",VLOOKUP(X$4,'4. Billing Determinants'!$B$19:$R$41,6,0)/'4. Billing Determinants'!$G$41*$D12, VLOOKUP(X$4,'4. Billing Determinants'!$B$19:$AA$41,20,0)*$D12)))),0) -> 0 | Y12: =IFERROR(IF(Y$4="",0,IF($E12="kWh",VLOOKUP(Y$4,'4. Billing Determinants'!$B$19:$R$41,4,0)/'4. Billing Determinants'!$E$41*$D12,IF($E12="kW",VLOOKUP(Y$4,'4. Billing Determinants'!$B$19:$R$41,5,0)/'4. Billing Determinants'!$F$41*$D12,IF($E12="Non-RPP kWh",VLOOKUP(Y$4,'4. Billing Determinants'!$B$19:$R$41,6,0)/'4. Billing Determinants'!$G$41*$D12, VLOOKUP(Y$4,'4. Billing Determinants'!$B$19:$AA$41,20,0)*$D12)))),0) -> 0
A13: 10 | B13: Disposition and Recovery/Refund of Regulatory Balances (2018 and pre-2018) | C13: 1595 | D13: ='2a. Continuity Schedule'!BT34 -> 0 | E13: % | F13: =IFERROR(IF(F$4="",0,IF($E13="kWh",VLOOKUP(F$4,'4. Billing Determinants'!$B$19:$R$41,4,0)/'4. Billing Determinants'!$E$41*$D13,IF($E13="kW",VLOOKUP(F$4,'4. Billing Determinants'!$B$19:$R$41,5,0)/'4. Billing Determinants'!$F$41*$D13,IF($E13="Non-RPP kWh",VLOOKUP(F$4,'4. Billing Determinants'!$B$19:$R$41,6,0)/'4. Billing Determinants'!$G$41*$D13,VLOOKUP(F$4,'4. Billing Determinants'!$B$19:$AA$41,21,0)*$D13)))),0) -> 0 | G13: =IFERROR(IF(G$4="",0,IF($E13="kWh",VLOOKUP(G$4,'4. Billing Determinants'!$B$19:$R$41,4,0)/'4. Billing Determinants'!$E$41*$D13,IF($E13="kW",VLOOKUP(G$4,'4. Billing Determinants'!$B$19:$R$41,5,0)/'4. Billing Determinants'!$F$41*$D13,IF($E13="Non-RPP kWh",VLOOKUP(G$4,'4. Billing Determinants'!$B$19:$R$41,6,0)/'4. Billing Determinants'!$G$41*$D13,VLOOKUP(G$4,'4. Billing Determinants'!$B$19:$AA$41,21,0)*$D13)))),0) -> 0 | H13: =IFERROR(IF(H$4="",0,IF($E13="kWh",VLOOKUP(H$4,'4. Billing Determinants'!$B$19:$R$41,4,0)/'4. Billing Determinants'!$E$41*$D13,IF($E13="kW",VLOOKUP(H$4,'4. Billing Determinants'!$B$19:$R$41,5,0)/'4. Billing Determinants'!$F$41*$D13,IF($E13="Non-RPP kWh",VLOOKUP(H$4,'4. Billing Determinants'!$B$19:$R$41,6,0)/'4. Billing Determinants'!$G$41*$D13,VLOOKUP(H$4,'4. Billing Determinants'!$B$19:$AA$41,21,0)*$D13)))),0) -> 0 | I13: =IFERROR(IF(I$4="",0,IF($E13="kWh",VLOOKUP(I$4,'4. Billing Determinants'!$B$19:$R$41,4,0)/'4. Billing Determinants'!$E$41*$D13,IF($E13="kW",VLOOKUP(I$4,'4. Billing Determinants'!$B$19:$R$41,5,0)/'4. Billing Determinants'!$F$41*$D13,IF($E13="Non-RPP kWh",VLOOKUP(I$4,'4. Billing Determinants'!$B$19:$R$41,6,0)/'4. Billing Determinants'!$G$41*$D13,VLOOKUP(I$4,'4. Billing Determinants'!$B$19:$AA$41,21,0)*$D13)))),0) -> 0 | J13: =IFERROR(IF(J$4="",0,IF($E13="kWh",VLOOKUP(J$4,'4. Billing Determinants'!$B$19:$R$41,4,0)/'4. Billing Determinants'!$E$41*$D13,IF($E13="kW",VLOOKUP(J$4,'4. Billing Determinants'!$B$19:$R$41,5,0)/'4. Billing Determinants'!$F$41*$D13,IF($E13="Non-RPP kWh",VLOOKUP(J$4,'4. Billing Determinants'!$B$19:$R$41,6,0)/'4. Billing Determinants'!$G$41*$D13,VLOOKUP(J$4,'4. Billing Determinants'!$B$19:$AA$41,21,0)*$D13)))),0) -> 0 | K13: =IFERROR(IF(K$4="",0,IF($E13="kWh",VLOOKUP(K$4,'4. Billing Determinants'!$B$19:$R$41,4,0)/'4. Billing Determinants'!$E$41*$D13,IF($E13="kW",VLOOKUP(K$4,'4. Billing Determinants'!$B$19:$R$41,5,0)/'4. Billing Determinants'!$F$41*$D13,IF($E13="Non-RPP kWh",VLOOKUP(K$4,'4. Billing Determinants'!$B$19:$R$41,6,0)/'4. Billing Determinants'!$G$41*$D13,VLOOKUP(K$4,'4. Billing Determinants'!$B$19:$AA$41,21,0)*$D13)))),0) -> 0 | L13: =IFERROR(IF(L$4="",0,IF($E13="kWh",VLOOKUP(L$4,'4. Billing Determinants'!$B$19:$R$41,4,0)/'4. Billing Determinants'!$E$41*$D13,IF($E13="kW",VLOOKUP(L$4,'4. Billing Determinants'!$B$19:$R$41,5,0)/'4. Billing Determinants'!$F$41*$D13,IF($E13="Non-RPP kWh",VLOOKUP(L$4,'4. Billing Determinants'!$B$19:$R$41,6,0)/'4. Billing Determinants'!$G$41*$D13,VLOOKUP(L$4,'4. Billing Determinants'!$B$19:$AA$41,21,0)*$D13)))),0) -> 0 | M13: =IFERROR(IF(M$4="",0,IF($E13="kWh",VLOOKUP(M$4,'4. Billing Determinants'!$B$19:$R$41,4,0)/'4. Billing Determinants'!$E$41*$D13,IF($E13="kW",VLOOKUP(M$4,'4. Billing Determinants'!$B$19:$R$41,5,0)/'4. Billing Determinants'!$F$41*$D13,IF($E13="Non-RPP kWh",VLOOKUP(M$4,'4. Billing Determinants'!$B$19:$R$41,6,0)/'4. Billing Determinants'!$G$41*$D13,VLOOKUP(M$4,'4. Billing Determinants'!$B$19:$AA$41,21,0)*$D13)))),0) -> 0 | N13: =IFERROR(IF(N$4="",0,IF($E13="kWh",VLOOKUP(N$4,'4. Billing Determinants'!$B$19:$R$41,4,0)/'4. Billing Determinants'!$E$41*$D13,IF($E13="kW",VLOOKUP(N$4,'4. Billing Determinants'!$B$19:$R$41,5,0)/'4. Billing Determinants'!$F$41*$D13,IF($E13="Non-RPP kWh",VLOOKUP(N$4,'4. Billing Determinants'!$B$19:$R$41,6,0)/'4. Billing Determinants'!$G$41*$D13,VLOOKUP(N$4,'4. Billing Determinants'!$B$19:$AA$41,21,0)*$D13)))),0) -> 0 | O13: =IFERROR(IF(O$4="",0,IF($E13="kWh",VLOOKUP(O$4,'4. Billing Determinants'!$B$19:$R$41,4,0)/'4. Billing Determinants'!$E$41*$D13,IF($E13="kW",VLOOKUP(O$4,'4. Billing Determinants'!$B$19:$R$41,5,0)/'4. Billing Determinants'!$F$41*$D13,IF($E13="Non-RPP kWh",VLOOKUP(O$4,'4. Billing Determinants'!$B$19:$R$41,6,0)/'4. Billing Determinants'!$G$41*$D13,VLOOKUP(O$4,'4. Billing Determinants'!$B$19:$AA$41,21,0)*$D13)))),0) -> 0 | P13: =IFERROR(IF(P$4="",0,IF($E13="kWh",VLOOKUP(P$4,'4. Billing Determinants'!$B$19:$R$41,4,0)/'4. Billing Determinants'!$E$41*$D13,IF($E13="kW",VLOOKUP(P$4,'4. Billing Determinants'!$B$19:$R$41,5,0)/'4. Billing Determinants'!$F$41*$D13,IF($E13="Non-RPP kWh",VLOOKUP(P$4,'4. Billing Determinants'!$B$19:$R$41,6,0)/'4. Billing Determinants'!$G$41*$D13,VLOOKUP(P$4,'4. Billing Determinants'!$B$19:$AA$41,21,0)*$D13)))),0) -> 0 | Q13: =IFERROR(IF(Q$4="",0,IF($E13="kWh",VLOOKUP(Q$4,'4. Billing Determinants'!$B$19:$R$41,4,0)/'4. Billing Determinants'!$E$41*$D13,IF($E13="kW",VLOOKUP(Q$4,'4. Billing Determinants'!$B$19:$R$41,5,0)/'4. Billing Determinants'!$F$41*$D13,IF($E13="Non-RPP kWh",VLOOKUP(Q$4,'4. Billing Determinants'!$B$19:$R$41,6,0)/'4. Billing Determinants'!$G$41*$D13,VLOOKUP(Q$4,'4. Billing Determinants'!$B$19:$AA$41,21,0)*$D13)))),0) -> 0 | R13: =IFERROR(IF(R$4="",0,IF($E13="kWh",VLOOKUP(R$4,'4. Billing Determinants'!$B$19:$R$41,4,0)/'4. Billing Determinants'!$E$41*$D13,IF($E13="kW",VLOOKUP(R$4,'4. Billing Determinants'!$B$19:$R$41,5,0)/'4. Billing Determinants'!$F$41*$D13,IF($E13="Non-RPP kWh",VLOOKUP(R$4,'4. Billing Determinants'!$B$19:$R$41,6,0)/'4. Billing Determinants'!$G$41*$D13,VLOOKUP(R$4,'4. Billing Determinants'!$B$19:$AA$41,21,0)*$D13)))),0) -> 0 | S13: =IFERROR(IF(S$4="",0,IF($E13="kWh",VLOOKUP(S$4,'4. Billing Determinants'!$B$19:$R$41,4,0)/'4. Billing Determinants'!$E$41*$D13,IF($E13="kW",VLOOKUP(S$4,'4. Billing Determinants'!$B$19:$R$41,5,0)/'4. Billing Determinants'!$F$41*$D13,IF($E13="Non-RPP kWh",VLOOKUP(S$4,'4. Billing Determinants'!$B$19:$R$41,6,0)/'4. Billing Determinants'!$G$41*$D13,VLOOKUP(S$4,'4. Billing Determinants'!$B$19:$AA$41,21,0)*$D13)))),0) -> 0 | T13: =IFERROR(IF(T$4="",0,IF($E13="kWh",VLOOKUP(T$4,'4. Billing Determinants'!$B$19:$R$41,4,0)/'4. Billing Determinants'!$E$41*$D13,IF($E13="kW",VLOOKUP(T$4,'4. Billing Determinants'!$B$19:$R$41,5,0)/'4. Billing Determinants'!$F$41*$D13,IF($E13="Non-RPP kWh",VLOOKUP(T$4,'4. Billing Determinants'!$B$19:$R$41,6,0)/'4. Billing Determinants'!$G$41*$D13,VLOOKUP(T$4,'4. Billing Determinants'!$B$19:$AA$41,21,0)*$D13)))),0) -> 0 | U13: =IFERROR(IF(U$4="",0,IF($E13="kWh",VLOOKUP(U$4,'4. Billing Determinants'!$B$19:$R$41,4,0)/'4. Billing Determinants'!$E$41*$D13,IF($E13="kW",VLOOKUP(U$4,'4. Billing Determinants'!$B$19:$R$41,5,0)/'4. Billing Determinants'!$F$41*$D13,IF($E13="Non-RPP kWh",VLOOKUP(U$4,'4. Billing Determinants'!$B$19:$R$41,6,0)/'4. Billing Determinants'!$G$41*$D13,VLOOKUP(U$4,'4. Billing Determinants'!$B$19:$AA$41,21,0)*$D13)))),0) -> 0 | V13: =IFERROR(IF(V$4="",0,IF($E13="kWh",VLOOKUP(V$4,'4. Billing Determinants'!$B$19:$R$41,4,0)/'4. Billing Determinants'!$E$41*$D13,IF($E13="kW",VLOOKUP(V$4,'4. Billing Determinants'!$B$19:$R$41,5,0)/'4. Billing Determinants'!$F$41*$D13,IF($E13="Non-RPP kWh",VLOOKUP(V$4,'4. Billing Determinants'!$B$19:$R$41,6,0)/'4. Billing Determinants'!$G$41*$D13,VLOOKUP(V$4,'4. Billing Determinants'!$B$19:$AA$41,21,0)*$D13)))),0) -> 0 | W13: =IFERROR(IF(W$4="",0,IF($E13="kWh",VLOOKUP(W$4,'4. Billing Determinants'!$B$19:$R$41,4,0)/'4. Billing Determinants'!$E$41*$D13,IF($E13="kW",VLOOKUP(W$4,'4. Billing Determinants'!$B$19:$R$41,5,0)/'4. Billing Determinants'!$F$41*$D13,IF($E13="Non-RPP kWh",VLOOKUP(W$4,'4. Billing Determinants'!$B$19:$R$41,6,0)/'4. Billing Determinants'!$G$41*$D13,VLOOKUP(W$4,'4. Billing Determinants'!$B$19:$AA$41,21,0)*$D13)))),0) -> 0 | X13: =IFERROR(IF(X$4="",0,IF($E13="kWh",VLOOKUP(X$4,'4. Billing Determinants'!$B$19:$R$41,4,0)/'4. Billing Determinants'!$E$41*$D13,IF($E13="kW",VLOOKUP(X$4,'4. Billing Determinants'!$B$19:$R$41,5,0)/'4. Billing Determinants'!$F$41*$D13,IF($E13="Non-RPP kWh",VLOOKUP(X$4,'4. Billing Determinants'!$B$19:$R$41,6,0)/'4. Billing Determinants'!$G$41*$D13,VLOOKUP(X$4,'4. Billing Determinants'!$B$19:$AA$41,21,0)*$D13)))),0) -> 0 | Y13: =IFERROR(IF(Y$4="",0,IF($E13="kWh",VLOOKUP(Y$4,'4. Billing Determinants'!$B$19:$R$41,4,0)/'4. Billing Determinants'!$E$41*$D13,IF($E13="kW",VLOOKUP(Y$4,'4. Billing Determinants'!$B$19:$R$41,5,0)/'4. Billing Determinants'!$F$41*$D13,IF($E13="Non-RPP kWh",VLOOKUP(Y$4,'4. Billing Determinants'!$B$19:$R$41,6,0)/'4. Billing Determinants'!$G$41*$D13,VLOOKUP(Y$4,'4. Billing Determinants'!$B$19:$AA$41,21,0)*$D13)))),0) -> 0
A14: 11 | B14: Disposition and Recovery/Refund of Regulatory Balances (2019) | C14: 1595 | D14: ='2a. Continuity Schedule'!BT35 -> 0 | E14: % | F14: =IFERROR(IF(F$4="",0,IF($E14="kWh",VLOOKUP(F$4,'4. Billing Determinants'!$B$19:$R$41,4,0)/'4. Billing Determinants'!$E$41*$D14,IF($E14="kW",VLOOKUP(F$4,'4. Billing Determinants'!$B$19:$R$41,5,0)/'4. Billing Determinants'!$F$41*$D14,IF($E14="Non-RPP kWh",VLOOKUP(F$4,'4. Billing Determinants'!$B$19:$R$41,6,0)/'4. Billing Determinants'!$G$41*$D14, VLOOKUP(F$4,'4. Billing Determinants'!$B$19:$AA$41,22,0)*$D14)))),0) -> 0 | G14: =IFERROR(IF(G$4="",0,IF($E14="kWh",VLOOKUP(G$4,'4. Billing Determinants'!$B$19:$R$41,4,0)/'4. Billing Determinants'!$E$41*$D14,IF($E14="kW",VLOOKUP(G$4,'4. Billing Determinants'!$B$19:$R$41,5,0)/'4. Billing Determinants'!$F$41*$D14,IF($E14="Non-RPP kWh",VLOOKUP(G$4,'4. Billing Determinants'!$B$19:$R$41,6,0)/'4. Billing Determinants'!$G$41*$D14, VLOOKUP(G$4,'4. Billing Determinants'!$B$19:$AA$41,22,0)*$D14)))),0) -> 0 | H14: =IFERROR(IF(H$4="",0,IF($E14="kWh",VLOOKUP(H$4,'4. Billing Determinants'!$B$19:$R$41,4,0)/'4. Billing Determinants'!$E$41*$D14,IF($E14="kW",VLOOKUP(H$4,'4. Billing Determinants'!$B$19:$R$41,5,0)/'4. Billing Determinants'!$F$41*$D14,IF($E14="Non-RPP kWh",VLOOKUP(H$4,'4. Billing Determinants'!$B$19:$R$41,6,0)/'4. Billing Determinants'!$G$41*$D14, VLOOKUP(H$4,'4. Billing Determinants'!$B$19:$AA$41,22,0)*$D14)))),0) -> 0 | I14: =IFERROR(IF(I$4="",0,IF($E14="kWh",VLOOKUP(I$4,'4. Billing Determinants'!$B$19:$R$41,4,0)/'4. Billing Determinants'!$E$41*$D14,IF($E14="kW",VLOOKUP(I$4,'4. Billing Determinants'!$B$19:$R$41,5,0)/'4. Billing Determinants'!$F$41*$D14,IF($E14="Non-RPP kWh",VLOOKUP(I$4,'4. Billing Determinants'!$B$19:$R$41,6,0)/'4. Billing Determinants'!$G$41*$D14, VLOOKUP(I$4,'4. Billing Determinants'!$B$19:$AA$41,22,0)*$D14)))),0) -> 0 | J14: =IFERROR(IF(J$4="",0,IF($E14="kWh",VLOOKUP(J$4,'4. Billing Determinants'!$B$19:$R$41,4,0)/'4. Billing Determinants'!$E$41*$D14,IF($E14="kW",VLOOKUP(J$4,'4. Billing Determinants'!$B$19:$R$41,5,0)/'4. Billing Determinants'!$F$41*$D14,IF($E14="Non-RPP kWh",VLOOKUP(J$4,'4. Billing Determinants'!$B$19:$R$41,6,0)/'4. Billing Determinants'!$G$41*$D14, VLOOKUP(J$4,'4. Billing Determinants'!$B$19:$AA$41,22,0)*$D14)))),0) -> 0 | K14: =IFERROR(IF(K$4="",0,IF($E14="kWh",VLOOKUP(K$4,'4. Billing Determinants'!$B$19:$R$41,4,0)/'4. Billing Determinants'!$E$41*$D14,IF($E14="kW",VLOOKUP(K$4,'4. Billing Determinants'!$B$19:$R$41,5,0)/'4. Billing Determinants'!$F$41*$D14,IF($E14="Non-RPP kWh",VLOOKUP(K$4,'4. Billing Determinants'!$B$19:$R$41,6,0)/'4. Billing Determinants'!$G$41*$D14, VLOOKUP(K$4,'4. Billing Determinants'!$B$19:$AA$41,22,0)*$D14)))),0) -> 0 | L14: =IFERROR(IF(L$4="",0,IF($E14="kWh",VLOOKUP(L$4,'4. Billing Determinants'!$B$19:$R$41,4,0)/'4. Billing Determinants'!$E$41*$D14,IF($E14="kW",VLOOKUP(L$4,'4. Billing Determinants'!$B$19:$R$41,5,0)/'4. Billing Determinants'!$F$41*$D14,IF($E14="Non-RPP kWh",VLOOKUP(L$4,'4. Billing Determinants'!$B$19:$R$41,6,0)/'4. Billing Determinants'!$G$41*$D14, VLOOKUP(L$4,'4. Billing Determinants'!$B$19:$AA$41,22,0)*$D14)))),0) -> 0 | M14: =IFERROR(IF(M$4="",0,IF($E14="kWh",VLOOKUP(M$4,'4. Billing Determinants'!$B$19:$R$41,4,0)/'4. Billing Determinants'!$E$41*$D14,IF($E14="kW",VLOOKUP(M$4,'4. Billing Determinants'!$B$19:$R$41,5,0)/'4. Billing Determinants'!$F$41*$D14,IF($E14="Non-RPP kWh",VLOOKUP(M$4,'4. Billing Determinants'!$B$19:$R$41,6,0)/'4. Billing Determinants'!$G$41*$D14, VLOOKUP(M$4,'4. Billing Determinants'!$B$19:$AA$41,22,0)*$D14)))),0) -> 0 | N14: =IFERROR(IF(N$4="",0,IF($E14="kWh",VLOOKUP(N$4,'4. Billing Determinants'!$B$19:$R$41,4,0)/'4. Billing Determinants'!$E$41*$D14,IF($E14="kW",VLOOKUP(N$4,'4. Billing Determinants'!$B$19:$R$41,5,0)/'4. Billing Determinants'!$F$41*$D14,IF($E14="Non-RPP kWh",VLOOKUP(N$4,'4. Billing Determinants'!$B$19:$R$41,6,0)/'4. Billing Determinants'!$G$41*$D14, VLOOKUP(N$4,'4. Billing Determinants'!$B$19:$AA$41,22,0)*$D14)))),0) -> 0 | O14: =IFERROR(IF(O$4="",0,IF($E14="kWh",VLOOKUP(O$4,'4. Billing Determinants'!$B$19:$R$41,4,0)/'4. Billing Determinants'!$E$41*$D14,IF($E14="kW",VLOOKUP(O$4,'4. Billing Determinants'!$B$19:$R$41,5,0)/'4. Billing Determinants'!$F$41*$D14,IF($E14="Non-RPP kWh",VLOOKUP(O$4,'4. Billing Determinants'!$B$19:$R$41,6,0)/'4. Billing Determinants'!$G$41*$D14, VLOOKUP(O$4,'4. Billing Determinants'!$B$19:$AA$41,22,0)*$D14)))),0) -> 0 | P14: =IFERROR(IF(P$4="",0,IF($E14="kWh",VLOOKUP(P$4,'4. Billing Determinants'!$B$19:$R$41,4,0)/'4. Billing Determinants'!$E$41*$D14,IF($E14="kW",VLOOKUP(P$4,'4. Billing Determinants'!$B$19:$R$41,5,0)/'4. Billing Determinants'!$F$41*$D14,IF($E14="Non-RPP kWh",VLOOKUP(P$4,'4. Billing Determinants'!$B$19:$R$41,6,0)/'4. Billing Determinants'!$G$41*$D14, VLOOKUP(P$4,'4. Billing Determinants'!$B$19:$AA$41,22,0)*$D14)))),0) -> 0 | Q14: =IFERROR(IF(Q$4="",0,IF($E14="kWh",VLOOKUP(Q$4,'4. Billing Determinants'!$B$19:$R$41,4,0)/'4. Billing Determinants'!$E$41*$D14,IF($E14="kW",VLOOKUP(Q$4,'4. Billing Determinants'!$B$19:$R$41,5,0)/'4. Billing Determinants'!$F$41*$D14,IF($E14="Non-RPP kWh",VLOOKUP(Q$4,'4. Billing Determinants'!$B$19:$R$41,6,0)/'4. Billing Determinants'!$G$41*$D14, VLOOKUP(Q$4,'4. Billing Determinants'!$B$19:$AA$41,22,0)*$D14)))),0) -> 0 | R14: =IFERROR(IF(R$4="",0,IF($E14="kWh",VLOOKUP(R$4,'4. Billing Determinants'!$B$19:$R$41,4,0)/'4. Billing Determinants'!$E$41*$D14,IF($E14="kW",VLOOKUP(R$4,'4. Billing Determinants'!$B$19:$R$41,5,0)/'4. Billing Determinants'!$F$41*$D14,IF($E14="Non-RPP kWh",VLOOKUP(R$4,'4. Billing Determinants'!$B$19:$R$41,6,0)/'4. Billing Determinants'!$G$41*$D14, VLOOKUP(R$4,'4. Billing Determinants'!$B$19:$AA$41,22,0)*$D14)))),0) -> 0 | S14: =IFERROR(IF(S$4="",0,IF($E14="kWh",VLOOKUP(S$4,'4. Billing Determinants'!$B$19:$R$41,4,0)/'4. Billing Determinants'!$E$41*$D14,IF($E14="kW",VLOOKUP(S$4,'4. Billing Determinants'!$B$19:$R$41,5,0)/'4. Billing Determinants'!$F$41*$D14,IF($E14="Non-RPP kWh",VLOOKUP(S$4,'4. Billing Determinants'!$B$19:$R$41,6,0)/'4. Billing Determinants'!$G$41*$D14, VLOOKUP(S$4,'4. Billing Determinants'!$B$19:$AA$41,22,0)*$D14)))),0) -> 0 | T14: =IFERROR(IF(T$4="",0,IF($E14="kWh",VLOOKUP(T$4,'4. Billing Determinants'!$B$19:$R$41,4,0)/'4. Billing Determinants'!$E$41*$D14,IF($E14="kW",VLOOKUP(T$4,'4. Billing Determinants'!$B$19:$R$41,5,0)/'4. Billing Determinants'!$F$41*$D14,IF($E14="Non-RPP kWh",VLOOKUP(T$4,'4. Billing Determinants'!$B$19:$R$41,6,0)/'4. Billing Determinants'!$G$41*$D14, VLOOKUP(T$4,'4. Billing Determinants'!$B$19:$AA$41,22,0)*$D14)))),0) -> 0 | U14: =IFERROR(IF(U$4="",0,IF($E14="kWh",VLOOKUP(U$4,'4. Billing Determinants'!$B$19:$R$41,4,0)/'4. Billing Determinants'!$E$41*$D14,IF($E14="kW",VLOOKUP(U$4,'4. Billing Determinants'!$B$19:$R$41,5,0)/'4. Billing Determinants'!$F$41*$D14,IF($E14="Non-RPP kWh",VLOOKUP(U$4,'4. Billing Determinants'!$B$19:$R$41,6,0)/'4. Billing Determinants'!$G$41*$D14, VLOOKUP(U$4,'4. Billing Determinants'!$B$19:$AA$41,22,0)*$D14)))),0) -> 0 | V14: =IFERROR(IF(V$4="",0,IF($E14="kWh",VLOOKUP(V$4,'4. Billing Determinants'!$B$19:$R$41,4,0)/'4. Billing Determinants'!$E$41*$D14,IF($E14="kW",VLOOKUP(V$4,'4. Billing Determinants'!$B$19:$R$41,5,0)/'4. Billing Determinants'!$F$41*$D14,IF($E14="Non-RPP kWh",VLOOKUP(V$4,'4. Billing Determinants'!$B$19:$R$41,6,0)/'4. Billing Determinants'!$G$41*$D14, VLOOKUP(V$4,'4. Billing Determinants'!$B$19:$AA$41,22,0)*$D14)))),0) -> 0 | W14: =IFERROR(IF(W$4="",0,IF($E14="kWh",VLOOKUP(W$4,'4. Billing Determinants'!$B$19:$R$41,4,0)/'4. Billing Determinants'!$E$41*$D14,IF($E14="kW",VLOOKUP(W$4,'4. Billing Determinants'!$B$19:$R$41,5,0)/'4. Billing Determinants'!$F$41*$D14,IF($E14="Non-RPP kWh",VLOOKUP(W$4,'4. Billing Determinants'!$B$19:$R$41,6,0)/'4. Billing Determinants'!$G$41*$D14, VLOOKUP(W$4,'4. Billing Determinants'!$B$19:$AA$41,22,0)*$D14)))),0) -> 0 | X14: =IFERROR(IF(X$4="",0,IF($E14="kWh",VLOOKUP(X$4,'4. Billing Determinants'!$B$19:$R$41,4,0)/'4. Billing Determinants'!$E$41*$D14,IF($E14="kW",VLOOKUP(X$4,'4. Billing Determinants'!$B$19:$R$41,5,0)/'4. Billing Determinants'!$F$41*$D14,IF($E14="Non-RPP kWh",VLOOKUP(X$4,'4. Billing Determinants'!$B$19:$R$41,6,0)/'4. Billing Determinants'!$G$41*$D14, VLOOKUP(X$4,'4. Billing Determinants'!$B$19:$AA$41,22,0)*$D14)))),0) -> 0 | Y14: =IFERROR(IF(Y$4="",0,IF($E14="kWh",VLOOKUP(Y$4,'4. Billing Determinants'!$B$19:$R$41,4,0)/'4. Billing Determinants'!$E$41*$D14,IF($E14="kW",VLOOKUP(Y$4,'4. Billing Determinants'!$B$19:$R$41,5,0)/'4. Billing Determinants'!$F$41*$D14,IF($E14="Non-RPP kWh",VLOOKUP(Y$4,'4. Billing Determinants'!$B$19:$R$41,6,0)/'4. Billing Determinants'!$G$41*$D14, VLOOKUP(Y$4,'4. Billing Determinants'!$B$19:$AA$41,22,0)*$D14)))),0) -> 0
A15: 12 | B15: Disposition and Recovery/Refund of Regulatory Balances (2020) | C15: 1595 | D15: ='2a. Continuity Schedule'!BT36 -> 0 | E15: % | F15: =IFERROR(IF(F$4="",0,IF($E15="kWh",VLOOKUP(F$4,'4. Billing Determinants'!$B$19:$R$41,4,0)/'4. Billing Determinants'!$E$41*$D15,IF($E15="kW",VLOOKUP(F$4,'4. Billing Determinants'!$B$19:$R$41,5,0)/'4. Billing Determinants'!$F$41*$D15,IF($E15="Non-RPP kWh",VLOOKUP(F$4,'4. Billing Determinants'!$B$19:$R$41,6,0)/'4. Billing Determinants'!$G$41*$D15, VLOOKUP(F$4,'4. Billing Determinants'!$B$19:$AA$41,23,0)*$D15)))),0) -> 0 | G15: =IFERROR(IF(G$4="",0,IF($E15="kWh",VLOOKUP(G$4,'4. Billing Determinants'!$B$19:$R$41,4,0)/'4. Billing Determinants'!$E$41*$D15,IF($E15="kW",VLOOKUP(G$4,'4. Billing Determinants'!$B$19:$R$41,5,0)/'4. Billing Determinants'!$F$41*$D15,IF($E15="Non-RPP kWh",VLOOKUP(G$4,'4. Billing Determinants'!$B$19:$R$41,6,0)/'4. Billing Determinants'!$G$41*$D15, VLOOKUP(G$4,'4. Billing Determinants'!$B$19:$AA$41,23,0)*$D15)))),0) -> 0 | H15: =IFERROR(IF(H$4="",0,IF($E15="kWh",VLOOKUP(H$4,'4. Billing Determinants'!$B$19:$R$41,4,0)/'4. Billing Determinants'!$E$41*$D15,IF($E15="kW",VLOOKUP(H$4,'4. Billing Determinants'!$B$19:$R$41,5,0)/'4. Billing Determinants'!$F$41*$D15,IF($E15="Non-RPP kWh",VLOOKUP(H$4,'4. Billing Determinants'!$B$19:$R$41,6,0)/'4. Billing Determinants'!$G$41*$D15, VLOOKUP(H$4,'4. Billing Determinants'!$B$19:$AA$41,23,0)*$D15)))),0) -> 0 | I15: =IFERROR(IF(I$4="",0,IF($E15="kWh",VLOOKUP(I$4,'4. Billing Determinants'!$B$19:$R$41,4,0)/'4. Billing Determinants'!$E$41*$D15,IF($E15="kW",VLOOKUP(I$4,'4. Billing Determinants'!$B$19:$R$41,5,0)/'4. Billing Determinants'!$F$41*$D15,IF($E15="Non-RPP kWh",VLOOKUP(I$4,'4. Billing Determinants'!$B$19:$R$41,6,0)/'4. Billing Determinants'!$G$41*$D15, VLOOKUP(I$4,'4. Billing Determinants'!$B$19:$AA$41,23,0)*$D15)))),0) -> 0 | J15: =IFERROR(IF(J$4="",0,IF($E15="kWh",VLOOKUP(J$4,'4. Billing Determinants'!$B$19:$R$41,4,0)/'4. Billing Determinants'!$E$41*$D15,IF($E15="kW",VLOOKUP(J$4,'4. Billing Determinants'!$B$19:$R$41,5,0)/'4. Billing Determinants'!$F$41*$D15,IF($E15="Non-RPP kWh",VLOOKUP(J$4,'4. Billing Determinants'!$B$19:$R$41,6,0)/'4. Billing Determinants'!$G$41*$D15, VLOOKUP(J$4,'4. Billing Determinants'!$B$19:$AA$41,23,0)*$D15)))),0) -> 0 | K15: =IFERROR(IF(K$4="",0,IF($E15="kWh",VLOOKUP(K$4,'4. Billing Determinants'!$B$19:$R$41,4,0)/'4. Billing Determinants'!$E$41*$D15,IF($E15="kW",VLOOKUP(K$4,'4. Billing Determinants'!$B$19:$R$41,5,0)/'4. Billing Determinants'!$F$41*$D15,IF($E15="Non-RPP kWh",VLOOKUP(K$4,'4. Billing Determinants'!$B$19:$R$41,6,0)/'4. Billing Determinants'!$G$41*$D15, VLOOKUP(K$4,'4. Billing Determinants'!$B$19:$AA$41,23,0)*$D15)))),0) -> 0 | L15: =IFERROR(IF(L$4="",0,IF($E15="kWh",VLOOKUP(L$4,'4. Billing Determinants'!$B$19:$R$41,4,0)/'4. Billing Determinants'!$E$41*$D15,IF($E15="kW",VLOOKUP(L$4,'4. Billing Determinants'!$B$19:$R$41,5,0)/'4. Billing Determinants'!$F$41*$D15,IF($E15="Non-RPP kWh",VLOOKUP(L$4,'4. Billing Determinants'!$B$19:$R$41,6,0)/'4. Billing Determinants'!$G$41*$D15, VLOOKUP(L$4,'4. Billing Determinants'!$B$19:$AA$41,23,0)*$D15)))),0) -> 0 | M15: =IFERROR(IF(M$4="",0,IF($E15="kWh",VLOOKUP(M$4,'4. Billing Determinants'!$B$19:$R$41,4,0)/'4. Billing Determinants'!$E$41*$D15,IF($E15="kW",VLOOKUP(M$4,'4. Billing Determinants'!$B$19:$R$41,5,0)/'4. Billing Determinants'!$F$41*$D15,IF($E15="Non-RPP kWh",VLOOKUP(M$4,'4. Billing Determinants'!$B$19:$R$41,6,0)/'4. Billing Determinants'!$G$41*$D15, VLOOKUP(M$4,'4. Billing Determinants'!$B$19:$AA$41,23,0)*$D15)))),0) -> 0 | N15: =IFERROR(IF(N$4="",0,IF($E15="kWh",VLOOKUP(N$4,'4. Billing Determinants'!$B$19:$R$41,4,0)/'4. Billing Determinants'!$E$41*$D15,IF($E15="kW",VLOOKUP(N$4,'4. Billing Determinants'!$B$19:$R$41,5,0)/'4. Billing Determinants'!$F$41*$D15,IF($E15="Non-RPP kWh",VLOOKUP(N$4,'4. Billing Determinants'!$B$19:$R$41,6,0)/'4. Billing Determinants'!$G$41*$D15, VLOOKUP(N$4,'4. Billing Determinants'!$B$19:$AA$41,23,0)*$D15)))),0) -> 0 | O15: =IFERROR(IF(O$4="",0,IF($E15="kWh",VLOOKUP(O$4,'4. Billing Determinants'!$B$19:$R$41,4,0)/'4. Billing Determinants'!$E$41*$D15,IF($E15="kW",VLOOKUP(O$4,'4. Billing Determinants'!$B$19:$R$41,5,0)/'4. Billing Determinants'!$F$41*$D15,IF($E15="Non-RPP kWh",VLOOKUP(O$4,'4. Billing Determinants'!$B$19:$R$41,6,0)/'4. Billing Determinants'!$G$41*$D15, VLOOKUP(O$4,'4. Billing Determinants'!$B$19:$AA$41,23,0)*$D15)))),0) -> 0 | P15: =IFERROR(IF(P$4="",0,IF($E15="kWh",VLOOKUP(P$4,'4. Billing Determinants'!$B$19:$R$41,4,0)/'4. Billing Determinants'!$E$41*$D15,IF($E15="kW",VLOOKUP(P$4,'4. Billing Determinants'!$B$19:$R$41,5,0)/'4. Billing Determinants'!$F$41*$D15,IF($E15="Non-RPP kWh",VLOOKUP(P$4,'4. Billing Determinants'!$B$19:$R$41,6,0)/'4. Billing Determinants'!$G$41*$D15, VLOOKUP(P$4,'4. Billing Determinants'!$B$19:$AA$41,23,0)*$D15)))),0) -> 0 | Q15: =IFERROR(IF(Q$4="",0,IF($E15="kWh",VLOOKUP(Q$4,'4. Billing Determinants'!$B$19:$R$41,4,0)/'4. Billing Determinants'!$E$41*$D15,IF($E15="kW",VLOOKUP(Q$4,'4. Billing Determinants'!$B$19:$R$41,5,0)/'4. Billing Determinants'!$F$41*$D15,IF($E15="Non-RPP kWh",VLOOKUP(Q$4,'4. Billing Determinants'!$B$19:$R$41,6,0)/'4. Billing Determinants'!$G$41*$D15, VLOOKUP(Q$4,'4. Billing Determinants'!$B$19:$AA$41,23,0)*$D15)))),0) -> 0 | R15: =IFERROR(IF(R$4="",0,IF($E15="kWh",VLOOKUP(R$4,'4. Billing Determinants'!$B$19:$R$41,4,0)/'4. Billing Determinants'!$E$41*$D15,IF($E15="kW",VLOOKUP(R$4,'4. Billing Determinants'!$B$19:$R$41,5,0)/'4. Billing Determinants'!$F$41*$D15,IF($E15="Non-RPP kWh",VLOOKUP(R$4,'4. Billing Determinants'!$B$19:$R$41,6,0)/'4. Billing Determinants'!$G$41*$D15, VLOOKUP(R$4,'4. Billing Determinants'!$B$19:$AA$41,23,0)*$D15)))),0) -> 0 | S15: =IFERROR(IF(S$4="",0,IF($E15="kWh",VLOOKUP(S$4,'4. Billing Determinants'!$B$19:$R$41,4,0)/'4. Billing Determinants'!$E$41*$D15,IF($E15="kW",VLOOKUP(S$4,'4. Billing Determinants'!$B$19:$R$41,5,0)/'4. Billing Determinants'!$F$41*$D15,IF($E15="Non-RPP kWh",VLOOKUP(S$4,'4. Billing Determinants'!$B$19:$R$41,6,0)/'4. Billing Determinants'!$G$41*$D15, VLOOKUP(S$4,'4. Billing Determinants'!$B$19:$AA$41,23,0)*$D15)))),0) -> 0 | T15: =IFERROR(IF(T$4="",0,IF($E15="kWh",VLOOKUP(T$4,'4. Billing Determinants'!$B$19:$R$41,4,0)/'4. Billing Determinants'!$E$41*$D15,IF($E15="kW",VLOOKUP(T$4,'4. Billing Determinants'!$B$19:$R$41,5,0)/'4. Billing Determinants'!$F$41*$D15,IF($E15="Non-RPP kWh",VLOOKUP(T$4,'4. Billing Determinants'!$B$19:$R$41,6,0)/'4. Billing Determinants'!$G$41*$D15, VLOOKUP(T$4,'4. Billing Determinants'!$B$19:$AA$41,23,0)*$D15)))),0) -> 0 | U15: =IFERROR(IF(U$4="",0,IF($E15="kWh",VLOOKUP(U$4,'4. Billing Determinants'!$B$19:$R$41,4,0)/'4. Billing Determinants'!$E$41*$D15,IF($E15="kW",VLOOKUP(U$4,'4. Billing Determinants'!$B$19:$R$41,5,0)/'4. Billing Determinants'!$F$41*$D15,IF($E15="Non-RPP kWh",VLOOKUP(U$4,'4. Billing Determinants'!$B$19:$R$41,6,0)/'4. Billing Determinants'!$G$41*$D15, VLOOKUP(U$4,'4. Billing Determinants'!$B$19:$AA$41,23,0)*$D15)))),0) -> 0 | V15: =IFERROR(IF(V$4="",0,IF($E15="kWh",VLOOKUP(V$4,'4. Billing Determinants'!$B$19:$R$41,4,0)/'4. Billing Determinants'!$E$41*$D15,IF($E15="kW",VLOOKUP(V$4,'4. Billing Determinants'!$B$19:$R$41,5,0)/'4. Billing Determinants'!$F$41*$D15,IF($E15="Non-RPP kWh",VLOOKUP(V$4,'4. Billing Determinants'!$B$19:$R$41,6,0)/'4. Billing Determinants'!$G$41*$D15, VLOOKUP(V$4,'4. Billing Determinants'!$B$19:$AA$41,23,0)*$D15)))),0) -> 0 | W15: =IFERROR(IF(W$4="",0,IF($E15="kWh",VLOOKUP(W$4,'4. Billing Determinants'!$B$19:$R$41,4,0)/'4. Billing Determinants'!$E$41*$D15,IF($E15="kW",VLOOKUP(W$4,'4. Billing Determinants'!$B$19:$R$41,5,0)/'4. Billing Determinants'!$F$41*$D15,IF($E15="Non-RPP kWh",VLOOKUP(W$4,'4. Billing Determinants'!$B$19:$R$41,6,0)/'4. Billing Determinants'!$G$41*$D15, VLOOKUP(W$4,'4. Billing Determinants'!$B$19:$AA$41,23,0)*$D15)))),0) -> 0 | X15: =IFERROR(IF(X$4="",0,IF($E15="kWh",VLOOKUP(X$4,'4. Billing Determinants'!$B$19:$R$41,4,0)/'4. Billing Determinants'!$E$41*$D15,IF($E15="kW",VLOOKUP(X$4,'4. Billing Determinants'!$B$19:$R$41,5,0)/'4. Billing Determinants'!$F$41*$D15,IF($E15="Non-RPP kWh",VLOOKUP(X$4,'4. Billing Determinants'!$B$19:$R$41,6,0)/'4. Billing Determinants'!$G$41*$D15, VLOOKUP(X$4,'4. Billing Determinants'!$B$19:$AA$41,23,0)*$D15)))),0) -> 0 | Y15: =IFERROR(IF(Y$4="",0,IF($E15="kWh",VLOOKUP(Y$4,'4. Billing Determinants'!$B$19:$R$41,4,0)/'4. Billing Determinants'!$E$41*$D15,IF($E15="kW",VLOOKUP(Y$4,'4. Billing Determinants'!$B$19:$R$41,5,0)/'4. Billing Determinants'!$F$41*$D15,IF($E15="Non-RPP kWh",VLOOKUP(Y$4,'4. Billing Determinants'!$B$19:$R$41,6,0)/'4. Billing Determinants'!$G$41*$D15, VLOOKUP(Y$4,'4. Billing Determinants'!$B$19:$AA$41,23,0)*$D15)))),0) -> 0
A16: 13 | B16: Disposition and Recovery/Refund of Regulatory Balances (2021) | C16: 1595 | D16: ='2a. Continuity Schedule'!BT37 -> 0 | E16: % | F16: =IFERROR(IF(F$4="",0,IF($E16="kWh",VLOOKUP(F$4,'4. Billing Determinants'!$B$19:$R$41,4,0)/'4. Billing Determinants'!$E$41*$D16,IF($E16="kW",VLOOKUP(F$4,'4. Billing Determinants'!$B$19:$R$41,5,0)/'4. Billing Determinants'!$F$41*$D16,IF($E16="Non-RPP kWh",VLOOKUP(F$4,'4. Billing Determinants'!$B$19:$R$41,6,0)/'4. Billing Determinants'!$G$41*$D16, VLOOKUP(F$4,'4. Billing Determinants'!$B$19:$AA$41,24,0)*$D16)))),0) -> 0 | G16: =IFERROR(IF(G$4="",0,IF($E16="kWh",VLOOKUP(G$4,'4. Billing Determinants'!$B$19:$R$41,4,0)/'4. Billing Determinants'!$E$41*$D16,IF($E16="kW",VLOOKUP(G$4,'4. Billing Determinants'!$B$19:$R$41,5,0)/'4. Billing Determinants'!$F$41*$D16,IF($E16="Non-RPP kWh",VLOOKUP(G$4,'4. Billing Determinants'!$B$19:$R$41,6,0)/'4. Billing Determinants'!$G$41*$D16, VLOOKUP(G$4,'4. Billing Determinants'!$B$19:$AA$41,24,0)*$D16)))),0) -> 0 | H16: =IFERROR(IF(H$4="",0,IF($E16="kWh",VLOOKUP(H$4,'4. Billing Determinants'!$B$19:$R$41,4,0)/'4. Billing Determinants'!$E$41*$D16,IF($E16="kW",VLOOKUP(H$4,'4. Billing Determinants'!$B$19:$R$41,5,0)/'4. Billing Determinants'!$F$41*$D16,IF($E16="Non-RPP kWh",VLOOKUP(H$4,'4. Billing Determinants'!$B$19:$R$41,6,0)/'4. Billing Determinants'!$G$41*$D16, VLOOKUP(H$4,'4. Billing Determinants'!$B$19:$AA$41,24,0)*$D16)))),0) -> 0 | I16: =IFERROR(IF(I$4="",0,IF($E16="kWh",VLOOKUP(I$4,'4. Billing Determinants'!$B$19:$R$41,4,0)/'4. Billing Determinants'!$E$41*$D16,IF($E16="kW",VLOOKUP(I$4,'4. Billing Determinants'!$B$19:$R$41,5,0)/'4. Billing Determinants'!$F$41*$D16,IF($E16="Non-RPP kWh",VLOOKUP(I$4,'4. Billing Determinants'!$B$19:$R$41,6,0)/'4. Billing Determinants'!$G$41*$D16, VLOOKUP(I$4,'4. Billing Determinants'!$B$19:$AA$41,24,0)*$D16)))),0) -> 0 | J16: =IFERROR(IF(J$4="",0,IF($E16="kWh",VLOOKUP(J$4,'4. Billing Determinants'!$B$19:$R$41,4,0)/'4. Billing Determinants'!$E$41*$D16,IF($E16="kW",VLOOKUP(J$4,'4. Billing Determinants'!$B$19:$R$41,5,0)/'4. Billing Determinants'!$F$41*$D16,IF($E16="Non-RPP kWh",VLOOKUP(J$4,'4. Billing Determinants'!$B$19:$R$41,6,0)/'4. Billing Determinants'!$G$41*$D16, VLOOKUP(J$4,'4. Billing Determinants'!$B$19:$AA$41,24,0)*$D16)))),0) -> 0 | K16: =IFERROR(IF(K$4="",0,IF($E16="kWh",VLOOKUP(K$4,'4. Billing Determinants'!$B$19:$R$41,4,0)/'4. Billing Determinants'!$E$41*$D16,IF($E16="kW",VLOOKUP(K$4,'4. Billing Determinants'!$B$19:$R$41,5,0)/'4. Billing Determinants'!$F$41*$D16,IF($E16="Non-RPP kWh",VLOOKUP(K$4,'4. Billing Determinants'!$B$19:$R$41,6,0)/'4. Billing Determinants'!$G$41*$D16, VLOOKUP(K$4,'4. Billing Determinants'!$B$19:$AA$41,24,0)*$D16)))),0) -> 0 | L16: =IFERROR(IF(L$4="",0,IF($E16="kWh",VLOOKUP(L$4,'4. Billing Determinants'!$B$19:$R$41,4,0)/'4. Billing Determinants'!$E$41*$D16,IF($E16="kW",VLOOKUP(L$4,'4. Billing Determinants'!$B$19:$R$41,5,0)/'4. Billing Determinants'!$F$41*$D16,IF($E16="Non-RPP kWh",VLOOKUP(L$4,'4. Billing Determinants'!$B$19:$R$41,6,0)/'4. Billing Determinants'!$G$41*$D16, VLOOKUP(L$4,'4. Billing Determinants'!$B$19:$AA$41,24,0)*$D16)))),0) -> 0 | M16: =IFERROR(IF(M$4="",0,IF($E16="kWh",VLOOKUP(M$4,'4. Billing Determinants'!$B$19:$R$41,4,0)/'4. Billing Determinants'!$E$41*$D16,IF($E16="kW",VLOOKUP(M$4,'4. Billing Determinants'!$B$19:$R$41,5,0)/'4. Billing Determinants'!$F$41*$D16,IF($E16="Non-RPP kWh",VLOOKUP(M$4,'4. Billing Determinants'!$B$19:$R$41,6,0)/'4. Billing Determinants'!$G$41*$D16, VLOOKUP(M$4,'4. Billing Determinants'!$B$19:$AA$41,24,0)*$D16)))),0) -> 0 | N16: =IFERROR(IF(N$4="",0,IF($E16="kWh",VLOOKUP(N$4,'4. Billing Determinants'!$B$19:$R$41,4,0)/'4. Billing Determinants'!$E$41*$D16,IF($E16="kW",VLOOKUP(N$4,'4. Billing Determinants'!$B$19:$R$41,5,0)/'4. Billing Determinants'!$F$41*$D16,IF($E16="Non-RPP kWh",VLOOKUP(N$4,'4. Billing Determinants'!$B$19:$R$41,6,0)/'4. Billing Determinants'!$G$41*$D16, VLOOKUP(N$4,'4. Billing Determinants'!$B$19:$AA$41,24,0)*$D16)))),0) -> 0 | O16: =IFERROR(IF(O$4="",0,IF($E16="kWh",VLOOKUP(O$4,'4. Billing Determinants'!$B$19:$R$41,4,0)/'4. Billing Determinants'!$E$41*$D16,IF($E16="kW",VLOOKUP(O$4,'4. Billing Determinants'!$B$19:$R$41,5,0)/'4. Billing Determinants'!$F$41*$D16,IF($E16="Non-RPP kWh",VLOOKUP(O$4,'4. Billing Determinants'!$B$19:$R$41,6,0)/'4. Billing Determinants'!$G$41*$D16, VLOOKUP(O$4,'4. Billing Determinants'!$B$19:$AA$41,24,0)*$D16)))),0) -> 0 | P16: =IFERROR(IF(P$4="",0,IF($E16="kWh",VLOOKUP(P$4,'4. Billing Determinants'!$B$19:$R$41,4,0)/'4. Billing Determinants'!$E$41*$D16,IF($E16="kW",VLOOKUP(P$4,'4. Billing Determinants'!$B$19:$R$41,5,0)/'4. Billing Determinants'!$F$41*$D16,IF($E16="Non-RPP kWh",VLOOKUP(P$4,'4. Billing Determinants'!$B$19:$R$41,6,0)/'4. Billing Determinants'!$G$41*$D16, VLOOKUP(P$4,'4. Billing Determinants'!$B$19:$AA$41,24,0)*$D16)))),0) -> 0 | Q16: =IFERROR(IF(Q$4="",0,IF($E16="kWh",VLOOKUP(Q$4,'4. Billing Determinants'!$B$19:$R$41,4,0)/'4. Billing Determinants'!$E$41*$D16,IF($E16="kW",VLOOKUP(Q$4,'4. Billing Determinants'!$B$19:$R$41,5,0)/'4. Billing Determinants'!$F$41*$D16,IF($E16="Non-RPP kWh",VLOOKUP(Q$4,'4. Billing Determinants'!$B$19:$R$41,6,0)/'4. Billing Determinants'!$G$41*$D16, VLOOKUP(Q$4,'4. Billing Determinants'!$B$19:$AA$41,24,0)*$D16)))),0) -> 0 | R16: =IFERROR(IF(R$4="",0,IF($E16="kWh",VLOOKUP(R$4,'4. Billing Determinants'!$B$19:$R$41,4,0)/'4. Billing Determinants'!$E$41*$D16,IF($E16="kW",VLOOKUP(R$4,'4. Billing Determinants'!$B$19:$R$41,5,0)/'4. Billing Determinants'!$F$41*$D16,IF($E16="Non-RPP kWh",VLOOKUP(R$4,'4. Billing Determinants'!$B$19:$R$41,6,0)/'4. Billing Determinants'!$G$41*$D16, VLOOKUP(R$4,'4. Billing Determinants'!$B$19:$AA$41,24,0)*$D16)))),0) -> 0 | S16: =IFERROR(IF(S$4="",0,IF($E16="kWh",VLOOKUP(S$4,'4. Billing Determinants'!$B$19:$R$41,4,0)/'4. Billing Determinants'!$E$41*$D16,IF($E16="kW",VLOOKUP(S$4,'4. Billing Determinants'!$B$19:$R$41,5,0)/'4. Billing Determinants'!$F$41*$D16,IF($E16="Non-RPP kWh",VLOOKUP(S$4,'4. Billing Determinants'!$B$19:$R$41,6,0)/'4. Billing Determinants'!$G$41*$D16, VLOOKUP(S$4,'4. Billing Determinants'!$B$19:$AA$41,24,0)*$D16)))),0) -> 0 | T16: =IFERROR(IF(T$4="",0,IF($E16="kWh",VLOOKUP(T$4,'4. Billing Determinants'!$B$19:$R$41,4,0)/'4. Billing Determinants'!$E$41*$D16,IF($E16="kW",VLOOKUP(T$4,'4. Billing Determinants'!$B$19:$R$41,5,0)/'4. Billing Determinants'!$F$41*$D16,IF($E16="Non-RPP kWh",VLOOKUP(T$4,'4. Billing Determinants'!$B$19:$R$41,6,0)/'4. Billing Determinants'!$G$41*$D16, VLOOKUP(T$4,'4. Billing Determinants'!$B$19:$AA$41,24,0)*$D16)))),0) -> 0 | U16: =IFERROR(IF(U$4="",0,IF($E16="kWh",VLOOKUP(U$4,'4. Billing Determinants'!$B$19:$R$41,4,0)/'4. Billing Determinants'!$E$41*$D16,IF($E16="kW",VLOOKUP(U$4,'4. Billing Determinants'!$B$19:$R$41,5,0)/'4. Billing Determinants'!$F$41*$D16,IF($E16="Non-RPP kWh",VLOOKUP(U$4,'4. Billing Determinants'!$B$19:$R$41,6,0)/'4. Billing Determinants'!$G$41*$D16, VLOOKUP(U$4,'4. Billing Determinants'!$B$19:$AA$41,24,0)*$D16)))),0) -> 0 | V16: =IFERROR(IF(V$4="",0,IF($E16="kWh",VLOOKUP(V$4,'4. Billing Determinants'!$B$19:$R$41,4,0)/'4. Billing Determinants'!$E$41*$D16,IF($E16="kW",VLOOKUP(V$4,'4. Billing Determinants'!$B$19:$R$41,5,0)/'4. Billing Determinants'!$F$41*$D16,IF($E16="Non-RPP kWh",VLOOKUP(V$4,'4. Billing Determinants'!$B$19:$R$41,6,0)/'4. Billing Determinants'!$G$41*$D16, VLOOKUP(V$4,'4. Billing Determinants'!$B$19:$AA$41,24,0)*$D16)))),0) -> 0 | W16: =IFERROR(IF(W$4="",0,IF($E16="kWh",VLOOKUP(W$4,'4. Billing Determinants'!$B$19:$R$41,4,0)/'4. Billing Determinants'!$E$41*$D16,IF($E16="kW",VLOOKUP(W$4,'4. Billing Determinants'!$B$19:$R$41,5,0)/'4. Billing Determinants'!$F$41*$D16,IF($E16="Non-RPP kWh",VLOOKUP(W$4,'4. Billing Determinants'!$B$19:$R$41,6,0)/'4. Billing Determinants'!$G$41*$D16, VLOOKUP(W$4,'4. Billing Determinants'!$B$19:$AA$41,24,0)*$D16)))),0) -> 0 | X16: =IFERROR(IF(X$4="",0,IF($E16="kWh",VLOOKUP(X$4,'4. Billing Determinants'!$B$19:$R$41,4,0)/'4. Billing Determinants'!$E$41*$D16,IF($E16="kW",VLOOKUP(X$4,'4. Billing Determinants'!$B$19:$R$41,5,0)/'4. Billing Determinants'!$F$41*$D16,IF($E16="Non-RPP kWh",VLOOKUP(X$4,'4. Billing Determinants'!$B$19:$R$41,6,0)/'4. Billing Determinants'!$G$41*$D16, VLOOKUP(X$4,'4. Billing Determinants'!$B$19:$AA$41,24,0)*$D16)))),0) -> 0 | Y16: =IFERROR(IF(Y$4="",0,IF($E16="kWh",VLOOKUP(Y$4,'4. Billing Determinants'!$B$19:$R$41,4,0)/'4. Billing Determinants'!$E$41*$D16,IF($E16="kW",VLOOKUP(Y$4,'4. Billing Determinants'!$B$19:$R$41,5,0)/'4. Billing Determinants'!$F$41*$D16,IF($E16="Non-RPP kWh",VLOOKUP(Y$4,'4. Billing Determinants'!$B$19:$R$41,6,0)/'4. Billing Determinants'!$G$41*$D16, VLOOKUP(Y$4,'4. Billing Determinants'!$B$19:$AA$41,24,0)*$D16)))),0) -> 0
A17: 14 | B17: Disposition and Recovery/Refund of Regulatory Balances (2022) | C17: 1595 | D17: ='2a. Continuity Schedule'!BT38 -> 0 | E17: % | F17: =IFERROR(IF(F$4="",0,IF($E17="kWh",VLOOKUP(F$4,'4. Billing Determinants'!$B$19:$R$41,4,0)/'4. Billing Determinants'!$E$41*$D17,IF($E17="kW",VLOOKUP(F$4,'4. Billing Determinants'!$B$19:$R$41,5,0)/'4. Billing Determinants'!$F$41*$D17,IF($E17="Non-RPP kWh",VLOOKUP(F$4,'4. Billing Determinants'!$B$19:$R$41,6,0)/'4. Billing Determinants'!$G$41*$D17, VLOOKUP(F$4,'4. Billing Determinants'!$B$19:$AA$41,25,0)*$D17)))),0) -> 0 | G17: =IFERROR(IF(G$4="",0,IF($E17="kWh",VLOOKUP(G$4,'4. Billing Determinants'!$B$19:$R$41,4,0)/'4. Billing Determinants'!$E$41*$D17,IF($E17="kW",VLOOKUP(G$4,'4. Billing Determinants'!$B$19:$R$41,5,0)/'4. Billing Determinants'!$F$41*$D17,IF($E17="Non-RPP kWh",VLOOKUP(G$4,'4. Billing Determinants'!$B$19:$R$41,6,0)/'4. Billing Determinants'!$G$41*$D17, VLOOKUP(G$4,'4. Billing Determinants'!$B$19:$AA$41,25,0)*$D17)))),0) -> 0 | H17: =IFERROR(IF(H$4="",0,IF($E17="kWh",VLOOKUP(H$4,'4. Billing Determinants'!$B$19:$R$41,4,0)/'4. Billing Determinants'!$E$41*$D17,IF($E17="kW",VLOOKUP(H$4,'4. Billing Determinants'!$B$19:$R$41,5,0)/'4. Billing Determinants'!$F$41*$D17,IF($E17="Non-RPP kWh",VLOOKUP(H$4,'4. Billing Determinants'!$B$19:$R$41,6,0)/'4. Billing Determinants'!$G$41*$D17, VLOOKUP(H$4,'4. Billing Determinants'!$B$19:$AA$41,25,0)*$D17)))),0) -> 0 | I17: =IFERROR(IF(I$4="",0,IF($E17="kWh",VLOOKUP(I$4,'4. Billing Determinants'!$B$19:$R$41,4,0)/'4. Billing Determinants'!$E$41*$D17,IF($E17="kW",VLOOKUP(I$4,'4. Billing Determinants'!$B$19:$R$41,5,0)/'4. Billing Determinants'!$F$41*$D17,IF($E17="Non-RPP kWh",VLOOKUP(I$4,'4. Billing Determinants'!$B$19:$R$41,6,0)/'4. Billing Determinants'!$G$41*$D17, VLOOKUP(I$4,'4. Billing Determinants'!$B$19:$AA$41,25,0)*$D17)))),0) -> 0 | J17: =IFERROR(IF(J$4="",0,IF($E17="kWh",VLOOKUP(J$4,'4. Billing Determinants'!$B$19:$R$41,4,0)/'4. Billing Determinants'!$E$41*$D17,IF($E17="kW",VLOOKUP(J$4,'4. Billing Determinants'!$B$19:$R$41,5,0)/'4. Billing Determinants'!$F$41*$D17,IF($E17="Non-RPP kWh",VLOOKUP(J$4,'4. Billing Determinants'!$B$19:$R$41,6,0)/'4. Billing Determinants'!$G$41*$D17, VLOOKUP(J$4,'4. Billing Determinants'!$B$19:$AA$41,25,0)*$D17)))),0) -> 0 | K17: =IFERROR(IF(K$4="",0,IF($E17="kWh",VLOOKUP(K$4,'4. Billing Determinants'!$B$19:$R$41,4,0)/'4. Billing Determinants'!$E$41*$D17,IF($E17="kW",VLOOKUP(K$4,'4. Billing Determinants'!$B$19:$R$41,5,0)/'4. Billing Determinants'!$F$41*$D17,IF($E17="Non-RPP kWh",VLOOKUP(K$4,'4. Billing Determinants'!$B$19:$R$41,6,0)/'4. Billing Determinants'!$G$41*$D17, VLOOKUP(K$4,'4. Billing Determinants'!$B$19:$AA$41,25,0)*$D17)))),0) -> 0 | L17: =IFERROR(IF(L$4="",0,IF($E17="kWh",VLOOKUP(L$4,'4. Billing Determinants'!$B$19:$R$41,4,0)/'4. Billing Determinants'!$E$41*$D17,IF($E17="kW",VLOOKUP(L$4,'4. Billing Determinants'!$B$19:$R$41,5,0)/'4. Billing Determinants'!$F$41*$D17,IF($E17="Non-RPP kWh",VLOOKUP(L$4,'4. Billing Determinants'!$B$19:$R$41,6,0)/'4. Billing Determinants'!$G$41*$D17, VLOOKUP(L$4,'4. Billing Determinants'!$B$19:$AA$41,25,0)*$D17)))),0) -> 0 | M17: =IFERROR(IF(M$4="",0,IF($E17="kWh",VLOOKUP(M$4,'4. Billing Determinants'!$B$19:$R$41,4,0)/'4. Billing Determinants'!$E$41*$D17,IF($E17="kW",VLOOKUP(M$4,'4. Billing Determinants'!$B$19:$R$41,5,0)/'4. Billing Determinants'!$F$41*$D17,IF($E17="Non-RPP kWh",VLOOKUP(M$4,'4. Billing Determinants'!$B$19:$R$41,6,0)/'4. Billing Determinants'!$G$41*$D17, VLOOKUP(M$4,'4. Billing Determinants'!$B$19:$AA$41,25,0)*$D17)))),0) -> 0 | N17: =IFERROR(IF(N$4="",0,IF($E17="kWh",VLOOKUP(N$4,'4. Billing Determinants'!$B$19:$R$41,4,0)/'4. Billing Determinants'!$E$41*$D17,IF($E17="kW",VLOOKUP(N$4,'4. Billing Determinants'!$B$19:$R$41,5,0)/'4. Billing Determinants'!$F$41*$D17,IF($E17="Non-RPP kWh",VLOOKUP(N$4,'4. Billing Determinants'!$B$19:$R$41,6,0)/'4. Billing Determinants'!$G$41*$D17, VLOOKUP(N$4,'4. Billing Determinants'!$B$19:$AA$41,25,0)*$D17)))),0) -> 0 | O17: =IFERROR(IF(O$4="",0,IF($E17="kWh",VLOOKUP(O$4,'4. Billing Determinants'!$B$19:$R$41,4,0)/'4. Billing Determinants'!$E$41*$D17,IF($E17="kW",VLOOKUP(O$4,'4. Billing Determinants'!$B$19:$R$41,5,0)/'4. Billing Determinants'!$F$41*$D17,IF($E17="Non-RPP kWh",VLOOKUP(O$4,'4. Billing Determinants'!$B$19:$R$41,6,0)/'4. Billing Determinants'!$G$41*$D17, VLOOKUP(O$4,'4. Billing Determinants'!$B$19:$AA$41,25,0)*$D17)))),0) -> 0 | P17: =IFERROR(IF(P$4="",0,IF($E17="kWh",VLOOKUP(P$4,'4. Billing Determinants'!$B$19:$R$41,4,0)/'4. Billing Determinants'!$E$41*$D17,IF($E17="kW",VLOOKUP(P$4,'4. Billing Determinants'!$B$19:$R$41,5,0)/'4. Billing Determinants'!$F$41*$D17,IF($E17="Non-RPP kWh",VLOOKUP(P$4,'4. Billing Determinants'!$B$19:$R$41,6,0)/'4. Billing Determinants'!$G$41*$D17, VLOOKUP(P$4,'4. Billing Determinants'!$B$19:$AA$41,25,0)*$D17)))),0) -> 0 | Q17: =IFERROR(IF(Q$4="",0,IF($E17="kWh",VLOOKUP(Q$4,'4. Billing Determinants'!$B$19:$R$41,4,0)/'4. Billing Determinants'!$E$41*$D17,IF($E17="kW",VLOOKUP(Q$4,'4. Billing Determinants'!$B$19:$R$41,5,0)/'4. Billing Determinants'!$F$41*$D17,IF($E17="Non-RPP kWh",VLOOKUP(Q$4,'4. Billing Determinants'!$B$19:$R$41,6,0)/'4. Billing Determinants'!$G$41*$D17, VLOOKUP(Q$4,'4. Billing Determinants'!$B$19:$AA$41,25,0)*$D17)))),0) -> 0 | R17: =IFERROR(IF(R$4="",0,IF($E17="kWh",VLOOKUP(R$4,'4. Billing Determinants'!$B$19:$R$41,4,0)/'4. Billing Determinants'!$E$41*$D17,IF($E17="kW",VLOOKUP(R$4,'4. Billing Determinants'!$B$19:$R$41,5,0)/'4. Billing Determinants'!$F$41*$D17,IF($E17="Non-RPP kWh",VLOOKUP(R$4,'4. Billing Determinants'!$B$19:$R$41,6,0)/'4. Billing Determinants'!$G$41*$D17, VLOOKUP(R$4,'4. Billing Determinants'!$B$19:$AA$41,25,0)*$D17)))),0) -> 0 | S17: =IFERROR(IF(S$4="",0,IF($E17="kWh",VLOOKUP(S$4,'4. Billing Determinants'!$B$19:$R$41,4,0)/'4. Billing Determinants'!$E$41*$D17,IF($E17="kW",VLOOKUP(S$4,'4. Billing Determinants'!$B$19:$R$41,5,0)/'4. Billing Determinants'!$F$41*$D17,IF($E17="Non-RPP kWh",VLOOKUP(S$4,'4. Billing Determinants'!$B$19:$R$41,6,0)/'4. Billing Determinants'!$G$41*$D17, VLOOKUP(S$4,'4. Billing Determinants'!$B$19:$AA$41,25,0)*$D17)))),0) -> 0 | T17: =IFERROR(IF(T$4="",0,IF($E17="kWh",VLOOKUP(T$4,'4. Billing Determinants'!$B$19:$R$41,4,0)/'4. Billing Determinants'!$E$41*$D17,IF($E17="kW",VLOOKUP(T$4,'4. Billing Determinants'!$B$19:$R$41,5,0)/'4. Billing Determinants'!$F$41*$D17,IF($E17="Non-RPP kWh",VLOOKUP(T$4,'4. Billing Determinants'!$B$19:$R$41,6,0)/'4. Billing Determinants'!$G$41*$D17, VLOOKUP(T$4,'4. Billing Determinants'!$B$19:$AA$41,25,0)*$D17)))),0) -> 0 | U17: =IFERROR(IF(U$4="",0,IF($E17="kWh",VLOOKUP(U$4,'4. Billing Determinants'!$B$19:$R$41,4,0)/'4. Billing Determinants'!$E$41*$D17,IF($E17="kW",VLOOKUP(U$4,'4. Billing Determinants'!$B$19:$R$41,5,0)/'4. Billing Determinants'!$F$41*$D17,IF($E17="Non-RPP kWh",VLOOKUP(U$4,'4. Billing Determinants'!$B$19:$R$41,6,0)/'4. Billing Determinants'!$G$41*$D17, VLOOKUP(U$4,'4. Billing Determinants'!$B$19:$AA$41,25,0)*$D17)))),0) -> 0 | V17: =IFERROR(IF(V$4="",0,IF($E17="kWh",VLOOKUP(V$4,'4. Billing Determinants'!$B$19:$R$41,4,0)/'4. Billing Determinants'!$E$41*$D17,IF($E17="kW",VLOOKUP(V$4,'4. Billing Determinants'!$B$19:$R$41,5,0)/'4. Billing Determinants'!$F$41*$D17,IF($E17="Non-RPP kWh",VLOOKUP(V$4,'4. Billing Determinants'!$B$19:$R$41,6,0)/'4. Billing Determinants'!$G$41*$D17, VLOOKUP(V$4,'4. Billing Determinants'!$B$19:$AA$41,25,0)*$D17)))),0) -> 0 | W17: =IFERROR(IF(W$4="",0,IF($E17="kWh",VLOOKUP(W$4,'4. Billing Determinants'!$B$19:$R$41,4,0)/'4. Billing Determinants'!$E$41*$D17,IF($E17="kW",VLOOKUP(W$4,'4. Billing Determinants'!$B$19:$R$41,5,0)/'4. Billing Determinants'!$F$41*$D17,IF($E17="Non-RPP kWh",VLOOKUP(W$4,'4. Billing Determinants'!$B$19:$R$41,6,0)/'4. Billing Determinants'!$G$41*$D17, VLOOKUP(W$4,'4. Billing Determinants'!$B$19:$AA$41,25,0)*$D17)))),0) -> 0 | X17: =IFERROR(IF(X$4="",0,IF($E17="kWh",VLOOKUP(X$4,'4. Billing Determinants'!$B$19:$R$41,4,0)/'4. Billing Determinants'!$E$41*$D17,IF($E17="kW",VLOOKUP(X$4,'4. Billing Determinants'!$B$19:$R$41,5,0)/'4. Billing Determinants'!$F$41*$D17,IF($E17="Non-RPP kWh",VLOOKUP(X$4,'4. Billing Determinants'!$B$19:$R$41,6,0)/'4. Billing Determinants'!$G$41*$D17, VLOOKUP(X$4,'4. Billing Determinants'!$B$19:$AA$41,25,0)*$D17)))),0) -> 0 | Y17: =IFERROR(IF(Y$4="",0,IF($E17="kWh",VLOOKUP(Y$4,'4. Billing Determinants'!$B$19:$R$41,4,0)/'4. Billing Determinants'!$E$41*$D17,IF($E17="kW",VLOOKUP(Y$4,'4. Billing Determinants'!$B$19:$R$41,5,0)/'4. Billing Determinants'!$F$41*$D17,IF($E17="Non-RPP kWh",VLOOKUP(Y$4,'4. Billing Determinants'!$B$19:$R$41,6,0)/'4. Billing Determinants'!$G$41*$D17, VLOOKUP(Y$4,'4. Billing Determinants'!$B$19:$AA$41,25,0)*$D17)))),0) -> 0
A18: 15 | B18: Disposition and Recovery/Refund of Regulatory Balances (2023) | C18: 1595 | D18: ='2a. Continuity Schedule'!BT39 -> 0 | E18: % | F18: =IFERROR(IF(F$4="",0,IF($E18="kWh",VLOOKUP(F$4,'4. Billing Determinants'!$B$19:$R$41,4,0)/'4. Billing Determinants'!$E$41*$D18,IF($E18="kW",VLOOKUP(F$4,'4. Billing Determinants'!$B$19:$R$41,5,0)/'4. Billing Determinants'!$F$41*$D18,IF($E18="Non-RPP kWh",VLOOKUP(F$4,'4. Billing Determinants'!$B$19:$R$41,6,0)/'4. Billing Determinants'!$G$41*$D18, VLOOKUP(F$4,'4. Billing Determinants'!$B$19:$AA$41,26,0)*$D18)))),0) -> 0 | G18: =IFERROR(IF(G$4="",0,IF($E18="kWh",VLOOKUP(G$4,'4. Billing Determinants'!$B$19:$R$41,4,0)/'4. Billing Determinants'!$E$41*$D18,IF($E18="kW",VLOOKUP(G$4,'4. Billing Determinants'!$B$19:$R$41,5,0)/'4. Billing Determinants'!$F$41*$D18,IF($E18="Non-RPP kWh",VLOOKUP(G$4,'4. Billing Determinants'!$B$19:$R$41,6,0)/'4. Billing Determinants'!$G$41*$D18, VLOOKUP(G$4,'4. Billing Determinants'!$B$19:$AA$41,26,0)*$D18)))),0) -> 0 | H18: =IFERROR(IF(H$4="",0,IF($E18="kWh",VLOOKUP(H$4,'4. Billing Determinants'!$B$19:$R$41,4,0)/'4. Billing Determinants'!$E$41*$D18,IF($E18="kW",VLOOKUP(H$4,'4. Billing Determinants'!$B$19:$R$41,5,0)/'4. Billing Determinants'!$F$41*$D18,IF($E18="Non-RPP kWh",VLOOKUP(H$4,'4. Billing Determinants'!$B$19:$R$41,6,0)/'4. Billing Determinants'!$G$41*$D18, VLOOKUP(H$4,'4. Billing Determinants'!$B$19:$AA$41,26,0)*$D18)))),0) -> 0 | I18: =IFERROR(IF(I$4="",0,IF($E18="kWh",VLOOKUP(I$4,'4. Billing Determinants'!$B$19:$R$41,4,0)/'4. Billing Determinants'!$E$41*$D18,IF($E18="kW",VLOOKUP(I$4,'4. Billing Determinants'!$B$19:$R$41,5,0)/'4. Billing Determinants'!$F$41*$D18,IF($E18="Non-RPP kWh",VLOOKUP(I$4,'4. Billing Determinants'!$B$19:$R$41,6,0)/'4. Billing Determinants'!$G$41*$D18, VLOOKUP(I$4,'4. Billing Determinants'!$B$19:$AA$41,26,0)*$D18)))),0) -> 0 | J18: =IFERROR(IF(J$4="",0,IF($E18="kWh",VLOOKUP(J$4,'4. Billing Determinants'!$B$19:$R$41,4,0)/'4. Billing Determinants'!$E$41*$D18,IF($E18="kW",VLOOKUP(J$4,'4. Billing Determinants'!$B$19:$R$41,5,0)/'4. Billing Determinants'!$F$41*$D18,IF($E18="Non-RPP kWh",VLOOKUP(J$4,'4. Billing Determinants'!$B$19:$R$41,6,0)/'4. Billing Determinants'!$G$41*$D18, VLOOKUP(J$4,'4. Billing Determinants'!$B$19:$AA$41,26,0)*$D18)))),0) -> 0 | K18: =IFERROR(IF(K$4="",0,IF($E18="kWh",VLOOKUP(K$4,'4. Billing Determinants'!$B$19:$R$41,4,0)/'4. Billing Determinants'!$E$41*$D18,IF($E18="kW",VLOOKUP(K$4,'4. Billing Determinants'!$B$19:$R$41,5,0)/'4. Billing Determinants'!$F$41*$D18,IF($E18="Non-RPP kWh",VLOOKUP(K$4,'4. Billing Determinants'!$B$19:$R$41,6,0)/'4. Billing Determinants'!$G$41*$D18, VLOOKUP(K$4,'4. Billing Determinants'!$B$19:$AA$41,26,0)*$D18)))),0) -> 0 | L18: =IFERROR(IF(L$4="",0,IF($E18="kWh",VLOOKUP(L$4,'4. Billing Determinants'!$B$19:$R$41,4,0)/'4. Billing Determinants'!$E$41*$D18,IF($E18="kW",VLOOKUP(L$4,'4. Billing Determinants'!$B$19:$R$41,5,0)/'4. Billing Determinants'!$F$41*$D18,IF($E18="Non-RPP kWh",VLOOKUP(L$4,'4. Billing Determinants'!$B$19:$R$41,6,0)/'4. Billing Determinants'!$G$41*$D18, VLOOKUP(L$4,'4. Billing Determinants'!$B$19:$AA$41,26,0)*$D18)))),0) -> 0 | M18: =IFERROR(IF(M$4="",0,IF($E18="kWh",VLOOKUP(M$4,'4. Billing Determinants'!$B$19:$R$41,4,0)/'4. Billing Determinants'!$E$41*$D18,IF($E18="kW",VLOOKUP(M$4,'4. Billing Determinants'!$B$19:$R$41,5,0)/'4. Billing Determinants'!$F$41*$D18,IF($E18="Non-RPP kWh",VLOOKUP(M$4,'4. Billing Determinants'!$B$19:$R$41,6,0)/'4. Billing Determinants'!$G$41*$D18, VLOOKUP(M$4,'4. Billing Determinants'!$B$19:$AA$41,26,0)*$D18)))),0) -> 0 | N18: =IFERROR(IF(N$4="",0,IF($E18="kWh",VLOOKUP(N$4,'4. Billing Determinants'!$B$19:$R$41,4,0)/'4. Billing Determinants'!$E$41*$D18,IF($E18="kW",VLOOKUP(N$4,'4. Billing Determinants'!$B$19:$R$41,5,0)/'4. Billing Determinants'!$F$41*$D18,IF($E18="Non-RPP kWh",VLOOKUP(N$4,'4. Billing Determinants'!$B$19:$R$41,6,0)/'4. Billing Determinants'!$G$41*$D18, VLOOKUP(N$4,'4. Billing Determinants'!$B$19:$AA$41,26,0)*$D18)))),0) -> 0 | O18: =IFERROR(IF(O$4="",0,IF($E18="kWh",VLOOKUP(O$4,'4. Billing Determinants'!$B$19:$R$41,4,0)/'4. Billing Determinants'!$E$41*$D18,IF($E18="kW",VLOOKUP(O$4,'4. Billing Determinants'!$B$19:$R$41,5,0)/'4. Billing Determinants'!$F$41*$D18,IF($E18="Non-RPP kWh",VLOOKUP(O$4,'4. Billing Determinants'!$B$19:$R$41,6,0)/'4. Billing Determinants'!$G$41*$D18, VLOOKUP(O$4,'4. Billing Determinants'!$B$19:$AA$41,26,0)*$D18)))),0) -> 0 | P18: =IFERROR(IF(P$4="",0,IF($E18="kWh",VLOOKUP(P$4,'4. Billing Determinants'!$B$19:$R$41,4,0)/'4. Billing Determinants'!$E$41*$D18,IF($E18="kW",VLOOKUP(P$4,'4. Billing Determinants'!$B$19:$R$41,5,0)/'4. Billing Determinants'!$F$41*$D18,IF($E18="Non-RPP kWh",VLOOKUP(P$4,'4. Billing Determinants'!$B$19:$R$41,6,0)/'4. Billing Determinants'!$G$41*$D18, VLOOKUP(P$4,'4. Billing Determinants'!$B$19:$AA$41,26,0)*$D18)))),0) -> 0 | Q18: =IFERROR(IF(Q$4="",0,IF($E18="kWh",VLOOKUP(Q$4,'4. Billing Determinants'!$B$19:$R$41,4,0)/'4. Billing Determinants'!$E$41*$D18,IF($E18="kW",VLOOKUP(Q$4,'4. Billing Determinants'!$B$19:$R$41,5,0)/'4. Billing Determinants'!$F$41*$D18,IF($E18="Non-RPP kWh",VLOOKUP(Q$4,'4. Billing Determinants'!$B$19:$R$41,6,0)/'4. Billing Determinants'!$G$41*$D18, VLOOKUP(Q$4,'4. Billing Determinants'!$B$19:$AA$41,26,0)*$D18)))),0) -> 0 | R18: =IFERROR(IF(R$4="",0,IF($E18="kWh",VLOOKUP(R$4,'4. Billing Determinants'!$B$19:$R$41,4,0)/'4. Billing Determinants'!$E$41*$D18,IF($E18="kW",VLOOKUP(R$4,'4. Billing Determinants'!$B$19:$R$41,5,0)/'4. Billing Determinants'!$F$41*$D18,IF($E18="Non-RPP kWh",VLOOKUP(R$4,'4. Billing Determinants'!$B$19:$R$41,6,0)/'4. Billing Determinants'!$G$41*$D18, VLOOKUP(R$4,'4. Billing Determinants'!$B$19:$AA$41,26,0)*$D18)))),0) -> 0 | S18: =IFERROR(IF(S$4="",0,IF($E18="kWh",VLOOKUP(S$4,'4. Billing Determinants'!$B$19:$R$41,4,0)/'4. Billing Determinants'!$E$41*$D18,IF($E18="kW",VLOOKUP(S$4,'4. Billing Determinants'!$B$19:$R$41,5,0)/'4. Billing Determinants'!$F$41*$D18,IF($E18="Non-RPP kWh",VLOOKUP(S$4,'4. Billing Determinants'!$B$19:$R$41,6,0)/'4. Billing Determinants'!$G$41*$D18, VLOOKUP(S$4,'4. Billing Determinants'!$B$19:$AA$41,26,0)*$D18)))),0) -> 0 | T18: =IFERROR(IF(T$4="",0,IF($E18="kWh",VLOOKUP(T$4,'4. Billing Determinants'!$B$19:$R$41,4,0)/'4. Billing Determinants'!$E$41*$D18,IF($E18="kW",VLOOKUP(T$4,'4. Billing Determinants'!$B$19:$R$41,5,0)/'4. Billing Determinants'!$F$41*$D18,IF($E18="Non-RPP kWh",VLOOKUP(T$4,'4. Billing Determinants'!$B$19:$R$41,6,0)/'4. Billing Determinants'!$G$41*$D18, VLOOKUP(T$4,'4. Billing Determinants'!$B$19:$AA$41,26,0)*$D18)))),0) -> 0 | U18: =IFERROR(IF(U$4="",0,IF($E18="kWh",VLOOKUP(U$4,'4. Billing Determinants'!$B$19:$R$41,4,0)/'4. Billing Determinants'!$E$41*$D18,IF($E18="kW",VLOOKUP(U$4,'4. Billing Determinants'!$B$19:$R$41,5,0)/'4. Billing Determinants'!$F$41*$D18,IF($E18="Non-RPP kWh",VLOOKUP(U$4,'4. Billing Determinants'!$B$19:$R$41,6,0)/'4. Billing Determinants'!$G$41*$D18, VLOOKUP(U$4,'4. Billing Determinants'!$B$19:$AA$41,26,0)*$D18)))),0) -> 0 | V18: =IFERROR(IF(V$4="",0,IF($E18="kWh",VLOOKUP(V$4,'4. Billing Determinants'!$B$19:$R$41,4,0)/'4. Billing Determinants'!$E$41*$D18,IF($E18="kW",VLOOKUP(V$4,'4. Billing Determinants'!$B$19:$R$41,5,0)/'4. Billing Determinants'!$F$41*$D18,IF($E18="Non-RPP kWh",VLOOKUP(V$4,'4. Billing Determinants'!$B$19:$R$41,6,0)/'4. Billing Determinants'!$G$41*$D18, VLOOKUP(V$4,'4. Billing Determinants'!$B$19:$AA$41,26,0)*$D18)))),0) -> 0 | W18: =IFERROR(IF(W$4="",0,IF($E18="kWh",VLOOKUP(W$4,'4. Billing Determinants'!$B$19:$R$41,4,0)/'4. Billing Determinants'!$E$41*$D18,IF($E18="kW",VLOOKUP(W$4,'4. Billing Determinants'!$B$19:$R$41,5,0)/'4. Billing Determinants'!$F$41*$D18,IF($E18="Non-RPP kWh",VLOOKUP(W$4,'4. Billing Determinants'!$B$19:$R$41,6,0)/'4. Billing Determinants'!$G$41*$D18, VLOOKUP(W$4,'4. Billing Determinants'!$B$19:$AA$41,26,0)*$D18)))),0) -> 0 | X18: =IFERROR(IF(X$4="",0,IF($E18="kWh",VLOOKUP(X$4,'4. Billing Determinants'!$B$19:$R$41,4,0)/'4. Billing Determinants'!$E$41*$D18,IF($E18="kW",VLOOKUP(X$4,'4. Billing Determinants'!$B$19:$R$41,5,0)/'4. Billing Determinants'!$F$41*$D18,IF($E18="Non-RPP kWh",VLOOKUP(X$4,'4. Billing Determinants'!$B$19:$R$41,6,0)/'4. Billing Determinants'!$G$41*$D18, VLOOKUP(X$4,'4. Billing Determinants'!$B$19:$AA$41,26,0)*$D18)))),0) -> 0 | Y18: =IFERROR(IF(Y$4="",0,IF($E18="kWh",VLOOKUP(Y$4,'4. Billing Determinants'!$B$19:$R$41,4,0)/'4. Billing Determinants'!$E$41*$D18,IF($E18="kW",VLOOKUP(Y$4,'4. Billing Determinants'!$B$19:$R$41,5,0)/'4. Billing Determinants'!$F$41*$D18,IF($E18="Non-RPP kWh",VLOOKUP(Y$4,'4. Billing Determinants'!$B$19:$R$41,6,0)/'4. Billing Determinants'!$G$41*$D18, VLOOKUP(Y$4,'4. Billing Determinants'!$B$19:$AA$41,26,0)*$D18)))),0) -> 0
B19: Disposition and Recovery/Refund of Regulatory Balances (2024) | C19: 1595 | D19: ='2a. Continuity Schedule'!BT40 -> 0 | E19: % | F19: =IFERROR(IF(F$4="",0,IF($E19="kWh",VLOOKUP(F$4,'4. Billing Determinants'!$B$19:$R$41,4,0)/'4. Billing Determinants'!$E$41*$D19,IF($E19="kW",VLOOKUP(F$4,'4. Billing Determinants'!$B$19:$R$41,5,0)/'4. Billing Determinants'!$F$41*$D19,IF($E19="Non-RPP kWh",VLOOKUP(F$4,'4. Billing Determinants'!$B$19:$R$41,6,0)/'4. Billing Determinants'!$G$41*$D19, VLOOKUP(F$4,'4. Billing Determinants'!$B$19:$AB$41,27,0)*$D19)))),0) -> 0 | G19: =IFERROR(IF(G$4="",0,IF($E19="kWh",VLOOKUP(G$4,'4. Billing Determinants'!$B$19:$R$41,4,0)/'4. Billing Determinants'!$E$41*$D19,IF($E19="kW",VLOOKUP(G$4,'4. Billing Determinants'!$B$19:$R$41,5,0)/'4. Billing Determinants'!$F$41*$D19,IF($E19="Non-RPP kWh",VLOOKUP(G$4,'4. Billing Determinants'!$B$19:$R$41,6,0)/'4. Billing Determinants'!$G$41*$D19, VLOOKUP(G$4,'4. Billing Determinants'!$B$19:$AB$41,27,0)*$D19)))),0) -> 0 | H19: =IFERROR(IF(H$4="",0,IF($E19="kWh",VLOOKUP(H$4,'4. Billing Determinants'!$B$19:$R$41,4,0)/'4. Billing Determinants'!$E$41*$D19,IF($E19="kW",VLOOKUP(H$4,'4. Billing Determinants'!$B$19:$R$41,5,0)/'4. Billing Determinants'!$F$41*$D19,IF($E19="Non-RPP kWh",VLOOKUP(H$4,'4. Billing Determinants'!$B$19:$R$41,6,0)/'4. Billing Determinants'!$G$41*$D19, VLOOKUP(H$4,'4. Billing Determinants'!$B$19:$AB$41,27,0)*$D19)))),0) -> 0 | I19: =IFERROR(IF(I$4="",0,IF($E19="kWh",VLOOKUP(I$4,'4. Billing Determinants'!$B$19:$R$41,4,0)/'4. Billing Determinants'!$E$41*$D19,IF($E19="kW",VLOOKUP(I$4,'4. Billing Determinants'!$B$19:$R$41,5,0)/'4. Billing Determinants'!$F$41*$D19,IF($E19="Non-RPP kWh",VLOOKUP(I$4,'4. Billing Determinants'!$B$19:$R$41,6,0)/'4. Billing Determinants'!$G$41*$D19, VLOOKUP(I$4,'4. Billing Determinants'!$B$19:$AB$41,27,0)*$D19)))),0) -> 0 | J19: =IFERROR(IF(J$4="",0,IF($E19="kWh",VLOOKUP(J$4,'4. Billing Determinants'!$B$19:$R$41,4,0)/'4. Billing Determinants'!$E$41*$D19,IF($E19="kW",VLOOKUP(J$4,'4. Billing Determinants'!$B$19:$R$41,5,0)/'4. Billing Determinants'!$F$41*$D19,IF($E19="Non-RPP kWh",VLOOKUP(J$4,'4. Billing Determinants'!$B$19:$R$41,6,0)/'4. Billing Determinants'!$G$41*$D19, VLOOKUP(J$4,'4. Billing Determinants'!$B$19:$AB$41,27,0)*$D19)))),0) -> 0 | K19: =IFERROR(IF(K$4="",0,IF($E19="kWh",VLOOKUP(K$4,'4. Billing Determinants'!$B$19:$R$41,4,0)/'4. Billing Determinants'!$E$41*$D19,IF($E19="kW",VLOOKUP(K$4,'4. Billing Determinants'!$B$19:$R$41,5,0)/'4. Billing Determinants'!$F$41*$D19,IF($E19="Non-RPP kWh",VLOOKUP(K$4,'4. Billing Determinants'!$B$19:$R$41,6,0)/'4. Billing Determinants'!$G$41*$D19, VLOOKUP(K$4,'4. Billing Determinants'!$B$19:$AB$41,27,0)*$D19)))),0) -> 0 | L19: =IFERROR(IF(L$4="",0,IF($E19="kWh",VLOOKUP(L$4,'4. Billing Determinants'!$B$19:$R$41,4,0)/'4. Billing Determinants'!$E$41*$D19,IF($E19="kW",VLOOKUP(L$4,'4. Billing Determinants'!$B$19:$R$41,5,0)/'4. Billing Determinants'!$F$41*$D19,IF($E19="Non-RPP kWh",VLOOKUP(L$4,'4. Billing Determinants'!$B$19:$R$41,6,0)/'4. Billing Determinants'!$G$41*$D19, VLOOKUP(L$4,'4. Billing Determinants'!$B$19:$AB$41,27,0)*$D19)))),0) -> 0 | M19: =IFERROR(IF(M$4="",0,IF($E19="kWh",VLOOKUP(M$4,'4. Billing Determinants'!$B$19:$R$41,4,0)/'4. Billing Determinants'!$E$41*$D19,IF($E19="kW",VLOOKUP(M$4,'4. Billing Determinants'!$B$19:$R$41,5,0)/'4. Billing Determinants'!$F$41*$D19,IF($E19="Non-RPP kWh",VLOOKUP(M$4,'4. Billing Determinants'!$B$19:$R$41,6,0)/'4. Billing Determinants'!$G$41*$D19, VLOOKUP(M$4,'4. Billing Determinants'!$B$19:$AB$41,27,0)*$D19)))),0) -> 0 | N19: =IFERROR(IF(N$4="",0,IF($E19="kWh",VLOOKUP(N$4,'4. Billing Determinants'!$B$19:$R$41,4,0)/'4. Billing Determinants'!$E$41*$D19,IF($E19="kW",VLOOKUP(N$4,'4. Billing Determinants'!$B$19:$R$41,5,0)/'4. Billing Determinants'!$F$41*$D19,IF($E19="Non-RPP kWh",VLOOKUP(N$4,'4. Billing Determinants'!$B$19:$R$41,6,0)/'4. Billing Determinants'!$G$41*$D19, VLOOKUP(N$4,'4. Billing Determinants'!$B$19:$AB$41,27,0)*$D19)))),0) -> 0 | O19: =IFERROR(IF(O$4="",0,IF($E19="kWh",VLOOKUP(O$4,'4. Billing Determinants'!$B$19:$R$41,4,0)/'4. Billing Determinants'!$E$41*$D19,IF($E19="kW",VLOOKUP(O$4,'4. Billing Determinants'!$B$19:$R$41,5,0)/'4. Billing Determinants'!$F$41*$D19,IF($E19="Non-RPP kWh",VLOOKUP(O$4,'4. Billing Determinants'!$B$19:$R$41,6,0)/'4. Billing Determinants'!$G$41*$D19, VLOOKUP(O$4,'4. Billing Determinants'!$B$19:$AB$41,27,0)*$D19)))),0) -> 0 | P19: =IFERROR(IF(P$4="",0,IF($E19="kWh",VLOOKUP(P$4,'4. Billing Determinants'!$B$19:$R$41,4,0)/'4. Billing Determinants'!$E$41*$D19,IF($E19="kW",VLOOKUP(P$4,'4. Billing Determinants'!$B$19:$R$41,5,0)/'4. Billing Determinants'!$F$41*$D19,IF($E19="Non-RPP kWh",VLOOKUP(P$4,'4. Billing Determinants'!$B$19:$R$41,6,0)/'4. Billing Determinants'!$G$41*$D19, VLOOKUP(P$4,'4. Billing Determinants'!$B$19:$AB$41,27,0)*$D19)))),0) -> 0 | Q19: =IFERROR(IF(Q$4="",0,IF($E19="kWh",VLOOKUP(Q$4,'4. Billing Determinants'!$B$19:$R$41,4,0)/'4. Billing Determinants'!$E$41*$D19,IF($E19="kW",VLOOKUP(Q$4,'4. Billing Determinants'!$B$19:$R$41,5,0)/'4. Billing Determinants'!$F$41*$D19,IF($E19="Non-RPP kWh",VLOOKUP(Q$4,'4. Billing Determinants'!$B$19:$R$41,6,0)/'4. Billing Determinants'!$G$41*$D19, VLOOKUP(Q$4,'4. Billing Determinants'!$B$19:$AB$41,27,0)*$D19)))),0) -> 0 | R19: =IFERROR(IF(R$4="",0,IF($E19="kWh",VLOOKUP(R$4,'4. Billing Determinants'!$B$19:$R$41,4,0)/'4. Billing Determinants'!$E$41*$D19,IF($E19="kW",VLOOKUP(R$4,'4. Billing Determinants'!$B$19:$R$41,5,0)/'4. Billing Determinants'!$F$41*$D19,IF($E19="Non-RPP kWh",VLOOKUP(R$4,'4. Billing Determinants'!$B$19:$R$41,6,0)/'4. Billing Determinants'!$G$41*$D19, VLOOKUP(R$4,'4. Billing Determinants'!$B$19:$AB$41,27,0)*$D19)))),0) -> 0 | S19: =IFERROR(IF(S$4="",0,IF($E19="kWh",VLOOKUP(S$4,'4. Billing Determinants'!$B$19:$R$41,4,0)/'4. Billing Determinants'!$E$41*$D19,IF($E19="kW",VLOOKUP(S$4,'4. Billing Determinants'!$B$19:$R$41,5,0)/'4. Billing Determinants'!$F$41*$D19,IF($E19="Non-RPP kWh",VLOOKUP(S$4,'4. Billing Determinants'!$B$19:$R$41,6,0)/'4. Billing Determinants'!$G$41*$D19, VLOOKUP(S$4,'4. Billing Determinants'!$B$19:$AB$41,27,0)*$D19)))),0) -> 0 | T19: =IFERROR(IF(T$4="",0,IF($E19="kWh",VLOOKUP(T$4,'4. Billing Determinants'!$B$19:$R$41,4,0)/'4. Billing Determinants'!$E$41*$D19,IF($E19="kW",VLOOKUP(T$4,'4. Billing Determinants'!$B$19:$R$41,5,0)/'4. Billing Determinants'!$F$41*$D19,IF($E19="Non-RPP kWh",VLOOKUP(T$4,'4. Billing Determinants'!$B$19:$R$41,6,0)/'4. Billing Determinants'!$G$41*$D19, VLOOKUP(T$4,'4. Billing Determinants'!$B$19:$AB$41,27,0)*$D19)))),0) -> 0 | U19: =IFERROR(IF(U$4="",0,IF($E19="kWh",VLOOKUP(U$4,'4. Billing Determinants'!$B$19:$R$41,4,0)/'4. Billing Determinants'!$E$41*$D19,IF($E19="kW",VLOOKUP(U$4,'4. Billing Determinants'!$B$19:$R$41,5,0)/'4. Billing Determinants'!$F$41*$D19,IF($E19="Non-RPP kWh",VLOOKUP(U$4,'4. Billing Determinants'!$B$19:$R$41,6,0)/'4. Billing Determinants'!$G$41*$D19, VLOOKUP(U$4,'4. Billing Determinants'!$B$19:$AB$41,27,0)*$D19)))),0) -> 0 | V19: =IFERROR(IF(V$4="",0,IF($E19="kWh",VLOOKUP(V$4,'4. Billing Determinants'!$B$19:$R$41,4,0)/'4. Billing Determinants'!$E$41*$D19,IF($E19="kW",VLOOKUP(V$4,'4. Billing Determinants'!$B$19:$R$41,5,0)/'4. Billing Determinants'!$F$41*$D19,IF($E19="Non-RPP kWh",VLOOKUP(V$4,'4. Billing Determinants'!$B$19:$R$41,6,0)/'4. Billing Determinants'!$G$41*$D19, VLOOKUP(V$4,'4. Billing Determinants'!$B$19:$AB$41,27,0)*$D19)))),0) -> 0 | W19: =IFERROR(IF(W$4="",0,IF($E19="kWh",VLOOKUP(W$4,'4. Billing Determinants'!$B$19:$R$41,4,0)/'4. Billing Determinants'!$E$41*$D19,IF($E19="kW",VLOOKUP(W$4,'4. Billing Determinants'!$B$19:$R$41,5,0)/'4. Billing Determinants'!$F$41*$D19,IF($E19="Non-RPP kWh",VLOOKUP(W$4,'4. Billing Determinants'!$B$19:$R$41,6,0)/'4. Billing Determinants'!$G$41*$D19, VLOOKUP(W$4,'4. Billing Determinants'!$B$19:$AB$41,27,0)*$D19)))),0) -> 0 | X19: =IFERROR(IF(X$4="",0,IF($E19="kWh",VLOOKUP(X$4,'4. Billing Determinants'!$B$19:$R$41,4,0)/'4. Billing Determinants'!$E$41*$D19,IF($E19="kW",VLOOKUP(X$4,'4. Billing Determinants'!$B$19:$R$41,5,0)/'4. Billing Determinants'!$F$41*$D19,IF($E19="Non-RPP kWh",VLOOKUP(X$4,'4. Billing Determinants'!$B$19:$R$41,6,0)/'4. Billing Determinants'!$G$41*$D19, VLOOKUP(X$4,'4. Billing Determinants'!$B$19:$AB$41,27,0)*$D19)))),0) -> 0 | Y19: =IFERROR(IF(Y$4="",0,IF($E19="kWh",VLOOKUP(Y$4,'4. Billing Determinants'!$B$19:$R$41,4,0)/'4. Billing Determinants'!$E$41*$D19,IF($E19="kW",VLOOKUP(Y$4,'4. Billing Determinants'!$B$19:$R$41,5,0)/'4. Billing Determinants'!$F$41*$D19,IF($E19="Non-RPP kWh",VLOOKUP(Y$4,'4. Billing Determinants'!$B$19:$R$41,6,0)/'4. Billing Determinants'!$G$41*$D19, VLOOKUP(Y$4,'4. Billing Determinants'!$B$19:$AB$41,27,0)*$D19)))),0) -> 0
A20: 16 | B20: Total Group 1 accounts above (excluding 1589) | D20: =SUM(D5:D19)-D11 -> -167904.17 | F20: =SUM(F5:F19)-F11 -> -74094.13561 | G20: =SUM(G5:G19)-G11 -> -20684.91697 | H20: =SUM(H5:H19)-H11 -> -72151.43454 | I20: =SUM(I5:I19)-I11 -> -412.216687 | J20: -48.10016778 | K20: -513.3660176 | L20: 0 | M20: 0 | N20: 0 | O20: 0 | P20: 0 | Q20: 0 | R20: 0 | S20: 0 | T20: 0 | U20: 0 | V20: 0 | W20: 0 | X20: 0 | Y20: =SUM(Y5:Y19)-Y11 -> 0
A21: 17
